{"text_format":"1","workbook":"xlsx","n_sheets":5,"sheets":["INSTRUCTIONS","Establishment details","Procedure details","mismac","Lists"],"not_rendered":{"charts":0,"images":2,"macros":1,"external_links":0,"defined_names":34,"comments":0,"pivot_tables":0},"unopened":[],"bounds":{"document_bytes":16777216,"sheet_cells":100000,"rows_first":2000,"rows_last":500,"rows_between":2000,"halvings":0,"cell_chars":16384,"cell_head_chars":4096},"cells_cut":0,"cells_raw":0,"read":"whole","date_system":"1900"}

{"sheet":"INSTRUCTIONS","index":0,"n_rows":35,"n_cols":1,"rows_kept":35,"cut":false,"hidden":false,"merged":[[0,0,0,3],[34,0,34,3]]}
["PLEASE ENSURE MACROS ARE ENABLED TO ENSURE THIS SPREADSHEET VALIDATES PROPERLY \n - if the security warning appears (see step 1), you will need to follow the below instructions\n- if no security warning appears, it is likely that macros are already enabled and you will not need to follow the below instructions\nYou will be asked to resubmit the form if macros have not been enabled"]
[]
[]
[]
[]
[]
[]
[]
[]
[]
[]
[]
[]
[]
[]
[]
[]
["If you require assistance, contact ASRU Business Support Team at ROPReturns@homeoffice.gsi.gov.uk or phone 020 7035 0583 / 8625 "]
[]
[]
[]
[]
[]
[]
[]
[]
[]
[]
[]
[]
[]
[]
[]
[]
["If you require assistance, contact ASRU Business Support Team at\nROPReturns@homeoffice.gsi.gov.uk or phone 020 7035 0583 / 8625 "]

{"sheet":"Establishment details","index":1,"n_rows":57,"n_cols":3,"rows_kept":57,"cut":false,"hidden":false,"merged":[[0,0,0,3],[1,0,1,3],[2,0,2,3]]}
[{"$f":"CONCATENATE(\"Animal use data \",C24)","v":"Animal use data 2015"}]
["PLEASE ENSURE MACROS ARE ENABLED TO ENSURE THIS SPREADSHEET VALIDATES PROPERLY (SEE INSTRUCTIONS)\nIf you require assistance, contact ASRU Business Support Team at ROPReturns@homeoffice.gsi.gov.uk or phone 020 7035 0583 / 8625 "]
["Once macros are enabled, the \"procedure details\" tab will only appear if:\n-  'Were any procedures carried out and completed in the reported year?' is Yes and \n- 'Were only larval or embryonic forms used on this project this year?' is No\n\nThroughout this workbook, where a cell has a drop-down box (to the right of it), please use it to enter data"]
[null,"Country:","United Kingdom"]
[]
[null,"Name:"]
[]
[null,"Address:"]
[]
[]
[]
[]
[null,"Email:"]
[]
[null,"Telephone:"]
[]
[null,"Serial Number (for office use only):"]
[]
[null,"Establishment Licence Number:"]
[]
[]
[null,"Project License Number:"]
[]
[null,"Reported year:",2015]
[]
[null,"Were any procedures carried out and completed in the reported year?"]
[null,"The \"procedure details\" tab will only appear iF this is \"Yes\" and the below row (larval / embryonic forms) is \"No\""]
[]
[]
[null,"Were only larval or embryonic forms used on this project this year?"]
[]
[null,"Were any species listed in Appendix 1 of CITES? "]
[null,"Please provide details in the additional comments box below if yes"]
[]
[null,"Were neuromuscular blocking agents (NMBA) used in any procedures"]
[null,"in the reported year?"]
[]
[null,"If yes to the above, was general anaesthesia used throughout the"]
[null,"entire period of neuromuscular blockade?"]
[null,"Please provide details in the additional comments box below if no"]
[]
[null,"Were any rodenticide trials undertaken?"]
[]
[null,"Additional comments:"]
[]
[]
[]
[]
[]
[]
[]
[]
[]
[]
[]
[null,{"$f":"IF(AND(C26=\"Yes\",C30=\"No\"),1,0)","v":0}]
[null,{"$f":"COUNTA(C19,C22,C26)","v":0}]

{"sheet":"Procedure details","index":2,"n_rows":304,"n_cols":23,"rows_kept":304,"cut":false,"hidden":false,"merged":[]}
[]
[]
["EU Submission *","Id 1","Id 2","Id 3","Animal Species","Specify other","Number of Animals","Re-use","Place of birth (origin)","Non-human Primate (NHP) Source (origin)","Non-human Primate (NHP) Generation","Genetic status","Creation of new GL","Purpose","Specify other","Testing by legislation","Specify other","Legislative Requirements (origin of the legislation) ","Actual Severity","Custom Severity","Techniques of Special Interest","Comments","Comments 2"]
[null,{"$f":"'Establishment details'!$C$17","v":0},{"$f":"'Establishment details'!$C$19","v":0},{"$f":"'Establishment details'!$C$22","v":0}]
[null,{"$f":"'Establishment details'!$C$17","v":0},{"$f":"'Establishment details'!$C$19","v":0},{"$f":"'Establishment details'!$C$22","v":0}]
[null,{"$f":"'Establishment details'!$C$17","v":0},{"$f":"'Establishment details'!$C$19","v":0},{"$f":"'Establishment details'!$C$22","v":0}]
[null,{"$f":"'Establishment details'!$C$17","v":0},{"$f":"'Establishment details'!$C$19","v":0},{"$f":"'Establishment details'!$C$22","v":0}]
[null,{"$f":"'Establishment details'!$C$17","v":0},{"$f":"'Establishment details'!$C$19","v":0},{"$f":"'Establishment details'!$C$22","v":0}]
[null,{"$f":"'Establishment details'!$C$17","v":0},{"$f":"'Establishment details'!$C$19","v":0},{"$f":"'Establishment details'!$C$22","v":0}]
[null,{"$f":"'Establishment details'!$C$17","v":0},{"$f":"'Establishment details'!$C$19","v":0},{"$f":"'Establishment details'!$C$22","v":0}]
[null,{"$f":"'Establishment details'!$C$17","v":0},{"$f":"'Establishment details'!$C$19","v":0},{"$f":"'Establishment details'!$C$22","v":0}]
[null,{"$f":"'Establishment details'!$C$17","v":0},{"$f":"'Establishment details'!$C$19","v":0},{"$f":"'Establishment details'!$C$22","v":0}]
[null,{"$f":"'Establishment details'!$C$17","v":0},{"$f":"'Establishment details'!$C$19","v":0},{"$f":"'Establishment details'!$C$22","v":0}]
[null,{"$f":"'Establishment details'!$C$17","v":0},{"$f":"'Establishment details'!$C$19","v":0},{"$f":"'Establishment details'!$C$22","v":0}]
[null,{"$f":"'Establishment details'!$C$17","v":0},{"$f":"'Establishment details'!$C$19","v":0},{"$f":"'Establishment details'!$C$22","v":0}]
[null,{"$f":"'Establishment details'!$C$17","v":0},{"$f":"'Establishment details'!$C$19","v":0},{"$f":"'Establishment details'!$C$22","v":0}]
[null,{"$f":"'Establishment details'!$C$17","v":0},{"$f":"'Establishment details'!$C$19","v":0},{"$f":"'Establishment details'!$C$22","v":0}]
[null,{"$f":"'Establishment details'!$C$17","v":0},{"$f":"'Establishment details'!$C$19","v":0},{"$f":"'Establishment details'!$C$22","v":0}]
[null,{"$f":"'Establishment details'!$C$17","v":0},{"$f":"'Establishment details'!$C$19","v":0},{"$f":"'Establishment details'!$C$22","v":0}]
[null,{"$f":"'Establishment details'!$C$17","v":0},{"$f":"'Establishment details'!$C$19","v":0},{"$f":"'Establishment details'!$C$22","v":0}]
[null,{"$f":"'Establishment details'!$C$17","v":0},{"$f":"'Establishment details'!$C$19","v":0},{"$f":"'Establishment details'!$C$22","v":0}]
[null,{"$f":"'Establishment details'!$C$17","v":0},{"$f":"'Establishment details'!$C$19","v":0},{"$f":"'Establishment details'!$C$22","v":0}]
[null,{"$f":"'Establishment details'!$C$17","v":0},{"$f":"'Establishment details'!$C$19","v":0},{"$f":"'Establishment details'!$C$22","v":0}]
[null,{"$f":"'Establishment details'!$C$17","v":0},{"$f":"'Establishment details'!$C$19","v":0},{"$f":"'Establishment details'!$C$22","v":0}]
[null,{"$f":"'Establishment details'!$C$17","v":0},{"$f":"'Establishment details'!$C$19","v":0},{"$f":"'Establishment details'!$C$22","v":0}]
[null,{"$f":"'Establishment details'!$C$17","v":0},{"$f":"'Establishment details'!$C$19","v":0},{"$f":"'Establishment details'!$C$22","v":0}]
[null,{"$f":"'Establishment details'!$C$17","v":0},{"$f":"'Establishment details'!$C$19","v":0},{"$f":"'Establishment details'!$C$22","v":0}]
[null,{"$f":"'Establishment details'!$C$17","v":0},{"$f":"'Establishment details'!$C$19","v":0},{"$f":"'Establishment details'!$C$22","v":0}]
[null,{"$f":"'Establishment details'!$C$17","v":0},{"$f":"'Establishment details'!$C$19","v":0},{"$f":"'Establishment details'!$C$22","v":0}]
[null,{"$f":"'Establishment details'!$C$17","v":0},{"$f":"'Establishment details'!$C$19","v":0},{"$f":"'Establishment details'!$C$22","v":0}]
[null,{"$f":"'Establishment details'!$C$17","v":0},{"$f":"'Establishment details'!$C$19","v":0},{"$f":"'Establishment details'!$C$22","v":0}]
[null,{"$f":"'Establishment details'!$C$17","v":0},{"$f":"'Establishment details'!$C$19","v":0},{"$f":"'Establishment details'!$C$22","v":0}]
[null,{"$f":"'Establishment details'!$C$17","v":0},{"$f":"'Establishment details'!$C$19","v":0},{"$f":"'Establishment details'!$C$22","v":0}]
[null,{"$f":"'Establishment details'!$C$17","v":0},{"$f":"'Establishment details'!$C$19","v":0},{"$f":"'Establishment details'!$C$22","v":0}]
[null,{"$f":"'Establishment details'!$C$17","v":0},{"$f":"'Establishment details'!$C$19","v":0},{"$f":"'Establishment details'!$C$22","v":0}]
[null,{"$f":"'Establishment details'!$C$17","v":0},{"$f":"'Establishment details'!$C$19","v":0},{"$f":"'Establishment details'!$C$22","v":0}]
[null,{"$f":"'Establishment details'!$C$17","v":0},{"$f":"'Establishment details'!$C$19","v":0},{"$f":"'Establishment details'!$C$22","v":0}]
[null,{"$f":"'Establishment details'!$C$17","v":0},{"$f":"'Establishment details'!$C$19","v":0},{"$f":"'Establishment details'!$C$22","v":0}]
[null,{"$f":"'Establishment details'!$C$17","v":0},{"$f":"'Establishment details'!$C$19","v":0},{"$f":"'Establishment details'!$C$22","v":0}]
[null,{"$f":"'Establishment details'!$C$17","v":0},{"$f":"'Establishment details'!$C$19","v":0},{"$f":"'Establishment details'!$C$22","v":0}]
[null,{"$f":"'Establishment details'!$C$17","v":0},{"$f":"'Establishment details'!$C$19","v":0},{"$f":"'Establishment details'!$C$22","v":0}]
[null,{"$f":"'Establishment details'!$C$17","v":0},{"$f":"'Establishment details'!$C$19","v":0},{"$f":"'Establishment details'!$C$22","v":0}]
[null,{"$f":"'Establishment details'!$C$17","v":0},{"$f":"'Establishment details'!$C$19","v":0},{"$f":"'Establishment details'!$C$22","v":0}]
[null,{"$f":"'Establishment details'!$C$17","v":0},{"$f":"'Establishment details'!$C$19","v":0},{"$f":"'Establishment details'!$C$22","v":0}]
[null,{"$f":"'Establishment details'!$C$17","v":0},{"$f":"'Establishment details'!$C$19","v":0},{"$f":"'Establishment details'!$C$22","v":0}]
[null,{"$f":"'Establishment details'!$C$17","v":0},{"$f":"'Establishment details'!$C$19","v":0},{"$f":"'Establishment details'!$C$22","v":0}]
[null,{"$f":"'Establishment details'!$C$17","v":0},{"$f":"'Establishment details'!$C$19","v":0},{"$f":"'Establishment details'!$C$22","v":0}]
[null,{"$f":"'Establishment details'!$C$17","v":0},{"$f":"'Establishment details'!$C$19","v":0},{"$f":"'Establishment details'!$C$22","v":0}]
[null,{"$f":"'Establishment details'!$C$17","v":0},{"$f":"'Establishment details'!$C$19","v":0},{"$f":"'Establishment details'!$C$22","v":0}]
[null,{"$f":"'Establishment details'!$C$17","v":0},{"$f":"'Establishment details'!$C$19","v":0},{"$f":"'Establishment details'!$C$22","v":0}]
[null,{"$f":"'Establishment details'!$C$17","v":0},{"$f":"'Establishment details'!$C$19","v":0},{"$f":"'Establishment details'!$C$22","v":0}]
[null,{"$f":"'Establishment details'!$C$17","v":0},{"$f":"'Establishment details'!$C$19","v":0},{"$f":"'Establishment details'!$C$22","v":0}]
[null,{"$f":"'Establishment details'!$C$17","v":0},{"$f":"'Establishment details'!$C$19","v":0},{"$f":"'Establishment details'!$C$22","v":0}]
[null,{"$f":"'Establishment details'!$C$17","v":0},{"$f":"'Establishment details'!$C$19","v":0},{"$f":"'Establishment details'!$C$22","v":0}]
[null,{"$f":"'Establishment details'!$C$17","v":0},{"$f":"'Establishment details'!$C$19","v":0},{"$f":"'Establishment details'!$C$22","v":0}]
[null,{"$f":"'Establishment details'!$C$17","v":0},{"$f":"'Establishment details'!$C$19","v":0},{"$f":"'Establishment details'!$C$22","v":0}]
[null,{"$f":"'Establishment details'!$C$17","v":0},{"$f":"'Establishment details'!$C$19","v":0},{"$f":"'Establishment details'!$C$22","v":0}]
[null,{"$f":"'Establishment details'!$C$17","v":0},{"$f":"'Establishment details'!$C$19","v":0},{"$f":"'Establishment details'!$C$22","v":0}]
[null,{"$f":"'Establishment details'!$C$17","v":0},{"$f":"'Establishment details'!$C$19","v":0},{"$f":"'Establishment details'!$C$22","v":0}]
[null,{"$f":"'Establishment details'!$C$17","v":0},{"$f":"'Establishment details'!$C$19","v":0},{"$f":"'Establishment details'!$C$22","v":0}]
[null,{"$f":"'Establishment details'!$C$17","v":0},{"$f":"'Establishment details'!$C$19","v":0},{"$f":"'Establishment details'!$C$22","v":0}]
[null,{"$f":"'Establishment details'!$C$17","v":0},{"$f":"'Establishment details'!$C$19","v":0},{"$f":"'Establishment details'!$C$22","v":0}]
[null,{"$f":"'Establishment details'!$C$17","v":0},{"$f":"'Establishment details'!$C$19","v":0},{"$f":"'Establishment details'!$C$22","v":0}]
[null,{"$f":"'Establishment details'!$C$17","v":0},{"$f":"'Establishment details'!$C$19","v":0},{"$f":"'Establishment details'!$C$22","v":0}]
[null,{"$f":"'Establishment details'!$C$17","v":0},{"$f":"'Establishment details'!$C$19","v":0},{"$f":"'Establishment details'!$C$22","v":0}]
[null,{"$f":"'Establishment details'!$C$17","v":0},{"$f":"'Establishment details'!$C$19","v":0},{"$f":"'Establishment details'!$C$22","v":0}]
[null,{"$f":"'Establishment details'!$C$17","v":0},{"$f":"'Establishment details'!$C$19","v":0},{"$f":"'Establishment details'!$C$22","v":0}]
[null,{"$f":"'Establishment details'!$C$17","v":0},{"$f":"'Establishment details'!$C$19","v":0},{"$f":"'Establishment details'!$C$22","v":0}]
[null,{"$f":"'Establishment details'!$C$17","v":0},{"$f":"'Establishment details'!$C$19","v":0},{"$f":"'Establishment details'!$C$22","v":0}]
[null,{"$f":"'Establishment details'!$C$17","v":0},{"$f":"'Establishment details'!$C$19","v":0},{"$f":"'Establishment details'!$C$22","v":0}]
[null,{"$f":"'Establishment details'!$C$17","v":0},{"$f":"'Establishment details'!$C$19","v":0},{"$f":"'Establishment details'!$C$22","v":0}]
[null,{"$f":"'Establishment details'!$C$17","v":0},{"$f":"'Establishment details'!$C$19","v":0},{"$f":"'Establishment details'!$C$22","v":0}]
[null,{"$f":"'Establishment details'!$C$17","v":0},{"$f":"'Establishment details'!$C$19","v":0},{"$f":"'Establishment details'!$C$22","v":0}]
[null,{"$f":"'Establishment details'!$C$17","v":0},{"$f":"'Establishment details'!$C$19","v":0},{"$f":"'Establishment details'!$C$22","v":0}]
[null,{"$f":"'Establishment details'!$C$17","v":0},{"$f":"'Establishment details'!$C$19","v":0},{"$f":"'Establishment details'!$C$22","v":0}]
[null,{"$f":"'Establishment details'!$C$17","v":0},{"$f":"'Establishment details'!$C$19","v":0},{"$f":"'Establishment details'!$C$22","v":0}]
[null,{"$f":"'Establishment details'!$C$17","v":0},{"$f":"'Establishment details'!$C$19","v":0},{"$f":"'Establishment details'!$C$22","v":0}]
[null,{"$f":"'Establishment details'!$C$17","v":0},{"$f":"'Establishment details'!$C$19","v":0},{"$f":"'Establishment details'!$C$22","v":0}]
[null,{"$f":"'Establishment details'!$C$17","v":0},{"$f":"'Establishment details'!$C$19","v":0},{"$f":"'Establishment details'!$C$22","v":0}]
[null,{"$f":"'Establishment details'!$C$17","v":0},{"$f":"'Establishment details'!$C$19","v":0},{"$f":"'Establishment details'!$C$22","v":0}]
[null,{"$f":"'Establishment details'!$C$17","v":0},{"$f":"'Establishment details'!$C$19","v":0},{"$f":"'Establishment details'!$C$22","v":0}]
[null,{"$f":"'Establishment details'!$C$17","v":0},{"$f":"'Establishment details'!$C$19","v":0},{"$f":"'Establishment details'!$C$22","v":0}]
[null,{"$f":"'Establishment details'!$C$17","v":0},{"$f":"'Establishment details'!$C$19","v":0},{"$f":"'Establishment details'!$C$22","v":0}]
[null,{"$f":"'Establishment details'!$C$17","v":0},{"$f":"'Establishment details'!$C$19","v":0},{"$f":"'Establishment details'!$C$22","v":0}]
[null,{"$f":"'Establishment details'!$C$17","v":0},{"$f":"'Establishment details'!$C$19","v":0},{"$f":"'Establishment details'!$C$22","v":0}]
[null,{"$f":"'Establishment details'!$C$17","v":0},{"$f":"'Establishment details'!$C$19","v":0},{"$f":"'Establishment details'!$C$22","v":0}]
[null,{"$f":"'Establishment details'!$C$17","v":0},{"$f":"'Establishment details'!$C$19","v":0},{"$f":"'Establishment details'!$C$22","v":0}]
[null,{"$f":"'Establishment details'!$C$17","v":0},{"$f":"'Establishment details'!$C$19","v":0},{"$f":"'Establishment details'!$C$22","v":0}]
[null,{"$f":"'Establishment details'!$C$17","v":0},{"$f":"'Establishment details'!$C$19","v":0},{"$f":"'Establishment details'!$C$22","v":0}]
[null,{"$f":"'Establishment details'!$C$17","v":0},{"$f":"'Establishment details'!$C$19","v":0},{"$f":"'Establishment details'!$C$22","v":0}]
[null,{"$f":"'Establishment details'!$C$17","v":0},{"$f":"'Establishment details'!$C$19","v":0},{"$f":"'Establishment details'!$C$22","v":0}]
[null,{"$f":"'Establishment details'!$C$17","v":0},{"$f":"'Establishment details'!$C$19","v":0},{"$f":"'Establishment details'!$C$22","v":0}]
[null,{"$f":"'Establishment details'!$C$17","v":0},{"$f":"'Establishment details'!$C$19","v":0},{"$f":"'Establishment details'!$C$22","v":0}]
[null,{"$f":"'Establishment details'!$C$17","v":0},{"$f":"'Establishment details'!$C$19","v":0},{"$f":"'Establishment details'!$C$22","v":0}]
[null,{"$f":"'Establishment details'!$C$17","v":0},{"$f":"'Establishment details'!$C$19","v":0},{"$f":"'Establishment details'!$C$22","v":0}]
[null,{"$f":"'Establishment details'!$C$17","v":0},{"$f":"'Establishment details'!$C$19","v":0},{"$f":"'Establishment details'!$C$22","v":0}]
[null,{"$f":"'Establishment details'!$C$17","v":0},{"$f":"'Establishment details'!$C$19","v":0},{"$f":"'Establishment details'!$C$22","v":0}]
[null,{"$f":"'Establishment details'!$C$17","v":0},{"$f":"'Establishment details'!$C$19","v":0},{"$f":"'Establishment details'!$C$22","v":0}]
[null,{"$f":"'Establishment details'!$C$17","v":0},{"$f":"'Establishment details'!$C$19","v":0},{"$f":"'Establishment details'!$C$22","v":0}]
[null,{"$f":"'Establishment details'!$C$17","v":0},{"$f":"'Establishment details'!$C$19","v":0},{"$f":"'Establishment details'!$C$22","v":0}]
[null,{"$f":"'Establishment details'!$C$17","v":0},{"$f":"'Establishment details'!$C$19","v":0},{"$f":"'Establishment details'!$C$22","v":0}]
[null,{"$f":"'Establishment details'!$C$17","v":0},{"$f":"'Establishment details'!$C$19","v":0},{"$f":"'Establishment details'!$C$22","v":0}]
[null,{"$f":"'Establishment details'!$C$17","v":0},{"$f":"'Establishment details'!$C$19","v":0},{"$f":"'Establishment details'!$C$22","v":0}]
[null,{"$f":"'Establishment details'!$C$17","v":0},{"$f":"'Establishment details'!$C$19","v":0},{"$f":"'Establishment details'!$C$22","v":0}]
[null,{"$f":"'Establishment details'!$C$17","v":0},{"$f":"'Establishment details'!$C$19","v":0},{"$f":"'Establishment details'!$C$22","v":0}]
[null,{"$f":"'Establishment details'!$C$17","v":0},{"$f":"'Establishment details'!$C$19","v":0},{"$f":"'Establishment details'!$C$22","v":0}]
[null,{"$f":"'Establishment details'!$C$17","v":0},{"$f":"'Establishment details'!$C$19","v":0},{"$f":"'Establishment details'!$C$22","v":0}]
[null,{"$f":"'Establishment details'!$C$17","v":0},{"$f":"'Establishment details'!$C$19","v":0},{"$f":"'Establishment details'!$C$22","v":0}]
[null,{"$f":"'Establishment details'!$C$17","v":0},{"$f":"'Establishment details'!$C$19","v":0},{"$f":"'Establishment details'!$C$22","v":0}]
[null,{"$f":"'Establishment details'!$C$17","v":0},{"$f":"'Establishment details'!$C$19","v":0},{"$f":"'Establishment details'!$C$22","v":0}]
[null,{"$f":"'Establishment details'!$C$17","v":0},{"$f":"'Establishment details'!$C$19","v":0},{"$f":"'Establishment details'!$C$22","v":0}]
[null,{"$f":"'Establishment details'!$C$17","v":0},{"$f":"'Establishment details'!$C$19","v":0},{"$f":"'Establishment details'!$C$22","v":0}]
[null,{"$f":"'Establishment details'!$C$17","v":0},{"$f":"'Establishment details'!$C$19","v":0},{"$f":"'Establishment details'!$C$22","v":0}]
[null,{"$f":"'Establishment details'!$C$17","v":0},{"$f":"'Establishment details'!$C$19","v":0},{"$f":"'Establishment details'!$C$22","v":0}]
[null,{"$f":"'Establishment details'!$C$17","v":0},{"$f":"'Establishment details'!$C$19","v":0},{"$f":"'Establishment details'!$C$22","v":0}]
[null,{"$f":"'Establishment details'!$C$17","v":0},{"$f":"'Establishment details'!$C$19","v":0},{"$f":"'Establishment details'!$C$22","v":0}]
[null,{"$f":"'Establishment details'!$C$17","v":0},{"$f":"'Establishment details'!$C$19","v":0},{"$f":"'Establishment details'!$C$22","v":0}]
[null,{"$f":"'Establishment details'!$C$17","v":0},{"$f":"'Establishment details'!$C$19","v":0},{"$f":"'Establishment details'!$C$22","v":0}]
[null,{"$f":"'Establishment details'!$C$17","v":0},{"$f":"'Establishment details'!$C$19","v":0},{"$f":"'Establishment details'!$C$22","v":0}]
[null,{"$f":"'Establishment details'!$C$17","v":0},{"$f":"'Establishment details'!$C$19","v":0},{"$f":"'Establishment details'!$C$22","v":0}]
[null,{"$f":"'Establishment details'!$C$17","v":0},{"$f":"'Establishment details'!$C$19","v":0},{"$f":"'Establishment details'!$C$22","v":0}]
[null,{"$f":"'Establishment details'!$C$17","v":0},{"$f":"'Establishment details'!$C$19","v":0},{"$f":"'Establishment details'!$C$22","v":0}]
[null,{"$f":"'Establishment details'!$C$17","v":0},{"$f":"'Establishment details'!$C$19","v":0},{"$f":"'Establishment details'!$C$22","v":0}]
[null,{"$f":"'Establishment details'!$C$17","v":0},{"$f":"'Establishment details'!$C$19","v":0},{"$f":"'Establishment details'!$C$22","v":0}]
[null,{"$f":"'Establishment details'!$C$17","v":0},{"$f":"'Establishment details'!$C$19","v":0},{"$f":"'Establishment details'!$C$22","v":0}]
[null,{"$f":"'Establishment details'!$C$17","v":0},{"$f":"'Establishment details'!$C$19","v":0},{"$f":"'Establishment details'!$C$22","v":0}]
[null,{"$f":"'Establishment details'!$C$17","v":0},{"$f":"'Establishment details'!$C$19","v":0},{"$f":"'Establishment details'!$C$22","v":0}]
[null,{"$f":"'Establishment details'!$C$17","v":0},{"$f":"'Establishment details'!$C$19","v":0},{"$f":"'Establishment details'!$C$22","v":0}]
[null,{"$f":"'Establishment details'!$C$17","v":0},{"$f":"'Establishment details'!$C$19","v":0},{"$f":"'Establishment details'!$C$22","v":0}]
[null,{"$f":"'Establishment details'!$C$17","v":0},{"$f":"'Establishment details'!$C$19","v":0},{"$f":"'Establishment details'!$C$22","v":0}]
[null,{"$f":"'Establishment details'!$C$17","v":0},{"$f":"'Establishment details'!$C$19","v":0},{"$f":"'Establishment details'!$C$22","v":0}]
[null,{"$f":"'Establishment details'!$C$17","v":0},{"$f":"'Establishment details'!$C$19","v":0},{"$f":"'Establishment details'!$C$22","v":0}]
[null,{"$f":"'Establishment details'!$C$17","v":0},{"$f":"'Establishment details'!$C$19","v":0},{"$f":"'Establishment details'!$C$22","v":0}]
[null,{"$f":"'Establishment details'!$C$17","v":0},{"$f":"'Establishment details'!$C$19","v":0},{"$f":"'Establishment details'!$C$22","v":0}]
[null,{"$f":"'Establishment details'!$C$17","v":0},{"$f":"'Establishment details'!$C$19","v":0},{"$f":"'Establishment details'!$C$22","v":0}]
[null,{"$f":"'Establishment details'!$C$17","v":0},{"$f":"'Establishment details'!$C$19","v":0},{"$f":"'Establishment details'!$C$22","v":0}]
[null,{"$f":"'Establishment details'!$C$17","v":0},{"$f":"'Establishment details'!$C$19","v":0},{"$f":"'Establishment details'!$C$22","v":0}]
[null,{"$f":"'Establishment details'!$C$17","v":0},{"$f":"'Establishment details'!$C$19","v":0},{"$f":"'Establishment details'!$C$22","v":0}]
[null,{"$f":"'Establishment details'!$C$17","v":0},{"$f":"'Establishment details'!$C$19","v":0},{"$f":"'Establishment details'!$C$22","v":0}]
[null,{"$f":"'Establishment details'!$C$17","v":0},{"$f":"'Establishment details'!$C$19","v":0},{"$f":"'Establishment details'!$C$22","v":0}]
[null,{"$f":"'Establishment details'!$C$17","v":0},{"$f":"'Establishment details'!$C$19","v":0},{"$f":"'Establishment details'!$C$22","v":0}]
[null,{"$f":"'Establishment details'!$C$17","v":0},{"$f":"'Establishment details'!$C$19","v":0},{"$f":"'Establishment details'!$C$22","v":0}]
[null,{"$f":"'Establishment details'!$C$17","v":0},{"$f":"'Establishment details'!$C$19","v":0},{"$f":"'Establishment details'!$C$22","v":0}]
[null,{"$f":"'Establishment details'!$C$17","v":0},{"$f":"'Establishment details'!$C$19","v":0},{"$f":"'Establishment details'!$C$22","v":0}]
[null,{"$f":"'Establishment details'!$C$17","v":0},{"$f":"'Establishment details'!$C$19","v":0},{"$f":"'Establishment details'!$C$22","v":0}]
[null,{"$f":"'Establishment details'!$C$17","v":0},{"$f":"'Establishment details'!$C$19","v":0},{"$f":"'Establishment details'!$C$22","v":0}]
[null,{"$f":"'Establishment details'!$C$17","v":0},{"$f":"'Establishment details'!$C$19","v":0},{"$f":"'Establishment details'!$C$22","v":0}]
[null,{"$f":"'Establishment details'!$C$17","v":0},{"$f":"'Establishment details'!$C$19","v":0},{"$f":"'Establishment details'!$C$22","v":0}]
[null,{"$f":"'Establishment details'!$C$17","v":0},{"$f":"'Establishment details'!$C$19","v":0},{"$f":"'Establishment details'!$C$22","v":0}]
[null,{"$f":"'Establishment details'!$C$17","v":0},{"$f":"'Establishment details'!$C$19","v":0},{"$f":"'Establishment details'!$C$22","v":0}]
[null,{"$f":"'Establishment details'!$C$17","v":0},{"$f":"'Establishment details'!$C$19","v":0},{"$f":"'Establishment details'!$C$22","v":0}]
[null,{"$f":"'Establishment details'!$C$17","v":0},{"$f":"'Establishment details'!$C$19","v":0},{"$f":"'Establishment details'!$C$22","v":0}]
[null,{"$f":"'Establishment details'!$C$17","v":0},{"$f":"'Establishment details'!$C$19","v":0},{"$f":"'Establishment details'!$C$22","v":0}]
[null,{"$f":"'Establishment details'!$C$17","v":0},{"$f":"'Establishment details'!$C$19","v":0},{"$f":"'Establishment details'!$C$22","v":0}]
[null,{"$f":"'Establishment details'!$C$17","v":0},{"$f":"'Establishment details'!$C$19","v":0},{"$f":"'Establishment details'!$C$22","v":0}]
[null,{"$f":"'Establishment details'!$C$17","v":0},{"$f":"'Establishment details'!$C$19","v":0},{"$f":"'Establishment details'!$C$22","v":0}]
[null,{"$f":"'Establishment details'!$C$17","v":0},{"$f":"'Establishment details'!$C$19","v":0},{"$f":"'Establishment details'!$C$22","v":0}]
[null,{"$f":"'Establishment details'!$C$17","v":0},{"$f":"'Establishment details'!$C$19","v":0},{"$f":"'Establishment details'!$C$22","v":0}]
[null,{"$f":"'Establishment details'!$C$17","v":0},{"$f":"'Establishment details'!$C$19","v":0},{"$f":"'Establishment details'!$C$22","v":0}]
[null,{"$f":"'Establishment details'!$C$17","v":0},{"$f":"'Establishment details'!$C$19","v":0},{"$f":"'Establishment details'!$C$22","v":0}]
[null,{"$f":"'Establishment details'!$C$17","v":0},{"$f":"'Establishment details'!$C$19","v":0},{"$f":"'Establishment details'!$C$22","v":0}]
[null,{"$f":"'Establishment details'!$C$17","v":0},{"$f":"'Establishment details'!$C$19","v":0},{"$f":"'Establishment details'!$C$22","v":0}]
[null,{"$f":"'Establishment details'!$C$17","v":0},{"$f":"'Establishment details'!$C$19","v":0},{"$f":"'Establishment details'!$C$22","v":0}]
[null,{"$f":"'Establishment details'!$C$17","v":0},{"$f":"'Establishment details'!$C$19","v":0},{"$f":"'Establishment details'!$C$22","v":0}]
[null,{"$f":"'Establishment details'!$C$17","v":0},{"$f":"'Establishment details'!$C$19","v":0},{"$f":"'Establishment details'!$C$22","v":0}]
[null,{"$f":"'Establishment details'!$C$17","v":0},{"$f":"'Establishment details'!$C$19","v":0},{"$f":"'Establishment details'!$C$22","v":0}]
[null,{"$f":"'Establishment details'!$C$17","v":0},{"$f":"'Establishment details'!$C$19","v":0},{"$f":"'Establishment details'!$C$22","v":0}]
[null,{"$f":"'Establishment details'!$C$17","v":0},{"$f":"'Establishment details'!$C$19","v":0},{"$f":"'Establishment details'!$C$22","v":0}]
[null,{"$f":"'Establishment details'!$C$17","v":0},{"$f":"'Establishment details'!$C$19","v":0},{"$f":"'Establishment details'!$C$22","v":0}]
[null,{"$f":"'Establishment details'!$C$17","v":0},{"$f":"'Establishment details'!$C$19","v":0},{"$f":"'Establishment details'!$C$22","v":0}]
[null,{"$f":"'Establishment details'!$C$17","v":0},{"$f":"'Establishment details'!$C$19","v":0},{"$f":"'Establishment details'!$C$22","v":0}]
[null,{"$f":"'Establishment details'!$C$17","v":0},{"$f":"'Establishment details'!$C$19","v":0},{"$f":"'Establishment details'!$C$22","v":0}]
[null,{"$f":"'Establishment details'!$C$17","v":0},{"$f":"'Establishment details'!$C$19","v":0},{"$f":"'Establishment details'!$C$22","v":0}]
[null,{"$f":"'Establishment details'!$C$17","v":0},{"$f":"'Establishment details'!$C$19","v":0},{"$f":"'Establishment details'!$C$22","v":0}]
[null,{"$f":"'Establishment details'!$C$17","v":0},{"$f":"'Establishment details'!$C$19","v":0},{"$f":"'Establishment details'!$C$22","v":0}]
[null,{"$f":"'Establishment details'!$C$17","v":0},{"$f":"'Establishment details'!$C$19","v":0},{"$f":"'Establishment details'!$C$22","v":0}]
[null,{"$f":"'Establishment details'!$C$17","v":0},{"$f":"'Establishment details'!$C$19","v":0},{"$f":"'Establishment details'!$C$22","v":0}]
[null,{"$f":"'Establishment details'!$C$17","v":0},{"$f":"'Establishment details'!$C$19","v":0},{"$f":"'Establishment details'!$C$22","v":0}]
[null,{"$f":"'Establishment details'!$C$17","v":0},{"$f":"'Establishment details'!$C$19","v":0},{"$f":"'Establishment details'!$C$22","v":0}]
[null,{"$f":"'Establishment details'!$C$17","v":0},{"$f":"'Establishment details'!$C$19","v":0},{"$f":"'Establishment details'!$C$22","v":0}]
[null,{"$f":"'Establishment details'!$C$17","v":0},{"$f":"'Establishment details'!$C$19","v":0},{"$f":"'Establishment details'!$C$22","v":0}]
[null,{"$f":"'Establishment details'!$C$17","v":0},{"$f":"'Establishment details'!$C$19","v":0},{"$f":"'Establishment details'!$C$22","v":0}]
[null,{"$f":"'Establishment details'!$C$17","v":0},{"$f":"'Establishment details'!$C$19","v":0},{"$f":"'Establishment details'!$C$22","v":0}]
[null,{"$f":"'Establishment details'!$C$17","v":0},{"$f":"'Establishment details'!$C$19","v":0},{"$f":"'Establishment details'!$C$22","v":0}]
[null,{"$f":"'Establishment details'!$C$17","v":0},{"$f":"'Establishment details'!$C$19","v":0},{"$f":"'Establishment details'!$C$22","v":0}]
[null,{"$f":"'Establishment details'!$C$17","v":0},{"$f":"'Establishment details'!$C$19","v":0},{"$f":"'Establishment details'!$C$22","v":0}]
[null,{"$f":"'Establishment details'!$C$17","v":0},{"$f":"'Establishment details'!$C$19","v":0},{"$f":"'Establishment details'!$C$22","v":0}]
[null,{"$f":"'Establishment details'!$C$17","v":0},{"$f":"'Establishment details'!$C$19","v":0},{"$f":"'Establishment details'!$C$22","v":0}]
[null,{"$f":"'Establishment details'!$C$17","v":0},{"$f":"'Establishment details'!$C$19","v":0},{"$f":"'Establishment details'!$C$22","v":0}]
[null,{"$f":"'Establishment details'!$C$17","v":0},{"$f":"'Establishment details'!$C$19","v":0},{"$f":"'Establishment details'!$C$22","v":0}]
[null,{"$f":"'Establishment details'!$C$17","v":0},{"$f":"'Establishment details'!$C$19","v":0},{"$f":"'Establishment details'!$C$22","v":0}]
[null,{"$f":"'Establishment details'!$C$17","v":0},{"$f":"'Establishment details'!$C$19","v":0},{"$f":"'Establishment details'!$C$22","v":0}]
[null,{"$f":"'Establishment details'!$C$17","v":0},{"$f":"'Establishment details'!$C$19","v":0},{"$f":"'Establishment details'!$C$22","v":0}]
[null,{"$f":"'Establishment details'!$C$17","v":0},{"$f":"'Establishment details'!$C$19","v":0},{"$f":"'Establishment details'!$C$22","v":0}]
[null,{"$f":"'Establishment details'!$C$17","v":0},{"$f":"'Establishment details'!$C$19","v":0},{"$f":"'Establishment details'!$C$22","v":0}]
[null,{"$f":"'Establishment details'!$C$17","v":0},{"$f":"'Establishment details'!$C$19","v":0},{"$f":"'Establishment details'!$C$22","v":0}]
[null,{"$f":"'Establishment details'!$C$17","v":0},{"$f":"'Establishment details'!$C$19","v":0},{"$f":"'Establishment details'!$C$22","v":0}]
[null,{"$f":"'Establishment details'!$C$17","v":0},{"$f":"'Establishment details'!$C$19","v":0},{"$f":"'Establishment details'!$C$22","v":0}]
[null,{"$f":"'Establishment details'!$C$17","v":0},{"$f":"'Establishment details'!$C$19","v":0},{"$f":"'Establishment details'!$C$22","v":0}]
[null,{"$f":"'Establishment details'!$C$17","v":0},{"$f":"'Establishment details'!$C$19","v":0},{"$f":"'Establishment details'!$C$22","v":0}]
[null,{"$f":"'Establishment details'!$C$17","v":0},{"$f":"'Establishment details'!$C$19","v":0},{"$f":"'Establishment details'!$C$22","v":0}]
[null,{"$f":"'Establishment details'!$C$17","v":0},{"$f":"'Establishment details'!$C$19","v":0},{"$f":"'Establishment details'!$C$22","v":0}]
[null,{"$f":"'Establishment details'!$C$17","v":0},{"$f":"'Establishment details'!$C$19","v":0},{"$f":"'Establishment details'!$C$22","v":0}]
[null,{"$f":"'Establishment details'!$C$17","v":0},{"$f":"'Establishment details'!$C$19","v":0},{"$f":"'Establishment details'!$C$22","v":0}]
[null,{"$f":"'Establishment details'!$C$17","v":0},{"$f":"'Establishment details'!$C$19","v":0},{"$f":"'Establishment details'!$C$22","v":0}]
[null,{"$f":"'Establishment details'!$C$17","v":0},{"$f":"'Establishment details'!$C$19","v":0},{"$f":"'Establishment details'!$C$22","v":0}]
[null,{"$f":"'Establishment details'!$C$17","v":0},{"$f":"'Establishment details'!$C$19","v":0},{"$f":"'Establishment details'!$C$22","v":0}]
[null,{"$f":"'Establishment details'!$C$17","v":0},{"$f":"'Establishment details'!$C$19","v":0},{"$f":"'Establishment details'!$C$22","v":0}]
[null,{"$f":"'Establishment details'!$C$17","v":0},{"$f":"'Establishment details'!$C$19","v":0},{"$f":"'Establishment details'!$C$22","v":0}]
[null,{"$f":"'Establishment details'!$C$17","v":0},{"$f":"'Establishment details'!$C$19","v":0},{"$f":"'Establishment details'!$C$22","v":0}]
[null,{"$f":"'Establishment details'!$C$17","v":0},{"$f":"'Establishment details'!$C$19","v":0},{"$f":"'Establishment details'!$C$22","v":0}]
[null,{"$f":"'Establishment details'!$C$17","v":0},{"$f":"'Establishment details'!$C$19","v":0},{"$f":"'Establishment details'!$C$22","v":0}]
[null,{"$f":"'Establishment details'!$C$17","v":0},{"$f":"'Establishment details'!$C$19","v":0},{"$f":"'Establishment details'!$C$22","v":0}]
[null,{"$f":"'Establishment details'!$C$17","v":0},{"$f":"'Establishment details'!$C$19","v":0},{"$f":"'Establishment details'!$C$22","v":0}]
[null,{"$f":"'Establishment details'!$C$17","v":0},{"$f":"'Establishment details'!$C$19","v":0},{"$f":"'Establishment details'!$C$22","v":0}]
[null,{"$f":"'Establishment details'!$C$17","v":0},{"$f":"'Establishment details'!$C$19","v":0},{"$f":"'Establishment details'!$C$22","v":0}]
[null,{"$f":"'Establishment details'!$C$17","v":0},{"$f":"'Establishment details'!$C$19","v":0},{"$f":"'Establishment details'!$C$22","v":0}]
[null,{"$f":"'Establishment details'!$C$17","v":0},{"$f":"'Establishment details'!$C$19","v":0},{"$f":"'Establishment details'!$C$22","v":0}]
[null,{"$f":"'Establishment details'!$C$17","v":0},{"$f":"'Establishment details'!$C$19","v":0},{"$f":"'Establishment details'!$C$22","v":0}]
[null,{"$f":"'Establishment details'!$C$17","v":0},{"$f":"'Establishment details'!$C$19","v":0},{"$f":"'Establishment details'!$C$22","v":0}]
[null,{"$f":"'Establishment details'!$C$17","v":0},{"$f":"'Establishment details'!$C$19","v":0},{"$f":"'Establishment details'!$C$22","v":0}]
[null,{"$f":"'Establishment details'!$C$17","v":0},{"$f":"'Establishment details'!$C$19","v":0},{"$f":"'Establishment details'!$C$22","v":0}]
[null,{"$f":"'Establishment details'!$C$17","v":0},{"$f":"'Establishment details'!$C$19","v":0},{"$f":"'Establishment details'!$C$22","v":0}]
[null,{"$f":"'Establishment details'!$C$17","v":0},{"$f":"'Establishment details'!$C$19","v":0},{"$f":"'Establishment details'!$C$22","v":0}]
[null,{"$f":"'Establishment details'!$C$17","v":0},{"$f":"'Establishment details'!$C$19","v":0},{"$f":"'Establishment details'!$C$22","v":0}]
[null,{"$f":"'Establishment details'!$C$17","v":0},{"$f":"'Establishment details'!$C$19","v":0},{"$f":"'Establishment details'!$C$22","v":0}]
[null,{"$f":"'Establishment details'!$C$17","v":0},{"$f":"'Establishment details'!$C$19","v":0},{"$f":"'Establishment details'!$C$22","v":0}]
[null,{"$f":"'Establishment details'!$C$17","v":0},{"$f":"'Establishment details'!$C$19","v":0},{"$f":"'Establishment details'!$C$22","v":0}]
[null,{"$f":"'Establishment details'!$C$17","v":0},{"$f":"'Establishment details'!$C$19","v":0},{"$f":"'Establishment details'!$C$22","v":0}]
[null,{"$f":"'Establishment details'!$C$17","v":0},{"$f":"'Establishment details'!$C$19","v":0},{"$f":"'Establishment details'!$C$22","v":0}]
[null,{"$f":"'Establishment details'!$C$17","v":0},{"$f":"'Establishment details'!$C$19","v":0},{"$f":"'Establishment details'!$C$22","v":0}]
[null,{"$f":"'Establishment details'!$C$17","v":0},{"$f":"'Establishment details'!$C$19","v":0},{"$f":"'Establishment details'!$C$22","v":0}]
[null,{"$f":"'Establishment details'!$C$17","v":0},{"$f":"'Establishment details'!$C$19","v":0},{"$f":"'Establishment details'!$C$22","v":0}]
[null,{"$f":"'Establishment details'!$C$17","v":0},{"$f":"'Establishment details'!$C$19","v":0},{"$f":"'Establishment details'!$C$22","v":0}]
[null,{"$f":"'Establishment details'!$C$17","v":0},{"$f":"'Establishment details'!$C$19","v":0},{"$f":"'Establishment details'!$C$22","v":0}]
[null,{"$f":"'Establishment details'!$C$17","v":0},{"$f":"'Establishment details'!$C$19","v":0},{"$f":"'Establishment details'!$C$22","v":0}]
[null,{"$f":"'Establishment details'!$C$17","v":0},{"$f":"'Establishment details'!$C$19","v":0},{"$f":"'Establishment details'!$C$22","v":0}]
[null,{"$f":"'Establishment details'!$C$17","v":0},{"$f":"'Establishment details'!$C$19","v":0},{"$f":"'Establishment details'!$C$22","v":0}]
[null,{"$f":"'Establishment details'!$C$17","v":0},{"$f":"'Establishment details'!$C$19","v":0},{"$f":"'Establishment details'!$C$22","v":0}]
[null,{"$f":"'Establishment details'!$C$17","v":0},{"$f":"'Establishment details'!$C$19","v":0},{"$f":"'Establishment details'!$C$22","v":0}]
[null,{"$f":"'Establishment details'!$C$17","v":0},{"$f":"'Establishment details'!$C$19","v":0},{"$f":"'Establishment details'!$C$22","v":0}]
[null,{"$f":"'Establishment details'!$C$17","v":0},{"$f":"'Establishment details'!$C$19","v":0},{"$f":"'Establishment details'!$C$22","v":0}]
[null,{"$f":"'Establishment details'!$C$17","v":0},{"$f":"'Establishment details'!$C$19","v":0},{"$f":"'Establishment details'!$C$22","v":0}]
[null,{"$f":"'Establishment details'!$C$17","v":0},{"$f":"'Establishment details'!$C$19","v":0},{"$f":"'Establishment details'!$C$22","v":0}]
[null,{"$f":"'Establishment details'!$C$17","v":0},{"$f":"'Establishment details'!$C$19","v":0},{"$f":"'Establishment details'!$C$22","v":0}]
[null,{"$f":"'Establishment details'!$C$17","v":0},{"$f":"'Establishment details'!$C$19","v":0},{"$f":"'Establishment details'!$C$22","v":0}]
[null,{"$f":"'Establishment details'!$C$17","v":0},{"$f":"'Establishment details'!$C$19","v":0},{"$f":"'Establishment details'!$C$22","v":0}]
[null,{"$f":"'Establishment details'!$C$17","v":0},{"$f":"'Establishment details'!$C$19","v":0},{"$f":"'Establishment details'!$C$22","v":0}]
[null,{"$f":"'Establishment details'!$C$17","v":0},{"$f":"'Establishment details'!$C$19","v":0},{"$f":"'Establishment details'!$C$22","v":0}]
[null,{"$f":"'Establishment details'!$C$17","v":0},{"$f":"'Establishment details'!$C$19","v":0},{"$f":"'Establishment details'!$C$22","v":0}]
[null,{"$f":"'Establishment details'!$C$17","v":0},{"$f":"'Establishment details'!$C$19","v":0},{"$f":"'Establishment details'!$C$22","v":0}]
[null,{"$f":"'Establishment details'!$C$17","v":0},{"$f":"'Establishment details'!$C$19","v":0},{"$f":"'Establishment details'!$C$22","v":0}]
[null,{"$f":"'Establishment details'!$C$17","v":0},{"$f":"'Establishment details'!$C$19","v":0},{"$f":"'Establishment details'!$C$22","v":0}]
[null,{"$f":"'Establishment details'!$C$17","v":0},{"$f":"'Establishment details'!$C$19","v":0},{"$f":"'Establishment details'!$C$22","v":0}]
[null,{"$f":"'Establishment details'!$C$17","v":0},{"$f":"'Establishment details'!$C$19","v":0},{"$f":"'Establishment details'!$C$22","v":0}]
[null,{"$f":"'Establishment details'!$C$17","v":0},{"$f":"'Establishment details'!$C$19","v":0},{"$f":"'Establishment details'!$C$22","v":0}]
[null,{"$f":"'Establishment details'!$C$17","v":0},{"$f":"'Establishment details'!$C$19","v":0},{"$f":"'Establishment details'!$C$22","v":0}]
[null,{"$f":"'Establishment details'!$C$17","v":0},{"$f":"'Establishment details'!$C$19","v":0},{"$f":"'Establishment details'!$C$22","v":0}]
[null,{"$f":"'Establishment details'!$C$17","v":0},{"$f":"'Establishment details'!$C$19","v":0},{"$f":"'Establishment details'!$C$22","v":0}]
[null,{"$f":"'Establishment details'!$C$17","v":0},{"$f":"'Establishment details'!$C$19","v":0},{"$f":"'Establishment details'!$C$22","v":0}]
[null,{"$f":"'Establishment details'!$C$17","v":0},{"$f":"'Establishment details'!$C$19","v":0},{"$f":"'Establishment details'!$C$22","v":0}]
[null,{"$f":"'Establishment details'!$C$17","v":0},{"$f":"'Establishment details'!$C$19","v":0},{"$f":"'Establishment details'!$C$22","v":0}]
[null,{"$f":"'Establishment details'!$C$17","v":0},{"$f":"'Establishment details'!$C$19","v":0},{"$f":"'Establishment details'!$C$22","v":0}]
[null,{"$f":"'Establishment details'!$C$17","v":0},{"$f":"'Establishment details'!$C$19","v":0},{"$f":"'Establishment details'!$C$22","v":0}]
[null,{"$f":"'Establishment details'!$C$17","v":0},{"$f":"'Establishment details'!$C$19","v":0},{"$f":"'Establishment details'!$C$22","v":0}]
[null,{"$f":"'Establishment details'!$C$17","v":0},{"$f":"'Establishment details'!$C$19","v":0},{"$f":"'Establishment details'!$C$22","v":0}]
[null,{"$f":"'Establishment details'!$C$17","v":0},{"$f":"'Establishment details'!$C$19","v":0},{"$f":"'Establishment details'!$C$22","v":0}]
[null,{"$f":"'Establishment details'!$C$17","v":0},{"$f":"'Establishment details'!$C$19","v":0},{"$f":"'Establishment details'!$C$22","v":0}]
[null,{"$f":"'Establishment details'!$C$17","v":0},{"$f":"'Establishment details'!$C$19","v":0},{"$f":"'Establishment details'!$C$22","v":0}]
[null,{"$f":"'Establishment details'!$C$17","v":0},{"$f":"'Establishment details'!$C$19","v":0},{"$f":"'Establishment details'!$C$22","v":0}]
[null,{"$f":"'Establishment details'!$C$17","v":0},{"$f":"'Establishment details'!$C$19","v":0},{"$f":"'Establishment details'!$C$22","v":0}]
[null,{"$f":"'Establishment details'!$C$17","v":0},{"$f":"'Establishment details'!$C$19","v":0},{"$f":"'Establishment details'!$C$22","v":0}]
[null,{"$f":"'Establishment details'!$C$17","v":0},{"$f":"'Establishment details'!$C$19","v":0},{"$f":"'Establishment details'!$C$22","v":0}]
[null,{"$f":"'Establishment details'!$C$17","v":0},{"$f":"'Establishment details'!$C$19","v":0},{"$f":"'Establishment details'!$C$22","v":0}]
[null,{"$f":"'Establishment details'!$C$17","v":0},{"$f":"'Establishment details'!$C$19","v":0},{"$f":"'Establishment details'!$C$22","v":0}]
[null,{"$f":"'Establishment details'!$C$17","v":0},{"$f":"'Establishment details'!$C$19","v":0},{"$f":"'Establishment details'!$C$22","v":0}]
[null,{"$f":"'Establishment details'!$C$17","v":0},{"$f":"'Establishment details'!$C$19","v":0},{"$f":"'Establishment details'!$C$22","v":0}]
[null,{"$f":"'Establishment details'!$C$17","v":0},{"$f":"'Establishment details'!$C$19","v":0},{"$f":"'Establishment details'!$C$22","v":0}]
[null,{"$f":"'Establishment details'!$C$17","v":0},{"$f":"'Establishment details'!$C$19","v":0},{"$f":"'Establishment details'!$C$22","v":0}]
[null,{"$f":"'Establishment details'!$C$17","v":0},{"$f":"'Establishment details'!$C$19","v":0},{"$f":"'Establishment details'!$C$22","v":0}]
[null,{"$f":"'Establishment details'!$C$17","v":0},{"$f":"'Establishment details'!$C$19","v":0},{"$f":"'Establishment details'!$C$22","v":0}]
[null,{"$f":"'Establishment details'!$C$17","v":0},{"$f":"'Establishment details'!$C$19","v":0},{"$f":"'Establishment details'!$C$22","v":0}]
[null,{"$f":"'Establishment details'!$C$17","v":0},{"$f":"'Establishment details'!$C$19","v":0},{"$f":"'Establishment details'!$C$22","v":0}]
[null,{"$f":"'Establishment details'!$C$17","v":0},{"$f":"'Establishment details'!$C$19","v":0},{"$f":"'Establishment details'!$C$22","v":0}]
[null,{"$f":"'Establishment details'!$C$17","v":0},{"$f":"'Establishment details'!$C$19","v":0},{"$f":"'Establishment details'!$C$22","v":0}]
[null,{"$f":"'Establishment details'!$C$17","v":0},{"$f":"'Establishment details'!$C$19","v":0},{"$f":"'Establishment details'!$C$22","v":0}]
[null,{"$f":"'Establishment details'!$C$17","v":0},{"$f":"'Establishment details'!$C$19","v":0},{"$f":"'Establishment details'!$C$22","v":0}]
[null,{"$f":"'Establishment details'!$C$17","v":0},{"$f":"'Establishment details'!$C$19","v":0},{"$f":"'Establishment details'!$C$22","v":0}]
[null,{"$f":"'Establishment details'!$C$17","v":0},{"$f":"'Establishment details'!$C$19","v":0},{"$f":"'Establishment details'!$C$22","v":0}]
[null,{"$f":"'Establishment details'!$C$17","v":0},{"$f":"'Establishment details'!$C$19","v":0},{"$f":"'Establishment details'!$C$22","v":0}]
[null,{"$f":"'Establishment details'!$C$17","v":0},{"$f":"'Establishment details'!$C$19","v":0},{"$f":"'Establishment details'!$C$22","v":0}]
[null,{"$f":"'Establishment details'!$C$17","v":0},{"$f":"'Establishment details'!$C$19","v":0},{"$f":"'Establishment details'!$C$22","v":0}]
[null,{"$f":"'Establishment details'!$C$17","v":0},{"$f":"'Establishment details'!$C$19","v":0},{"$f":"'Establishment details'!$C$22","v":0}]
[null,{"$f":"'Establishment details'!$C$17","v":0},{"$f":"'Establishment details'!$C$19","v":0},{"$f":"'Establishment details'!$C$22","v":0}]
[null,{"$f":"'Establishment details'!$C$17","v":0},{"$f":"'Establishment details'!$C$19","v":0},{"$f":"'Establishment details'!$C$22","v":0}]
[null,{"$f":"'Establishment details'!$C$17","v":0},{"$f":"'Establishment details'!$C$19","v":0},{"$f":"'Establishment details'!$C$22","v":0}]
[null,{"$f":"'Establishment details'!$C$17","v":0},{"$f":"'Establishment details'!$C$19","v":0},{"$f":"'Establishment details'!$C$22","v":0}]
[null,{"$f":"'Establishment details'!$C$17","v":0},{"$f":"'Establishment details'!$C$19","v":0},{"$f":"'Establishment details'!$C$22","v":0}]
[null,{"$f":"'Establishment details'!$C$17","v":0},{"$f":"'Establishment details'!$C$19","v":0},{"$f":"'Establishment details'!$C$22","v":0}]
[null,{"$f":"'Establishment details'!$C$17","v":0},{"$f":"'Establishment details'!$C$19","v":0},{"$f":"'Establishment details'!$C$22","v":0}]
[null,{"$f":"'Establishment details'!$C$17","v":0},{"$f":"'Establishment details'!$C$19","v":0},{"$f":"'Establishment details'!$C$22","v":0}]
[null,{"$f":"'Establishment details'!$C$17","v":0},{"$f":"'Establishment details'!$C$19","v":0},{"$f":"'Establishment details'!$C$22","v":0}]
[null,{"$f":"'Establishment details'!$C$17","v":0},{"$f":"'Establishment details'!$C$19","v":0},{"$f":"'Establishment details'!$C$22","v":0}]
[null,{"$f":"'Establishment details'!$C$17","v":0},{"$f":"'Establishment details'!$C$19","v":0},{"$f":"'Establishment details'!$C$22","v":0}]

{"sheet":"mismac","index":3,"n_rows":305,"n_cols":34,"rows_kept":305,"cut":false,"hidden":true,"merged":[]}
[]
[]
[1,1,1,1,1,1,1,1,1,1,1,1,1,1,1,1,1,1,1,1,1,1,1,1,"counta",1,"other species","primates","PR","REUSE","other purpose","other testing by legislation - LT10","PRIMATES > 99","NON PRIMATES GREATER THAN 9999"]
[null,null,null,null,null,null,null,null,null,null,null,null,null,null,null,null,null,null,null,null,null,null,null,4,{"$f":"COUNTA('Procedure details'!E4:'Procedure details'!V4)","v":0},null,{"$f":"IF('Procedure details'!E4<>\"\",VLOOKUP('Procedure details'!E4,Lists!$M$2:$N$38,2,FALSE),\"\")","v":""},{"$f":"IF('Procedure details'!E4<>\"\",VLOOKUP('Procedure details'!E4,Lists!$M$2:$O$38,3,FALSE),\"\")","v":""},{"$f":"IF('Procedure details'!N4<>\"\",VLOOKUP('Procedure details'!N4,Lists!$B$2:$C$71,2,FALSE),\"\")","v":""},{"$f":"IF('Procedure details'!H4<>\"\",VLOOKUP('Procedure details'!H4,Lists!$AP$2:$AQ$3,2,FALSE),\"\")","v":""},{"$f":"IF('Procedure details'!N4<>\"\",VLOOKUP('Procedure details'!N4,Lists!$B$2:$D$71,3,FALSE),\"\")","v":""},{"$f":"IF('Procedure details'!P4<>\"\",VLOOKUP('Procedure details'!P4,Lists!$AD$2:$AE$11,2,FALSE),\"\")","v":""},{"$f":"IF(AND(AB4=1,'Procedure details'!G4>99,'Procedure details'!V4=\"\"),1,0)","v":0},{"$f":"IF(AND(AB4=0,'Procedure details'!G4>999,'Procedure details'!V4=\"\"),1,0)","v":0}]
[null,null,null,null,null,null,null,null,null,null,null,null,null,null,null,null,null,null,null,null,null,null,null,5,{"$f":"COUNTA('Procedure details'!E5:'Procedure details'!V5)","v":0},null,{"$f":"IF('Procedure details'!E5<>\"\",VLOOKUP('Procedure details'!E5,Lists!$M$2:$N$38,2,FALSE),\"\")","v":""},{"$f":"IF('Procedure details'!E5<>\"\",VLOOKUP('Procedure details'!E5,Lists!$M$2:$O$38,3,FALSE),\"\")","v":""},{"$f":"IF('Procedure details'!N5<>\"\",VLOOKUP('Procedure details'!N5,Lists!$B$2:$C$71,2,FALSE),\"\")","v":""},{"$f":"IF('Procedure details'!H5<>\"\",VLOOKUP('Procedure details'!H5,Lists!$AP$2:$AQ$3,2,FALSE),\"\")","v":""},{"$f":"IF('Procedure details'!N5<>\"\",VLOOKUP('Procedure details'!N5,Lists!$B$2:$D$71,3,FALSE),\"\")","v":""},{"$f":"IF('Procedure details'!P5<>\"\",VLOOKUP('Procedure details'!P5,Lists!$AD$2:$AE$11,2,FALSE),\"\")","v":""},{"$f":"IF(AND(AB5=1,'Procedure details'!G5>99,'Procedure details'!V5=\"\"),1,0)","v":0},{"$f":"IF(AND(AB5=0,'Procedure details'!G5>999,'Procedure details'!V5=\"\"),1,0)","v":0}]
[null,null,null,null,null,null,null,null,null,null,null,null,null,null,null,null,null,null,null,null,null,null,null,6,{"$f":"COUNTA('Procedure details'!E6:'Procedure details'!V6)","v":0},null,{"$f":"IF('Procedure details'!E6<>\"\",VLOOKUP('Procedure details'!E6,Lists!$M$2:$N$38,2,FALSE),\"\")","v":""},{"$f":"IF('Procedure details'!E6<>\"\",VLOOKUP('Procedure details'!E6,Lists!$M$2:$O$38,3,FALSE),\"\")","v":""},{"$f":"IF('Procedure details'!N6<>\"\",VLOOKUP('Procedure details'!N6,Lists!$B$2:$C$71,2,FALSE),\"\")","v":""},{"$f":"IF('Procedure details'!H6<>\"\",VLOOKUP('Procedure details'!H6,Lists!$AP$2:$AQ$3,2,FALSE),\"\")","v":""},{"$f":"IF('Procedure details'!N6<>\"\",VLOOKUP('Procedure details'!N6,Lists!$B$2:$D$71,3,FALSE),\"\")","v":""},{"$f":"IF('Procedure details'!P6<>\"\",VLOOKUP('Procedure details'!P6,Lists!$AD$2:$AE$11,2,FALSE),\"\")","v":""},{"$f":"IF(AND(AB6=1,'Procedure details'!G6>99,'Procedure details'!V6=\"\"),1,0)","v":0},{"$f":"IF(AND(AB6=0,'Procedure details'!G6>999,'Procedure details'!V6=\"\"),1,0)","v":0}]
[null,null,null,null,null,null,null,null,null,null,null,null,null,null,null,null,null,null,null,null,null,null,null,7,{"$f":"COUNTA('Procedure details'!E7:'Procedure details'!V7)","v":0},null,{"$f":"IF('Procedure details'!E7<>\"\",VLOOKUP('Procedure details'!E7,Lists!$M$2:$N$38,2,FALSE),\"\")","v":""},{"$f":"IF('Procedure details'!E7<>\"\",VLOOKUP('Procedure details'!E7,Lists!$M$2:$O$38,3,FALSE),\"\")","v":""},{"$f":"IF('Procedure details'!N7<>\"\",VLOOKUP('Procedure details'!N7,Lists!$B$2:$C$71,2,FALSE),\"\")","v":""},{"$f":"IF('Procedure details'!H7<>\"\",VLOOKUP('Procedure details'!H7,Lists!$AP$2:$AQ$3,2,FALSE),\"\")","v":""},{"$f":"IF('Procedure details'!N7<>\"\",VLOOKUP('Procedure details'!N7,Lists!$B$2:$D$71,3,FALSE),\"\")","v":""},{"$f":"IF('Procedure details'!P7<>\"\",VLOOKUP('Procedure details'!P7,Lists!$AD$2:$AE$11,2,FALSE),\"\")","v":""},{"$f":"IF(AND(AB7=1,'Procedure details'!G7>99,'Procedure details'!V7=\"\"),1,0)","v":0},{"$f":"IF(AND(AB7=0,'Procedure details'!G7>999,'Procedure details'!V7=\"\"),1,0)","v":0}]
[null,null,null,null,null,null,null,null,null,null,null,null,null,null,null,null,null,null,null,null,null,null,null,8,{"$f":"COUNTA('Procedure details'!E8:'Procedure details'!V8)","v":0},null,{"$f":"IF('Procedure details'!E8<>\"\",VLOOKUP('Procedure details'!E8,Lists!$M$2:$N$38,2,FALSE),\"\")","v":""},{"$f":"IF('Procedure details'!E8<>\"\",VLOOKUP('Procedure details'!E8,Lists!$M$2:$O$38,3,FALSE),\"\")","v":""},{"$f":"IF('Procedure details'!N8<>\"\",VLOOKUP('Procedure details'!N8,Lists!$B$2:$C$71,2,FALSE),\"\")","v":""},{"$f":"IF('Procedure details'!H8<>\"\",VLOOKUP('Procedure details'!H8,Lists!$AP$2:$AQ$3,2,FALSE),\"\")","v":""},{"$f":"IF('Procedure details'!N8<>\"\",VLOOKUP('Procedure details'!N8,Lists!$B$2:$D$71,3,FALSE),\"\")","v":""},{"$f":"IF('Procedure details'!P8<>\"\",VLOOKUP('Procedure details'!P8,Lists!$AD$2:$AE$11,2,FALSE),\"\")","v":""},{"$f":"IF(AND(AB8=1,'Procedure details'!G8>99,'Procedure details'!V8=\"\"),1,0)","v":0},{"$f":"IF(AND(AB8=0,'Procedure details'!G8>999,'Procedure details'!V8=\"\"),1,0)","v":0}]
[null,null,null,null,null,null,null,null,null,null,null,null,null,null,null,null,null,null,null,null,null,null,null,9,{"$f":"COUNTA('Procedure details'!E9:'Procedure details'!V9)","v":0},null,{"$f":"IF('Procedure details'!E9<>\"\",VLOOKUP('Procedure details'!E9,Lists!$M$2:$N$38,2,FALSE),\"\")","v":""},{"$f":"IF('Procedure details'!E9<>\"\",VLOOKUP('Procedure details'!E9,Lists!$M$2:$O$38,3,FALSE),\"\")","v":""},{"$f":"IF('Procedure details'!N9<>\"\",VLOOKUP('Procedure details'!N9,Lists!$B$2:$C$71,2,FALSE),\"\")","v":""},{"$f":"IF('Procedure details'!H9<>\"\",VLOOKUP('Procedure details'!H9,Lists!$AP$2:$AQ$3,2,FALSE),\"\")","v":""},{"$f":"IF('Procedure details'!N9<>\"\",VLOOKUP('Procedure details'!N9,Lists!$B$2:$D$71,3,FALSE),\"\")","v":""},{"$f":"IF('Procedure details'!P9<>\"\",VLOOKUP('Procedure details'!P9,Lists!$AD$2:$AE$11,2,FALSE),\"\")","v":""},{"$f":"IF(AND(AB9=1,'Procedure details'!G9>99,'Procedure details'!V9=\"\"),1,0)","v":0},{"$f":"IF(AND(AB9=0,'Procedure details'!G9>999,'Procedure details'!V9=\"\"),1,0)","v":0}]
[null,null,null,null,null,null,null,null,null,null,null,null,null,null,null,null,null,null,null,null,null,null,null,10,{"$f":"COUNTA('Procedure details'!E10:'Procedure details'!V10)","v":0},null,{"$f":"IF('Procedure details'!E10<>\"\",VLOOKUP('Procedure details'!E10,Lists!$M$2:$N$38,2,FALSE),\"\")","v":""},{"$f":"IF('Procedure details'!E10<>\"\",VLOOKUP('Procedure details'!E10,Lists!$M$2:$O$38,3,FALSE),\"\")","v":""},{"$f":"IF('Procedure details'!N10<>\"\",VLOOKUP('Procedure details'!N10,Lists!$B$2:$C$71,2,FALSE),\"\")","v":""},{"$f":"IF('Procedure details'!H10<>\"\",VLOOKUP('Procedure details'!H10,Lists!$AP$2:$AQ$3,2,FALSE),\"\")","v":""},{"$f":"IF('Procedure details'!N10<>\"\",VLOOKUP('Procedure details'!N10,Lists!$B$2:$D$71,3,FALSE),\"\")","v":""},{"$f":"IF('Procedure details'!P10<>\"\",VLOOKUP('Procedure details'!P10,Lists!$AD$2:$AE$11,2,FALSE),\"\")","v":""},{"$f":"IF(AND(AB10=1,'Procedure details'!G10>99,'Procedure details'!V10=\"\"),1,0)","v":0},{"$f":"IF(AND(AB10=0,'Procedure details'!G10>999,'Procedure details'!V10=\"\"),1,0)","v":0}]
[null,null,null,null,null,null,null,null,null,null,null,null,null,null,null,null,null,null,null,null,null,null,null,11,{"$f":"COUNTA('Procedure details'!E11:'Procedure details'!V11)","v":0},null,{"$f":"IF('Procedure details'!E11<>\"\",VLOOKUP('Procedure details'!E11,Lists!$M$2:$N$38,2,FALSE),\"\")","v":""},{"$f":"IF('Procedure details'!E11<>\"\",VLOOKUP('Procedure details'!E11,Lists!$M$2:$O$38,3,FALSE),\"\")","v":""},{"$f":"IF('Procedure details'!N11<>\"\",VLOOKUP('Procedure details'!N11,Lists!$B$2:$C$71,2,FALSE),\"\")","v":""},{"$f":"IF('Procedure details'!H11<>\"\",VLOOKUP('Procedure details'!H11,Lists!$AP$2:$AQ$3,2,FALSE),\"\")","v":""},{"$f":"IF('Procedure details'!N11<>\"\",VLOOKUP('Procedure details'!N11,Lists!$B$2:$D$71,3,FALSE),\"\")","v":""},{"$f":"IF('Procedure details'!P11<>\"\",VLOOKUP('Procedure details'!P11,Lists!$AD$2:$AE$11,2,FALSE),\"\")","v":""},{"$f":"IF(AND(AB11=1,'Procedure details'!G11>99,'Procedure details'!V11=\"\"),1,0)","v":0},{"$f":"IF(AND(AB11=0,'Procedure details'!G11>999,'Procedure details'!V11=\"\"),1,0)","v":0}]
[null,null,null,null,null,null,null,null,null,null,null,null,null,null,null,null,null,null,null,null,null,null,null,12,{"$f":"COUNTA('Procedure details'!E12:'Procedure details'!V12)","v":0},null,{"$f":"IF('Procedure details'!E12<>\"\",VLOOKUP('Procedure details'!E12,Lists!$M$2:$N$38,2,FALSE),\"\")","v":""},{"$f":"IF('Procedure details'!E12<>\"\",VLOOKUP('Procedure details'!E12,Lists!$M$2:$O$38,3,FALSE),\"\")","v":""},{"$f":"IF('Procedure details'!N12<>\"\",VLOOKUP('Procedure details'!N12,Lists!$B$2:$C$71,2,FALSE),\"\")","v":""},{"$f":"IF('Procedure details'!H12<>\"\",VLOOKUP('Procedure details'!H12,Lists!$AP$2:$AQ$3,2,FALSE),\"\")","v":""},{"$f":"IF('Procedure details'!N12<>\"\",VLOOKUP('Procedure details'!N12,Lists!$B$2:$D$71,3,FALSE),\"\")","v":""},{"$f":"IF('Procedure details'!P12<>\"\",VLOOKUP('Procedure details'!P12,Lists!$AD$2:$AE$11,2,FALSE),\"\")","v":""},{"$f":"IF(AND(AB12=1,'Procedure details'!G12>99,'Procedure details'!V12=\"\"),1,0)","v":0},{"$f":"IF(AND(AB12=0,'Procedure details'!G12>999,'Procedure details'!V12=\"\"),1,0)","v":0}]
[null,null,null,null,null,null,null,null,null,null,null,null,null,null,null,null,null,null,null,null,null,null,null,13,{"$f":"COUNTA('Procedure details'!E13:'Procedure details'!V13)","v":0},null,{"$f":"IF('Procedure details'!E13<>\"\",VLOOKUP('Procedure details'!E13,Lists!$M$2:$N$38,2,FALSE),\"\")","v":""},{"$f":"IF('Procedure details'!E13<>\"\",VLOOKUP('Procedure details'!E13,Lists!$M$2:$O$38,3,FALSE),\"\")","v":""},{"$f":"IF('Procedure details'!N13<>\"\",VLOOKUP('Procedure details'!N13,Lists!$B$2:$C$71,2,FALSE),\"\")","v":""},{"$f":"IF('Procedure details'!H13<>\"\",VLOOKUP('Procedure details'!H13,Lists!$AP$2:$AQ$3,2,FALSE),\"\")","v":""},{"$f":"IF('Procedure details'!N13<>\"\",VLOOKUP('Procedure details'!N13,Lists!$B$2:$D$71,3,FALSE),\"\")","v":""},{"$f":"IF('Procedure details'!P13<>\"\",VLOOKUP('Procedure details'!P13,Lists!$AD$2:$AE$11,2,FALSE),\"\")","v":""},{"$f":"IF(AND(AB13=1,'Procedure details'!G13>99,'Procedure details'!V13=\"\"),1,0)","v":0},{"$f":"IF(AND(AB13=0,'Procedure details'!G13>999,'Procedure details'!V13=\"\"),1,0)","v":0}]
[null,null,null,null,null,null,null,null,null,null,null,null,null,null,null,null,null,null,null,null,null,null,null,14,{"$f":"COUNTA('Procedure details'!E14:'Procedure details'!V14)","v":0},null,{"$f":"IF('Procedure details'!E14<>\"\",VLOOKUP('Procedure details'!E14,Lists!$M$2:$N$38,2,FALSE),\"\")","v":""},{"$f":"IF('Procedure details'!E14<>\"\",VLOOKUP('Procedure details'!E14,Lists!$M$2:$O$38,3,FALSE),\"\")","v":""},{"$f":"IF('Procedure details'!N14<>\"\",VLOOKUP('Procedure details'!N14,Lists!$B$2:$C$71,2,FALSE),\"\")","v":""},{"$f":"IF('Procedure details'!H14<>\"\",VLOOKUP('Procedure details'!H14,Lists!$AP$2:$AQ$3,2,FALSE),\"\")","v":""},{"$f":"IF('Procedure details'!N14<>\"\",VLOOKUP('Procedure details'!N14,Lists!$B$2:$D$71,3,FALSE),\"\")","v":""},{"$f":"IF('Procedure details'!P14<>\"\",VLOOKUP('Procedure details'!P14,Lists!$AD$2:$AE$11,2,FALSE),\"\")","v":""},{"$f":"IF(AND(AB14=1,'Procedure details'!G14>99,'Procedure details'!V14=\"\"),1,0)","v":0},{"$f":"IF(AND(AB14=0,'Procedure details'!G14>999,'Procedure details'!V14=\"\"),1,0)","v":0}]
[null,null,null,null,null,null,null,null,null,null,null,null,null,null,null,null,null,null,null,null,null,null,null,15,{"$f":"COUNTA('Procedure details'!E15:'Procedure details'!V15)","v":0},null,{"$f":"IF('Procedure details'!E15<>\"\",VLOOKUP('Procedure details'!E15,Lists!$M$2:$N$38,2,FALSE),\"\")","v":""},{"$f":"IF('Procedure details'!E15<>\"\",VLOOKUP('Procedure details'!E15,Lists!$M$2:$O$38,3,FALSE),\"\")","v":""},{"$f":"IF('Procedure details'!N15<>\"\",VLOOKUP('Procedure details'!N15,Lists!$B$2:$C$71,2,FALSE),\"\")","v":""},{"$f":"IF('Procedure details'!H15<>\"\",VLOOKUP('Procedure details'!H15,Lists!$AP$2:$AQ$3,2,FALSE),\"\")","v":""},{"$f":"IF('Procedure details'!N15<>\"\",VLOOKUP('Procedure details'!N15,Lists!$B$2:$D$71,3,FALSE),\"\")","v":""},{"$f":"IF('Procedure details'!P15<>\"\",VLOOKUP('Procedure details'!P15,Lists!$AD$2:$AE$11,2,FALSE),\"\")","v":""},{"$f":"IF(AND(AB15=1,'Procedure details'!G15>99,'Procedure details'!V15=\"\"),1,0)","v":0},{"$f":"IF(AND(AB15=0,'Procedure details'!G15>999,'Procedure details'!V15=\"\"),1,0)","v":0}]
[null,null,null,null,null,null,null,null,null,null,null,null,null,null,null,null,null,null,null,null,null,null,null,16,{"$f":"COUNTA('Procedure details'!E16:'Procedure details'!V16)","v":0},null,{"$f":"IF('Procedure details'!E16<>\"\",VLOOKUP('Procedure details'!E16,Lists!$M$2:$N$38,2,FALSE),\"\")","v":""},{"$f":"IF('Procedure details'!E16<>\"\",VLOOKUP('Procedure details'!E16,Lists!$M$2:$O$38,3,FALSE),\"\")","v":""},{"$f":"IF('Procedure details'!N16<>\"\",VLOOKUP('Procedure details'!N16,Lists!$B$2:$C$71,2,FALSE),\"\")","v":""},{"$f":"IF('Procedure details'!H16<>\"\",VLOOKUP('Procedure details'!H16,Lists!$AP$2:$AQ$3,2,FALSE),\"\")","v":""},{"$f":"IF('Procedure details'!N16<>\"\",VLOOKUP('Procedure details'!N16,Lists!$B$2:$D$71,3,FALSE),\"\")","v":""},{"$f":"IF('Procedure details'!P16<>\"\",VLOOKUP('Procedure details'!P16,Lists!$AD$2:$AE$11,2,FALSE),\"\")","v":""},{"$f":"IF(AND(AB16=1,'Procedure details'!G16>99,'Procedure details'!V16=\"\"),1,0)","v":0},{"$f":"IF(AND(AB16=0,'Procedure details'!G16>999,'Procedure details'!V16=\"\"),1,0)","v":0}]
[null,null,null,null,null,null,null,null,null,null,null,null,null,null,null,null,null,null,null,null,null,null,null,17,{"$f":"COUNTA('Procedure details'!E17:'Procedure details'!V17)","v":0},null,{"$f":"IF('Procedure details'!E17<>\"\",VLOOKUP('Procedure details'!E17,Lists!$M$2:$N$38,2,FALSE),\"\")","v":""},{"$f":"IF('Procedure details'!E17<>\"\",VLOOKUP('Procedure details'!E17,Lists!$M$2:$O$38,3,FALSE),\"\")","v":""},{"$f":"IF('Procedure details'!N17<>\"\",VLOOKUP('Procedure details'!N17,Lists!$B$2:$C$71,2,FALSE),\"\")","v":""},{"$f":"IF('Procedure details'!H17<>\"\",VLOOKUP('Procedure details'!H17,Lists!$AP$2:$AQ$3,2,FALSE),\"\")","v":""},{"$f":"IF('Procedure details'!N17<>\"\",VLOOKUP('Procedure details'!N17,Lists!$B$2:$D$71,3,FALSE),\"\")","v":""},{"$f":"IF('Procedure details'!P17<>\"\",VLOOKUP('Procedure details'!P17,Lists!$AD$2:$AE$11,2,FALSE),\"\")","v":""},{"$f":"IF(AND(AB17=1,'Procedure details'!G17>99,'Procedure details'!V17=\"\"),1,0)","v":0},{"$f":"IF(AND(AB17=0,'Procedure details'!G17>999,'Procedure details'!V17=\"\"),1,0)","v":0}]
[null,null,null,null,null,null,null,null,null,null,null,null,null,null,null,null,null,null,null,null,null,null,null,18,{"$f":"COUNTA('Procedure details'!E18:'Procedure details'!V18)","v":0},null,{"$f":"IF('Procedure details'!E18<>\"\",VLOOKUP('Procedure details'!E18,Lists!$M$2:$N$38,2,FALSE),\"\")","v":""},{"$f":"IF('Procedure details'!E18<>\"\",VLOOKUP('Procedure details'!E18,Lists!$M$2:$O$38,3,FALSE),\"\")","v":""},{"$f":"IF('Procedure details'!N18<>\"\",VLOOKUP('Procedure details'!N18,Lists!$B$2:$C$71,2,FALSE),\"\")","v":""},{"$f":"IF('Procedure details'!H18<>\"\",VLOOKUP('Procedure details'!H18,Lists!$AP$2:$AQ$3,2,FALSE),\"\")","v":""},{"$f":"IF('Procedure details'!N18<>\"\",VLOOKUP('Procedure details'!N18,Lists!$B$2:$D$71,3,FALSE),\"\")","v":""},{"$f":"IF('Procedure details'!P18<>\"\",VLOOKUP('Procedure details'!P18,Lists!$AD$2:$AE$11,2,FALSE),\"\")","v":""},{"$f":"IF(AND(AB18=1,'Procedure details'!G18>99,'Procedure details'!V18=\"\"),1,0)","v":0},{"$f":"IF(AND(AB18=0,'Procedure details'!G18>999,'Procedure details'!V18=\"\"),1,0)","v":0}]
[null,null,null,null,null,null,null,null,null,null,null,null,null,null,null,null,null,null,null,null,null,null,null,19,{"$f":"COUNTA('Procedure details'!E19:'Procedure details'!V19)","v":0},null,{"$f":"IF('Procedure details'!E19<>\"\",VLOOKUP('Procedure details'!E19,Lists!$M$2:$N$38,2,FALSE),\"\")","v":""},{"$f":"IF('Procedure details'!E19<>\"\",VLOOKUP('Procedure details'!E19,Lists!$M$2:$O$38,3,FALSE),\"\")","v":""},{"$f":"IF('Procedure details'!N19<>\"\",VLOOKUP('Procedure details'!N19,Lists!$B$2:$C$71,2,FALSE),\"\")","v":""},{"$f":"IF('Procedure details'!H19<>\"\",VLOOKUP('Procedure details'!H19,Lists!$AP$2:$AQ$3,2,FALSE),\"\")","v":""},{"$f":"IF('Procedure details'!N19<>\"\",VLOOKUP('Procedure details'!N19,Lists!$B$2:$D$71,3,FALSE),\"\")","v":""},{"$f":"IF('Procedure details'!P19<>\"\",VLOOKUP('Procedure details'!P19,Lists!$AD$2:$AE$11,2,FALSE),\"\")","v":""},{"$f":"IF(AND(AB19=1,'Procedure details'!G19>99,'Procedure details'!V19=\"\"),1,0)","v":0},{"$f":"IF(AND(AB19=0,'Procedure details'!G19>999,'Procedure details'!V19=\"\"),1,0)","v":0}]
[null,null,null,null,null,null,null,null,null,null,null,null,null,null,null,null,null,null,null,null,null,null,null,20,{"$f":"COUNTA('Procedure details'!E20:'Procedure details'!V20)","v":0},null,{"$f":"IF('Procedure details'!E20<>\"\",VLOOKUP('Procedure details'!E20,Lists!$M$2:$N$38,2,FALSE),\"\")","v":""},{"$f":"IF('Procedure details'!E20<>\"\",VLOOKUP('Procedure details'!E20,Lists!$M$2:$O$38,3,FALSE),\"\")","v":""},{"$f":"IF('Procedure details'!N20<>\"\",VLOOKUP('Procedure details'!N20,Lists!$B$2:$C$71,2,FALSE),\"\")","v":""},{"$f":"IF('Procedure details'!H20<>\"\",VLOOKUP('Procedure details'!H20,Lists!$AP$2:$AQ$3,2,FALSE),\"\")","v":""},{"$f":"IF('Procedure details'!N20<>\"\",VLOOKUP('Procedure details'!N20,Lists!$B$2:$D$71,3,FALSE),\"\")","v":""},{"$f":"IF('Procedure details'!P20<>\"\",VLOOKUP('Procedure details'!P20,Lists!$AD$2:$AE$11,2,FALSE),\"\")","v":""},{"$f":"IF(AND(AB20=1,'Procedure details'!G20>99,'Procedure details'!V20=\"\"),1,0)","v":0},{"$f":"IF(AND(AB20=0,'Procedure details'!G20>999,'Procedure details'!V20=\"\"),1,0)","v":0}]
[null,null,null,null,null,null,null,null,null,null,null,null,null,null,null,null,null,null,null,null,null,null,null,21,{"$f":"COUNTA('Procedure details'!E21:'Procedure details'!V21)","v":0},null,{"$f":"IF('Procedure details'!E21<>\"\",VLOOKUP('Procedure details'!E21,Lists!$M$2:$N$38,2,FALSE),\"\")","v":""},{"$f":"IF('Procedure details'!E21<>\"\",VLOOKUP('Procedure details'!E21,Lists!$M$2:$O$38,3,FALSE),\"\")","v":""},{"$f":"IF('Procedure details'!N21<>\"\",VLOOKUP('Procedure details'!N21,Lists!$B$2:$C$71,2,FALSE),\"\")","v":""},{"$f":"IF('Procedure details'!H21<>\"\",VLOOKUP('Procedure details'!H21,Lists!$AP$2:$AQ$3,2,FALSE),\"\")","v":""},{"$f":"IF('Procedure details'!N21<>\"\",VLOOKUP('Procedure details'!N21,Lists!$B$2:$D$71,3,FALSE),\"\")","v":""},{"$f":"IF('Procedure details'!P21<>\"\",VLOOKUP('Procedure details'!P21,Lists!$AD$2:$AE$11,2,FALSE),\"\")","v":""},{"$f":"IF(AND(AB21=1,'Procedure details'!G21>99,'Procedure details'!V21=\"\"),1,0)","v":0},{"$f":"IF(AND(AB21=0,'Procedure details'!G21>999,'Procedure details'!V21=\"\"),1,0)","v":0}]
[null,null,null,null,null,null,null,null,null,null,null,null,null,null,null,null,null,null,null,null,null,null,null,22,{"$f":"COUNTA('Procedure details'!E22:'Procedure details'!V22)","v":0},null,{"$f":"IF('Procedure details'!E22<>\"\",VLOOKUP('Procedure details'!E22,Lists!$M$2:$N$38,2,FALSE),\"\")","v":""},{"$f":"IF('Procedure details'!E22<>\"\",VLOOKUP('Procedure details'!E22,Lists!$M$2:$O$38,3,FALSE),\"\")","v":""},{"$f":"IF('Procedure details'!N22<>\"\",VLOOKUP('Procedure details'!N22,Lists!$B$2:$C$71,2,FALSE),\"\")","v":""},{"$f":"IF('Procedure details'!H22<>\"\",VLOOKUP('Procedure details'!H22,Lists!$AP$2:$AQ$3,2,FALSE),\"\")","v":""},{"$f":"IF('Procedure details'!N22<>\"\",VLOOKUP('Procedure details'!N22,Lists!$B$2:$D$71,3,FALSE),\"\")","v":""},{"$f":"IF('Procedure details'!P22<>\"\",VLOOKUP('Procedure details'!P22,Lists!$AD$2:$AE$11,2,FALSE),\"\")","v":""},{"$f":"IF(AND(AB22=1,'Procedure details'!G22>99,'Procedure details'!V22=\"\"),1,0)","v":0},{"$f":"IF(AND(AB22=0,'Procedure details'!G22>999,'Procedure details'!V22=\"\"),1,0)","v":0}]
[null,null,null,null,null,null,null,null,null,null,null,null,null,null,null,null,null,null,null,null,null,null,null,23,{"$f":"COUNTA('Procedure details'!E23:'Procedure details'!V23)","v":0},null,{"$f":"IF('Procedure details'!E23<>\"\",VLOOKUP('Procedure details'!E23,Lists!$M$2:$N$38,2,FALSE),\"\")","v":""},{"$f":"IF('Procedure details'!E23<>\"\",VLOOKUP('Procedure details'!E23,Lists!$M$2:$O$38,3,FALSE),\"\")","v":""},{"$f":"IF('Procedure details'!N23<>\"\",VLOOKUP('Procedure details'!N23,Lists!$B$2:$C$71,2,FALSE),\"\")","v":""},{"$f":"IF('Procedure details'!H23<>\"\",VLOOKUP('Procedure details'!H23,Lists!$AP$2:$AQ$3,2,FALSE),\"\")","v":""},{"$f":"IF('Procedure details'!N23<>\"\",VLOOKUP('Procedure details'!N23,Lists!$B$2:$D$71,3,FALSE),\"\")","v":""},{"$f":"IF('Procedure details'!P23<>\"\",VLOOKUP('Procedure details'!P23,Lists!$AD$2:$AE$11,2,FALSE),\"\")","v":""},{"$f":"IF(AND(AB23=1,'Procedure details'!G23>99,'Procedure details'!V23=\"\"),1,0)","v":0},{"$f":"IF(AND(AB23=0,'Procedure details'!G23>999,'Procedure details'!V23=\"\"),1,0)","v":0}]
[null,null,null,null,null,null,null,null,null,null,null,null,null,null,null,null,null,null,null,null,null,null,null,24,{"$f":"COUNTA('Procedure details'!E24:'Procedure details'!V24)","v":0},null,{"$f":"IF('Procedure details'!E24<>\"\",VLOOKUP('Procedure details'!E24,Lists!$M$2:$N$38,2,FALSE),\"\")","v":""},{"$f":"IF('Procedure details'!E24<>\"\",VLOOKUP('Procedure details'!E24,Lists!$M$2:$O$38,3,FALSE),\"\")","v":""},{"$f":"IF('Procedure details'!N24<>\"\",VLOOKUP('Procedure details'!N24,Lists!$B$2:$C$71,2,FALSE),\"\")","v":""},{"$f":"IF('Procedure details'!H24<>\"\",VLOOKUP('Procedure details'!H24,Lists!$AP$2:$AQ$3,2,FALSE),\"\")","v":""},{"$f":"IF('Procedure details'!N24<>\"\",VLOOKUP('Procedure details'!N24,Lists!$B$2:$D$71,3,FALSE),\"\")","v":""},{"$f":"IF('Procedure details'!P24<>\"\",VLOOKUP('Procedure details'!P24,Lists!$AD$2:$AE$11,2,FALSE),\"\")","v":""},{"$f":"IF(AND(AB24=1,'Procedure details'!G24>99,'Procedure details'!V24=\"\"),1,0)","v":0},{"$f":"IF(AND(AB24=0,'Procedure details'!G24>999,'Procedure details'!V24=\"\"),1,0)","v":0}]
[null,null,null,null,null,null,null,null,null,null,null,null,null,null,null,null,null,null,null,null,null,null,null,25,{"$f":"COUNTA('Procedure details'!E25:'Procedure details'!V25)","v":0},null,{"$f":"IF('Procedure details'!E25<>\"\",VLOOKUP('Procedure details'!E25,Lists!$M$2:$N$38,2,FALSE),\"\")","v":""},{"$f":"IF('Procedure details'!E25<>\"\",VLOOKUP('Procedure details'!E25,Lists!$M$2:$O$38,3,FALSE),\"\")","v":""},{"$f":"IF('Procedure details'!N25<>\"\",VLOOKUP('Procedure details'!N25,Lists!$B$2:$C$71,2,FALSE),\"\")","v":""},{"$f":"IF('Procedure details'!H25<>\"\",VLOOKUP('Procedure details'!H25,Lists!$AP$2:$AQ$3,2,FALSE),\"\")","v":""},{"$f":"IF('Procedure details'!N25<>\"\",VLOOKUP('Procedure details'!N25,Lists!$B$2:$D$71,3,FALSE),\"\")","v":""},{"$f":"IF('Procedure details'!P25<>\"\",VLOOKUP('Procedure details'!P25,Lists!$AD$2:$AE$11,2,FALSE),\"\")","v":""},{"$f":"IF(AND(AB25=1,'Procedure details'!G25>99,'Procedure details'!V25=\"\"),1,0)","v":0},{"$f":"IF(AND(AB25=0,'Procedure details'!G25>999,'Procedure details'!V25=\"\"),1,0)","v":0}]
[null,null,null,null,null,null,null,null,null,null,null,null,null,null,null,null,null,null,null,null,null,null,null,26,{"$f":"COUNTA('Procedure details'!E26:'Procedure details'!V26)","v":0},null,{"$f":"IF('Procedure details'!E26<>\"\",VLOOKUP('Procedure details'!E26,Lists!$M$2:$N$38,2,FALSE),\"\")","v":""},{"$f":"IF('Procedure details'!E26<>\"\",VLOOKUP('Procedure details'!E26,Lists!$M$2:$O$38,3,FALSE),\"\")","v":""},{"$f":"IF('Procedure details'!N26<>\"\",VLOOKUP('Procedure details'!N26,Lists!$B$2:$C$71,2,FALSE),\"\")","v":""},{"$f":"IF('Procedure details'!H26<>\"\",VLOOKUP('Procedure details'!H26,Lists!$AP$2:$AQ$3,2,FALSE),\"\")","v":""},{"$f":"IF('Procedure details'!N26<>\"\",VLOOKUP('Procedure details'!N26,Lists!$B$2:$D$71,3,FALSE),\"\")","v":""},{"$f":"IF('Procedure details'!P26<>\"\",VLOOKUP('Procedure details'!P26,Lists!$AD$2:$AE$11,2,FALSE),\"\")","v":""},{"$f":"IF(AND(AB26=1,'Procedure details'!G26>99,'Procedure details'!V26=\"\"),1,0)","v":0},{"$f":"IF(AND(AB26=0,'Procedure details'!G26>999,'Procedure details'!V26=\"\"),1,0)","v":0}]
[null,null,null,null,null,null,null,null,null,null,null,null,null,null,null,null,null,null,null,null,null,null,null,27,{"$f":"COUNTA('Procedure details'!E27:'Procedure details'!V27)","v":0},null,{"$f":"IF('Procedure details'!E27<>\"\",VLOOKUP('Procedure details'!E27,Lists!$M$2:$N$38,2,FALSE),\"\")","v":""},{"$f":"IF('Procedure details'!E27<>\"\",VLOOKUP('Procedure details'!E27,Lists!$M$2:$O$38,3,FALSE),\"\")","v":""},{"$f":"IF('Procedure details'!N27<>\"\",VLOOKUP('Procedure details'!N27,Lists!$B$2:$C$71,2,FALSE),\"\")","v":""},{"$f":"IF('Procedure details'!H27<>\"\",VLOOKUP('Procedure details'!H27,Lists!$AP$2:$AQ$3,2,FALSE),\"\")","v":""},{"$f":"IF('Procedure details'!N27<>\"\",VLOOKUP('Procedure details'!N27,Lists!$B$2:$D$71,3,FALSE),\"\")","v":""},{"$f":"IF('Procedure details'!P27<>\"\",VLOOKUP('Procedure details'!P27,Lists!$AD$2:$AE$11,2,FALSE),\"\")","v":""},{"$f":"IF(AND(AB27=1,'Procedure details'!G27>99,'Procedure details'!V27=\"\"),1,0)","v":0},{"$f":"IF(AND(AB27=0,'Procedure details'!G27>999,'Procedure details'!V27=\"\"),1,0)","v":0}]
[null,null,null,null,null,null,null,null,null,null,null,null,null,null,null,null,null,null,null,null,null,null,null,28,{"$f":"COUNTA('Procedure details'!E28:'Procedure details'!V28)","v":0},null,{"$f":"IF('Procedure details'!E28<>\"\",VLOOKUP('Procedure details'!E28,Lists!$M$2:$N$38,2,FALSE),\"\")","v":""},{"$f":"IF('Procedure details'!E28<>\"\",VLOOKUP('Procedure details'!E28,Lists!$M$2:$O$38,3,FALSE),\"\")","v":""},{"$f":"IF('Procedure details'!N28<>\"\",VLOOKUP('Procedure details'!N28,Lists!$B$2:$C$71,2,FALSE),\"\")","v":""},{"$f":"IF('Procedure details'!H28<>\"\",VLOOKUP('Procedure details'!H28,Lists!$AP$2:$AQ$3,2,FALSE),\"\")","v":""},{"$f":"IF('Procedure details'!N28<>\"\",VLOOKUP('Procedure details'!N28,Lists!$B$2:$D$71,3,FALSE),\"\")","v":""},{"$f":"IF('Procedure details'!P28<>\"\",VLOOKUP('Procedure details'!P28,Lists!$AD$2:$AE$11,2,FALSE),\"\")","v":""},{"$f":"IF(AND(AB28=1,'Procedure details'!G28>99,'Procedure details'!V28=\"\"),1,0)","v":0},{"$f":"IF(AND(AB28=0,'Procedure details'!G28>999,'Procedure details'!V28=\"\"),1,0)","v":0}]
[null,null,null,null,null,null,null,null,null,null,null,null,null,null,null,null,null,null,null,null,null,null,null,29,{"$f":"COUNTA('Procedure details'!E29:'Procedure details'!V29)","v":0},null,{"$f":"IF('Procedure details'!E29<>\"\",VLOOKUP('Procedure details'!E29,Lists!$M$2:$N$38,2,FALSE),\"\")","v":""},{"$f":"IF('Procedure details'!E29<>\"\",VLOOKUP('Procedure details'!E29,Lists!$M$2:$O$38,3,FALSE),\"\")","v":""},{"$f":"IF('Procedure details'!N29<>\"\",VLOOKUP('Procedure details'!N29,Lists!$B$2:$C$71,2,FALSE),\"\")","v":""},{"$f":"IF('Procedure details'!H29<>\"\",VLOOKUP('Procedure details'!H29,Lists!$AP$2:$AQ$3,2,FALSE),\"\")","v":""},{"$f":"IF('Procedure details'!N29<>\"\",VLOOKUP('Procedure details'!N29,Lists!$B$2:$D$71,3,FALSE),\"\")","v":""},{"$f":"IF('Procedure details'!P29<>\"\",VLOOKUP('Procedure details'!P29,Lists!$AD$2:$AE$11,2,FALSE),\"\")","v":""},{"$f":"IF(AND(AB29=1,'Procedure details'!G29>99,'Procedure details'!V29=\"\"),1,0)","v":0},{"$f":"IF(AND(AB29=0,'Procedure details'!G29>999,'Procedure details'!V29=\"\"),1,0)","v":0}]
[null,null,null,null,null,null,null,null,null,null,null,null,null,null,null,null,null,null,null,null,null,null,null,30,{"$f":"COUNTA('Procedure details'!E30:'Procedure details'!V30)","v":0},null,{"$f":"IF('Procedure details'!E30<>\"\",VLOOKUP('Procedure details'!E30,Lists!$M$2:$N$38,2,FALSE),\"\")","v":""},{"$f":"IF('Procedure details'!E30<>\"\",VLOOKUP('Procedure details'!E30,Lists!$M$2:$O$38,3,FALSE),\"\")","v":""},{"$f":"IF('Procedure details'!N30<>\"\",VLOOKUP('Procedure details'!N30,Lists!$B$2:$C$71,2,FALSE),\"\")","v":""},{"$f":"IF('Procedure details'!H30<>\"\",VLOOKUP('Procedure details'!H30,Lists!$AP$2:$AQ$3,2,FALSE),\"\")","v":""},{"$f":"IF('Procedure details'!N30<>\"\",VLOOKUP('Procedure details'!N30,Lists!$B$2:$D$71,3,FALSE),\"\")","v":""},{"$f":"IF('Procedure details'!P30<>\"\",VLOOKUP('Procedure details'!P30,Lists!$AD$2:$AE$11,2,FALSE),\"\")","v":""},{"$f":"IF(AND(AB30=1,'Procedure details'!G30>99,'Procedure details'!V30=\"\"),1,0)","v":0},{"$f":"IF(AND(AB30=0,'Procedure details'!G30>999,'Procedure details'!V30=\"\"),1,0)","v":0}]
[null,null,null,null,null,null,null,null,null,null,null,null,null,null,null,null,null,null,null,null,null,null,null,31,{"$f":"COUNTA('Procedure details'!E31:'Procedure details'!V31)","v":0},null,{"$f":"IF('Procedure details'!E31<>\"\",VLOOKUP('Procedure details'!E31,Lists!$M$2:$N$38,2,FALSE),\"\")","v":""},{"$f":"IF('Procedure details'!E31<>\"\",VLOOKUP('Procedure details'!E31,Lists!$M$2:$O$38,3,FALSE),\"\")","v":""},{"$f":"IF('Procedure details'!N31<>\"\",VLOOKUP('Procedure details'!N31,Lists!$B$2:$C$71,2,FALSE),\"\")","v":""},{"$f":"IF('Procedure details'!H31<>\"\",VLOOKUP('Procedure details'!H31,Lists!$AP$2:$AQ$3,2,FALSE),\"\")","v":""},{"$f":"IF('Procedure details'!N31<>\"\",VLOOKUP('Procedure details'!N31,Lists!$B$2:$D$71,3,FALSE),\"\")","v":""},{"$f":"IF('Procedure details'!P31<>\"\",VLOOKUP('Procedure details'!P31,Lists!$AD$2:$AE$11,2,FALSE),\"\")","v":""},{"$f":"IF(AND(AB31=1,'Procedure details'!G31>99,'Procedure details'!V31=\"\"),1,0)","v":0},{"$f":"IF(AND(AB31=0,'Procedure details'!G31>999,'Procedure details'!V31=\"\"),1,0)","v":0}]
[null,null,null,null,null,null,null,null,null,null,null,null,null,null,null,null,null,null,null,null,null,null,null,32,{"$f":"COUNTA('Procedure details'!E32:'Procedure details'!V32)","v":0},null,{"$f":"IF('Procedure details'!E32<>\"\",VLOOKUP('Procedure details'!E32,Lists!$M$2:$N$38,2,FALSE),\"\")","v":""},{"$f":"IF('Procedure details'!E32<>\"\",VLOOKUP('Procedure details'!E32,Lists!$M$2:$O$38,3,FALSE),\"\")","v":""},{"$f":"IF('Procedure details'!N32<>\"\",VLOOKUP('Procedure details'!N32,Lists!$B$2:$C$71,2,FALSE),\"\")","v":""},{"$f":"IF('Procedure details'!H32<>\"\",VLOOKUP('Procedure details'!H32,Lists!$AP$2:$AQ$3,2,FALSE),\"\")","v":""},{"$f":"IF('Procedure details'!N32<>\"\",VLOOKUP('Procedure details'!N32,Lists!$B$2:$D$71,3,FALSE),\"\")","v":""},{"$f":"IF('Procedure details'!P32<>\"\",VLOOKUP('Procedure details'!P32,Lists!$AD$2:$AE$11,2,FALSE),\"\")","v":""},{"$f":"IF(AND(AB32=1,'Procedure details'!G32>99,'Procedure details'!V32=\"\"),1,0)","v":0},{"$f":"IF(AND(AB32=0,'Procedure details'!G32>999,'Procedure details'!V32=\"\"),1,0)","v":0}]
[null,null,null,null,null,null,null,null,null,null,null,null,null,null,null,null,null,null,null,null,null,null,null,33,{"$f":"COUNTA('Procedure details'!E33:'Procedure details'!V33)","v":0},null,{"$f":"IF('Procedure details'!E33<>\"\",VLOOKUP('Procedure details'!E33,Lists!$M$2:$N$38,2,FALSE),\"\")","v":""},{"$f":"IF('Procedure details'!E33<>\"\",VLOOKUP('Procedure details'!E33,Lists!$M$2:$O$38,3,FALSE),\"\")","v":""},{"$f":"IF('Procedure details'!N33<>\"\",VLOOKUP('Procedure details'!N33,Lists!$B$2:$C$71,2,FALSE),\"\")","v":""},{"$f":"IF('Procedure details'!H33<>\"\",VLOOKUP('Procedure details'!H33,Lists!$AP$2:$AQ$3,2,FALSE),\"\")","v":""},{"$f":"IF('Procedure details'!N33<>\"\",VLOOKUP('Procedure details'!N33,Lists!$B$2:$D$71,3,FALSE),\"\")","v":""},{"$f":"IF('Procedure details'!P33<>\"\",VLOOKUP('Procedure details'!P33,Lists!$AD$2:$AE$11,2,FALSE),\"\")","v":""},{"$f":"IF(AND(AB33=1,'Procedure details'!G33>99,'Procedure details'!V33=\"\"),1,0)","v":0},{"$f":"IF(AND(AB33=0,'Procedure details'!G33>999,'Procedure details'!V33=\"\"),1,0)","v":0}]
[null,null,null,null,null,null,null,null,null,null,null,null,null,null,null,null,null,null,null,null,null,null,null,34,{"$f":"COUNTA('Procedure details'!E34:'Procedure details'!V34)","v":0},null,{"$f":"IF('Procedure details'!E34<>\"\",VLOOKUP('Procedure details'!E34,Lists!$M$2:$N$38,2,FALSE),\"\")","v":""},{"$f":"IF('Procedure details'!E34<>\"\",VLOOKUP('Procedure details'!E34,Lists!$M$2:$O$38,3,FALSE),\"\")","v":""},{"$f":"IF('Procedure details'!N34<>\"\",VLOOKUP('Procedure details'!N34,Lists!$B$2:$C$71,2,FALSE),\"\")","v":""},{"$f":"IF('Procedure details'!H34<>\"\",VLOOKUP('Procedure details'!H34,Lists!$AP$2:$AQ$3,2,FALSE),\"\")","v":""},{"$f":"IF('Procedure details'!N34<>\"\",VLOOKUP('Procedure details'!N34,Lists!$B$2:$D$71,3,FALSE),\"\")","v":""},{"$f":"IF('Procedure details'!P34<>\"\",VLOOKUP('Procedure details'!P34,Lists!$AD$2:$AE$11,2,FALSE),\"\")","v":""},{"$f":"IF(AND(AB34=1,'Procedure details'!G34>99,'Procedure details'!V34=\"\"),1,0)","v":0},{"$f":"IF(AND(AB34=0,'Procedure details'!G34>999,'Procedure details'!V34=\"\"),1,0)","v":0}]
[null,null,null,null,null,null,null,null,null,null,null,null,null,null,null,null,null,null,null,null,null,null,null,35,{"$f":"COUNTA('Procedure details'!E35:'Procedure details'!V35)","v":0},null,{"$f":"IF('Procedure details'!E35<>\"\",VLOOKUP('Procedure details'!E35,Lists!$M$2:$N$38,2,FALSE),\"\")","v":""},{"$f":"IF('Procedure details'!E35<>\"\",VLOOKUP('Procedure details'!E35,Lists!$M$2:$O$38,3,FALSE),\"\")","v":""},{"$f":"IF('Procedure details'!N35<>\"\",VLOOKUP('Procedure details'!N35,Lists!$B$2:$C$71,2,FALSE),\"\")","v":""},{"$f":"IF('Procedure details'!H35<>\"\",VLOOKUP('Procedure details'!H35,Lists!$AP$2:$AQ$3,2,FALSE),\"\")","v":""},{"$f":"IF('Procedure details'!N35<>\"\",VLOOKUP('Procedure details'!N35,Lists!$B$2:$D$71,3,FALSE),\"\")","v":""},{"$f":"IF('Procedure details'!P35<>\"\",VLOOKUP('Procedure details'!P35,Lists!$AD$2:$AE$11,2,FALSE),\"\")","v":""},{"$f":"IF(AND(AB35=1,'Procedure details'!G35>99,'Procedure details'!V35=\"\"),1,0)","v":0},{"$f":"IF(AND(AB35=0,'Procedure details'!G35>999,'Procedure details'!V35=\"\"),1,0)","v":0}]
[null,null,null,null,null,null,null,null,null,null,null,null,null,null,null,null,null,null,null,null,null,null,null,36,{"$f":"COUNTA('Procedure details'!E36:'Procedure details'!V36)","v":0},null,{"$f":"IF('Procedure details'!E36<>\"\",VLOOKUP('Procedure details'!E36,Lists!$M$2:$N$38,2,FALSE),\"\")","v":""},{"$f":"IF('Procedure details'!E36<>\"\",VLOOKUP('Procedure details'!E36,Lists!$M$2:$O$38,3,FALSE),\"\")","v":""},{"$f":"IF('Procedure details'!N36<>\"\",VLOOKUP('Procedure details'!N36,Lists!$B$2:$C$71,2,FALSE),\"\")","v":""},{"$f":"IF('Procedure details'!H36<>\"\",VLOOKUP('Procedure details'!H36,Lists!$AP$2:$AQ$3,2,FALSE),\"\")","v":""},{"$f":"IF('Procedure details'!N36<>\"\",VLOOKUP('Procedure details'!N36,Lists!$B$2:$D$71,3,FALSE),\"\")","v":""},{"$f":"IF('Procedure details'!P36<>\"\",VLOOKUP('Procedure details'!P36,Lists!$AD$2:$AE$11,2,FALSE),\"\")","v":""},{"$f":"IF(AND(AB36=1,'Procedure details'!G36>99,'Procedure details'!V36=\"\"),1,0)","v":0},{"$f":"IF(AND(AB36=0,'Procedure details'!G36>999,'Procedure details'!V36=\"\"),1,0)","v":0}]
[null,null,null,null,null,null,null,null,null,null,null,null,null,null,null,null,null,null,null,null,null,null,null,37,{"$f":"COUNTA('Procedure details'!E37:'Procedure details'!V37)","v":0},null,{"$f":"IF('Procedure details'!E37<>\"\",VLOOKUP('Procedure details'!E37,Lists!$M$2:$N$38,2,FALSE),\"\")","v":""},{"$f":"IF('Procedure details'!E37<>\"\",VLOOKUP('Procedure details'!E37,Lists!$M$2:$O$38,3,FALSE),\"\")","v":""},{"$f":"IF('Procedure details'!N37<>\"\",VLOOKUP('Procedure details'!N37,Lists!$B$2:$C$71,2,FALSE),\"\")","v":""},{"$f":"IF('Procedure details'!H37<>\"\",VLOOKUP('Procedure details'!H37,Lists!$AP$2:$AQ$3,2,FALSE),\"\")","v":""},{"$f":"IF('Procedure details'!N37<>\"\",VLOOKUP('Procedure details'!N37,Lists!$B$2:$D$71,3,FALSE),\"\")","v":""},{"$f":"IF('Procedure details'!P37<>\"\",VLOOKUP('Procedure details'!P37,Lists!$AD$2:$AE$11,2,FALSE),\"\")","v":""},{"$f":"IF(AND(AB37=1,'Procedure details'!G37>99,'Procedure details'!V37=\"\"),1,0)","v":0},{"$f":"IF(AND(AB37=0,'Procedure details'!G37>999,'Procedure details'!V37=\"\"),1,0)","v":0}]
[null,null,null,null,null,null,null,null,null,null,null,null,null,null,null,null,null,null,null,null,null,null,null,38,{"$f":"COUNTA('Procedure details'!E38:'Procedure details'!V38)","v":0},null,{"$f":"IF('Procedure details'!E38<>\"\",VLOOKUP('Procedure details'!E38,Lists!$M$2:$N$38,2,FALSE),\"\")","v":""},{"$f":"IF('Procedure details'!E38<>\"\",VLOOKUP('Procedure details'!E38,Lists!$M$2:$O$38,3,FALSE),\"\")","v":""},{"$f":"IF('Procedure details'!N38<>\"\",VLOOKUP('Procedure details'!N38,Lists!$B$2:$C$71,2,FALSE),\"\")","v":""},{"$f":"IF('Procedure details'!H38<>\"\",VLOOKUP('Procedure details'!H38,Lists!$AP$2:$AQ$3,2,FALSE),\"\")","v":""},{"$f":"IF('Procedure details'!N38<>\"\",VLOOKUP('Procedure details'!N38,Lists!$B$2:$D$71,3,FALSE),\"\")","v":""},{"$f":"IF('Procedure details'!P38<>\"\",VLOOKUP('Procedure details'!P38,Lists!$AD$2:$AE$11,2,FALSE),\"\")","v":""},{"$f":"IF(AND(AB38=1,'Procedure details'!G38>99,'Procedure details'!V38=\"\"),1,0)","v":0},{"$f":"IF(AND(AB38=0,'Procedure details'!G38>999,'Procedure details'!V38=\"\"),1,0)","v":0}]
[null,null,null,null,null,null,null,null,null,null,null,null,null,null,null,null,null,null,null,null,null,null,null,39,{"$f":"COUNTA('Procedure details'!E39:'Procedure details'!V39)","v":0},null,{"$f":"IF('Procedure details'!E39<>\"\",VLOOKUP('Procedure details'!E39,Lists!$M$2:$N$38,2,FALSE),\"\")","v":""},{"$f":"IF('Procedure details'!E39<>\"\",VLOOKUP('Procedure details'!E39,Lists!$M$2:$O$38,3,FALSE),\"\")","v":""},{"$f":"IF('Procedure details'!N39<>\"\",VLOOKUP('Procedure details'!N39,Lists!$B$2:$C$71,2,FALSE),\"\")","v":""},{"$f":"IF('Procedure details'!H39<>\"\",VLOOKUP('Procedure details'!H39,Lists!$AP$2:$AQ$3,2,FALSE),\"\")","v":""},{"$f":"IF('Procedure details'!N39<>\"\",VLOOKUP('Procedure details'!N39,Lists!$B$2:$D$71,3,FALSE),\"\")","v":""},{"$f":"IF('Procedure details'!P39<>\"\",VLOOKUP('Procedure details'!P39,Lists!$AD$2:$AE$11,2,FALSE),\"\")","v":""},{"$f":"IF(AND(AB39=1,'Procedure details'!G39>99,'Procedure details'!V39=\"\"),1,0)","v":0},{"$f":"IF(AND(AB39=0,'Procedure details'!G39>999,'Procedure details'!V39=\"\"),1,0)","v":0}]
[null,null,null,null,null,null,null,null,null,null,null,null,null,null,null,null,null,null,null,null,null,null,null,40,{"$f":"COUNTA('Procedure details'!E40:'Procedure details'!V40)","v":0},null,{"$f":"IF('Procedure details'!E40<>\"\",VLOOKUP('Procedure details'!E40,Lists!$M$2:$N$38,2,FALSE),\"\")","v":""},{"$f":"IF('Procedure details'!E40<>\"\",VLOOKUP('Procedure details'!E40,Lists!$M$2:$O$38,3,FALSE),\"\")","v":""},{"$f":"IF('Procedure details'!N40<>\"\",VLOOKUP('Procedure details'!N40,Lists!$B$2:$C$71,2,FALSE),\"\")","v":""},{"$f":"IF('Procedure details'!H40<>\"\",VLOOKUP('Procedure details'!H40,Lists!$AP$2:$AQ$3,2,FALSE),\"\")","v":""},{"$f":"IF('Procedure details'!N40<>\"\",VLOOKUP('Procedure details'!N40,Lists!$B$2:$D$71,3,FALSE),\"\")","v":""},{"$f":"IF('Procedure details'!P40<>\"\",VLOOKUP('Procedure details'!P40,Lists!$AD$2:$AE$11,2,FALSE),\"\")","v":""},{"$f":"IF(AND(AB40=1,'Procedure details'!G40>99,'Procedure details'!V40=\"\"),1,0)","v":0},{"$f":"IF(AND(AB40=0,'Procedure details'!G40>999,'Procedure details'!V40=\"\"),1,0)","v":0}]
[null,null,null,null,null,null,null,null,null,null,null,null,null,null,null,null,null,null,null,null,null,null,null,41,{"$f":"COUNTA('Procedure details'!E41:'Procedure details'!V41)","v":0},null,{"$f":"IF('Procedure details'!E41<>\"\",VLOOKUP('Procedure details'!E41,Lists!$M$2:$N$38,2,FALSE),\"\")","v":""},{"$f":"IF('Procedure details'!E41<>\"\",VLOOKUP('Procedure details'!E41,Lists!$M$2:$O$38,3,FALSE),\"\")","v":""},{"$f":"IF('Procedure details'!N41<>\"\",VLOOKUP('Procedure details'!N41,Lists!$B$2:$C$71,2,FALSE),\"\")","v":""},{"$f":"IF('Procedure details'!H41<>\"\",VLOOKUP('Procedure details'!H41,Lists!$AP$2:$AQ$3,2,FALSE),\"\")","v":""},{"$f":"IF('Procedure details'!N41<>\"\",VLOOKUP('Procedure details'!N41,Lists!$B$2:$D$71,3,FALSE),\"\")","v":""},{"$f":"IF('Procedure details'!P41<>\"\",VLOOKUP('Procedure details'!P41,Lists!$AD$2:$AE$11,2,FALSE),\"\")","v":""},{"$f":"IF(AND(AB41=1,'Procedure details'!G41>99,'Procedure details'!V41=\"\"),1,0)","v":0},{"$f":"IF(AND(AB41=0,'Procedure details'!G41>999,'Procedure details'!V41=\"\"),1,0)","v":0}]
[null,null,null,null,null,null,null,null,null,null,null,null,null,null,null,null,null,null,null,null,null,null,null,42,{"$f":"COUNTA('Procedure details'!E42:'Procedure details'!V42)","v":0},null,{"$f":"IF('Procedure details'!E42<>\"\",VLOOKUP('Procedure details'!E42,Lists!$M$2:$N$38,2,FALSE),\"\")","v":""},{"$f":"IF('Procedure details'!E42<>\"\",VLOOKUP('Procedure details'!E42,Lists!$M$2:$O$38,3,FALSE),\"\")","v":""},{"$f":"IF('Procedure details'!N42<>\"\",VLOOKUP('Procedure details'!N42,Lists!$B$2:$C$71,2,FALSE),\"\")","v":""},{"$f":"IF('Procedure details'!H42<>\"\",VLOOKUP('Procedure details'!H42,Lists!$AP$2:$AQ$3,2,FALSE),\"\")","v":""},{"$f":"IF('Procedure details'!N42<>\"\",VLOOKUP('Procedure details'!N42,Lists!$B$2:$D$71,3,FALSE),\"\")","v":""},{"$f":"IF('Procedure details'!P42<>\"\",VLOOKUP('Procedure details'!P42,Lists!$AD$2:$AE$11,2,FALSE),\"\")","v":""},{"$f":"IF(AND(AB42=1,'Procedure details'!G42>99,'Procedure details'!V42=\"\"),1,0)","v":0},{"$f":"IF(AND(AB42=0,'Procedure details'!G42>999,'Procedure details'!V42=\"\"),1,0)","v":0}]
[null,null,null,null,null,null,null,null,null,null,null,null,null,null,null,null,null,null,null,null,null,null,null,43,{"$f":"COUNTA('Procedure details'!E43:'Procedure details'!V43)","v":0},null,{"$f":"IF('Procedure details'!E43<>\"\",VLOOKUP('Procedure details'!E43,Lists!$M$2:$N$38,2,FALSE),\"\")","v":""},{"$f":"IF('Procedure details'!E43<>\"\",VLOOKUP('Procedure details'!E43,Lists!$M$2:$O$38,3,FALSE),\"\")","v":""},{"$f":"IF('Procedure details'!N43<>\"\",VLOOKUP('Procedure details'!N43,Lists!$B$2:$C$71,2,FALSE),\"\")","v":""},{"$f":"IF('Procedure details'!H43<>\"\",VLOOKUP('Procedure details'!H43,Lists!$AP$2:$AQ$3,2,FALSE),\"\")","v":""},{"$f":"IF('Procedure details'!N43<>\"\",VLOOKUP('Procedure details'!N43,Lists!$B$2:$D$71,3,FALSE),\"\")","v":""},{"$f":"IF('Procedure details'!P43<>\"\",VLOOKUP('Procedure details'!P43,Lists!$AD$2:$AE$11,2,FALSE),\"\")","v":""},{"$f":"IF(AND(AB43=1,'Procedure details'!G43>99,'Procedure details'!V43=\"\"),1,0)","v":0},{"$f":"IF(AND(AB43=0,'Procedure details'!G43>999,'Procedure details'!V43=\"\"),1,0)","v":0}]
[null,null,null,null,null,null,null,null,null,null,null,null,null,null,null,null,null,null,null,null,null,null,null,44,{"$f":"COUNTA('Procedure details'!E44:'Procedure details'!V44)","v":0},null,{"$f":"IF('Procedure details'!E44<>\"\",VLOOKUP('Procedure details'!E44,Lists!$M$2:$N$38,2,FALSE),\"\")","v":""},{"$f":"IF('Procedure details'!E44<>\"\",VLOOKUP('Procedure details'!E44,Lists!$M$2:$O$38,3,FALSE),\"\")","v":""},{"$f":"IF('Procedure details'!N44<>\"\",VLOOKUP('Procedure details'!N44,Lists!$B$2:$C$71,2,FALSE),\"\")","v":""},{"$f":"IF('Procedure details'!H44<>\"\",VLOOKUP('Procedure details'!H44,Lists!$AP$2:$AQ$3,2,FALSE),\"\")","v":""},{"$f":"IF('Procedure details'!N44<>\"\",VLOOKUP('Procedure details'!N44,Lists!$B$2:$D$71,3,FALSE),\"\")","v":""},{"$f":"IF('Procedure details'!P44<>\"\",VLOOKUP('Procedure details'!P44,Lists!$AD$2:$AE$11,2,FALSE),\"\")","v":""},{"$f":"IF(AND(AB44=1,'Procedure details'!G44>99,'Procedure details'!V44=\"\"),1,0)","v":0},{"$f":"IF(AND(AB44=0,'Procedure details'!G44>999,'Procedure details'!V44=\"\"),1,0)","v":0}]
[null,null,null,null,null,null,null,null,null,null,null,null,null,null,null,null,null,null,null,null,null,null,null,45,{"$f":"COUNTA('Procedure details'!E45:'Procedure details'!V45)","v":0},null,{"$f":"IF('Procedure details'!E45<>\"\",VLOOKUP('Procedure details'!E45,Lists!$M$2:$N$38,2,FALSE),\"\")","v":""},{"$f":"IF('Procedure details'!E45<>\"\",VLOOKUP('Procedure details'!E45,Lists!$M$2:$O$38,3,FALSE),\"\")","v":""},{"$f":"IF('Procedure details'!N45<>\"\",VLOOKUP('Procedure details'!N45,Lists!$B$2:$C$71,2,FALSE),\"\")","v":""},{"$f":"IF('Procedure details'!H45<>\"\",VLOOKUP('Procedure details'!H45,Lists!$AP$2:$AQ$3,2,FALSE),\"\")","v":""},{"$f":"IF('Procedure details'!N45<>\"\",VLOOKUP('Procedure details'!N45,Lists!$B$2:$D$71,3,FALSE),\"\")","v":""},{"$f":"IF('Procedure details'!P45<>\"\",VLOOKUP('Procedure details'!P45,Lists!$AD$2:$AE$11,2,FALSE),\"\")","v":""},{"$f":"IF(AND(AB45=1,'Procedure details'!G45>99,'Procedure details'!V45=\"\"),1,0)","v":0},{"$f":"IF(AND(AB45=0,'Procedure details'!G45>999,'Procedure details'!V45=\"\"),1,0)","v":0}]
[null,null,null,null,null,null,null,null,null,null,null,null,null,null,null,null,null,null,null,null,null,null,null,46,{"$f":"COUNTA('Procedure details'!E46:'Procedure details'!V46)","v":0},null,{"$f":"IF('Procedure details'!E46<>\"\",VLOOKUP('Procedure details'!E46,Lists!$M$2:$N$38,2,FALSE),\"\")","v":""},{"$f":"IF('Procedure details'!E46<>\"\",VLOOKUP('Procedure details'!E46,Lists!$M$2:$O$38,3,FALSE),\"\")","v":""},{"$f":"IF('Procedure details'!N46<>\"\",VLOOKUP('Procedure details'!N46,Lists!$B$2:$C$71,2,FALSE),\"\")","v":""},{"$f":"IF('Procedure details'!H46<>\"\",VLOOKUP('Procedure details'!H46,Lists!$AP$2:$AQ$3,2,FALSE),\"\")","v":""},{"$f":"IF('Procedure details'!N46<>\"\",VLOOKUP('Procedure details'!N46,Lists!$B$2:$D$71,3,FALSE),\"\")","v":""},{"$f":"IF('Procedure details'!P46<>\"\",VLOOKUP('Procedure details'!P46,Lists!$AD$2:$AE$11,2,FALSE),\"\")","v":""},{"$f":"IF(AND(AB46=1,'Procedure details'!G46>99,'Procedure details'!V46=\"\"),1,0)","v":0},{"$f":"IF(AND(AB46=0,'Procedure details'!G46>999,'Procedure details'!V46=\"\"),1,0)","v":0}]
[null,null,null,null,null,null,null,null,null,null,null,null,null,null,null,null,null,null,null,null,null,null,null,47,{"$f":"COUNTA('Procedure details'!E47:'Procedure details'!V47)","v":0},null,{"$f":"IF('Procedure details'!E47<>\"\",VLOOKUP('Procedure details'!E47,Lists!$M$2:$N$38,2,FALSE),\"\")","v":""},{"$f":"IF('Procedure details'!E47<>\"\",VLOOKUP('Procedure details'!E47,Lists!$M$2:$O$38,3,FALSE),\"\")","v":""},{"$f":"IF('Procedure details'!N47<>\"\",VLOOKUP('Procedure details'!N47,Lists!$B$2:$C$71,2,FALSE),\"\")","v":""},{"$f":"IF('Procedure details'!H47<>\"\",VLOOKUP('Procedure details'!H47,Lists!$AP$2:$AQ$3,2,FALSE),\"\")","v":""},{"$f":"IF('Procedure details'!N47<>\"\",VLOOKUP('Procedure details'!N47,Lists!$B$2:$D$71,3,FALSE),\"\")","v":""},{"$f":"IF('Procedure details'!P47<>\"\",VLOOKUP('Procedure details'!P47,Lists!$AD$2:$AE$11,2,FALSE),\"\")","v":""},{"$f":"IF(AND(AB47=1,'Procedure details'!G47>99,'Procedure details'!V47=\"\"),1,0)","v":0},{"$f":"IF(AND(AB47=0,'Procedure details'!G47>999,'Procedure details'!V47=\"\"),1,0)","v":0}]
[null,null,null,null,null,null,null,null,null,null,null,null,null,null,null,null,null,null,null,null,null,null,null,48,{"$f":"COUNTA('Procedure details'!E48:'Procedure details'!V48)","v":0},null,{"$f":"IF('Procedure details'!E48<>\"\",VLOOKUP('Procedure details'!E48,Lists!$M$2:$N$38,2,FALSE),\"\")","v":""},{"$f":"IF('Procedure details'!E48<>\"\",VLOOKUP('Procedure details'!E48,Lists!$M$2:$O$38,3,FALSE),\"\")","v":""},{"$f":"IF('Procedure details'!N48<>\"\",VLOOKUP('Procedure details'!N48,Lists!$B$2:$C$71,2,FALSE),\"\")","v":""},{"$f":"IF('Procedure details'!H48<>\"\",VLOOKUP('Procedure details'!H48,Lists!$AP$2:$AQ$3,2,FALSE),\"\")","v":""},{"$f":"IF('Procedure details'!N48<>\"\",VLOOKUP('Procedure details'!N48,Lists!$B$2:$D$71,3,FALSE),\"\")","v":""},{"$f":"IF('Procedure details'!P48<>\"\",VLOOKUP('Procedure details'!P48,Lists!$AD$2:$AE$11,2,FALSE),\"\")","v":""},{"$f":"IF(AND(AB48=1,'Procedure details'!G48>99,'Procedure details'!V48=\"\"),1,0)","v":0},{"$f":"IF(AND(AB48=0,'Procedure details'!G48>999,'Procedure details'!V48=\"\"),1,0)","v":0}]
[null,null,null,null,null,null,null,null,null,null,null,null,null,null,null,null,null,null,null,null,null,null,null,49,{"$f":"COUNTA('Procedure details'!E49:'Procedure details'!V49)","v":0},null,{"$f":"IF('Procedure details'!E49<>\"\",VLOOKUP('Procedure details'!E49,Lists!$M$2:$N$38,2,FALSE),\"\")","v":""},{"$f":"IF('Procedure details'!E49<>\"\",VLOOKUP('Procedure details'!E49,Lists!$M$2:$O$38,3,FALSE),\"\")","v":""},{"$f":"IF('Procedure details'!N49<>\"\",VLOOKUP('Procedure details'!N49,Lists!$B$2:$C$71,2,FALSE),\"\")","v":""},{"$f":"IF('Procedure details'!H49<>\"\",VLOOKUP('Procedure details'!H49,Lists!$AP$2:$AQ$3,2,FALSE),\"\")","v":""},{"$f":"IF('Procedure details'!N49<>\"\",VLOOKUP('Procedure details'!N49,Lists!$B$2:$D$71,3,FALSE),\"\")","v":""},{"$f":"IF('Procedure details'!P49<>\"\",VLOOKUP('Procedure details'!P49,Lists!$AD$2:$AE$11,2,FALSE),\"\")","v":""},{"$f":"IF(AND(AB49=1,'Procedure details'!G49>99,'Procedure details'!V49=\"\"),1,0)","v":0},{"$f":"IF(AND(AB49=0,'Procedure details'!G49>999,'Procedure details'!V49=\"\"),1,0)","v":0}]
[null,null,null,null,null,null,null,null,null,null,null,null,null,null,null,null,null,null,null,null,null,null,null,50,{"$f":"COUNTA('Procedure details'!E50:'Procedure details'!V50)","v":0},null,{"$f":"IF('Procedure details'!E50<>\"\",VLOOKUP('Procedure details'!E50,Lists!$M$2:$N$38,2,FALSE),\"\")","v":""},{"$f":"IF('Procedure details'!E50<>\"\",VLOOKUP('Procedure details'!E50,Lists!$M$2:$O$38,3,FALSE),\"\")","v":""},{"$f":"IF('Procedure details'!N50<>\"\",VLOOKUP('Procedure details'!N50,Lists!$B$2:$C$71,2,FALSE),\"\")","v":""},{"$f":"IF('Procedure details'!H50<>\"\",VLOOKUP('Procedure details'!H50,Lists!$AP$2:$AQ$3,2,FALSE),\"\")","v":""},{"$f":"IF('Procedure details'!N50<>\"\",VLOOKUP('Procedure details'!N50,Lists!$B$2:$D$71,3,FALSE),\"\")","v":""},{"$f":"IF('Procedure details'!P50<>\"\",VLOOKUP('Procedure details'!P50,Lists!$AD$2:$AE$11,2,FALSE),\"\")","v":""},{"$f":"IF(AND(AB50=1,'Procedure details'!G50>99,'Procedure details'!V50=\"\"),1,0)","v":0},{"$f":"IF(AND(AB50=0,'Procedure details'!G50>999,'Procedure details'!V50=\"\"),1,0)","v":0}]
[null,null,null,null,null,null,null,null,null,null,null,null,null,null,null,null,null,null,null,null,null,null,null,51,{"$f":"COUNTA('Procedure details'!E51:'Procedure details'!V51)","v":0},null,{"$f":"IF('Procedure details'!E51<>\"\",VLOOKUP('Procedure details'!E51,Lists!$M$2:$N$38,2,FALSE),\"\")","v":""},{"$f":"IF('Procedure details'!E51<>\"\",VLOOKUP('Procedure details'!E51,Lists!$M$2:$O$38,3,FALSE),\"\")","v":""},{"$f":"IF('Procedure details'!N51<>\"\",VLOOKUP('Procedure details'!N51,Lists!$B$2:$C$71,2,FALSE),\"\")","v":""},{"$f":"IF('Procedure details'!H51<>\"\",VLOOKUP('Procedure details'!H51,Lists!$AP$2:$AQ$3,2,FALSE),\"\")","v":""},{"$f":"IF('Procedure details'!N51<>\"\",VLOOKUP('Procedure details'!N51,Lists!$B$2:$D$71,3,FALSE),\"\")","v":""},{"$f":"IF('Procedure details'!P51<>\"\",VLOOKUP('Procedure details'!P51,Lists!$AD$2:$AE$11,2,FALSE),\"\")","v":""},{"$f":"IF(AND(AB51=1,'Procedure details'!G51>99,'Procedure details'!V51=\"\"),1,0)","v":0},{"$f":"IF(AND(AB51=0,'Procedure details'!G51>999,'Procedure details'!V51=\"\"),1,0)","v":0}]
[null,null,null,null,null,null,null,null,null,null,null,null,null,null,null,null,null,null,null,null,null,null,null,52,{"$f":"COUNTA('Procedure details'!E52:'Procedure details'!V52)","v":0},null,{"$f":"IF('Procedure details'!E52<>\"\",VLOOKUP('Procedure details'!E52,Lists!$M$2:$N$38,2,FALSE),\"\")","v":""},{"$f":"IF('Procedure details'!E52<>\"\",VLOOKUP('Procedure details'!E52,Lists!$M$2:$O$38,3,FALSE),\"\")","v":""},{"$f":"IF('Procedure details'!N52<>\"\",VLOOKUP('Procedure details'!N52,Lists!$B$2:$C$71,2,FALSE),\"\")","v":""},{"$f":"IF('Procedure details'!H52<>\"\",VLOOKUP('Procedure details'!H52,Lists!$AP$2:$AQ$3,2,FALSE),\"\")","v":""},{"$f":"IF('Procedure details'!N52<>\"\",VLOOKUP('Procedure details'!N52,Lists!$B$2:$D$71,3,FALSE),\"\")","v":""},{"$f":"IF('Procedure details'!P52<>\"\",VLOOKUP('Procedure details'!P52,Lists!$AD$2:$AE$11,2,FALSE),\"\")","v":""},{"$f":"IF(AND(AB52=1,'Procedure details'!G52>99,'Procedure details'!V52=\"\"),1,0)","v":0},{"$f":"IF(AND(AB52=0,'Procedure details'!G52>999,'Procedure details'!V52=\"\"),1,0)","v":0}]
[null,null,null,null,null,null,null,null,null,null,null,null,null,null,null,null,null,null,null,null,null,null,null,53,{"$f":"COUNTA('Procedure details'!E53:'Procedure details'!V53)","v":0},null,{"$f":"IF('Procedure details'!E53<>\"\",VLOOKUP('Procedure details'!E53,Lists!$M$2:$N$38,2,FALSE),\"\")","v":""},{"$f":"IF('Procedure details'!E53<>\"\",VLOOKUP('Procedure details'!E53,Lists!$M$2:$O$38,3,FALSE),\"\")","v":""},{"$f":"IF('Procedure details'!N53<>\"\",VLOOKUP('Procedure details'!N53,Lists!$B$2:$C$71,2,FALSE),\"\")","v":""},{"$f":"IF('Procedure details'!H53<>\"\",VLOOKUP('Procedure details'!H53,Lists!$AP$2:$AQ$3,2,FALSE),\"\")","v":""},{"$f":"IF('Procedure details'!N53<>\"\",VLOOKUP('Procedure details'!N53,Lists!$B$2:$D$71,3,FALSE),\"\")","v":""},{"$f":"IF('Procedure details'!P53<>\"\",VLOOKUP('Procedure details'!P53,Lists!$AD$2:$AE$11,2,FALSE),\"\")","v":""},{"$f":"IF(AND(AB53=1,'Procedure details'!G53>99,'Procedure details'!V53=\"\"),1,0)","v":0},{"$f":"IF(AND(AB53=0,'Procedure details'!G53>999,'Procedure details'!V53=\"\"),1,0)","v":0}]
[null,null,null,null,null,null,null,null,null,null,null,null,null,null,null,null,null,null,null,null,null,null,null,54,{"$f":"COUNTA('Procedure details'!E54:'Procedure details'!V54)","v":0},null,{"$f":"IF('Procedure details'!E54<>\"\",VLOOKUP('Procedure details'!E54,Lists!$M$2:$N$38,2,FALSE),\"\")","v":""},{"$f":"IF('Procedure details'!E54<>\"\",VLOOKUP('Procedure details'!E54,Lists!$M$2:$O$38,3,FALSE),\"\")","v":""},{"$f":"IF('Procedure details'!N54<>\"\",VLOOKUP('Procedure details'!N54,Lists!$B$2:$C$71,2,FALSE),\"\")","v":""},{"$f":"IF('Procedure details'!H54<>\"\",VLOOKUP('Procedure details'!H54,Lists!$AP$2:$AQ$3,2,FALSE),\"\")","v":""},{"$f":"IF('Procedure details'!N54<>\"\",VLOOKUP('Procedure details'!N54,Lists!$B$2:$D$71,3,FALSE),\"\")","v":""},{"$f":"IF('Procedure details'!P54<>\"\",VLOOKUP('Procedure details'!P54,Lists!$AD$2:$AE$11,2,FALSE),\"\")","v":""},{"$f":"IF(AND(AB54=1,'Procedure details'!G54>99,'Procedure details'!V54=\"\"),1,0)","v":0},{"$f":"IF(AND(AB54=0,'Procedure details'!G54>999,'Procedure details'!V54=\"\"),1,0)","v":0}]
[null,null,null,null,null,null,null,null,null,null,null,null,null,null,null,null,null,null,null,null,null,null,null,55,{"$f":"COUNTA('Procedure details'!E55:'Procedure details'!V55)","v":0},null,{"$f":"IF('Procedure details'!E55<>\"\",VLOOKUP('Procedure details'!E55,Lists!$M$2:$N$38,2,FALSE),\"\")","v":""},{"$f":"IF('Procedure details'!E55<>\"\",VLOOKUP('Procedure details'!E55,Lists!$M$2:$O$38,3,FALSE),\"\")","v":""},{"$f":"IF('Procedure details'!N55<>\"\",VLOOKUP('Procedure details'!N55,Lists!$B$2:$C$71,2,FALSE),\"\")","v":""},{"$f":"IF('Procedure details'!H55<>\"\",VLOOKUP('Procedure details'!H55,Lists!$AP$2:$AQ$3,2,FALSE),\"\")","v":""},{"$f":"IF('Procedure details'!N55<>\"\",VLOOKUP('Procedure details'!N55,Lists!$B$2:$D$71,3,FALSE),\"\")","v":""},{"$f":"IF('Procedure details'!P55<>\"\",VLOOKUP('Procedure details'!P55,Lists!$AD$2:$AE$11,2,FALSE),\"\")","v":""},{"$f":"IF(AND(AB55=1,'Procedure details'!G55>99,'Procedure details'!V55=\"\"),1,0)","v":0},{"$f":"IF(AND(AB55=0,'Procedure details'!G55>999,'Procedure details'!V55=\"\"),1,0)","v":0}]
[null,null,null,null,null,null,null,null,null,null,null,null,null,null,null,null,null,null,null,null,null,null,null,56,{"$f":"COUNTA('Procedure details'!E56:'Procedure details'!V56)","v":0},null,{"$f":"IF('Procedure details'!E56<>\"\",VLOOKUP('Procedure details'!E56,Lists!$M$2:$N$38,2,FALSE),\"\")","v":""},{"$f":"IF('Procedure details'!E56<>\"\",VLOOKUP('Procedure details'!E56,Lists!$M$2:$O$38,3,FALSE),\"\")","v":""},{"$f":"IF('Procedure details'!N56<>\"\",VLOOKUP('Procedure details'!N56,Lists!$B$2:$C$71,2,FALSE),\"\")","v":""},{"$f":"IF('Procedure details'!H56<>\"\",VLOOKUP('Procedure details'!H56,Lists!$AP$2:$AQ$3,2,FALSE),\"\")","v":""},{"$f":"IF('Procedure details'!N56<>\"\",VLOOKUP('Procedure details'!N56,Lists!$B$2:$D$71,3,FALSE),\"\")","v":""},{"$f":"IF('Procedure details'!P56<>\"\",VLOOKUP('Procedure details'!P56,Lists!$AD$2:$AE$11,2,FALSE),\"\")","v":""},{"$f":"IF(AND(AB56=1,'Procedure details'!G56>99,'Procedure details'!V56=\"\"),1,0)","v":0},{"$f":"IF(AND(AB56=0,'Procedure details'!G56>999,'Procedure details'!V56=\"\"),1,0)","v":0}]
[null,null,null,null,null,null,null,null,null,null,null,null,null,null,null,null,null,null,null,null,null,null,null,57,{"$f":"COUNTA('Procedure details'!E57:'Procedure details'!V57)","v":0},null,{"$f":"IF('Procedure details'!E57<>\"\",VLOOKUP('Procedure details'!E57,Lists!$M$2:$N$38,2,FALSE),\"\")","v":""},{"$f":"IF('Procedure details'!E57<>\"\",VLOOKUP('Procedure details'!E57,Lists!$M$2:$O$38,3,FALSE),\"\")","v":""},{"$f":"IF('Procedure details'!N57<>\"\",VLOOKUP('Procedure details'!N57,Lists!$B$2:$C$71,2,FALSE),\"\")","v":""},{"$f":"IF('Procedure details'!H57<>\"\",VLOOKUP('Procedure details'!H57,Lists!$AP$2:$AQ$3,2,FALSE),\"\")","v":""},{"$f":"IF('Procedure details'!N57<>\"\",VLOOKUP('Procedure details'!N57,Lists!$B$2:$D$71,3,FALSE),\"\")","v":""},{"$f":"IF('Procedure details'!P57<>\"\",VLOOKUP('Procedure details'!P57,Lists!$AD$2:$AE$11,2,FALSE),\"\")","v":""},{"$f":"IF(AND(AB57=1,'Procedure details'!G57>99,'Procedure details'!V57=\"\"),1,0)","v":0},{"$f":"IF(AND(AB57=0,'Procedure details'!G57>999,'Procedure details'!V57=\"\"),1,0)","v":0}]
[null,null,null,null,null,null,null,null,null,null,null,null,null,null,null,null,null,null,null,null,null,null,null,58,{"$f":"COUNTA('Procedure details'!E58:'Procedure details'!V58)","v":0},null,{"$f":"IF('Procedure details'!E58<>\"\",VLOOKUP('Procedure details'!E58,Lists!$M$2:$N$38,2,FALSE),\"\")","v":""},{"$f":"IF('Procedure details'!E58<>\"\",VLOOKUP('Procedure details'!E58,Lists!$M$2:$O$38,3,FALSE),\"\")","v":""},{"$f":"IF('Procedure details'!N58<>\"\",VLOOKUP('Procedure details'!N58,Lists!$B$2:$C$71,2,FALSE),\"\")","v":""},{"$f":"IF('Procedure details'!H58<>\"\",VLOOKUP('Procedure details'!H58,Lists!$AP$2:$AQ$3,2,FALSE),\"\")","v":""},{"$f":"IF('Procedure details'!N58<>\"\",VLOOKUP('Procedure details'!N58,Lists!$B$2:$D$71,3,FALSE),\"\")","v":""},{"$f":"IF('Procedure details'!P58<>\"\",VLOOKUP('Procedure details'!P58,Lists!$AD$2:$AE$11,2,FALSE),\"\")","v":""},{"$f":"IF(AND(AB58=1,'Procedure details'!G58>99,'Procedure details'!V58=\"\"),1,0)","v":0},{"$f":"IF(AND(AB58=0,'Procedure details'!G58>999,'Procedure details'!V58=\"\"),1,0)","v":0}]
[null,null,null,null,null,null,null,null,null,null,null,null,null,null,null,null,null,null,null,null,null,null,null,59,{"$f":"COUNTA('Procedure details'!E59:'Procedure details'!V59)","v":0},null,{"$f":"IF('Procedure details'!E59<>\"\",VLOOKUP('Procedure details'!E59,Lists!$M$2:$N$38,2,FALSE),\"\")","v":""},{"$f":"IF('Procedure details'!E59<>\"\",VLOOKUP('Procedure details'!E59,Lists!$M$2:$O$38,3,FALSE),\"\")","v":""},{"$f":"IF('Procedure details'!N59<>\"\",VLOOKUP('Procedure details'!N59,Lists!$B$2:$C$71,2,FALSE),\"\")","v":""},{"$f":"IF('Procedure details'!H59<>\"\",VLOOKUP('Procedure details'!H59,Lists!$AP$2:$AQ$3,2,FALSE),\"\")","v":""},{"$f":"IF('Procedure details'!N59<>\"\",VLOOKUP('Procedure details'!N59,Lists!$B$2:$D$71,3,FALSE),\"\")","v":""},{"$f":"IF('Procedure details'!P59<>\"\",VLOOKUP('Procedure details'!P59,Lists!$AD$2:$AE$11,2,FALSE),\"\")","v":""},{"$f":"IF(AND(AB59=1,'Procedure details'!G59>99,'Procedure details'!V59=\"\"),1,0)","v":0},{"$f":"IF(AND(AB59=0,'Procedure details'!G59>999,'Procedure details'!V59=\"\"),1,0)","v":0}]
[null,null,null,null,null,null,null,null,null,null,null,null,null,null,null,null,null,null,null,null,null,null,null,60,{"$f":"COUNTA('Procedure details'!E60:'Procedure details'!V60)","v":0},null,{"$f":"IF('Procedure details'!E60<>\"\",VLOOKUP('Procedure details'!E60,Lists!$M$2:$N$38,2,FALSE),\"\")","v":""},{"$f":"IF('Procedure details'!E60<>\"\",VLOOKUP('Procedure details'!E60,Lists!$M$2:$O$38,3,FALSE),\"\")","v":""},{"$f":"IF('Procedure details'!N60<>\"\",VLOOKUP('Procedure details'!N60,Lists!$B$2:$C$71,2,FALSE),\"\")","v":""},{"$f":"IF('Procedure details'!H60<>\"\",VLOOKUP('Procedure details'!H60,Lists!$AP$2:$AQ$3,2,FALSE),\"\")","v":""},{"$f":"IF('Procedure details'!N60<>\"\",VLOOKUP('Procedure details'!N60,Lists!$B$2:$D$71,3,FALSE),\"\")","v":""},{"$f":"IF('Procedure details'!P60<>\"\",VLOOKUP('Procedure details'!P60,Lists!$AD$2:$AE$11,2,FALSE),\"\")","v":""},{"$f":"IF(AND(AB60=1,'Procedure details'!G60>99,'Procedure details'!V60=\"\"),1,0)","v":0},{"$f":"IF(AND(AB60=0,'Procedure details'!G60>999,'Procedure details'!V60=\"\"),1,0)","v":0}]
[null,null,null,null,null,null,null,null,null,null,null,null,null,null,null,null,null,null,null,null,null,null,null,61,{"$f":"COUNTA('Procedure details'!E61:'Procedure details'!V61)","v":0},null,{"$f":"IF('Procedure details'!E61<>\"\",VLOOKUP('Procedure details'!E61,Lists!$M$2:$N$38,2,FALSE),\"\")","v":""},{"$f":"IF('Procedure details'!E61<>\"\",VLOOKUP('Procedure details'!E61,Lists!$M$2:$O$38,3,FALSE),\"\")","v":""},{"$f":"IF('Procedure details'!N61<>\"\",VLOOKUP('Procedure details'!N61,Lists!$B$2:$C$71,2,FALSE),\"\")","v":""},{"$f":"IF('Procedure details'!H61<>\"\",VLOOKUP('Procedure details'!H61,Lists!$AP$2:$AQ$3,2,FALSE),\"\")","v":""},{"$f":"IF('Procedure details'!N61<>\"\",VLOOKUP('Procedure details'!N61,Lists!$B$2:$D$71,3,FALSE),\"\")","v":""},{"$f":"IF('Procedure details'!P61<>\"\",VLOOKUP('Procedure details'!P61,Lists!$AD$2:$AE$11,2,FALSE),\"\")","v":""},{"$f":"IF(AND(AB61=1,'Procedure details'!G61>99,'Procedure details'!V61=\"\"),1,0)","v":0},{"$f":"IF(AND(AB61=0,'Procedure details'!G61>999,'Procedure details'!V61=\"\"),1,0)","v":0}]
[null,null,null,null,null,null,null,null,null,null,null,null,null,null,null,null,null,null,null,null,null,null,null,62,{"$f":"COUNTA('Procedure details'!E62:'Procedure details'!V62)","v":0},null,{"$f":"IF('Procedure details'!E62<>\"\",VLOOKUP('Procedure details'!E62,Lists!$M$2:$N$38,2,FALSE),\"\")","v":""},{"$f":"IF('Procedure details'!E62<>\"\",VLOOKUP('Procedure details'!E62,Lists!$M$2:$O$38,3,FALSE),\"\")","v":""},{"$f":"IF('Procedure details'!N62<>\"\",VLOOKUP('Procedure details'!N62,Lists!$B$2:$C$71,2,FALSE),\"\")","v":""},{"$f":"IF('Procedure details'!H62<>\"\",VLOOKUP('Procedure details'!H62,Lists!$AP$2:$AQ$3,2,FALSE),\"\")","v":""},{"$f":"IF('Procedure details'!N62<>\"\",VLOOKUP('Procedure details'!N62,Lists!$B$2:$D$71,3,FALSE),\"\")","v":""},{"$f":"IF('Procedure details'!P62<>\"\",VLOOKUP('Procedure details'!P62,Lists!$AD$2:$AE$11,2,FALSE),\"\")","v":""},{"$f":"IF(AND(AB62=1,'Procedure details'!G62>99,'Procedure details'!V62=\"\"),1,0)","v":0},{"$f":"IF(AND(AB62=0,'Procedure details'!G62>999,'Procedure details'!V62=\"\"),1,0)","v":0}]
[null,null,null,null,null,null,null,null,null,null,null,null,null,null,null,null,null,null,null,null,null,null,null,63,{"$f":"COUNTA('Procedure details'!E63:'Procedure details'!V63)","v":0},null,{"$f":"IF('Procedure details'!E63<>\"\",VLOOKUP('Procedure details'!E63,Lists!$M$2:$N$38,2,FALSE),\"\")","v":""},{"$f":"IF('Procedure details'!E63<>\"\",VLOOKUP('Procedure details'!E63,Lists!$M$2:$O$38,3,FALSE),\"\")","v":""},{"$f":"IF('Procedure details'!N63<>\"\",VLOOKUP('Procedure details'!N63,Lists!$B$2:$C$71,2,FALSE),\"\")","v":""},{"$f":"IF('Procedure details'!H63<>\"\",VLOOKUP('Procedure details'!H63,Lists!$AP$2:$AQ$3,2,FALSE),\"\")","v":""},{"$f":"IF('Procedure details'!N63<>\"\",VLOOKUP('Procedure details'!N63,Lists!$B$2:$D$71,3,FALSE),\"\")","v":""},{"$f":"IF('Procedure details'!P63<>\"\",VLOOKUP('Procedure details'!P63,Lists!$AD$2:$AE$11,2,FALSE),\"\")","v":""},{"$f":"IF(AND(AB63=1,'Procedure details'!G63>99,'Procedure details'!V63=\"\"),1,0)","v":0},{"$f":"IF(AND(AB63=0,'Procedure details'!G63>999,'Procedure details'!V63=\"\"),1,0)","v":0}]
[null,null,null,null,null,null,null,null,null,null,null,null,null,null,null,null,null,null,null,null,null,null,null,64,{"$f":"COUNTA('Procedure details'!E64:'Procedure details'!V64)","v":0},null,{"$f":"IF('Procedure details'!E64<>\"\",VLOOKUP('Procedure details'!E64,Lists!$M$2:$N$38,2,FALSE),\"\")","v":""},{"$f":"IF('Procedure details'!E64<>\"\",VLOOKUP('Procedure details'!E64,Lists!$M$2:$O$38,3,FALSE),\"\")","v":""},{"$f":"IF('Procedure details'!N64<>\"\",VLOOKUP('Procedure details'!N64,Lists!$B$2:$C$71,2,FALSE),\"\")","v":""},{"$f":"IF('Procedure details'!H64<>\"\",VLOOKUP('Procedure details'!H64,Lists!$AP$2:$AQ$3,2,FALSE),\"\")","v":""},{"$f":"IF('Procedure details'!N64<>\"\",VLOOKUP('Procedure details'!N64,Lists!$B$2:$D$71,3,FALSE),\"\")","v":""},{"$f":"IF('Procedure details'!P64<>\"\",VLOOKUP('Procedure details'!P64,Lists!$AD$2:$AE$11,2,FALSE),\"\")","v":""},{"$f":"IF(AND(AB64=1,'Procedure details'!G64>99,'Procedure details'!V64=\"\"),1,0)","v":0},{"$f":"IF(AND(AB64=0,'Procedure details'!G64>999,'Procedure details'!V64=\"\"),1,0)","v":0}]
[null,null,null,null,null,null,null,null,null,null,null,null,null,null,null,null,null,null,null,null,null,null,null,65,{"$f":"COUNTA('Procedure details'!E65:'Procedure details'!V65)","v":0},null,{"$f":"IF('Procedure details'!E65<>\"\",VLOOKUP('Procedure details'!E65,Lists!$M$2:$N$38,2,FALSE),\"\")","v":""},{"$f":"IF('Procedure details'!E65<>\"\",VLOOKUP('Procedure details'!E65,Lists!$M$2:$O$38,3,FALSE),\"\")","v":""},{"$f":"IF('Procedure details'!N65<>\"\",VLOOKUP('Procedure details'!N65,Lists!$B$2:$C$71,2,FALSE),\"\")","v":""},{"$f":"IF('Procedure details'!H65<>\"\",VLOOKUP('Procedure details'!H65,Lists!$AP$2:$AQ$3,2,FALSE),\"\")","v":""},{"$f":"IF('Procedure details'!N65<>\"\",VLOOKUP('Procedure details'!N65,Lists!$B$2:$D$71,3,FALSE),\"\")","v":""},{"$f":"IF('Procedure details'!P65<>\"\",VLOOKUP('Procedure details'!P65,Lists!$AD$2:$AE$11,2,FALSE),\"\")","v":""},{"$f":"IF(AND(AB65=1,'Procedure details'!G65>99,'Procedure details'!V65=\"\"),1,0)","v":0},{"$f":"IF(AND(AB65=0,'Procedure details'!G65>999,'Procedure details'!V65=\"\"),1,0)","v":0}]
[null,null,null,null,null,null,null,null,null,null,null,null,null,null,null,null,null,null,null,null,null,null,null,66,{"$f":"COUNTA('Procedure details'!E66:'Procedure details'!V66)","v":0},null,{"$f":"IF('Procedure details'!E66<>\"\",VLOOKUP('Procedure details'!E66,Lists!$M$2:$N$38,2,FALSE),\"\")","v":""},{"$f":"IF('Procedure details'!E66<>\"\",VLOOKUP('Procedure details'!E66,Lists!$M$2:$O$38,3,FALSE),\"\")","v":""},{"$f":"IF('Procedure details'!N66<>\"\",VLOOKUP('Procedure details'!N66,Lists!$B$2:$C$71,2,FALSE),\"\")","v":""},{"$f":"IF('Procedure details'!H66<>\"\",VLOOKUP('Procedure details'!H66,Lists!$AP$2:$AQ$3,2,FALSE),\"\")","v":""},{"$f":"IF('Procedure details'!N66<>\"\",VLOOKUP('Procedure details'!N66,Lists!$B$2:$D$71,3,FALSE),\"\")","v":""},{"$f":"IF('Procedure details'!P66<>\"\",VLOOKUP('Procedure details'!P66,Lists!$AD$2:$AE$11,2,FALSE),\"\")","v":""},{"$f":"IF(AND(AB66=1,'Procedure details'!G66>99,'Procedure details'!V66=\"\"),1,0)","v":0},{"$f":"IF(AND(AB66=0,'Procedure details'!G66>999,'Procedure details'!V66=\"\"),1,0)","v":0}]
[null,null,null,null,null,null,null,null,null,null,null,null,null,null,null,null,null,null,null,null,null,null,null,67,{"$f":"COUNTA('Procedure details'!E67:'Procedure details'!V67)","v":0},null,{"$f":"IF('Procedure details'!E67<>\"\",VLOOKUP('Procedure details'!E67,Lists!$M$2:$N$38,2,FALSE),\"\")","v":""},{"$f":"IF('Procedure details'!E67<>\"\",VLOOKUP('Procedure details'!E67,Lists!$M$2:$O$38,3,FALSE),\"\")","v":""},{"$f":"IF('Procedure details'!N67<>\"\",VLOOKUP('Procedure details'!N67,Lists!$B$2:$C$71,2,FALSE),\"\")","v":""},{"$f":"IF('Procedure details'!H67<>\"\",VLOOKUP('Procedure details'!H67,Lists!$AP$2:$AQ$3,2,FALSE),\"\")","v":""},{"$f":"IF('Procedure details'!N67<>\"\",VLOOKUP('Procedure details'!N67,Lists!$B$2:$D$71,3,FALSE),\"\")","v":""},{"$f":"IF('Procedure details'!P67<>\"\",VLOOKUP('Procedure details'!P67,Lists!$AD$2:$AE$11,2,FALSE),\"\")","v":""},{"$f":"IF(AND(AB67=1,'Procedure details'!G67>99,'Procedure details'!V67=\"\"),1,0)","v":0},{"$f":"IF(AND(AB67=0,'Procedure details'!G67>999,'Procedure details'!V67=\"\"),1,0)","v":0}]
[null,null,null,null,null,null,null,null,null,null,null,null,null,null,null,null,null,null,null,null,null,null,null,68,{"$f":"COUNTA('Procedure details'!E68:'Procedure details'!V68)","v":0},null,{"$f":"IF('Procedure details'!E68<>\"\",VLOOKUP('Procedure details'!E68,Lists!$M$2:$N$38,2,FALSE),\"\")","v":""},{"$f":"IF('Procedure details'!E68<>\"\",VLOOKUP('Procedure details'!E68,Lists!$M$2:$O$38,3,FALSE),\"\")","v":""},{"$f":"IF('Procedure details'!N68<>\"\",VLOOKUP('Procedure details'!N68,Lists!$B$2:$C$71,2,FALSE),\"\")","v":""},{"$f":"IF('Procedure details'!H68<>\"\",VLOOKUP('Procedure details'!H68,Lists!$AP$2:$AQ$3,2,FALSE),\"\")","v":""},{"$f":"IF('Procedure details'!N68<>\"\",VLOOKUP('Procedure details'!N68,Lists!$B$2:$D$71,3,FALSE),\"\")","v":""},{"$f":"IF('Procedure details'!P68<>\"\",VLOOKUP('Procedure details'!P68,Lists!$AD$2:$AE$11,2,FALSE),\"\")","v":""},{"$f":"IF(AND(AB68=1,'Procedure details'!G68>99,'Procedure details'!V68=\"\"),1,0)","v":0},{"$f":"IF(AND(AB68=0,'Procedure details'!G68>999,'Procedure details'!V68=\"\"),1,0)","v":0}]
[null,null,null,null,null,null,null,null,null,null,null,null,null,null,null,null,null,null,null,null,null,null,null,69,{"$f":"COUNTA('Procedure details'!E69:'Procedure details'!V69)","v":0},null,{"$f":"IF('Procedure details'!E69<>\"\",VLOOKUP('Procedure details'!E69,Lists!$M$2:$N$38,2,FALSE),\"\")","v":""},{"$f":"IF('Procedure details'!E69<>\"\",VLOOKUP('Procedure details'!E69,Lists!$M$2:$O$38,3,FALSE),\"\")","v":""},{"$f":"IF('Procedure details'!N69<>\"\",VLOOKUP('Procedure details'!N69,Lists!$B$2:$C$71,2,FALSE),\"\")","v":""},{"$f":"IF('Procedure details'!H69<>\"\",VLOOKUP('Procedure details'!H69,Lists!$AP$2:$AQ$3,2,FALSE),\"\")","v":""},{"$f":"IF('Procedure details'!N69<>\"\",VLOOKUP('Procedure details'!N69,Lists!$B$2:$D$71,3,FALSE),\"\")","v":""},{"$f":"IF('Procedure details'!P69<>\"\",VLOOKUP('Procedure details'!P69,Lists!$AD$2:$AE$11,2,FALSE),\"\")","v":""},{"$f":"IF(AND(AB69=1,'Procedure details'!G69>99,'Procedure details'!V69=\"\"),1,0)","v":0},{"$f":"IF(AND(AB69=0,'Procedure details'!G69>999,'Procedure details'!V69=\"\"),1,0)","v":0}]
[null,null,null,null,null,null,null,null,null,null,null,null,null,null,null,null,null,null,null,null,null,null,null,70,{"$f":"COUNTA('Procedure details'!E70:'Procedure details'!V70)","v":0},null,{"$f":"IF('Procedure details'!E70<>\"\",VLOOKUP('Procedure details'!E70,Lists!$M$2:$N$38,2,FALSE),\"\")","v":""},{"$f":"IF('Procedure details'!E70<>\"\",VLOOKUP('Procedure details'!E70,Lists!$M$2:$O$38,3,FALSE),\"\")","v":""},{"$f":"IF('Procedure details'!N70<>\"\",VLOOKUP('Procedure details'!N70,Lists!$B$2:$C$71,2,FALSE),\"\")","v":""},{"$f":"IF('Procedure details'!H70<>\"\",VLOOKUP('Procedure details'!H70,Lists!$AP$2:$AQ$3,2,FALSE),\"\")","v":""},{"$f":"IF('Procedure details'!N70<>\"\",VLOOKUP('Procedure details'!N70,Lists!$B$2:$D$71,3,FALSE),\"\")","v":""},{"$f":"IF('Procedure details'!P70<>\"\",VLOOKUP('Procedure details'!P70,Lists!$AD$2:$AE$11,2,FALSE),\"\")","v":""},{"$f":"IF(AND(AB70=1,'Procedure details'!G70>99,'Procedure details'!V70=\"\"),1,0)","v":0},{"$f":"IF(AND(AB70=0,'Procedure details'!G70>999,'Procedure details'!V70=\"\"),1,0)","v":0}]
[null,null,null,null,null,null,null,null,null,null,null,null,null,null,null,null,null,null,null,null,null,null,null,71,{"$f":"COUNTA('Procedure details'!E71:'Procedure details'!V71)","v":0},null,{"$f":"IF('Procedure details'!E71<>\"\",VLOOKUP('Procedure details'!E71,Lists!$M$2:$N$38,2,FALSE),\"\")","v":""},{"$f":"IF('Procedure details'!E71<>\"\",VLOOKUP('Procedure details'!E71,Lists!$M$2:$O$38,3,FALSE),\"\")","v":""},{"$f":"IF('Procedure details'!N71<>\"\",VLOOKUP('Procedure details'!N71,Lists!$B$2:$C$71,2,FALSE),\"\")","v":""},{"$f":"IF('Procedure details'!H71<>\"\",VLOOKUP('Procedure details'!H71,Lists!$AP$2:$AQ$3,2,FALSE),\"\")","v":""},{"$f":"IF('Procedure details'!N71<>\"\",VLOOKUP('Procedure details'!N71,Lists!$B$2:$D$71,3,FALSE),\"\")","v":""},{"$f":"IF('Procedure details'!P71<>\"\",VLOOKUP('Procedure details'!P71,Lists!$AD$2:$AE$11,2,FALSE),\"\")","v":""},{"$f":"IF(AND(AB71=1,'Procedure details'!G71>99,'Procedure details'!V71=\"\"),1,0)","v":0},{"$f":"IF(AND(AB71=0,'Procedure details'!G71>999,'Procedure details'!V71=\"\"),1,0)","v":0}]
[null,null,null,null,null,null,null,null,null,null,null,null,null,null,null,null,null,null,null,null,null,null,null,72,{"$f":"COUNTA('Procedure details'!E72:'Procedure details'!V72)","v":0},null,{"$f":"IF('Procedure details'!E72<>\"\",VLOOKUP('Procedure details'!E72,Lists!$M$2:$N$38,2,FALSE),\"\")","v":""},{"$f":"IF('Procedure details'!E72<>\"\",VLOOKUP('Procedure details'!E72,Lists!$M$2:$O$38,3,FALSE),\"\")","v":""},{"$f":"IF('Procedure details'!N72<>\"\",VLOOKUP('Procedure details'!N72,Lists!$B$2:$C$71,2,FALSE),\"\")","v":""},{"$f":"IF('Procedure details'!H72<>\"\",VLOOKUP('Procedure details'!H72,Lists!$AP$2:$AQ$3,2,FALSE),\"\")","v":""},{"$f":"IF('Procedure details'!N72<>\"\",VLOOKUP('Procedure details'!N72,Lists!$B$2:$D$71,3,FALSE),\"\")","v":""},{"$f":"IF('Procedure details'!P72<>\"\",VLOOKUP('Procedure details'!P72,Lists!$AD$2:$AE$11,2,FALSE),\"\")","v":""},{"$f":"IF(AND(AB72=1,'Procedure details'!G72>99,'Procedure details'!V72=\"\"),1,0)","v":0},{"$f":"IF(AND(AB72=0,'Procedure details'!G72>999,'Procedure details'!V72=\"\"),1,0)","v":0}]
[null,null,null,null,null,null,null,null,null,null,null,null,null,null,null,null,null,null,null,null,null,null,null,73,{"$f":"COUNTA('Procedure details'!E73:'Procedure details'!V73)","v":0},null,{"$f":"IF('Procedure details'!E73<>\"\",VLOOKUP('Procedure details'!E73,Lists!$M$2:$N$38,2,FALSE),\"\")","v":""},{"$f":"IF('Procedure details'!E73<>\"\",VLOOKUP('Procedure details'!E73,Lists!$M$2:$O$38,3,FALSE),\"\")","v":""},{"$f":"IF('Procedure details'!N73<>\"\",VLOOKUP('Procedure details'!N73,Lists!$B$2:$C$71,2,FALSE),\"\")","v":""},{"$f":"IF('Procedure details'!H73<>\"\",VLOOKUP('Procedure details'!H73,Lists!$AP$2:$AQ$3,2,FALSE),\"\")","v":""},{"$f":"IF('Procedure details'!N73<>\"\",VLOOKUP('Procedure details'!N73,Lists!$B$2:$D$71,3,FALSE),\"\")","v":""},{"$f":"IF('Procedure details'!P73<>\"\",VLOOKUP('Procedure details'!P73,Lists!$AD$2:$AE$11,2,FALSE),\"\")","v":""},{"$f":"IF(AND(AB73=1,'Procedure details'!G73>99,'Procedure details'!V73=\"\"),1,0)","v":0},{"$f":"IF(AND(AB73=0,'Procedure details'!G73>999,'Procedure details'!V73=\"\"),1,0)","v":0}]
[null,null,null,null,null,null,null,null,null,null,null,null,null,null,null,null,null,null,null,null,null,null,null,74,{"$f":"COUNTA('Procedure details'!E74:'Procedure details'!V74)","v":0},null,{"$f":"IF('Procedure details'!E74<>\"\",VLOOKUP('Procedure details'!E74,Lists!$M$2:$N$38,2,FALSE),\"\")","v":""},{"$f":"IF('Procedure details'!E74<>\"\",VLOOKUP('Procedure details'!E74,Lists!$M$2:$O$38,3,FALSE),\"\")","v":""},{"$f":"IF('Procedure details'!N74<>\"\",VLOOKUP('Procedure details'!N74,Lists!$B$2:$C$71,2,FALSE),\"\")","v":""},{"$f":"IF('Procedure details'!H74<>\"\",VLOOKUP('Procedure details'!H74,Lists!$AP$2:$AQ$3,2,FALSE),\"\")","v":""},{"$f":"IF('Procedure details'!N74<>\"\",VLOOKUP('Procedure details'!N74,Lists!$B$2:$D$71,3,FALSE),\"\")","v":""},{"$f":"IF('Procedure details'!P74<>\"\",VLOOKUP('Procedure details'!P74,Lists!$AD$2:$AE$11,2,FALSE),\"\")","v":""},{"$f":"IF(AND(AB74=1,'Procedure details'!G74>99,'Procedure details'!V74=\"\"),1,0)","v":0},{"$f":"IF(AND(AB74=0,'Procedure details'!G74>999,'Procedure details'!V74=\"\"),1,0)","v":0}]
[null,null,null,null,null,null,null,null,null,null,null,null,null,null,null,null,null,null,null,null,null,null,null,75,{"$f":"COUNTA('Procedure details'!E75:'Procedure details'!V75)","v":0},null,{"$f":"IF('Procedure details'!E75<>\"\",VLOOKUP('Procedure details'!E75,Lists!$M$2:$N$38,2,FALSE),\"\")","v":""},{"$f":"IF('Procedure details'!E75<>\"\",VLOOKUP('Procedure details'!E75,Lists!$M$2:$O$38,3,FALSE),\"\")","v":""},{"$f":"IF('Procedure details'!N75<>\"\",VLOOKUP('Procedure details'!N75,Lists!$B$2:$C$71,2,FALSE),\"\")","v":""},{"$f":"IF('Procedure details'!H75<>\"\",VLOOKUP('Procedure details'!H75,Lists!$AP$2:$AQ$3,2,FALSE),\"\")","v":""},{"$f":"IF('Procedure details'!N75<>\"\",VLOOKUP('Procedure details'!N75,Lists!$B$2:$D$71,3,FALSE),\"\")","v":""},{"$f":"IF('Procedure details'!P75<>\"\",VLOOKUP('Procedure details'!P75,Lists!$AD$2:$AE$11,2,FALSE),\"\")","v":""},{"$f":"IF(AND(AB75=1,'Procedure details'!G75>99,'Procedure details'!V75=\"\"),1,0)","v":0},{"$f":"IF(AND(AB75=0,'Procedure details'!G75>999,'Procedure details'!V75=\"\"),1,0)","v":0}]
[null,null,null,null,null,null,null,null,null,null,null,null,null,null,null,null,null,null,null,null,null,null,null,76,{"$f":"COUNTA('Procedure details'!E76:'Procedure details'!V76)","v":0},null,{"$f":"IF('Procedure details'!E76<>\"\",VLOOKUP('Procedure details'!E76,Lists!$M$2:$N$38,2,FALSE),\"\")","v":""},{"$f":"IF('Procedure details'!E76<>\"\",VLOOKUP('Procedure details'!E76,Lists!$M$2:$O$38,3,FALSE),\"\")","v":""},{"$f":"IF('Procedure details'!N76<>\"\",VLOOKUP('Procedure details'!N76,Lists!$B$2:$C$71,2,FALSE),\"\")","v":""},{"$f":"IF('Procedure details'!H76<>\"\",VLOOKUP('Procedure details'!H76,Lists!$AP$2:$AQ$3,2,FALSE),\"\")","v":""},{"$f":"IF('Procedure details'!N76<>\"\",VLOOKUP('Procedure details'!N76,Lists!$B$2:$D$71,3,FALSE),\"\")","v":""},{"$f":"IF('Procedure details'!P76<>\"\",VLOOKUP('Procedure details'!P76,Lists!$AD$2:$AE$11,2,FALSE),\"\")","v":""},{"$f":"IF(AND(AB76=1,'Procedure details'!G76>99,'Procedure details'!V76=\"\"),1,0)","v":0},{"$f":"IF(AND(AB76=0,'Procedure details'!G76>999,'Procedure details'!V76=\"\"),1,0)","v":0}]
[null,null,null,null,null,null,null,null,null,null,null,null,null,null,null,null,null,null,null,null,null,null,null,77,{"$f":"COUNTA('Procedure details'!E77:'Procedure details'!V77)","v":0},null,{"$f":"IF('Procedure details'!E77<>\"\",VLOOKUP('Procedure details'!E77,Lists!$M$2:$N$38,2,FALSE),\"\")","v":""},{"$f":"IF('Procedure details'!E77<>\"\",VLOOKUP('Procedure details'!E77,Lists!$M$2:$O$38,3,FALSE),\"\")","v":""},{"$f":"IF('Procedure details'!N77<>\"\",VLOOKUP('Procedure details'!N77,Lists!$B$2:$C$71,2,FALSE),\"\")","v":""},{"$f":"IF('Procedure details'!H77<>\"\",VLOOKUP('Procedure details'!H77,Lists!$AP$2:$AQ$3,2,FALSE),\"\")","v":""},{"$f":"IF('Procedure details'!N77<>\"\",VLOOKUP('Procedure details'!N77,Lists!$B$2:$D$71,3,FALSE),\"\")","v":""},{"$f":"IF('Procedure details'!P77<>\"\",VLOOKUP('Procedure details'!P77,Lists!$AD$2:$AE$11,2,FALSE),\"\")","v":""},{"$f":"IF(AND(AB77=1,'Procedure details'!G77>99,'Procedure details'!V77=\"\"),1,0)","v":0},{"$f":"IF(AND(AB77=0,'Procedure details'!G77>999,'Procedure details'!V77=\"\"),1,0)","v":0}]
[null,null,null,null,null,null,null,null,null,null,null,null,null,null,null,null,null,null,null,null,null,null,null,78,{"$f":"COUNTA('Procedure details'!E78:'Procedure details'!V78)","v":0},null,{"$f":"IF('Procedure details'!E78<>\"\",VLOOKUP('Procedure details'!E78,Lists!$M$2:$N$38,2,FALSE),\"\")","v":""},{"$f":"IF('Procedure details'!E78<>\"\",VLOOKUP('Procedure details'!E78,Lists!$M$2:$O$38,3,FALSE),\"\")","v":""},{"$f":"IF('Procedure details'!N78<>\"\",VLOOKUP('Procedure details'!N78,Lists!$B$2:$C$71,2,FALSE),\"\")","v":""},{"$f":"IF('Procedure details'!H78<>\"\",VLOOKUP('Procedure details'!H78,Lists!$AP$2:$AQ$3,2,FALSE),\"\")","v":""},{"$f":"IF('Procedure details'!N78<>\"\",VLOOKUP('Procedure details'!N78,Lists!$B$2:$D$71,3,FALSE),\"\")","v":""},{"$f":"IF('Procedure details'!P78<>\"\",VLOOKUP('Procedure details'!P78,Lists!$AD$2:$AE$11,2,FALSE),\"\")","v":""},{"$f":"IF(AND(AB78=1,'Procedure details'!G78>99,'Procedure details'!V78=\"\"),1,0)","v":0},{"$f":"IF(AND(AB78=0,'Procedure details'!G78>999,'Procedure details'!V78=\"\"),1,0)","v":0}]
[null,null,null,null,null,null,null,null,null,null,null,null,null,null,null,null,null,null,null,null,null,null,null,79,{"$f":"COUNTA('Procedure details'!E79:'Procedure details'!V79)","v":0},null,{"$f":"IF('Procedure details'!E79<>\"\",VLOOKUP('Procedure details'!E79,Lists!$M$2:$N$38,2,FALSE),\"\")","v":""},{"$f":"IF('Procedure details'!E79<>\"\",VLOOKUP('Procedure details'!E79,Lists!$M$2:$O$38,3,FALSE),\"\")","v":""},{"$f":"IF('Procedure details'!N79<>\"\",VLOOKUP('Procedure details'!N79,Lists!$B$2:$C$71,2,FALSE),\"\")","v":""},{"$f":"IF('Procedure details'!H79<>\"\",VLOOKUP('Procedure details'!H79,Lists!$AP$2:$AQ$3,2,FALSE),\"\")","v":""},{"$f":"IF('Procedure details'!N79<>\"\",VLOOKUP('Procedure details'!N79,Lists!$B$2:$D$71,3,FALSE),\"\")","v":""},{"$f":"IF('Procedure details'!P79<>\"\",VLOOKUP('Procedure details'!P79,Lists!$AD$2:$AE$11,2,FALSE),\"\")","v":""},{"$f":"IF(AND(AB79=1,'Procedure details'!G79>99,'Procedure details'!V79=\"\"),1,0)","v":0},{"$f":"IF(AND(AB79=0,'Procedure details'!G79>999,'Procedure details'!V79=\"\"),1,0)","v":0}]
[null,null,null,null,null,null,null,null,null,null,null,null,null,null,null,null,null,null,null,null,null,null,null,80,{"$f":"COUNTA('Procedure details'!E80:'Procedure details'!V80)","v":0},null,{"$f":"IF('Procedure details'!E80<>\"\",VLOOKUP('Procedure details'!E80,Lists!$M$2:$N$38,2,FALSE),\"\")","v":""},{"$f":"IF('Procedure details'!E80<>\"\",VLOOKUP('Procedure details'!E80,Lists!$M$2:$O$38,3,FALSE),\"\")","v":""},{"$f":"IF('Procedure details'!N80<>\"\",VLOOKUP('Procedure details'!N80,Lists!$B$2:$C$71,2,FALSE),\"\")","v":""},{"$f":"IF('Procedure details'!H80<>\"\",VLOOKUP('Procedure details'!H80,Lists!$AP$2:$AQ$3,2,FALSE),\"\")","v":""},{"$f":"IF('Procedure details'!N80<>\"\",VLOOKUP('Procedure details'!N80,Lists!$B$2:$D$71,3,FALSE),\"\")","v":""},{"$f":"IF('Procedure details'!P80<>\"\",VLOOKUP('Procedure details'!P80,Lists!$AD$2:$AE$11,2,FALSE),\"\")","v":""},{"$f":"IF(AND(AB80=1,'Procedure details'!G80>99,'Procedure details'!V80=\"\"),1,0)","v":0},{"$f":"IF(AND(AB80=0,'Procedure details'!G80>999,'Procedure details'!V80=\"\"),1,0)","v":0}]
[null,null,null,null,null,null,null,null,null,null,null,null,null,null,null,null,null,null,null,null,null,null,null,81,{"$f":"COUNTA('Procedure details'!E81:'Procedure details'!V81)","v":0},null,{"$f":"IF('Procedure details'!E81<>\"\",VLOOKUP('Procedure details'!E81,Lists!$M$2:$N$38,2,FALSE),\"\")","v":""},{"$f":"IF('Procedure details'!E81<>\"\",VLOOKUP('Procedure details'!E81,Lists!$M$2:$O$38,3,FALSE),\"\")","v":""},{"$f":"IF('Procedure details'!N81<>\"\",VLOOKUP('Procedure details'!N81,Lists!$B$2:$C$71,2,FALSE),\"\")","v":""},{"$f":"IF('Procedure details'!H81<>\"\",VLOOKUP('Procedure details'!H81,Lists!$AP$2:$AQ$3,2,FALSE),\"\")","v":""},{"$f":"IF('Procedure details'!N81<>\"\",VLOOKUP('Procedure details'!N81,Lists!$B$2:$D$71,3,FALSE),\"\")","v":""},{"$f":"IF('Procedure details'!P81<>\"\",VLOOKUP('Procedure details'!P81,Lists!$AD$2:$AE$11,2,FALSE),\"\")","v":""},{"$f":"IF(AND(AB81=1,'Procedure details'!G81>99,'Procedure details'!V81=\"\"),1,0)","v":0},{"$f":"IF(AND(AB81=0,'Procedure details'!G81>999,'Procedure details'!V81=\"\"),1,0)","v":0}]
[null,null,null,null,null,null,null,null,null,null,null,null,null,null,null,null,null,null,null,null,null,null,null,82,{"$f":"COUNTA('Procedure details'!E82:'Procedure details'!V82)","v":0},null,{"$f":"IF('Procedure details'!E82<>\"\",VLOOKUP('Procedure details'!E82,Lists!$M$2:$N$38,2,FALSE),\"\")","v":""},{"$f":"IF('Procedure details'!E82<>\"\",VLOOKUP('Procedure details'!E82,Lists!$M$2:$O$38,3,FALSE),\"\")","v":""},{"$f":"IF('Procedure details'!N82<>\"\",VLOOKUP('Procedure details'!N82,Lists!$B$2:$C$71,2,FALSE),\"\")","v":""},{"$f":"IF('Procedure details'!H82<>\"\",VLOOKUP('Procedure details'!H82,Lists!$AP$2:$AQ$3,2,FALSE),\"\")","v":""},{"$f":"IF('Procedure details'!N82<>\"\",VLOOKUP('Procedure details'!N82,Lists!$B$2:$D$71,3,FALSE),\"\")","v":""},{"$f":"IF('Procedure details'!P82<>\"\",VLOOKUP('Procedure details'!P82,Lists!$AD$2:$AE$11,2,FALSE),\"\")","v":""},{"$f":"IF(AND(AB82=1,'Procedure details'!G82>99,'Procedure details'!V82=\"\"),1,0)","v":0},{"$f":"IF(AND(AB82=0,'Procedure details'!G82>999,'Procedure details'!V82=\"\"),1,0)","v":0}]
[null,null,null,null,null,null,null,null,null,null,null,null,null,null,null,null,null,null,null,null,null,null,null,83,{"$f":"COUNTA('Procedure details'!E83:'Procedure details'!V83)","v":0},null,{"$f":"IF('Procedure details'!E83<>\"\",VLOOKUP('Procedure details'!E83,Lists!$M$2:$N$38,2,FALSE),\"\")","v":""},{"$f":"IF('Procedure details'!E83<>\"\",VLOOKUP('Procedure details'!E83,Lists!$M$2:$O$38,3,FALSE),\"\")","v":""},{"$f":"IF('Procedure details'!N83<>\"\",VLOOKUP('Procedure details'!N83,Lists!$B$2:$C$71,2,FALSE),\"\")","v":""},{"$f":"IF('Procedure details'!H83<>\"\",VLOOKUP('Procedure details'!H83,Lists!$AP$2:$AQ$3,2,FALSE),\"\")","v":""},{"$f":"IF('Procedure details'!N83<>\"\",VLOOKUP('Procedure details'!N83,Lists!$B$2:$D$71,3,FALSE),\"\")","v":""},{"$f":"IF('Procedure details'!P83<>\"\",VLOOKUP('Procedure details'!P83,Lists!$AD$2:$AE$11,2,FALSE),\"\")","v":""},{"$f":"IF(AND(AB83=1,'Procedure details'!G83>99,'Procedure details'!V83=\"\"),1,0)","v":0},{"$f":"IF(AND(AB83=0,'Procedure details'!G83>999,'Procedure details'!V83=\"\"),1,0)","v":0}]
[null,null,null,null,null,null,null,null,null,null,null,null,null,null,null,null,null,null,null,null,null,null,null,84,{"$f":"COUNTA('Procedure details'!E84:'Procedure details'!V84)","v":0},null,{"$f":"IF('Procedure details'!E84<>\"\",VLOOKUP('Procedure details'!E84,Lists!$M$2:$N$38,2,FALSE),\"\")","v":""},{"$f":"IF('Procedure details'!E84<>\"\",VLOOKUP('Procedure details'!E84,Lists!$M$2:$O$38,3,FALSE),\"\")","v":""},{"$f":"IF('Procedure details'!N84<>\"\",VLOOKUP('Procedure details'!N84,Lists!$B$2:$C$71,2,FALSE),\"\")","v":""},{"$f":"IF('Procedure details'!H84<>\"\",VLOOKUP('Procedure details'!H84,Lists!$AP$2:$AQ$3,2,FALSE),\"\")","v":""},{"$f":"IF('Procedure details'!N84<>\"\",VLOOKUP('Procedure details'!N84,Lists!$B$2:$D$71,3,FALSE),\"\")","v":""},{"$f":"IF('Procedure details'!P84<>\"\",VLOOKUP('Procedure details'!P84,Lists!$AD$2:$AE$11,2,FALSE),\"\")","v":""},{"$f":"IF(AND(AB84=1,'Procedure details'!G84>99,'Procedure details'!V84=\"\"),1,0)","v":0},{"$f":"IF(AND(AB84=0,'Procedure details'!G84>999,'Procedure details'!V84=\"\"),1,0)","v":0}]
[null,null,null,null,null,null,null,null,null,null,null,null,null,null,null,null,null,null,null,null,null,null,null,85,{"$f":"COUNTA('Procedure details'!E85:'Procedure details'!V85)","v":0},null,{"$f":"IF('Procedure details'!E85<>\"\",VLOOKUP('Procedure details'!E85,Lists!$M$2:$N$38,2,FALSE),\"\")","v":""},{"$f":"IF('Procedure details'!E85<>\"\",VLOOKUP('Procedure details'!E85,Lists!$M$2:$O$38,3,FALSE),\"\")","v":""},{"$f":"IF('Procedure details'!N85<>\"\",VLOOKUP('Procedure details'!N85,Lists!$B$2:$C$71,2,FALSE),\"\")","v":""},{"$f":"IF('Procedure details'!H85<>\"\",VLOOKUP('Procedure details'!H85,Lists!$AP$2:$AQ$3,2,FALSE),\"\")","v":""},{"$f":"IF('Procedure details'!N85<>\"\",VLOOKUP('Procedure details'!N85,Lists!$B$2:$D$71,3,FALSE),\"\")","v":""},{"$f":"IF('Procedure details'!P85<>\"\",VLOOKUP('Procedure details'!P85,Lists!$AD$2:$AE$11,2,FALSE),\"\")","v":""},{"$f":"IF(AND(AB85=1,'Procedure details'!G85>99,'Procedure details'!V85=\"\"),1,0)","v":0},{"$f":"IF(AND(AB85=0,'Procedure details'!G85>999,'Procedure details'!V85=\"\"),1,0)","v":0}]
[null,null,null,null,null,null,null,null,null,null,null,null,null,null,null,null,null,null,null,null,null,null,null,86,{"$f":"COUNTA('Procedure details'!E86:'Procedure details'!V86)","v":0},null,{"$f":"IF('Procedure details'!E86<>\"\",VLOOKUP('Procedure details'!E86,Lists!$M$2:$N$38,2,FALSE),\"\")","v":""},{"$f":"IF('Procedure details'!E86<>\"\",VLOOKUP('Procedure details'!E86,Lists!$M$2:$O$38,3,FALSE),\"\")","v":""},{"$f":"IF('Procedure details'!N86<>\"\",VLOOKUP('Procedure details'!N86,Lists!$B$2:$C$71,2,FALSE),\"\")","v":""},{"$f":"IF('Procedure details'!H86<>\"\",VLOOKUP('Procedure details'!H86,Lists!$AP$2:$AQ$3,2,FALSE),\"\")","v":""},{"$f":"IF('Procedure details'!N86<>\"\",VLOOKUP('Procedure details'!N86,Lists!$B$2:$D$71,3,FALSE),\"\")","v":""},{"$f":"IF('Procedure details'!P86<>\"\",VLOOKUP('Procedure details'!P86,Lists!$AD$2:$AE$11,2,FALSE),\"\")","v":""},{"$f":"IF(AND(AB86=1,'Procedure details'!G86>99,'Procedure details'!V86=\"\"),1,0)","v":0},{"$f":"IF(AND(AB86=0,'Procedure details'!G86>999,'Procedure details'!V86=\"\"),1,0)","v":0}]
[null,null,null,null,null,null,null,null,null,null,null,null,null,null,null,null,null,null,null,null,null,null,null,87,{"$f":"COUNTA('Procedure details'!E87:'Procedure details'!V87)","v":0},null,{"$f":"IF('Procedure details'!E87<>\"\",VLOOKUP('Procedure details'!E87,Lists!$M$2:$N$38,2,FALSE),\"\")","v":""},{"$f":"IF('Procedure details'!E87<>\"\",VLOOKUP('Procedure details'!E87,Lists!$M$2:$O$38,3,FALSE),\"\")","v":""},{"$f":"IF('Procedure details'!N87<>\"\",VLOOKUP('Procedure details'!N87,Lists!$B$2:$C$71,2,FALSE),\"\")","v":""},{"$f":"IF('Procedure details'!H87<>\"\",VLOOKUP('Procedure details'!H87,Lists!$AP$2:$AQ$3,2,FALSE),\"\")","v":""},{"$f":"IF('Procedure details'!N87<>\"\",VLOOKUP('Procedure details'!N87,Lists!$B$2:$D$71,3,FALSE),\"\")","v":""},{"$f":"IF('Procedure details'!P87<>\"\",VLOOKUP('Procedure details'!P87,Lists!$AD$2:$AE$11,2,FALSE),\"\")","v":""},{"$f":"IF(AND(AB87=1,'Procedure details'!G87>99,'Procedure details'!V87=\"\"),1,0)","v":0},{"$f":"IF(AND(AB87=0,'Procedure details'!G87>999,'Procedure details'!V87=\"\"),1,0)","v":0}]
[null,null,null,null,null,null,null,null,null,null,null,null,null,null,null,null,null,null,null,null,null,null,null,88,{"$f":"COUNTA('Procedure details'!E88:'Procedure details'!V88)","v":0},null,{"$f":"IF('Procedure details'!E88<>\"\",VLOOKUP('Procedure details'!E88,Lists!$M$2:$N$38,2,FALSE),\"\")","v":""},{"$f":"IF('Procedure details'!E88<>\"\",VLOOKUP('Procedure details'!E88,Lists!$M$2:$O$38,3,FALSE),\"\")","v":""},{"$f":"IF('Procedure details'!N88<>\"\",VLOOKUP('Procedure details'!N88,Lists!$B$2:$C$71,2,FALSE),\"\")","v":""},{"$f":"IF('Procedure details'!H88<>\"\",VLOOKUP('Procedure details'!H88,Lists!$AP$2:$AQ$3,2,FALSE),\"\")","v":""},{"$f":"IF('Procedure details'!N88<>\"\",VLOOKUP('Procedure details'!N88,Lists!$B$2:$D$71,3,FALSE),\"\")","v":""},{"$f":"IF('Procedure details'!P88<>\"\",VLOOKUP('Procedure details'!P88,Lists!$AD$2:$AE$11,2,FALSE),\"\")","v":""},{"$f":"IF(AND(AB88=1,'Procedure details'!G88>99,'Procedure details'!V88=\"\"),1,0)","v":0},{"$f":"IF(AND(AB88=0,'Procedure details'!G88>999,'Procedure details'!V88=\"\"),1,0)","v":0}]
[null,null,null,null,null,null,null,null,null,null,null,null,null,null,null,null,null,null,null,null,null,null,null,89,{"$f":"COUNTA('Procedure details'!E89:'Procedure details'!V89)","v":0},null,{"$f":"IF('Procedure details'!E89<>\"\",VLOOKUP('Procedure details'!E89,Lists!$M$2:$N$38,2,FALSE),\"\")","v":""},{"$f":"IF('Procedure details'!E89<>\"\",VLOOKUP('Procedure details'!E89,Lists!$M$2:$O$38,3,FALSE),\"\")","v":""},{"$f":"IF('Procedure details'!N89<>\"\",VLOOKUP('Procedure details'!N89,Lists!$B$2:$C$71,2,FALSE),\"\")","v":""},{"$f":"IF('Procedure details'!H89<>\"\",VLOOKUP('Procedure details'!H89,Lists!$AP$2:$AQ$3,2,FALSE),\"\")","v":""},{"$f":"IF('Procedure details'!N89<>\"\",VLOOKUP('Procedure details'!N89,Lists!$B$2:$D$71,3,FALSE),\"\")","v":""},{"$f":"IF('Procedure details'!P89<>\"\",VLOOKUP('Procedure details'!P89,Lists!$AD$2:$AE$11,2,FALSE),\"\")","v":""},{"$f":"IF(AND(AB89=1,'Procedure details'!G89>99,'Procedure details'!V89=\"\"),1,0)","v":0},{"$f":"IF(AND(AB89=0,'Procedure details'!G89>999,'Procedure details'!V89=\"\"),1,0)","v":0}]
[null,null,null,null,null,null,null,null,null,null,null,null,null,null,null,null,null,null,null,null,null,null,null,90,{"$f":"COUNTA('Procedure details'!E90:'Procedure details'!V90)","v":0},null,{"$f":"IF('Procedure details'!E90<>\"\",VLOOKUP('Procedure details'!E90,Lists!$M$2:$N$38,2,FALSE),\"\")","v":""},{"$f":"IF('Procedure details'!E90<>\"\",VLOOKUP('Procedure details'!E90,Lists!$M$2:$O$38,3,FALSE),\"\")","v":""},{"$f":"IF('Procedure details'!N90<>\"\",VLOOKUP('Procedure details'!N90,Lists!$B$2:$C$71,2,FALSE),\"\")","v":""},{"$f":"IF('Procedure details'!H90<>\"\",VLOOKUP('Procedure details'!H90,Lists!$AP$2:$AQ$3,2,FALSE),\"\")","v":""},{"$f":"IF('Procedure details'!N90<>\"\",VLOOKUP('Procedure details'!N90,Lists!$B$2:$D$71,3,FALSE),\"\")","v":""},{"$f":"IF('Procedure details'!P90<>\"\",VLOOKUP('Procedure details'!P90,Lists!$AD$2:$AE$11,2,FALSE),\"\")","v":""},{"$f":"IF(AND(AB90=1,'Procedure details'!G90>99,'Procedure details'!V90=\"\"),1,0)","v":0},{"$f":"IF(AND(AB90=0,'Procedure details'!G90>999,'Procedure details'!V90=\"\"),1,0)","v":0}]
[null,null,null,null,null,null,null,null,null,null,null,null,null,null,null,null,null,null,null,null,null,null,null,91,{"$f":"COUNTA('Procedure details'!E91:'Procedure details'!V91)","v":0},null,{"$f":"IF('Procedure details'!E91<>\"\",VLOOKUP('Procedure details'!E91,Lists!$M$2:$N$38,2,FALSE),\"\")","v":""},{"$f":"IF('Procedure details'!E91<>\"\",VLOOKUP('Procedure details'!E91,Lists!$M$2:$O$38,3,FALSE),\"\")","v":""},{"$f":"IF('Procedure details'!N91<>\"\",VLOOKUP('Procedure details'!N91,Lists!$B$2:$C$71,2,FALSE),\"\")","v":""},{"$f":"IF('Procedure details'!H91<>\"\",VLOOKUP('Procedure details'!H91,Lists!$AP$2:$AQ$3,2,FALSE),\"\")","v":""},{"$f":"IF('Procedure details'!N91<>\"\",VLOOKUP('Procedure details'!N91,Lists!$B$2:$D$71,3,FALSE),\"\")","v":""},{"$f":"IF('Procedure details'!P91<>\"\",VLOOKUP('Procedure details'!P91,Lists!$AD$2:$AE$11,2,FALSE),\"\")","v":""},{"$f":"IF(AND(AB91=1,'Procedure details'!G91>99,'Procedure details'!V91=\"\"),1,0)","v":0},{"$f":"IF(AND(AB91=0,'Procedure details'!G91>999,'Procedure details'!V91=\"\"),1,0)","v":0}]
[null,null,null,null,null,null,null,null,null,null,null,null,null,null,null,null,null,null,null,null,null,null,null,92,{"$f":"COUNTA('Procedure details'!E92:'Procedure details'!V92)","v":0},null,{"$f":"IF('Procedure details'!E92<>\"\",VLOOKUP('Procedure details'!E92,Lists!$M$2:$N$38,2,FALSE),\"\")","v":""},{"$f":"IF('Procedure details'!E92<>\"\",VLOOKUP('Procedure details'!E92,Lists!$M$2:$O$38,3,FALSE),\"\")","v":""},{"$f":"IF('Procedure details'!N92<>\"\",VLOOKUP('Procedure details'!N92,Lists!$B$2:$C$71,2,FALSE),\"\")","v":""},{"$f":"IF('Procedure details'!H92<>\"\",VLOOKUP('Procedure details'!H92,Lists!$AP$2:$AQ$3,2,FALSE),\"\")","v":""},{"$f":"IF('Procedure details'!N92<>\"\",VLOOKUP('Procedure details'!N92,Lists!$B$2:$D$71,3,FALSE),\"\")","v":""},{"$f":"IF('Procedure details'!P92<>\"\",VLOOKUP('Procedure details'!P92,Lists!$AD$2:$AE$11,2,FALSE),\"\")","v":""},{"$f":"IF(AND(AB92=1,'Procedure details'!G92>99,'Procedure details'!V92=\"\"),1,0)","v":0},{"$f":"IF(AND(AB92=0,'Procedure details'!G92>999,'Procedure details'!V92=\"\"),1,0)","v":0}]
[null,null,null,null,null,null,null,null,null,null,null,null,null,null,null,null,null,null,null,null,null,null,null,93,{"$f":"COUNTA('Procedure details'!E93:'Procedure details'!V93)","v":0},null,{"$f":"IF('Procedure details'!E93<>\"\",VLOOKUP('Procedure details'!E93,Lists!$M$2:$N$38,2,FALSE),\"\")","v":""},{"$f":"IF('Procedure details'!E93<>\"\",VLOOKUP('Procedure details'!E93,Lists!$M$2:$O$38,3,FALSE),\"\")","v":""},{"$f":"IF('Procedure details'!N93<>\"\",VLOOKUP('Procedure details'!N93,Lists!$B$2:$C$71,2,FALSE),\"\")","v":""},{"$f":"IF('Procedure details'!H93<>\"\",VLOOKUP('Procedure details'!H93,Lists!$AP$2:$AQ$3,2,FALSE),\"\")","v":""},{"$f":"IF('Procedure details'!N93<>\"\",VLOOKUP('Procedure details'!N93,Lists!$B$2:$D$71,3,FALSE),\"\")","v":""},{"$f":"IF('Procedure details'!P93<>\"\",VLOOKUP('Procedure details'!P93,Lists!$AD$2:$AE$11,2,FALSE),\"\")","v":""},{"$f":"IF(AND(AB93=1,'Procedure details'!G93>99,'Procedure details'!V93=\"\"),1,0)","v":0},{"$f":"IF(AND(AB93=0,'Procedure details'!G93>999,'Procedure details'!V93=\"\"),1,0)","v":0}]
[null,null,null,null,null,null,null,null,null,null,null,null,null,null,null,null,null,null,null,null,null,null,null,94,{"$f":"COUNTA('Procedure details'!E94:'Procedure details'!V94)","v":0},null,{"$f":"IF('Procedure details'!E94<>\"\",VLOOKUP('Procedure details'!E94,Lists!$M$2:$N$38,2,FALSE),\"\")","v":""},{"$f":"IF('Procedure details'!E94<>\"\",VLOOKUP('Procedure details'!E94,Lists!$M$2:$O$38,3,FALSE),\"\")","v":""},{"$f":"IF('Procedure details'!N94<>\"\",VLOOKUP('Procedure details'!N94,Lists!$B$2:$C$71,2,FALSE),\"\")","v":""},{"$f":"IF('Procedure details'!H94<>\"\",VLOOKUP('Procedure details'!H94,Lists!$AP$2:$AQ$3,2,FALSE),\"\")","v":""},{"$f":"IF('Procedure details'!N94<>\"\",VLOOKUP('Procedure details'!N94,Lists!$B$2:$D$71,3,FALSE),\"\")","v":""},{"$f":"IF('Procedure details'!P94<>\"\",VLOOKUP('Procedure details'!P94,Lists!$AD$2:$AE$11,2,FALSE),\"\")","v":""},{"$f":"IF(AND(AB94=1,'Procedure details'!G94>99,'Procedure details'!V94=\"\"),1,0)","v":0},{"$f":"IF(AND(AB94=0,'Procedure details'!G94>999,'Procedure details'!V94=\"\"),1,0)","v":0}]
[null,null,null,null,null,null,null,null,null,null,null,null,null,null,null,null,null,null,null,null,null,null,null,95,{"$f":"COUNTA('Procedure details'!E95:'Procedure details'!V95)","v":0},null,{"$f":"IF('Procedure details'!E95<>\"\",VLOOKUP('Procedure details'!E95,Lists!$M$2:$N$38,2,FALSE),\"\")","v":""},{"$f":"IF('Procedure details'!E95<>\"\",VLOOKUP('Procedure details'!E95,Lists!$M$2:$O$38,3,FALSE),\"\")","v":""},{"$f":"IF('Procedure details'!N95<>\"\",VLOOKUP('Procedure details'!N95,Lists!$B$2:$C$71,2,FALSE),\"\")","v":""},{"$f":"IF('Procedure details'!H95<>\"\",VLOOKUP('Procedure details'!H95,Lists!$AP$2:$AQ$3,2,FALSE),\"\")","v":""},{"$f":"IF('Procedure details'!N95<>\"\",VLOOKUP('Procedure details'!N95,Lists!$B$2:$D$71,3,FALSE),\"\")","v":""},{"$f":"IF('Procedure details'!P95<>\"\",VLOOKUP('Procedure details'!P95,Lists!$AD$2:$AE$11,2,FALSE),\"\")","v":""},{"$f":"IF(AND(AB95=1,'Procedure details'!G95>99,'Procedure details'!V95=\"\"),1,0)","v":0},{"$f":"IF(AND(AB95=0,'Procedure details'!G95>999,'Procedure details'!V95=\"\"),1,0)","v":0}]
[null,null,null,null,null,null,null,null,null,null,null,null,null,null,null,null,null,null,null,null,null,null,null,96,{"$f":"COUNTA('Procedure details'!E96:'Procedure details'!V96)","v":0},null,{"$f":"IF('Procedure details'!E96<>\"\",VLOOKUP('Procedure details'!E96,Lists!$M$2:$N$38,2,FALSE),\"\")","v":""},{"$f":"IF('Procedure details'!E96<>\"\",VLOOKUP('Procedure details'!E96,Lists!$M$2:$O$38,3,FALSE),\"\")","v":""},{"$f":"IF('Procedure details'!N96<>\"\",VLOOKUP('Procedure details'!N96,Lists!$B$2:$C$71,2,FALSE),\"\")","v":""},{"$f":"IF('Procedure details'!H96<>\"\",VLOOKUP('Procedure details'!H96,Lists!$AP$2:$AQ$3,2,FALSE),\"\")","v":""},{"$f":"IF('Procedure details'!N96<>\"\",VLOOKUP('Procedure details'!N96,Lists!$B$2:$D$71,3,FALSE),\"\")","v":""},{"$f":"IF('Procedure details'!P96<>\"\",VLOOKUP('Procedure details'!P96,Lists!$AD$2:$AE$11,2,FALSE),\"\")","v":""},{"$f":"IF(AND(AB96=1,'Procedure details'!G96>99,'Procedure details'!V96=\"\"),1,0)","v":0},{"$f":"IF(AND(AB96=0,'Procedure details'!G96>999,'Procedure details'!V96=\"\"),1,0)","v":0}]
[null,null,null,null,null,null,null,null,null,null,null,null,null,null,null,null,null,null,null,null,null,null,null,97,{"$f":"COUNTA('Procedure details'!E97:'Procedure details'!V97)","v":0},null,{"$f":"IF('Procedure details'!E97<>\"\",VLOOKUP('Procedure details'!E97,Lists!$M$2:$N$38,2,FALSE),\"\")","v":""},{"$f":"IF('Procedure details'!E97<>\"\",VLOOKUP('Procedure details'!E97,Lists!$M$2:$O$38,3,FALSE),\"\")","v":""},{"$f":"IF('Procedure details'!N97<>\"\",VLOOKUP('Procedure details'!N97,Lists!$B$2:$C$71,2,FALSE),\"\")","v":""},{"$f":"IF('Procedure details'!H97<>\"\",VLOOKUP('Procedure details'!H97,Lists!$AP$2:$AQ$3,2,FALSE),\"\")","v":""},{"$f":"IF('Procedure details'!N97<>\"\",VLOOKUP('Procedure details'!N97,Lists!$B$2:$D$71,3,FALSE),\"\")","v":""},{"$f":"IF('Procedure details'!P97<>\"\",VLOOKUP('Procedure details'!P97,Lists!$AD$2:$AE$11,2,FALSE),\"\")","v":""},{"$f":"IF(AND(AB97=1,'Procedure details'!G97>99,'Procedure details'!V97=\"\"),1,0)","v":0},{"$f":"IF(AND(AB97=0,'Procedure details'!G97>999,'Procedure details'!V97=\"\"),1,0)","v":0}]
[null,null,null,null,null,null,null,null,null,null,null,null,null,null,null,null,null,null,null,null,null,null,null,98,{"$f":"COUNTA('Procedure details'!E98:'Procedure details'!V98)","v":0},null,{"$f":"IF('Procedure details'!E98<>\"\",VLOOKUP('Procedure details'!E98,Lists!$M$2:$N$38,2,FALSE),\"\")","v":""},{"$f":"IF('Procedure details'!E98<>\"\",VLOOKUP('Procedure details'!E98,Lists!$M$2:$O$38,3,FALSE),\"\")","v":""},{"$f":"IF('Procedure details'!N98<>\"\",VLOOKUP('Procedure details'!N98,Lists!$B$2:$C$71,2,FALSE),\"\")","v":""},{"$f":"IF('Procedure details'!H98<>\"\",VLOOKUP('Procedure details'!H98,Lists!$AP$2:$AQ$3,2,FALSE),\"\")","v":""},{"$f":"IF('Procedure details'!N98<>\"\",VLOOKUP('Procedure details'!N98,Lists!$B$2:$D$71,3,FALSE),\"\")","v":""},{"$f":"IF('Procedure details'!P98<>\"\",VLOOKUP('Procedure details'!P98,Lists!$AD$2:$AE$11,2,FALSE),\"\")","v":""},{"$f":"IF(AND(AB98=1,'Procedure details'!G98>99,'Procedure details'!V98=\"\"),1,0)","v":0},{"$f":"IF(AND(AB98=0,'Procedure details'!G98>999,'Procedure details'!V98=\"\"),1,0)","v":0}]
[null,null,null,null,null,null,null,null,null,null,null,null,null,null,null,null,null,null,null,null,null,null,null,99,{"$f":"COUNTA('Procedure details'!E99:'Procedure details'!V99)","v":0},null,{"$f":"IF('Procedure details'!E99<>\"\",VLOOKUP('Procedure details'!E99,Lists!$M$2:$N$38,2,FALSE),\"\")","v":""},{"$f":"IF('Procedure details'!E99<>\"\",VLOOKUP('Procedure details'!E99,Lists!$M$2:$O$38,3,FALSE),\"\")","v":""},{"$f":"IF('Procedure details'!N99<>\"\",VLOOKUP('Procedure details'!N99,Lists!$B$2:$C$71,2,FALSE),\"\")","v":""},{"$f":"IF('Procedure details'!H99<>\"\",VLOOKUP('Procedure details'!H99,Lists!$AP$2:$AQ$3,2,FALSE),\"\")","v":""},{"$f":"IF('Procedure details'!N99<>\"\",VLOOKUP('Procedure details'!N99,Lists!$B$2:$D$71,3,FALSE),\"\")","v":""},{"$f":"IF('Procedure details'!P99<>\"\",VLOOKUP('Procedure details'!P99,Lists!$AD$2:$AE$11,2,FALSE),\"\")","v":""},{"$f":"IF(AND(AB99=1,'Procedure details'!G99>99,'Procedure details'!V99=\"\"),1,0)","v":0},{"$f":"IF(AND(AB99=0,'Procedure details'!G99>999,'Procedure details'!V99=\"\"),1,0)","v":0}]
[null,null,null,null,null,null,null,null,null,null,null,null,null,null,null,null,null,null,null,null,null,null,null,100,{"$f":"COUNTA('Procedure details'!E100:'Procedure details'!V100)","v":0},null,{"$f":"IF('Procedure details'!E100<>\"\",VLOOKUP('Procedure details'!E100,Lists!$M$2:$N$38,2,FALSE),\"\")","v":""},{"$f":"IF('Procedure details'!E100<>\"\",VLOOKUP('Procedure details'!E100,Lists!$M$2:$O$38,3,FALSE),\"\")","v":""},{"$f":"IF('Procedure details'!N100<>\"\",VLOOKUP('Procedure details'!N100,Lists!$B$2:$C$71,2,FALSE),\"\")","v":""},{"$f":"IF('Procedure details'!H100<>\"\",VLOOKUP('Procedure details'!H100,Lists!$AP$2:$AQ$3,2,FALSE),\"\")","v":""},{"$f":"IF('Procedure details'!N100<>\"\",VLOOKUP('Procedure details'!N100,Lists!$B$2:$D$71,3,FALSE),\"\")","v":""},{"$f":"IF('Procedure details'!P100<>\"\",VLOOKUP('Procedure details'!P100,Lists!$AD$2:$AE$11,2,FALSE),\"\")","v":""},{"$f":"IF(AND(AB100=1,'Procedure details'!G100>99,'Procedure details'!V100=\"\"),1,0)","v":0},{"$f":"IF(AND(AB100=0,'Procedure details'!G100>999,'Procedure details'!V100=\"\"),1,0)","v":0}]
[null,null,null,null,null,null,null,null,null,null,null,null,null,null,null,null,null,null,null,null,null,null,null,101,{"$f":"COUNTA('Procedure details'!E101:'Procedure details'!V101)","v":0},null,{"$f":"IF('Procedure details'!E101<>\"\",VLOOKUP('Procedure details'!E101,Lists!$M$2:$N$38,2,FALSE),\"\")","v":""},{"$f":"IF('Procedure details'!E101<>\"\",VLOOKUP('Procedure details'!E101,Lists!$M$2:$O$38,3,FALSE),\"\")","v":""},{"$f":"IF('Procedure details'!N101<>\"\",VLOOKUP('Procedure details'!N101,Lists!$B$2:$C$71,2,FALSE),\"\")","v":""},{"$f":"IF('Procedure details'!H101<>\"\",VLOOKUP('Procedure details'!H101,Lists!$AP$2:$AQ$3,2,FALSE),\"\")","v":""},{"$f":"IF('Procedure details'!N101<>\"\",VLOOKUP('Procedure details'!N101,Lists!$B$2:$D$71,3,FALSE),\"\")","v":""},{"$f":"IF('Procedure details'!P101<>\"\",VLOOKUP('Procedure details'!P101,Lists!$AD$2:$AE$11,2,FALSE),\"\")","v":""},{"$f":"IF(AND(AB101=1,'Procedure details'!G101>99,'Procedure details'!V101=\"\"),1,0)","v":0},{"$f":"IF(AND(AB101=0,'Procedure details'!G101>999,'Procedure details'!V101=\"\"),1,0)","v":0}]
[null,null,null,null,null,null,null,null,null,null,null,null,null,null,null,null,null,null,null,null,null,null,null,102,{"$f":"COUNTA('Procedure details'!E102:'Procedure details'!V102)","v":0},null,{"$f":"IF('Procedure details'!E102<>\"\",VLOOKUP('Procedure details'!E102,Lists!$M$2:$N$38,2,FALSE),\"\")","v":""},{"$f":"IF('Procedure details'!E102<>\"\",VLOOKUP('Procedure details'!E102,Lists!$M$2:$O$38,3,FALSE),\"\")","v":""},{"$f":"IF('Procedure details'!N102<>\"\",VLOOKUP('Procedure details'!N102,Lists!$B$2:$C$71,2,FALSE),\"\")","v":""},{"$f":"IF('Procedure details'!H102<>\"\",VLOOKUP('Procedure details'!H102,Lists!$AP$2:$AQ$3,2,FALSE),\"\")","v":""},{"$f":"IF('Procedure details'!N102<>\"\",VLOOKUP('Procedure details'!N102,Lists!$B$2:$D$71,3,FALSE),\"\")","v":""},{"$f":"IF('Procedure details'!P102<>\"\",VLOOKUP('Procedure details'!P102,Lists!$AD$2:$AE$11,2,FALSE),\"\")","v":""},{"$f":"IF(AND(AB102=1,'Procedure details'!G102>99,'Procedure details'!V102=\"\"),1,0)","v":0},{"$f":"IF(AND(AB102=0,'Procedure details'!G102>999,'Procedure details'!V102=\"\"),1,0)","v":0}]
[null,null,null,null,null,null,null,null,null,null,null,null,null,null,null,null,null,null,null,null,null,null,null,103,{"$f":"COUNTA('Procedure details'!E103:'Procedure details'!V103)","v":0},null,{"$f":"IF('Procedure details'!E103<>\"\",VLOOKUP('Procedure details'!E103,Lists!$M$2:$N$38,2,FALSE),\"\")","v":""},{"$f":"IF('Procedure details'!E103<>\"\",VLOOKUP('Procedure details'!E103,Lists!$M$2:$O$38,3,FALSE),\"\")","v":""},{"$f":"IF('Procedure details'!N103<>\"\",VLOOKUP('Procedure details'!N103,Lists!$B$2:$C$71,2,FALSE),\"\")","v":""},{"$f":"IF('Procedure details'!H103<>\"\",VLOOKUP('Procedure details'!H103,Lists!$AP$2:$AQ$3,2,FALSE),\"\")","v":""},{"$f":"IF('Procedure details'!N103<>\"\",VLOOKUP('Procedure details'!N103,Lists!$B$2:$D$71,3,FALSE),\"\")","v":""},{"$f":"IF('Procedure details'!P103<>\"\",VLOOKUP('Procedure details'!P103,Lists!$AD$2:$AE$11,2,FALSE),\"\")","v":""},{"$f":"IF(AND(AB103=1,'Procedure details'!G103>99,'Procedure details'!V103=\"\"),1,0)","v":0},{"$f":"IF(AND(AB103=0,'Procedure details'!G103>999,'Procedure details'!V103=\"\"),1,0)","v":0}]
[null,null,null,null,null,null,null,null,null,null,null,null,null,null,null,null,null,null,null,null,null,null,null,104,{"$f":"COUNTA('Procedure details'!E104:'Procedure details'!V104)","v":0},null,{"$f":"IF('Procedure details'!E104<>\"\",VLOOKUP('Procedure details'!E104,Lists!$M$2:$N$38,2,FALSE),\"\")","v":""},{"$f":"IF('Procedure details'!E104<>\"\",VLOOKUP('Procedure details'!E104,Lists!$M$2:$O$38,3,FALSE),\"\")","v":""},{"$f":"IF('Procedure details'!N104<>\"\",VLOOKUP('Procedure details'!N104,Lists!$B$2:$C$71,2,FALSE),\"\")","v":""},{"$f":"IF('Procedure details'!H104<>\"\",VLOOKUP('Procedure details'!H104,Lists!$AP$2:$AQ$3,2,FALSE),\"\")","v":""},{"$f":"IF('Procedure details'!N104<>\"\",VLOOKUP('Procedure details'!N104,Lists!$B$2:$D$71,3,FALSE),\"\")","v":""},{"$f":"IF('Procedure details'!P104<>\"\",VLOOKUP('Procedure details'!P104,Lists!$AD$2:$AE$11,2,FALSE),\"\")","v":""},{"$f":"IF(AND(AB104=1,'Procedure details'!G104>99,'Procedure details'!V104=\"\"),1,0)","v":0},{"$f":"IF(AND(AB104=0,'Procedure details'!G104>999,'Procedure details'!V104=\"\"),1,0)","v":0}]
[null,null,null,null,null,null,null,null,null,null,null,null,null,null,null,null,null,null,null,null,null,null,null,105,{"$f":"COUNTA('Procedure details'!E105:'Procedure details'!V105)","v":0},null,{"$f":"IF('Procedure details'!E105<>\"\",VLOOKUP('Procedure details'!E105,Lists!$M$2:$N$38,2,FALSE),\"\")","v":""},{"$f":"IF('Procedure details'!E105<>\"\",VLOOKUP('Procedure details'!E105,Lists!$M$2:$O$38,3,FALSE),\"\")","v":""},{"$f":"IF('Procedure details'!N105<>\"\",VLOOKUP('Procedure details'!N105,Lists!$B$2:$C$71,2,FALSE),\"\")","v":""},{"$f":"IF('Procedure details'!H105<>\"\",VLOOKUP('Procedure details'!H105,Lists!$AP$2:$AQ$3,2,FALSE),\"\")","v":""},{"$f":"IF('Procedure details'!N105<>\"\",VLOOKUP('Procedure details'!N105,Lists!$B$2:$D$71,3,FALSE),\"\")","v":""},{"$f":"IF('Procedure details'!P105<>\"\",VLOOKUP('Procedure details'!P105,Lists!$AD$2:$AE$11,2,FALSE),\"\")","v":""},{"$f":"IF(AND(AB105=1,'Procedure details'!G105>99,'Procedure details'!V105=\"\"),1,0)","v":0},{"$f":"IF(AND(AB105=0,'Procedure details'!G105>999,'Procedure details'!V105=\"\"),1,0)","v":0}]
[null,null,null,null,null,null,null,null,null,null,null,null,null,null,null,null,null,null,null,null,null,null,null,106,{"$f":"COUNTA('Procedure details'!E106:'Procedure details'!V106)","v":0},null,{"$f":"IF('Procedure details'!E106<>\"\",VLOOKUP('Procedure details'!E106,Lists!$M$2:$N$38,2,FALSE),\"\")","v":""},{"$f":"IF('Procedure details'!E106<>\"\",VLOOKUP('Procedure details'!E106,Lists!$M$2:$O$38,3,FALSE),\"\")","v":""},{"$f":"IF('Procedure details'!N106<>\"\",VLOOKUP('Procedure details'!N106,Lists!$B$2:$C$71,2,FALSE),\"\")","v":""},{"$f":"IF('Procedure details'!H106<>\"\",VLOOKUP('Procedure details'!H106,Lists!$AP$2:$AQ$3,2,FALSE),\"\")","v":""},{"$f":"IF('Procedure details'!N106<>\"\",VLOOKUP('Procedure details'!N106,Lists!$B$2:$D$71,3,FALSE),\"\")","v":""},{"$f":"IF('Procedure details'!P106<>\"\",VLOOKUP('Procedure details'!P106,Lists!$AD$2:$AE$11,2,FALSE),\"\")","v":""},{"$f":"IF(AND(AB106=1,'Procedure details'!G106>99,'Procedure details'!V106=\"\"),1,0)","v":0},{"$f":"IF(AND(AB106=0,'Procedure details'!G106>999,'Procedure details'!V106=\"\"),1,0)","v":0}]
[null,null,null,null,null,null,null,null,null,null,null,null,null,null,null,null,null,null,null,null,null,null,null,107,{"$f":"COUNTA('Procedure details'!E107:'Procedure details'!V107)","v":0},null,{"$f":"IF('Procedure details'!E107<>\"\",VLOOKUP('Procedure details'!E107,Lists!$M$2:$N$38,2,FALSE),\"\")","v":""},{"$f":"IF('Procedure details'!E107<>\"\",VLOOKUP('Procedure details'!E107,Lists!$M$2:$O$38,3,FALSE),\"\")","v":""},{"$f":"IF('Procedure details'!N107<>\"\",VLOOKUP('Procedure details'!N107,Lists!$B$2:$C$71,2,FALSE),\"\")","v":""},{"$f":"IF('Procedure details'!H107<>\"\",VLOOKUP('Procedure details'!H107,Lists!$AP$2:$AQ$3,2,FALSE),\"\")","v":""},{"$f":"IF('Procedure details'!N107<>\"\",VLOOKUP('Procedure details'!N107,Lists!$B$2:$D$71,3,FALSE),\"\")","v":""},{"$f":"IF('Procedure details'!P107<>\"\",VLOOKUP('Procedure details'!P107,Lists!$AD$2:$AE$11,2,FALSE),\"\")","v":""},{"$f":"IF(AND(AB107=1,'Procedure details'!G107>99,'Procedure details'!V107=\"\"),1,0)","v":0},{"$f":"IF(AND(AB107=0,'Procedure details'!G107>999,'Procedure details'!V107=\"\"),1,0)","v":0}]
[null,null,null,null,null,null,null,null,null,null,null,null,null,null,null,null,null,null,null,null,null,null,null,108,{"$f":"COUNTA('Procedure details'!E108:'Procedure details'!V108)","v":0},null,{"$f":"IF('Procedure details'!E108<>\"\",VLOOKUP('Procedure details'!E108,Lists!$M$2:$N$38,2,FALSE),\"\")","v":""},{"$f":"IF('Procedure details'!E108<>\"\",VLOOKUP('Procedure details'!E108,Lists!$M$2:$O$38,3,FALSE),\"\")","v":""},{"$f":"IF('Procedure details'!N108<>\"\",VLOOKUP('Procedure details'!N108,Lists!$B$2:$C$71,2,FALSE),\"\")","v":""},{"$f":"IF('Procedure details'!H108<>\"\",VLOOKUP('Procedure details'!H108,Lists!$AP$2:$AQ$3,2,FALSE),\"\")","v":""},{"$f":"IF('Procedure details'!N108<>\"\",VLOOKUP('Procedure details'!N108,Lists!$B$2:$D$71,3,FALSE),\"\")","v":""},{"$f":"IF('Procedure details'!P108<>\"\",VLOOKUP('Procedure details'!P108,Lists!$AD$2:$AE$11,2,FALSE),\"\")","v":""},{"$f":"IF(AND(AB108=1,'Procedure details'!G108>99,'Procedure details'!V108=\"\"),1,0)","v":0},{"$f":"IF(AND(AB108=0,'Procedure details'!G108>999,'Procedure details'!V108=\"\"),1,0)","v":0}]
[null,null,null,null,null,null,null,null,null,null,null,null,null,null,null,null,null,null,null,null,null,null,null,109,{"$f":"COUNTA('Procedure details'!E109:'Procedure details'!V109)","v":0},null,{"$f":"IF('Procedure details'!E109<>\"\",VLOOKUP('Procedure details'!E109,Lists!$M$2:$N$38,2,FALSE),\"\")","v":""},{"$f":"IF('Procedure details'!E109<>\"\",VLOOKUP('Procedure details'!E109,Lists!$M$2:$O$38,3,FALSE),\"\")","v":""},{"$f":"IF('Procedure details'!N109<>\"\",VLOOKUP('Procedure details'!N109,Lists!$B$2:$C$71,2,FALSE),\"\")","v":""},{"$f":"IF('Procedure details'!H109<>\"\",VLOOKUP('Procedure details'!H109,Lists!$AP$2:$AQ$3,2,FALSE),\"\")","v":""},{"$f":"IF('Procedure details'!N109<>\"\",VLOOKUP('Procedure details'!N109,Lists!$B$2:$D$71,3,FALSE),\"\")","v":""},{"$f":"IF('Procedure details'!P109<>\"\",VLOOKUP('Procedure details'!P109,Lists!$AD$2:$AE$11,2,FALSE),\"\")","v":""},{"$f":"IF(AND(AB109=1,'Procedure details'!G109>99,'Procedure details'!V109=\"\"),1,0)","v":0},{"$f":"IF(AND(AB109=0,'Procedure details'!G109>999,'Procedure details'!V109=\"\"),1,0)","v":0}]
[null,null,null,null,null,null,null,null,null,null,null,null,null,null,null,null,null,null,null,null,null,null,null,110,{"$f":"COUNTA('Procedure details'!E110:'Procedure details'!V110)","v":0},null,{"$f":"IF('Procedure details'!E110<>\"\",VLOOKUP('Procedure details'!E110,Lists!$M$2:$N$38,2,FALSE),\"\")","v":""},{"$f":"IF('Procedure details'!E110<>\"\",VLOOKUP('Procedure details'!E110,Lists!$M$2:$O$38,3,FALSE),\"\")","v":""},{"$f":"IF('Procedure details'!N110<>\"\",VLOOKUP('Procedure details'!N110,Lists!$B$2:$C$71,2,FALSE),\"\")","v":""},{"$f":"IF('Procedure details'!H110<>\"\",VLOOKUP('Procedure details'!H110,Lists!$AP$2:$AQ$3,2,FALSE),\"\")","v":""},{"$f":"IF('Procedure details'!N110<>\"\",VLOOKUP('Procedure details'!N110,Lists!$B$2:$D$71,3,FALSE),\"\")","v":""},{"$f":"IF('Procedure details'!P110<>\"\",VLOOKUP('Procedure details'!P110,Lists!$AD$2:$AE$11,2,FALSE),\"\")","v":""},{"$f":"IF(AND(AB110=1,'Procedure details'!G110>99,'Procedure details'!V110=\"\"),1,0)","v":0},{"$f":"IF(AND(AB110=0,'Procedure details'!G110>999,'Procedure details'!V110=\"\"),1,0)","v":0}]
[null,null,null,null,null,null,null,null,null,null,null,null,null,null,null,null,null,null,null,null,null,null,null,111,{"$f":"COUNTA('Procedure details'!E111:'Procedure details'!V111)","v":0},null,{"$f":"IF('Procedure details'!E111<>\"\",VLOOKUP('Procedure details'!E111,Lists!$M$2:$N$38,2,FALSE),\"\")","v":""},{"$f":"IF('Procedure details'!E111<>\"\",VLOOKUP('Procedure details'!E111,Lists!$M$2:$O$38,3,FALSE),\"\")","v":""},{"$f":"IF('Procedure details'!N111<>\"\",VLOOKUP('Procedure details'!N111,Lists!$B$2:$C$71,2,FALSE),\"\")","v":""},{"$f":"IF('Procedure details'!H111<>\"\",VLOOKUP('Procedure details'!H111,Lists!$AP$2:$AQ$3,2,FALSE),\"\")","v":""},{"$f":"IF('Procedure details'!N111<>\"\",VLOOKUP('Procedure details'!N111,Lists!$B$2:$D$71,3,FALSE),\"\")","v":""},{"$f":"IF('Procedure details'!P111<>\"\",VLOOKUP('Procedure details'!P111,Lists!$AD$2:$AE$11,2,FALSE),\"\")","v":""},{"$f":"IF(AND(AB111=1,'Procedure details'!G111>99,'Procedure details'!V111=\"\"),1,0)","v":0},{"$f":"IF(AND(AB111=0,'Procedure details'!G111>999,'Procedure details'!V111=\"\"),1,0)","v":0}]
[null,null,null,null,null,null,null,null,null,null,null,null,null,null,null,null,null,null,null,null,null,null,null,112,{"$f":"COUNTA('Procedure details'!E112:'Procedure details'!V112)","v":0},null,{"$f":"IF('Procedure details'!E112<>\"\",VLOOKUP('Procedure details'!E112,Lists!$M$2:$N$38,2,FALSE),\"\")","v":""},{"$f":"IF('Procedure details'!E112<>\"\",VLOOKUP('Procedure details'!E112,Lists!$M$2:$O$38,3,FALSE),\"\")","v":""},{"$f":"IF('Procedure details'!N112<>\"\",VLOOKUP('Procedure details'!N112,Lists!$B$2:$C$71,2,FALSE),\"\")","v":""},{"$f":"IF('Procedure details'!H112<>\"\",VLOOKUP('Procedure details'!H112,Lists!$AP$2:$AQ$3,2,FALSE),\"\")","v":""},{"$f":"IF('Procedure details'!N112<>\"\",VLOOKUP('Procedure details'!N112,Lists!$B$2:$D$71,3,FALSE),\"\")","v":""},{"$f":"IF('Procedure details'!P112<>\"\",VLOOKUP('Procedure details'!P112,Lists!$AD$2:$AE$11,2,FALSE),\"\")","v":""},{"$f":"IF(AND(AB112=1,'Procedure details'!G112>99,'Procedure details'!V112=\"\"),1,0)","v":0},{"$f":"IF(AND(AB112=0,'Procedure details'!G112>999,'Procedure details'!V112=\"\"),1,0)","v":0}]
[null,null,null,null,null,null,null,null,null,null,null,null,null,null,null,null,null,null,null,null,null,null,null,113,{"$f":"COUNTA('Procedure details'!E113:'Procedure details'!V113)","v":0},null,{"$f":"IF('Procedure details'!E113<>\"\",VLOOKUP('Procedure details'!E113,Lists!$M$2:$N$38,2,FALSE),\"\")","v":""},{"$f":"IF('Procedure details'!E113<>\"\",VLOOKUP('Procedure details'!E113,Lists!$M$2:$O$38,3,FALSE),\"\")","v":""},{"$f":"IF('Procedure details'!N113<>\"\",VLOOKUP('Procedure details'!N113,Lists!$B$2:$C$71,2,FALSE),\"\")","v":""},{"$f":"IF('Procedure details'!H113<>\"\",VLOOKUP('Procedure details'!H113,Lists!$AP$2:$AQ$3,2,FALSE),\"\")","v":""},{"$f":"IF('Procedure details'!N113<>\"\",VLOOKUP('Procedure details'!N113,Lists!$B$2:$D$71,3,FALSE),\"\")","v":""},{"$f":"IF('Procedure details'!P113<>\"\",VLOOKUP('Procedure details'!P113,Lists!$AD$2:$AE$11,2,FALSE),\"\")","v":""},{"$f":"IF(AND(AB113=1,'Procedure details'!G113>99,'Procedure details'!V113=\"\"),1,0)","v":0},{"$f":"IF(AND(AB113=0,'Procedure details'!G113>999,'Procedure details'!V113=\"\"),1,0)","v":0}]
[null,null,null,null,null,null,null,null,null,null,null,null,null,null,null,null,null,null,null,null,null,null,null,114,{"$f":"COUNTA('Procedure details'!E114:'Procedure details'!V114)","v":0},null,{"$f":"IF('Procedure details'!E114<>\"\",VLOOKUP('Procedure details'!E114,Lists!$M$2:$N$38,2,FALSE),\"\")","v":""},{"$f":"IF('Procedure details'!E114<>\"\",VLOOKUP('Procedure details'!E114,Lists!$M$2:$O$38,3,FALSE),\"\")","v":""},{"$f":"IF('Procedure details'!N114<>\"\",VLOOKUP('Procedure details'!N114,Lists!$B$2:$C$71,2,FALSE),\"\")","v":""},{"$f":"IF('Procedure details'!H114<>\"\",VLOOKUP('Procedure details'!H114,Lists!$AP$2:$AQ$3,2,FALSE),\"\")","v":""},{"$f":"IF('Procedure details'!N114<>\"\",VLOOKUP('Procedure details'!N114,Lists!$B$2:$D$71,3,FALSE),\"\")","v":""},{"$f":"IF('Procedure details'!P114<>\"\",VLOOKUP('Procedure details'!P114,Lists!$AD$2:$AE$11,2,FALSE),\"\")","v":""},{"$f":"IF(AND(AB114=1,'Procedure details'!G114>99,'Procedure details'!V114=\"\"),1,0)","v":0},{"$f":"IF(AND(AB114=0,'Procedure details'!G114>999,'Procedure details'!V114=\"\"),1,0)","v":0}]
[null,null,null,null,null,null,null,null,null,null,null,null,null,null,null,null,null,null,null,null,null,null,null,115,{"$f":"COUNTA('Procedure details'!E115:'Procedure details'!V115)","v":0},null,{"$f":"IF('Procedure details'!E115<>\"\",VLOOKUP('Procedure details'!E115,Lists!$M$2:$N$38,2,FALSE),\"\")","v":""},{"$f":"IF('Procedure details'!E115<>\"\",VLOOKUP('Procedure details'!E115,Lists!$M$2:$O$38,3,FALSE),\"\")","v":""},{"$f":"IF('Procedure details'!N115<>\"\",VLOOKUP('Procedure details'!N115,Lists!$B$2:$C$71,2,FALSE),\"\")","v":""},{"$f":"IF('Procedure details'!H115<>\"\",VLOOKUP('Procedure details'!H115,Lists!$AP$2:$AQ$3,2,FALSE),\"\")","v":""},{"$f":"IF('Procedure details'!N115<>\"\",VLOOKUP('Procedure details'!N115,Lists!$B$2:$D$71,3,FALSE),\"\")","v":""},{"$f":"IF('Procedure details'!P115<>\"\",VLOOKUP('Procedure details'!P115,Lists!$AD$2:$AE$11,2,FALSE),\"\")","v":""},{"$f":"IF(AND(AB115=1,'Procedure details'!G115>99,'Procedure details'!V115=\"\"),1,0)","v":0},{"$f":"IF(AND(AB115=0,'Procedure details'!G115>999,'Procedure details'!V115=\"\"),1,0)","v":0}]
[null,null,null,null,null,null,null,null,null,null,null,null,null,null,null,null,null,null,null,null,null,null,null,116,{"$f":"COUNTA('Procedure details'!E116:'Procedure details'!V116)","v":0},null,{"$f":"IF('Procedure details'!E116<>\"\",VLOOKUP('Procedure details'!E116,Lists!$M$2:$N$38,2,FALSE),\"\")","v":""},{"$f":"IF('Procedure details'!E116<>\"\",VLOOKUP('Procedure details'!E116,Lists!$M$2:$O$38,3,FALSE),\"\")","v":""},{"$f":"IF('Procedure details'!N116<>\"\",VLOOKUP('Procedure details'!N116,Lists!$B$2:$C$71,2,FALSE),\"\")","v":""},{"$f":"IF('Procedure details'!H116<>\"\",VLOOKUP('Procedure details'!H116,Lists!$AP$2:$AQ$3,2,FALSE),\"\")","v":""},{"$f":"IF('Procedure details'!N116<>\"\",VLOOKUP('Procedure details'!N116,Lists!$B$2:$D$71,3,FALSE),\"\")","v":""},{"$f":"IF('Procedure details'!P116<>\"\",VLOOKUP('Procedure details'!P116,Lists!$AD$2:$AE$11,2,FALSE),\"\")","v":""},{"$f":"IF(AND(AB116=1,'Procedure details'!G116>99,'Procedure details'!V116=\"\"),1,0)","v":0},{"$f":"IF(AND(AB116=0,'Procedure details'!G116>999,'Procedure details'!V116=\"\"),1,0)","v":0}]
[null,null,null,null,null,null,null,null,null,null,null,null,null,null,null,null,null,null,null,null,null,null,null,117,{"$f":"COUNTA('Procedure details'!E117:'Procedure details'!V117)","v":0},null,{"$f":"IF('Procedure details'!E117<>\"\",VLOOKUP('Procedure details'!E117,Lists!$M$2:$N$38,2,FALSE),\"\")","v":""},{"$f":"IF('Procedure details'!E117<>\"\",VLOOKUP('Procedure details'!E117,Lists!$M$2:$O$38,3,FALSE),\"\")","v":""},{"$f":"IF('Procedure details'!N117<>\"\",VLOOKUP('Procedure details'!N117,Lists!$B$2:$C$71,2,FALSE),\"\")","v":""},{"$f":"IF('Procedure details'!H117<>\"\",VLOOKUP('Procedure details'!H117,Lists!$AP$2:$AQ$3,2,FALSE),\"\")","v":""},{"$f":"IF('Procedure details'!N117<>\"\",VLOOKUP('Procedure details'!N117,Lists!$B$2:$D$71,3,FALSE),\"\")","v":""},{"$f":"IF('Procedure details'!P117<>\"\",VLOOKUP('Procedure details'!P117,Lists!$AD$2:$AE$11,2,FALSE),\"\")","v":""},{"$f":"IF(AND(AB117=1,'Procedure details'!G117>99,'Procedure details'!V117=\"\"),1,0)","v":0},{"$f":"IF(AND(AB117=0,'Procedure details'!G117>999,'Procedure details'!V117=\"\"),1,0)","v":0}]
[null,null,null,null,null,null,null,null,null,null,null,null,null,null,null,null,null,null,null,null,null,null,null,118,{"$f":"COUNTA('Procedure details'!E118:'Procedure details'!V118)","v":0},null,{"$f":"IF('Procedure details'!E118<>\"\",VLOOKUP('Procedure details'!E118,Lists!$M$2:$N$38,2,FALSE),\"\")","v":""},{"$f":"IF('Procedure details'!E118<>\"\",VLOOKUP('Procedure details'!E118,Lists!$M$2:$O$38,3,FALSE),\"\")","v":""},{"$f":"IF('Procedure details'!N118<>\"\",VLOOKUP('Procedure details'!N118,Lists!$B$2:$C$71,2,FALSE),\"\")","v":""},{"$f":"IF('Procedure details'!H118<>\"\",VLOOKUP('Procedure details'!H118,Lists!$AP$2:$AQ$3,2,FALSE),\"\")","v":""},{"$f":"IF('Procedure details'!N118<>\"\",VLOOKUP('Procedure details'!N118,Lists!$B$2:$D$71,3,FALSE),\"\")","v":""},{"$f":"IF('Procedure details'!P118<>\"\",VLOOKUP('Procedure details'!P118,Lists!$AD$2:$AE$11,2,FALSE),\"\")","v":""},{"$f":"IF(AND(AB118=1,'Procedure details'!G118>99,'Procedure details'!V118=\"\"),1,0)","v":0},{"$f":"IF(AND(AB118=0,'Procedure details'!G118>999,'Procedure details'!V118=\"\"),1,0)","v":0}]
[null,null,null,null,null,null,null,null,null,null,null,null,null,null,null,null,null,null,null,null,null,null,null,119,{"$f":"COUNTA('Procedure details'!E119:'Procedure details'!V119)","v":0},null,{"$f":"IF('Procedure details'!E119<>\"\",VLOOKUP('Procedure details'!E119,Lists!$M$2:$N$38,2,FALSE),\"\")","v":""},{"$f":"IF('Procedure details'!E119<>\"\",VLOOKUP('Procedure details'!E119,Lists!$M$2:$O$38,3,FALSE),\"\")","v":""},{"$f":"IF('Procedure details'!N119<>\"\",VLOOKUP('Procedure details'!N119,Lists!$B$2:$C$71,2,FALSE),\"\")","v":""},{"$f":"IF('Procedure details'!H119<>\"\",VLOOKUP('Procedure details'!H119,Lists!$AP$2:$AQ$3,2,FALSE),\"\")","v":""},{"$f":"IF('Procedure details'!N119<>\"\",VLOOKUP('Procedure details'!N119,Lists!$B$2:$D$71,3,FALSE),\"\")","v":""},{"$f":"IF('Procedure details'!P119<>\"\",VLOOKUP('Procedure details'!P119,Lists!$AD$2:$AE$11,2,FALSE),\"\")","v":""},{"$f":"IF(AND(AB119=1,'Procedure details'!G119>99,'Procedure details'!V119=\"\"),1,0)","v":0},{"$f":"IF(AND(AB119=0,'Procedure details'!G119>999,'Procedure details'!V119=\"\"),1,0)","v":0}]
[null,null,null,null,null,null,null,null,null,null,null,null,null,null,null,null,null,null,null,null,null,null,null,120,{"$f":"COUNTA('Procedure details'!E120:'Procedure details'!V120)","v":0},null,{"$f":"IF('Procedure details'!E120<>\"\",VLOOKUP('Procedure details'!E120,Lists!$M$2:$N$38,2,FALSE),\"\")","v":""},{"$f":"IF('Procedure details'!E120<>\"\",VLOOKUP('Procedure details'!E120,Lists!$M$2:$O$38,3,FALSE),\"\")","v":""},{"$f":"IF('Procedure details'!N120<>\"\",VLOOKUP('Procedure details'!N120,Lists!$B$2:$C$71,2,FALSE),\"\")","v":""},{"$f":"IF('Procedure details'!H120<>\"\",VLOOKUP('Procedure details'!H120,Lists!$AP$2:$AQ$3,2,FALSE),\"\")","v":""},{"$f":"IF('Procedure details'!N120<>\"\",VLOOKUP('Procedure details'!N120,Lists!$B$2:$D$71,3,FALSE),\"\")","v":""},{"$f":"IF('Procedure details'!P120<>\"\",VLOOKUP('Procedure details'!P120,Lists!$AD$2:$AE$11,2,FALSE),\"\")","v":""},{"$f":"IF(AND(AB120=1,'Procedure details'!G120>99,'Procedure details'!V120=\"\"),1,0)","v":0},{"$f":"IF(AND(AB120=0,'Procedure details'!G120>999,'Procedure details'!V120=\"\"),1,0)","v":0}]
[null,null,null,null,null,null,null,null,null,null,null,null,null,null,null,null,null,null,null,null,null,null,null,121,{"$f":"COUNTA('Procedure details'!E121:'Procedure details'!V121)","v":0},null,{"$f":"IF('Procedure details'!E121<>\"\",VLOOKUP('Procedure details'!E121,Lists!$M$2:$N$38,2,FALSE),\"\")","v":""},{"$f":"IF('Procedure details'!E121<>\"\",VLOOKUP('Procedure details'!E121,Lists!$M$2:$O$38,3,FALSE),\"\")","v":""},{"$f":"IF('Procedure details'!N121<>\"\",VLOOKUP('Procedure details'!N121,Lists!$B$2:$C$71,2,FALSE),\"\")","v":""},{"$f":"IF('Procedure details'!H121<>\"\",VLOOKUP('Procedure details'!H121,Lists!$AP$2:$AQ$3,2,FALSE),\"\")","v":""},{"$f":"IF('Procedure details'!N121<>\"\",VLOOKUP('Procedure details'!N121,Lists!$B$2:$D$71,3,FALSE),\"\")","v":""},{"$f":"IF('Procedure details'!P121<>\"\",VLOOKUP('Procedure details'!P121,Lists!$AD$2:$AE$11,2,FALSE),\"\")","v":""},{"$f":"IF(AND(AB121=1,'Procedure details'!G121>99,'Procedure details'!V121=\"\"),1,0)","v":0},{"$f":"IF(AND(AB121=0,'Procedure details'!G121>999,'Procedure details'!V121=\"\"),1,0)","v":0}]
[null,null,null,null,null,null,null,null,null,null,null,null,null,null,null,null,null,null,null,null,null,null,null,122,{"$f":"COUNTA('Procedure details'!E122:'Procedure details'!V122)","v":0},null,{"$f":"IF('Procedure details'!E122<>\"\",VLOOKUP('Procedure details'!E122,Lists!$M$2:$N$38,2,FALSE),\"\")","v":""},{"$f":"IF('Procedure details'!E122<>\"\",VLOOKUP('Procedure details'!E122,Lists!$M$2:$O$38,3,FALSE),\"\")","v":""},{"$f":"IF('Procedure details'!N122<>\"\",VLOOKUP('Procedure details'!N122,Lists!$B$2:$C$71,2,FALSE),\"\")","v":""},{"$f":"IF('Procedure details'!H122<>\"\",VLOOKUP('Procedure details'!H122,Lists!$AP$2:$AQ$3,2,FALSE),\"\")","v":""},{"$f":"IF('Procedure details'!N122<>\"\",VLOOKUP('Procedure details'!N122,Lists!$B$2:$D$71,3,FALSE),\"\")","v":""},{"$f":"IF('Procedure details'!P122<>\"\",VLOOKUP('Procedure details'!P122,Lists!$AD$2:$AE$11,2,FALSE),\"\")","v":""},{"$f":"IF(AND(AB122=1,'Procedure details'!G122>99,'Procedure details'!V122=\"\"),1,0)","v":0},{"$f":"IF(AND(AB122=0,'Procedure details'!G122>999,'Procedure details'!V122=\"\"),1,0)","v":0}]
[null,null,null,null,null,null,null,null,null,null,null,null,null,null,null,null,null,null,null,null,null,null,null,123,{"$f":"COUNTA('Procedure details'!E123:'Procedure details'!V123)","v":0},null,{"$f":"IF('Procedure details'!E123<>\"\",VLOOKUP('Procedure details'!E123,Lists!$M$2:$N$38,2,FALSE),\"\")","v":""},{"$f":"IF('Procedure details'!E123<>\"\",VLOOKUP('Procedure details'!E123,Lists!$M$2:$O$38,3,FALSE),\"\")","v":""},{"$f":"IF('Procedure details'!N123<>\"\",VLOOKUP('Procedure details'!N123,Lists!$B$2:$C$71,2,FALSE),\"\")","v":""},{"$f":"IF('Procedure details'!H123<>\"\",VLOOKUP('Procedure details'!H123,Lists!$AP$2:$AQ$3,2,FALSE),\"\")","v":""},{"$f":"IF('Procedure details'!N123<>\"\",VLOOKUP('Procedure details'!N123,Lists!$B$2:$D$71,3,FALSE),\"\")","v":""},{"$f":"IF('Procedure details'!P123<>\"\",VLOOKUP('Procedure details'!P123,Lists!$AD$2:$AE$11,2,FALSE),\"\")","v":""},{"$f":"IF(AND(AB123=1,'Procedure details'!G123>99,'Procedure details'!V123=\"\"),1,0)","v":0},{"$f":"IF(AND(AB123=0,'Procedure details'!G123>999,'Procedure details'!V123=\"\"),1,0)","v":0}]
[null,null,null,null,null,null,null,null,null,null,null,null,null,null,null,null,null,null,null,null,null,null,null,124,{"$f":"COUNTA('Procedure details'!E124:'Procedure details'!V124)","v":0},null,{"$f":"IF('Procedure details'!E124<>\"\",VLOOKUP('Procedure details'!E124,Lists!$M$2:$N$38,2,FALSE),\"\")","v":""},{"$f":"IF('Procedure details'!E124<>\"\",VLOOKUP('Procedure details'!E124,Lists!$M$2:$O$38,3,FALSE),\"\")","v":""},{"$f":"IF('Procedure details'!N124<>\"\",VLOOKUP('Procedure details'!N124,Lists!$B$2:$C$71,2,FALSE),\"\")","v":""},{"$f":"IF('Procedure details'!H124<>\"\",VLOOKUP('Procedure details'!H124,Lists!$AP$2:$AQ$3,2,FALSE),\"\")","v":""},{"$f":"IF('Procedure details'!N124<>\"\",VLOOKUP('Procedure details'!N124,Lists!$B$2:$D$71,3,FALSE),\"\")","v":""},{"$f":"IF('Procedure details'!P124<>\"\",VLOOKUP('Procedure details'!P124,Lists!$AD$2:$AE$11,2,FALSE),\"\")","v":""},{"$f":"IF(AND(AB124=1,'Procedure details'!G124>99,'Procedure details'!V124=\"\"),1,0)","v":0},{"$f":"IF(AND(AB124=0,'Procedure details'!G124>999,'Procedure details'!V124=\"\"),1,0)","v":0}]
[null,null,null,null,null,null,null,null,null,null,null,null,null,null,null,null,null,null,null,null,null,null,null,125,{"$f":"COUNTA('Procedure details'!E125:'Procedure details'!V125)","v":0},null,{"$f":"IF('Procedure details'!E125<>\"\",VLOOKUP('Procedure details'!E125,Lists!$M$2:$N$38,2,FALSE),\"\")","v":""},{"$f":"IF('Procedure details'!E125<>\"\",VLOOKUP('Procedure details'!E125,Lists!$M$2:$O$38,3,FALSE),\"\")","v":""},{"$f":"IF('Procedure details'!N125<>\"\",VLOOKUP('Procedure details'!N125,Lists!$B$2:$C$71,2,FALSE),\"\")","v":""},{"$f":"IF('Procedure details'!H125<>\"\",VLOOKUP('Procedure details'!H125,Lists!$AP$2:$AQ$3,2,FALSE),\"\")","v":""},{"$f":"IF('Procedure details'!N125<>\"\",VLOOKUP('Procedure details'!N125,Lists!$B$2:$D$71,3,FALSE),\"\")","v":""},{"$f":"IF('Procedure details'!P125<>\"\",VLOOKUP('Procedure details'!P125,Lists!$AD$2:$AE$11,2,FALSE),\"\")","v":""},{"$f":"IF(AND(AB125=1,'Procedure details'!G125>99,'Procedure details'!V125=\"\"),1,0)","v":0},{"$f":"IF(AND(AB125=0,'Procedure details'!G125>999,'Procedure details'!V125=\"\"),1,0)","v":0}]
[null,null,null,null,null,null,null,null,null,null,null,null,null,null,null,null,null,null,null,null,null,null,null,126,{"$f":"COUNTA('Procedure details'!E126:'Procedure details'!V126)","v":0},null,{"$f":"IF('Procedure details'!E126<>\"\",VLOOKUP('Procedure details'!E126,Lists!$M$2:$N$38,2,FALSE),\"\")","v":""},{"$f":"IF('Procedure details'!E126<>\"\",VLOOKUP('Procedure details'!E126,Lists!$M$2:$O$38,3,FALSE),\"\")","v":""},{"$f":"IF('Procedure details'!N126<>\"\",VLOOKUP('Procedure details'!N126,Lists!$B$2:$C$71,2,FALSE),\"\")","v":""},{"$f":"IF('Procedure details'!H126<>\"\",VLOOKUP('Procedure details'!H126,Lists!$AP$2:$AQ$3,2,FALSE),\"\")","v":""},{"$f":"IF('Procedure details'!N126<>\"\",VLOOKUP('Procedure details'!N126,Lists!$B$2:$D$71,3,FALSE),\"\")","v":""},{"$f":"IF('Procedure details'!P126<>\"\",VLOOKUP('Procedure details'!P126,Lists!$AD$2:$AE$11,2,FALSE),\"\")","v":""},{"$f":"IF(AND(AB126=1,'Procedure details'!G126>99,'Procedure details'!V126=\"\"),1,0)","v":0},{"$f":"IF(AND(AB126=0,'Procedure details'!G126>999,'Procedure details'!V126=\"\"),1,0)","v":0}]
[null,null,null,null,null,null,null,null,null,null,null,null,null,null,null,null,null,null,null,null,null,null,null,127,{"$f":"COUNTA('Procedure details'!E127:'Procedure details'!V127)","v":0},null,{"$f":"IF('Procedure details'!E127<>\"\",VLOOKUP('Procedure details'!E127,Lists!$M$2:$N$38,2,FALSE),\"\")","v":""},{"$f":"IF('Procedure details'!E127<>\"\",VLOOKUP('Procedure details'!E127,Lists!$M$2:$O$38,3,FALSE),\"\")","v":""},{"$f":"IF('Procedure details'!N127<>\"\",VLOOKUP('Procedure details'!N127,Lists!$B$2:$C$71,2,FALSE),\"\")","v":""},{"$f":"IF('Procedure details'!H127<>\"\",VLOOKUP('Procedure details'!H127,Lists!$AP$2:$AQ$3,2,FALSE),\"\")","v":""},{"$f":"IF('Procedure details'!N127<>\"\",VLOOKUP('Procedure details'!N127,Lists!$B$2:$D$71,3,FALSE),\"\")","v":""},{"$f":"IF('Procedure details'!P127<>\"\",VLOOKUP('Procedure details'!P127,Lists!$AD$2:$AE$11,2,FALSE),\"\")","v":""},{"$f":"IF(AND(AB127=1,'Procedure details'!G127>99,'Procedure details'!V127=\"\"),1,0)","v":0},{"$f":"IF(AND(AB127=0,'Procedure details'!G127>999,'Procedure details'!V127=\"\"),1,0)","v":0}]
[null,null,null,null,null,null,null,null,null,null,null,null,null,null,null,null,null,null,null,null,null,null,null,128,{"$f":"COUNTA('Procedure details'!E128:'Procedure details'!V128)","v":0},null,{"$f":"IF('Procedure details'!E128<>\"\",VLOOKUP('Procedure details'!E128,Lists!$M$2:$N$38,2,FALSE),\"\")","v":""},{"$f":"IF('Procedure details'!E128<>\"\",VLOOKUP('Procedure details'!E128,Lists!$M$2:$O$38,3,FALSE),\"\")","v":""},{"$f":"IF('Procedure details'!N128<>\"\",VLOOKUP('Procedure details'!N128,Lists!$B$2:$C$71,2,FALSE),\"\")","v":""},{"$f":"IF('Procedure details'!H128<>\"\",VLOOKUP('Procedure details'!H128,Lists!$AP$2:$AQ$3,2,FALSE),\"\")","v":""},{"$f":"IF('Procedure details'!N128<>\"\",VLOOKUP('Procedure details'!N128,Lists!$B$2:$D$71,3,FALSE),\"\")","v":""},{"$f":"IF('Procedure details'!P128<>\"\",VLOOKUP('Procedure details'!P128,Lists!$AD$2:$AE$11,2,FALSE),\"\")","v":""},{"$f":"IF(AND(AB128=1,'Procedure details'!G128>99,'Procedure details'!V128=\"\"),1,0)","v":0},{"$f":"IF(AND(AB128=0,'Procedure details'!G128>999,'Procedure details'!V128=\"\"),1,0)","v":0}]
[null,null,null,null,null,null,null,null,null,null,null,null,null,null,null,null,null,null,null,null,null,null,null,129,{"$f":"COUNTA('Procedure details'!E129:'Procedure details'!V129)","v":0},null,{"$f":"IF('Procedure details'!E129<>\"\",VLOOKUP('Procedure details'!E129,Lists!$M$2:$N$38,2,FALSE),\"\")","v":""},{"$f":"IF('Procedure details'!E129<>\"\",VLOOKUP('Procedure details'!E129,Lists!$M$2:$O$38,3,FALSE),\"\")","v":""},{"$f":"IF('Procedure details'!N129<>\"\",VLOOKUP('Procedure details'!N129,Lists!$B$2:$C$71,2,FALSE),\"\")","v":""},{"$f":"IF('Procedure details'!H129<>\"\",VLOOKUP('Procedure details'!H129,Lists!$AP$2:$AQ$3,2,FALSE),\"\")","v":""},{"$f":"IF('Procedure details'!N129<>\"\",VLOOKUP('Procedure details'!N129,Lists!$B$2:$D$71,3,FALSE),\"\")","v":""},{"$f":"IF('Procedure details'!P129<>\"\",VLOOKUP('Procedure details'!P129,Lists!$AD$2:$AE$11,2,FALSE),\"\")","v":""},{"$f":"IF(AND(AB129=1,'Procedure details'!G129>99,'Procedure details'!V129=\"\"),1,0)","v":0},{"$f":"IF(AND(AB129=0,'Procedure details'!G129>999,'Procedure details'!V129=\"\"),1,0)","v":0}]
[null,null,null,null,null,null,null,null,null,null,null,null,null,null,null,null,null,null,null,null,null,null,null,130,{"$f":"COUNTA('Procedure details'!E130:'Procedure details'!V130)","v":0},null,{"$f":"IF('Procedure details'!E130<>\"\",VLOOKUP('Procedure details'!E130,Lists!$M$2:$N$38,2,FALSE),\"\")","v":""},{"$f":"IF('Procedure details'!E130<>\"\",VLOOKUP('Procedure details'!E130,Lists!$M$2:$O$38,3,FALSE),\"\")","v":""},{"$f":"IF('Procedure details'!N130<>\"\",VLOOKUP('Procedure details'!N130,Lists!$B$2:$C$71,2,FALSE),\"\")","v":""},{"$f":"IF('Procedure details'!H130<>\"\",VLOOKUP('Procedure details'!H130,Lists!$AP$2:$AQ$3,2,FALSE),\"\")","v":""},{"$f":"IF('Procedure details'!N130<>\"\",VLOOKUP('Procedure details'!N130,Lists!$B$2:$D$71,3,FALSE),\"\")","v":""},{"$f":"IF('Procedure details'!P130<>\"\",VLOOKUP('Procedure details'!P130,Lists!$AD$2:$AE$11,2,FALSE),\"\")","v":""},{"$f":"IF(AND(AB130=1,'Procedure details'!G130>99,'Procedure details'!V130=\"\"),1,0)","v":0},{"$f":"IF(AND(AB130=0,'Procedure details'!G130>999,'Procedure details'!V130=\"\"),1,0)","v":0}]
[null,null,null,null,null,null,null,null,null,null,null,null,null,null,null,null,null,null,null,null,null,null,null,131,{"$f":"COUNTA('Procedure details'!E131:'Procedure details'!V131)","v":0},null,{"$f":"IF('Procedure details'!E131<>\"\",VLOOKUP('Procedure details'!E131,Lists!$M$2:$N$38,2,FALSE),\"\")","v":""},{"$f":"IF('Procedure details'!E131<>\"\",VLOOKUP('Procedure details'!E131,Lists!$M$2:$O$38,3,FALSE),\"\")","v":""},{"$f":"IF('Procedure details'!N131<>\"\",VLOOKUP('Procedure details'!N131,Lists!$B$2:$C$71,2,FALSE),\"\")","v":""},{"$f":"IF('Procedure details'!H131<>\"\",VLOOKUP('Procedure details'!H131,Lists!$AP$2:$AQ$3,2,FALSE),\"\")","v":""},{"$f":"IF('Procedure details'!N131<>\"\",VLOOKUP('Procedure details'!N131,Lists!$B$2:$D$71,3,FALSE),\"\")","v":""},{"$f":"IF('Procedure details'!P131<>\"\",VLOOKUP('Procedure details'!P131,Lists!$AD$2:$AE$11,2,FALSE),\"\")","v":""},{"$f":"IF(AND(AB131=1,'Procedure details'!G131>99,'Procedure details'!V131=\"\"),1,0)","v":0},{"$f":"IF(AND(AB131=0,'Procedure details'!G131>999,'Procedure details'!V131=\"\"),1,0)","v":0}]
[null,null,null,null,null,null,null,null,null,null,null,null,null,null,null,null,null,null,null,null,null,null,null,132,{"$f":"COUNTA('Procedure details'!E132:'Procedure details'!V132)","v":0},null,{"$f":"IF('Procedure details'!E132<>\"\",VLOOKUP('Procedure details'!E132,Lists!$M$2:$N$38,2,FALSE),\"\")","v":""},{"$f":"IF('Procedure details'!E132<>\"\",VLOOKUP('Procedure details'!E132,Lists!$M$2:$O$38,3,FALSE),\"\")","v":""},{"$f":"IF('Procedure details'!N132<>\"\",VLOOKUP('Procedure details'!N132,Lists!$B$2:$C$71,2,FALSE),\"\")","v":""},{"$f":"IF('Procedure details'!H132<>\"\",VLOOKUP('Procedure details'!H132,Lists!$AP$2:$AQ$3,2,FALSE),\"\")","v":""},{"$f":"IF('Procedure details'!N132<>\"\",VLOOKUP('Procedure details'!N132,Lists!$B$2:$D$71,3,FALSE),\"\")","v":""},{"$f":"IF('Procedure details'!P132<>\"\",VLOOKUP('Procedure details'!P132,Lists!$AD$2:$AE$11,2,FALSE),\"\")","v":""},{"$f":"IF(AND(AB132=1,'Procedure details'!G132>99,'Procedure details'!V132=\"\"),1,0)","v":0},{"$f":"IF(AND(AB132=0,'Procedure details'!G132>999,'Procedure details'!V132=\"\"),1,0)","v":0}]
[null,null,null,null,null,null,null,null,null,null,null,null,null,null,null,null,null,null,null,null,null,null,null,133,{"$f":"COUNTA('Procedure details'!E133:'Procedure details'!V133)","v":0},null,{"$f":"IF('Procedure details'!E133<>\"\",VLOOKUP('Procedure details'!E133,Lists!$M$2:$N$38,2,FALSE),\"\")","v":""},{"$f":"IF('Procedure details'!E133<>\"\",VLOOKUP('Procedure details'!E133,Lists!$M$2:$O$38,3,FALSE),\"\")","v":""},{"$f":"IF('Procedure details'!N133<>\"\",VLOOKUP('Procedure details'!N133,Lists!$B$2:$C$71,2,FALSE),\"\")","v":""},{"$f":"IF('Procedure details'!H133<>\"\",VLOOKUP('Procedure details'!H133,Lists!$AP$2:$AQ$3,2,FALSE),\"\")","v":""},{"$f":"IF('Procedure details'!N133<>\"\",VLOOKUP('Procedure details'!N133,Lists!$B$2:$D$71,3,FALSE),\"\")","v":""},{"$f":"IF('Procedure details'!P133<>\"\",VLOOKUP('Procedure details'!P133,Lists!$AD$2:$AE$11,2,FALSE),\"\")","v":""},{"$f":"IF(AND(AB133=1,'Procedure details'!G133>99,'Procedure details'!V133=\"\"),1,0)","v":0},{"$f":"IF(AND(AB133=0,'Procedure details'!G133>999,'Procedure details'!V133=\"\"),1,0)","v":0}]
[null,null,null,null,null,null,null,null,null,null,null,null,null,null,null,null,null,null,null,null,null,null,null,134,{"$f":"COUNTA('Procedure details'!E134:'Procedure details'!V134)","v":0},null,{"$f":"IF('Procedure details'!E134<>\"\",VLOOKUP('Procedure details'!E134,Lists!$M$2:$N$38,2,FALSE),\"\")","v":""},{"$f":"IF('Procedure details'!E134<>\"\",VLOOKUP('Procedure details'!E134,Lists!$M$2:$O$38,3,FALSE),\"\")","v":""},{"$f":"IF('Procedure details'!N134<>\"\",VLOOKUP('Procedure details'!N134,Lists!$B$2:$C$71,2,FALSE),\"\")","v":""},{"$f":"IF('Procedure details'!H134<>\"\",VLOOKUP('Procedure details'!H134,Lists!$AP$2:$AQ$3,2,FALSE),\"\")","v":""},{"$f":"IF('Procedure details'!N134<>\"\",VLOOKUP('Procedure details'!N134,Lists!$B$2:$D$71,3,FALSE),\"\")","v":""},{"$f":"IF('Procedure details'!P134<>\"\",VLOOKUP('Procedure details'!P134,Lists!$AD$2:$AE$11,2,FALSE),\"\")","v":""},{"$f":"IF(AND(AB134=1,'Procedure details'!G134>99,'Procedure details'!V134=\"\"),1,0)","v":0},{"$f":"IF(AND(AB134=0,'Procedure details'!G134>999,'Procedure details'!V134=\"\"),1,0)","v":0}]
[null,null,null,null,null,null,null,null,null,null,null,null,null,null,null,null,null,null,null,null,null,null,null,135,{"$f":"COUNTA('Procedure details'!E135:'Procedure details'!V135)","v":0},null,{"$f":"IF('Procedure details'!E135<>\"\",VLOOKUP('Procedure details'!E135,Lists!$M$2:$N$38,2,FALSE),\"\")","v":""},{"$f":"IF('Procedure details'!E135<>\"\",VLOOKUP('Procedure details'!E135,Lists!$M$2:$O$38,3,FALSE),\"\")","v":""},{"$f":"IF('Procedure details'!N135<>\"\",VLOOKUP('Procedure details'!N135,Lists!$B$2:$C$71,2,FALSE),\"\")","v":""},{"$f":"IF('Procedure details'!H135<>\"\",VLOOKUP('Procedure details'!H135,Lists!$AP$2:$AQ$3,2,FALSE),\"\")","v":""},{"$f":"IF('Procedure details'!N135<>\"\",VLOOKUP('Procedure details'!N135,Lists!$B$2:$D$71,3,FALSE),\"\")","v":""},{"$f":"IF('Procedure details'!P135<>\"\",VLOOKUP('Procedure details'!P135,Lists!$AD$2:$AE$11,2,FALSE),\"\")","v":""},{"$f":"IF(AND(AB135=1,'Procedure details'!G135>99,'Procedure details'!V135=\"\"),1,0)","v":0},{"$f":"IF(AND(AB135=0,'Procedure details'!G135>999,'Procedure details'!V135=\"\"),1,0)","v":0}]
[null,null,null,null,null,null,null,null,null,null,null,null,null,null,null,null,null,null,null,null,null,null,null,136,{"$f":"COUNTA('Procedure details'!E136:'Procedure details'!V136)","v":0},null,{"$f":"IF('Procedure details'!E136<>\"\",VLOOKUP('Procedure details'!E136,Lists!$M$2:$N$38,2,FALSE),\"\")","v":""},{"$f":"IF('Procedure details'!E136<>\"\",VLOOKUP('Procedure details'!E136,Lists!$M$2:$O$38,3,FALSE),\"\")","v":""},{"$f":"IF('Procedure details'!N136<>\"\",VLOOKUP('Procedure details'!N136,Lists!$B$2:$C$71,2,FALSE),\"\")","v":""},{"$f":"IF('Procedure details'!H136<>\"\",VLOOKUP('Procedure details'!H136,Lists!$AP$2:$AQ$3,2,FALSE),\"\")","v":""},{"$f":"IF('Procedure details'!N136<>\"\",VLOOKUP('Procedure details'!N136,Lists!$B$2:$D$71,3,FALSE),\"\")","v":""},{"$f":"IF('Procedure details'!P136<>\"\",VLOOKUP('Procedure details'!P136,Lists!$AD$2:$AE$11,2,FALSE),\"\")","v":""},{"$f":"IF(AND(AB136=1,'Procedure details'!G136>99,'Procedure details'!V136=\"\"),1,0)","v":0},{"$f":"IF(AND(AB136=0,'Procedure details'!G136>999,'Procedure details'!V136=\"\"),1,0)","v":0}]
[null,null,null,null,null,null,null,null,null,null,null,null,null,null,null,null,null,null,null,null,null,null,null,137,{"$f":"COUNTA('Procedure details'!E137:'Procedure details'!V137)","v":0},null,{"$f":"IF('Procedure details'!E137<>\"\",VLOOKUP('Procedure details'!E137,Lists!$M$2:$N$38,2,FALSE),\"\")","v":""},{"$f":"IF('Procedure details'!E137<>\"\",VLOOKUP('Procedure details'!E137,Lists!$M$2:$O$38,3,FALSE),\"\")","v":""},{"$f":"IF('Procedure details'!N137<>\"\",VLOOKUP('Procedure details'!N137,Lists!$B$2:$C$71,2,FALSE),\"\")","v":""},{"$f":"IF('Procedure details'!H137<>\"\",VLOOKUP('Procedure details'!H137,Lists!$AP$2:$AQ$3,2,FALSE),\"\")","v":""},{"$f":"IF('Procedure details'!N137<>\"\",VLOOKUP('Procedure details'!N137,Lists!$B$2:$D$71,3,FALSE),\"\")","v":""},{"$f":"IF('Procedure details'!P137<>\"\",VLOOKUP('Procedure details'!P137,Lists!$AD$2:$AE$11,2,FALSE),\"\")","v":""},{"$f":"IF(AND(AB137=1,'Procedure details'!G137>99,'Procedure details'!V137=\"\"),1,0)","v":0},{"$f":"IF(AND(AB137=0,'Procedure details'!G137>999,'Procedure details'!V137=\"\"),1,0)","v":0}]
[null,null,null,null,null,null,null,null,null,null,null,null,null,null,null,null,null,null,null,null,null,null,null,138,{"$f":"COUNTA('Procedure details'!E138:'Procedure details'!V138)","v":0},null,{"$f":"IF('Procedure details'!E138<>\"\",VLOOKUP('Procedure details'!E138,Lists!$M$2:$N$38,2,FALSE),\"\")","v":""},{"$f":"IF('Procedure details'!E138<>\"\",VLOOKUP('Procedure details'!E138,Lists!$M$2:$O$38,3,FALSE),\"\")","v":""},{"$f":"IF('Procedure details'!N138<>\"\",VLOOKUP('Procedure details'!N138,Lists!$B$2:$C$71,2,FALSE),\"\")","v":""},{"$f":"IF('Procedure details'!H138<>\"\",VLOOKUP('Procedure details'!H138,Lists!$AP$2:$AQ$3,2,FALSE),\"\")","v":""},{"$f":"IF('Procedure details'!N138<>\"\",VLOOKUP('Procedure details'!N138,Lists!$B$2:$D$71,3,FALSE),\"\")","v":""},{"$f":"IF('Procedure details'!P138<>\"\",VLOOKUP('Procedure details'!P138,Lists!$AD$2:$AE$11,2,FALSE),\"\")","v":""},{"$f":"IF(AND(AB138=1,'Procedure details'!G138>99,'Procedure details'!V138=\"\"),1,0)","v":0},{"$f":"IF(AND(AB138=0,'Procedure details'!G138>999,'Procedure details'!V138=\"\"),1,0)","v":0}]
[null,null,null,null,null,null,null,null,null,null,null,null,null,null,null,null,null,null,null,null,null,null,null,139,{"$f":"COUNTA('Procedure details'!E139:'Procedure details'!V139)","v":0},null,{"$f":"IF('Procedure details'!E139<>\"\",VLOOKUP('Procedure details'!E139,Lists!$M$2:$N$38,2,FALSE),\"\")","v":""},{"$f":"IF('Procedure details'!E139<>\"\",VLOOKUP('Procedure details'!E139,Lists!$M$2:$O$38,3,FALSE),\"\")","v":""},{"$f":"IF('Procedure details'!N139<>\"\",VLOOKUP('Procedure details'!N139,Lists!$B$2:$C$71,2,FALSE),\"\")","v":""},{"$f":"IF('Procedure details'!H139<>\"\",VLOOKUP('Procedure details'!H139,Lists!$AP$2:$AQ$3,2,FALSE),\"\")","v":""},{"$f":"IF('Procedure details'!N139<>\"\",VLOOKUP('Procedure details'!N139,Lists!$B$2:$D$71,3,FALSE),\"\")","v":""},{"$f":"IF('Procedure details'!P139<>\"\",VLOOKUP('Procedure details'!P139,Lists!$AD$2:$AE$11,2,FALSE),\"\")","v":""},{"$f":"IF(AND(AB139=1,'Procedure details'!G139>99,'Procedure details'!V139=\"\"),1,0)","v":0},{"$f":"IF(AND(AB139=0,'Procedure details'!G139>999,'Procedure details'!V139=\"\"),1,0)","v":0}]
[null,null,null,null,null,null,null,null,null,null,null,null,null,null,null,null,null,null,null,null,null,null,null,140,{"$f":"COUNTA('Procedure details'!E140:'Procedure details'!V140)","v":0},null,{"$f":"IF('Procedure details'!E140<>\"\",VLOOKUP('Procedure details'!E140,Lists!$M$2:$N$38,2,FALSE),\"\")","v":""},{"$f":"IF('Procedure details'!E140<>\"\",VLOOKUP('Procedure details'!E140,Lists!$M$2:$O$38,3,FALSE),\"\")","v":""},{"$f":"IF('Procedure details'!N140<>\"\",VLOOKUP('Procedure details'!N140,Lists!$B$2:$C$71,2,FALSE),\"\")","v":""},{"$f":"IF('Procedure details'!H140<>\"\",VLOOKUP('Procedure details'!H140,Lists!$AP$2:$AQ$3,2,FALSE),\"\")","v":""},{"$f":"IF('Procedure details'!N140<>\"\",VLOOKUP('Procedure details'!N140,Lists!$B$2:$D$71,3,FALSE),\"\")","v":""},{"$f":"IF('Procedure details'!P140<>\"\",VLOOKUP('Procedure details'!P140,Lists!$AD$2:$AE$11,2,FALSE),\"\")","v":""},{"$f":"IF(AND(AB140=1,'Procedure details'!G140>99,'Procedure details'!V140=\"\"),1,0)","v":0},{"$f":"IF(AND(AB140=0,'Procedure details'!G140>999,'Procedure details'!V140=\"\"),1,0)","v":0}]
[null,null,null,null,null,null,null,null,null,null,null,null,null,null,null,null,null,null,null,null,null,null,null,141,{"$f":"COUNTA('Procedure details'!E141:'Procedure details'!V141)","v":0},null,{"$f":"IF('Procedure details'!E141<>\"\",VLOOKUP('Procedure details'!E141,Lists!$M$2:$N$38,2,FALSE),\"\")","v":""},{"$f":"IF('Procedure details'!E141<>\"\",VLOOKUP('Procedure details'!E141,Lists!$M$2:$O$38,3,FALSE),\"\")","v":""},{"$f":"IF('Procedure details'!N141<>\"\",VLOOKUP('Procedure details'!N141,Lists!$B$2:$C$71,2,FALSE),\"\")","v":""},{"$f":"IF('Procedure details'!H141<>\"\",VLOOKUP('Procedure details'!H141,Lists!$AP$2:$AQ$3,2,FALSE),\"\")","v":""},{"$f":"IF('Procedure details'!N141<>\"\",VLOOKUP('Procedure details'!N141,Lists!$B$2:$D$71,3,FALSE),\"\")","v":""},{"$f":"IF('Procedure details'!P141<>\"\",VLOOKUP('Procedure details'!P141,Lists!$AD$2:$AE$11,2,FALSE),\"\")","v":""},{"$f":"IF(AND(AB141=1,'Procedure details'!G141>99,'Procedure details'!V141=\"\"),1,0)","v":0},{"$f":"IF(AND(AB141=0,'Procedure details'!G141>999,'Procedure details'!V141=\"\"),1,0)","v":0}]
[null,null,null,null,null,null,null,null,null,null,null,null,null,null,null,null,null,null,null,null,null,null,null,142,{"$f":"COUNTA('Procedure details'!E142:'Procedure details'!V142)","v":0},null,{"$f":"IF('Procedure details'!E142<>\"\",VLOOKUP('Procedure details'!E142,Lists!$M$2:$N$38,2,FALSE),\"\")","v":""},{"$f":"IF('Procedure details'!E142<>\"\",VLOOKUP('Procedure details'!E142,Lists!$M$2:$O$38,3,FALSE),\"\")","v":""},{"$f":"IF('Procedure details'!N142<>\"\",VLOOKUP('Procedure details'!N142,Lists!$B$2:$C$71,2,FALSE),\"\")","v":""},{"$f":"IF('Procedure details'!H142<>\"\",VLOOKUP('Procedure details'!H142,Lists!$AP$2:$AQ$3,2,FALSE),\"\")","v":""},{"$f":"IF('Procedure details'!N142<>\"\",VLOOKUP('Procedure details'!N142,Lists!$B$2:$D$71,3,FALSE),\"\")","v":""},{"$f":"IF('Procedure details'!P142<>\"\",VLOOKUP('Procedure details'!P142,Lists!$AD$2:$AE$11,2,FALSE),\"\")","v":""},{"$f":"IF(AND(AB142=1,'Procedure details'!G142>99,'Procedure details'!V142=\"\"),1,0)","v":0},{"$f":"IF(AND(AB142=0,'Procedure details'!G142>999,'Procedure details'!V142=\"\"),1,0)","v":0}]
[null,null,null,null,null,null,null,null,null,null,null,null,null,null,null,null,null,null,null,null,null,null,null,143,{"$f":"COUNTA('Procedure details'!E143:'Procedure details'!V143)","v":0},null,{"$f":"IF('Procedure details'!E143<>\"\",VLOOKUP('Procedure details'!E143,Lists!$M$2:$N$38,2,FALSE),\"\")","v":""},{"$f":"IF('Procedure details'!E143<>\"\",VLOOKUP('Procedure details'!E143,Lists!$M$2:$O$38,3,FALSE),\"\")","v":""},{"$f":"IF('Procedure details'!N143<>\"\",VLOOKUP('Procedure details'!N143,Lists!$B$2:$C$71,2,FALSE),\"\")","v":""},{"$f":"IF('Procedure details'!H143<>\"\",VLOOKUP('Procedure details'!H143,Lists!$AP$2:$AQ$3,2,FALSE),\"\")","v":""},{"$f":"IF('Procedure details'!N143<>\"\",VLOOKUP('Procedure details'!N143,Lists!$B$2:$D$71,3,FALSE),\"\")","v":""},{"$f":"IF('Procedure details'!P143<>\"\",VLOOKUP('Procedure details'!P143,Lists!$AD$2:$AE$11,2,FALSE),\"\")","v":""},{"$f":"IF(AND(AB143=1,'Procedure details'!G143>99,'Procedure details'!V143=\"\"),1,0)","v":0},{"$f":"IF(AND(AB143=0,'Procedure details'!G143>999,'Procedure details'!V143=\"\"),1,0)","v":0}]
[null,null,null,null,null,null,null,null,null,null,null,null,null,null,null,null,null,null,null,null,null,null,null,144,{"$f":"COUNTA('Procedure details'!E144:'Procedure details'!V144)","v":0},null,{"$f":"IF('Procedure details'!E144<>\"\",VLOOKUP('Procedure details'!E144,Lists!$M$2:$N$38,2,FALSE),\"\")","v":""},{"$f":"IF('Procedure details'!E144<>\"\",VLOOKUP('Procedure details'!E144,Lists!$M$2:$O$38,3,FALSE),\"\")","v":""},{"$f":"IF('Procedure details'!N144<>\"\",VLOOKUP('Procedure details'!N144,Lists!$B$2:$C$71,2,FALSE),\"\")","v":""},{"$f":"IF('Procedure details'!H144<>\"\",VLOOKUP('Procedure details'!H144,Lists!$AP$2:$AQ$3,2,FALSE),\"\")","v":""},{"$f":"IF('Procedure details'!N144<>\"\",VLOOKUP('Procedure details'!N144,Lists!$B$2:$D$71,3,FALSE),\"\")","v":""},{"$f":"IF('Procedure details'!P144<>\"\",VLOOKUP('Procedure details'!P144,Lists!$AD$2:$AE$11,2,FALSE),\"\")","v":""},{"$f":"IF(AND(AB144=1,'Procedure details'!G144>99,'Procedure details'!V144=\"\"),1,0)","v":0},{"$f":"IF(AND(AB144=0,'Procedure details'!G144>999,'Procedure details'!V144=\"\"),1,0)","v":0}]
[null,null,null,null,null,null,null,null,null,null,null,null,null,null,null,null,null,null,null,null,null,null,null,145,{"$f":"COUNTA('Procedure details'!E145:'Procedure details'!V145)","v":0},null,{"$f":"IF('Procedure details'!E145<>\"\",VLOOKUP('Procedure details'!E145,Lists!$M$2:$N$38,2,FALSE),\"\")","v":""},{"$f":"IF('Procedure details'!E145<>\"\",VLOOKUP('Procedure details'!E145,Lists!$M$2:$O$38,3,FALSE),\"\")","v":""},{"$f":"IF('Procedure details'!N145<>\"\",VLOOKUP('Procedure details'!N145,Lists!$B$2:$C$71,2,FALSE),\"\")","v":""},{"$f":"IF('Procedure details'!H145<>\"\",VLOOKUP('Procedure details'!H145,Lists!$AP$2:$AQ$3,2,FALSE),\"\")","v":""},{"$f":"IF('Procedure details'!N145<>\"\",VLOOKUP('Procedure details'!N145,Lists!$B$2:$D$71,3,FALSE),\"\")","v":""},{"$f":"IF('Procedure details'!P145<>\"\",VLOOKUP('Procedure details'!P145,Lists!$AD$2:$AE$11,2,FALSE),\"\")","v":""},{"$f":"IF(AND(AB145=1,'Procedure details'!G145>99,'Procedure details'!V145=\"\"),1,0)","v":0},{"$f":"IF(AND(AB145=0,'Procedure details'!G145>999,'Procedure details'!V145=\"\"),1,0)","v":0}]
[null,null,null,null,null,null,null,null,null,null,null,null,null,null,null,null,null,null,null,null,null,null,null,146,{"$f":"COUNTA('Procedure details'!E146:'Procedure details'!V146)","v":0},null,{"$f":"IF('Procedure details'!E146<>\"\",VLOOKUP('Procedure details'!E146,Lists!$M$2:$N$38,2,FALSE),\"\")","v":""},{"$f":"IF('Procedure details'!E146<>\"\",VLOOKUP('Procedure details'!E146,Lists!$M$2:$O$38,3,FALSE),\"\")","v":""},{"$f":"IF('Procedure details'!N146<>\"\",VLOOKUP('Procedure details'!N146,Lists!$B$2:$C$71,2,FALSE),\"\")","v":""},{"$f":"IF('Procedure details'!H146<>\"\",VLOOKUP('Procedure details'!H146,Lists!$AP$2:$AQ$3,2,FALSE),\"\")","v":""},{"$f":"IF('Procedure details'!N146<>\"\",VLOOKUP('Procedure details'!N146,Lists!$B$2:$D$71,3,FALSE),\"\")","v":""},{"$f":"IF('Procedure details'!P146<>\"\",VLOOKUP('Procedure details'!P146,Lists!$AD$2:$AE$11,2,FALSE),\"\")","v":""},{"$f":"IF(AND(AB146=1,'Procedure details'!G146>99,'Procedure details'!V146=\"\"),1,0)","v":0},{"$f":"IF(AND(AB146=0,'Procedure details'!G146>999,'Procedure details'!V146=\"\"),1,0)","v":0}]
[null,null,null,null,null,null,null,null,null,null,null,null,null,null,null,null,null,null,null,null,null,null,null,147,{"$f":"COUNTA('Procedure details'!E147:'Procedure details'!V147)","v":0},null,{"$f":"IF('Procedure details'!E147<>\"\",VLOOKUP('Procedure details'!E147,Lists!$M$2:$N$38,2,FALSE),\"\")","v":""},{"$f":"IF('Procedure details'!E147<>\"\",VLOOKUP('Procedure details'!E147,Lists!$M$2:$O$38,3,FALSE),\"\")","v":""},{"$f":"IF('Procedure details'!N147<>\"\",VLOOKUP('Procedure details'!N147,Lists!$B$2:$C$71,2,FALSE),\"\")","v":""},{"$f":"IF('Procedure details'!H147<>\"\",VLOOKUP('Procedure details'!H147,Lists!$AP$2:$AQ$3,2,FALSE),\"\")","v":""},{"$f":"IF('Procedure details'!N147<>\"\",VLOOKUP('Procedure details'!N147,Lists!$B$2:$D$71,3,FALSE),\"\")","v":""},{"$f":"IF('Procedure details'!P147<>\"\",VLOOKUP('Procedure details'!P147,Lists!$AD$2:$AE$11,2,FALSE),\"\")","v":""},{"$f":"IF(AND(AB147=1,'Procedure details'!G147>99,'Procedure details'!V147=\"\"),1,0)","v":0},{"$f":"IF(AND(AB147=0,'Procedure details'!G147>999,'Procedure details'!V147=\"\"),1,0)","v":0}]
[null,null,null,null,null,null,null,null,null,null,null,null,null,null,null,null,null,null,null,null,null,null,null,148,{"$f":"COUNTA('Procedure details'!E148:'Procedure details'!V148)","v":0},null,{"$f":"IF('Procedure details'!E148<>\"\",VLOOKUP('Procedure details'!E148,Lists!$M$2:$N$38,2,FALSE),\"\")","v":""},{"$f":"IF('Procedure details'!E148<>\"\",VLOOKUP('Procedure details'!E148,Lists!$M$2:$O$38,3,FALSE),\"\")","v":""},{"$f":"IF('Procedure details'!N148<>\"\",VLOOKUP('Procedure details'!N148,Lists!$B$2:$C$71,2,FALSE),\"\")","v":""},{"$f":"IF('Procedure details'!H148<>\"\",VLOOKUP('Procedure details'!H148,Lists!$AP$2:$AQ$3,2,FALSE),\"\")","v":""},{"$f":"IF('Procedure details'!N148<>\"\",VLOOKUP('Procedure details'!N148,Lists!$B$2:$D$71,3,FALSE),\"\")","v":""},{"$f":"IF('Procedure details'!P148<>\"\",VLOOKUP('Procedure details'!P148,Lists!$AD$2:$AE$11,2,FALSE),\"\")","v":""},{"$f":"IF(AND(AB148=1,'Procedure details'!G148>99,'Procedure details'!V148=\"\"),1,0)","v":0},{"$f":"IF(AND(AB148=0,'Procedure details'!G148>999,'Procedure details'!V148=\"\"),1,0)","v":0}]
[null,null,null,null,null,null,null,null,null,null,null,null,null,null,null,null,null,null,null,null,null,null,null,149,{"$f":"COUNTA('Procedure details'!E149:'Procedure details'!V149)","v":0},null,{"$f":"IF('Procedure details'!E149<>\"\",VLOOKUP('Procedure details'!E149,Lists!$M$2:$N$38,2,FALSE),\"\")","v":""},{"$f":"IF('Procedure details'!E149<>\"\",VLOOKUP('Procedure details'!E149,Lists!$M$2:$O$38,3,FALSE),\"\")","v":""},{"$f":"IF('Procedure details'!N149<>\"\",VLOOKUP('Procedure details'!N149,Lists!$B$2:$C$71,2,FALSE),\"\")","v":""},{"$f":"IF('Procedure details'!H149<>\"\",VLOOKUP('Procedure details'!H149,Lists!$AP$2:$AQ$3,2,FALSE),\"\")","v":""},{"$f":"IF('Procedure details'!N149<>\"\",VLOOKUP('Procedure details'!N149,Lists!$B$2:$D$71,3,FALSE),\"\")","v":""},{"$f":"IF('Procedure details'!P149<>\"\",VLOOKUP('Procedure details'!P149,Lists!$AD$2:$AE$11,2,FALSE),\"\")","v":""},{"$f":"IF(AND(AB149=1,'Procedure details'!G149>99,'Procedure details'!V149=\"\"),1,0)","v":0},{"$f":"IF(AND(AB149=0,'Procedure details'!G149>999,'Procedure details'!V149=\"\"),1,0)","v":0}]
[null,null,null,null,null,null,null,null,null,null,null,null,null,null,null,null,null,null,null,null,null,null,null,150,{"$f":"COUNTA('Procedure details'!E150:'Procedure details'!V150)","v":0},null,{"$f":"IF('Procedure details'!E150<>\"\",VLOOKUP('Procedure details'!E150,Lists!$M$2:$N$38,2,FALSE),\"\")","v":""},{"$f":"IF('Procedure details'!E150<>\"\",VLOOKUP('Procedure details'!E150,Lists!$M$2:$O$38,3,FALSE),\"\")","v":""},{"$f":"IF('Procedure details'!N150<>\"\",VLOOKUP('Procedure details'!N150,Lists!$B$2:$C$71,2,FALSE),\"\")","v":""},{"$f":"IF('Procedure details'!H150<>\"\",VLOOKUP('Procedure details'!H150,Lists!$AP$2:$AQ$3,2,FALSE),\"\")","v":""},{"$f":"IF('Procedure details'!N150<>\"\",VLOOKUP('Procedure details'!N150,Lists!$B$2:$D$71,3,FALSE),\"\")","v":""},{"$f":"IF('Procedure details'!P150<>\"\",VLOOKUP('Procedure details'!P150,Lists!$AD$2:$AE$11,2,FALSE),\"\")","v":""},{"$f":"IF(AND(AB150=1,'Procedure details'!G150>99,'Procedure details'!V150=\"\"),1,0)","v":0},{"$f":"IF(AND(AB150=0,'Procedure details'!G150>999,'Procedure details'!V150=\"\"),1,0)","v":0}]
[null,null,null,null,null,null,null,null,null,null,null,null,null,null,null,null,null,null,null,null,null,null,null,151,{"$f":"COUNTA('Procedure details'!E151:'Procedure details'!V151)","v":0},null,{"$f":"IF('Procedure details'!E151<>\"\",VLOOKUP('Procedure details'!E151,Lists!$M$2:$N$38,2,FALSE),\"\")","v":""},{"$f":"IF('Procedure details'!E151<>\"\",VLOOKUP('Procedure details'!E151,Lists!$M$2:$O$38,3,FALSE),\"\")","v":""},{"$f":"IF('Procedure details'!N151<>\"\",VLOOKUP('Procedure details'!N151,Lists!$B$2:$C$71,2,FALSE),\"\")","v":""},{"$f":"IF('Procedure details'!H151<>\"\",VLOOKUP('Procedure details'!H151,Lists!$AP$2:$AQ$3,2,FALSE),\"\")","v":""},{"$f":"IF('Procedure details'!N151<>\"\",VLOOKUP('Procedure details'!N151,Lists!$B$2:$D$71,3,FALSE),\"\")","v":""},{"$f":"IF('Procedure details'!P151<>\"\",VLOOKUP('Procedure details'!P151,Lists!$AD$2:$AE$11,2,FALSE),\"\")","v":""},{"$f":"IF(AND(AB151=1,'Procedure details'!G151>99,'Procedure details'!V151=\"\"),1,0)","v":0},{"$f":"IF(AND(AB151=0,'Procedure details'!G151>999,'Procedure details'!V151=\"\"),1,0)","v":0}]
[null,null,null,null,null,null,null,null,null,null,null,null,null,null,null,null,null,null,null,null,null,null,null,152,{"$f":"COUNTA('Procedure details'!E152:'Procedure details'!V152)","v":0},null,{"$f":"IF('Procedure details'!E152<>\"\",VLOOKUP('Procedure details'!E152,Lists!$M$2:$N$38,2,FALSE),\"\")","v":""},{"$f":"IF('Procedure details'!E152<>\"\",VLOOKUP('Procedure details'!E152,Lists!$M$2:$O$38,3,FALSE),\"\")","v":""},{"$f":"IF('Procedure details'!N152<>\"\",VLOOKUP('Procedure details'!N152,Lists!$B$2:$C$71,2,FALSE),\"\")","v":""},{"$f":"IF('Procedure details'!H152<>\"\",VLOOKUP('Procedure details'!H152,Lists!$AP$2:$AQ$3,2,FALSE),\"\")","v":""},{"$f":"IF('Procedure details'!N152<>\"\",VLOOKUP('Procedure details'!N152,Lists!$B$2:$D$71,3,FALSE),\"\")","v":""},{"$f":"IF('Procedure details'!P152<>\"\",VLOOKUP('Procedure details'!P152,Lists!$AD$2:$AE$11,2,FALSE),\"\")","v":""},{"$f":"IF(AND(AB152=1,'Procedure details'!G152>99,'Procedure details'!V152=\"\"),1,0)","v":0},{"$f":"IF(AND(AB152=0,'Procedure details'!G152>999,'Procedure details'!V152=\"\"),1,0)","v":0}]
[null,null,null,null,null,null,null,null,null,null,null,null,null,null,null,null,null,null,null,null,null,null,null,153,{"$f":"COUNTA('Procedure details'!E153:'Procedure details'!V153)","v":0},null,{"$f":"IF('Procedure details'!E153<>\"\",VLOOKUP('Procedure details'!E153,Lists!$M$2:$N$38,2,FALSE),\"\")","v":""},{"$f":"IF('Procedure details'!E153<>\"\",VLOOKUP('Procedure details'!E153,Lists!$M$2:$O$38,3,FALSE),\"\")","v":""},{"$f":"IF('Procedure details'!N153<>\"\",VLOOKUP('Procedure details'!N153,Lists!$B$2:$C$71,2,FALSE),\"\")","v":""},{"$f":"IF('Procedure details'!H153<>\"\",VLOOKUP('Procedure details'!H153,Lists!$AP$2:$AQ$3,2,FALSE),\"\")","v":""},{"$f":"IF('Procedure details'!N153<>\"\",VLOOKUP('Procedure details'!N153,Lists!$B$2:$D$71,3,FALSE),\"\")","v":""},{"$f":"IF('Procedure details'!P153<>\"\",VLOOKUP('Procedure details'!P153,Lists!$AD$2:$AE$11,2,FALSE),\"\")","v":""},{"$f":"IF(AND(AB153=1,'Procedure details'!G153>99,'Procedure details'!V153=\"\"),1,0)","v":0},{"$f":"IF(AND(AB153=0,'Procedure details'!G153>999,'Procedure details'!V153=\"\"),1,0)","v":0}]
[null,null,null,null,null,null,null,null,null,null,null,null,null,null,null,null,null,null,null,null,null,null,null,154,{"$f":"COUNTA('Procedure details'!E154:'Procedure details'!V154)","v":0},null,{"$f":"IF('Procedure details'!E154<>\"\",VLOOKUP('Procedure details'!E154,Lists!$M$2:$N$38,2,FALSE),\"\")","v":""},{"$f":"IF('Procedure details'!E154<>\"\",VLOOKUP('Procedure details'!E154,Lists!$M$2:$O$38,3,FALSE),\"\")","v":""},{"$f":"IF('Procedure details'!N154<>\"\",VLOOKUP('Procedure details'!N154,Lists!$B$2:$C$71,2,FALSE),\"\")","v":""},{"$f":"IF('Procedure details'!H154<>\"\",VLOOKUP('Procedure details'!H154,Lists!$AP$2:$AQ$3,2,FALSE),\"\")","v":""},{"$f":"IF('Procedure details'!N154<>\"\",VLOOKUP('Procedure details'!N154,Lists!$B$2:$D$71,3,FALSE),\"\")","v":""},{"$f":"IF('Procedure details'!P154<>\"\",VLOOKUP('Procedure details'!P154,Lists!$AD$2:$AE$11,2,FALSE),\"\")","v":""},{"$f":"IF(AND(AB154=1,'Procedure details'!G154>99,'Procedure details'!V154=\"\"),1,0)","v":0},{"$f":"IF(AND(AB154=0,'Procedure details'!G154>999,'Procedure details'!V154=\"\"),1,0)","v":0}]
[null,null,null,null,null,null,null,null,null,null,null,null,null,null,null,null,null,null,null,null,null,null,null,155,{"$f":"COUNTA('Procedure details'!E155:'Procedure details'!V155)","v":0},null,{"$f":"IF('Procedure details'!E155<>\"\",VLOOKUP('Procedure details'!E155,Lists!$M$2:$N$38,2,FALSE),\"\")","v":""},{"$f":"IF('Procedure details'!E155<>\"\",VLOOKUP('Procedure details'!E155,Lists!$M$2:$O$38,3,FALSE),\"\")","v":""},{"$f":"IF('Procedure details'!N155<>\"\",VLOOKUP('Procedure details'!N155,Lists!$B$2:$C$71,2,FALSE),\"\")","v":""},{"$f":"IF('Procedure details'!H155<>\"\",VLOOKUP('Procedure details'!H155,Lists!$AP$2:$AQ$3,2,FALSE),\"\")","v":""},{"$f":"IF('Procedure details'!N155<>\"\",VLOOKUP('Procedure details'!N155,Lists!$B$2:$D$71,3,FALSE),\"\")","v":""},{"$f":"IF('Procedure details'!P155<>\"\",VLOOKUP('Procedure details'!P155,Lists!$AD$2:$AE$11,2,FALSE),\"\")","v":""},{"$f":"IF(AND(AB155=1,'Procedure details'!G155>99,'Procedure details'!V155=\"\"),1,0)","v":0},{"$f":"IF(AND(AB155=0,'Procedure details'!G155>999,'Procedure details'!V155=\"\"),1,0)","v":0}]
[null,null,null,null,null,null,null,null,null,null,null,null,null,null,null,null,null,null,null,null,null,null,null,156,{"$f":"COUNTA('Procedure details'!E156:'Procedure details'!V156)","v":0},null,{"$f":"IF('Procedure details'!E156<>\"\",VLOOKUP('Procedure details'!E156,Lists!$M$2:$N$38,2,FALSE),\"\")","v":""},{"$f":"IF('Procedure details'!E156<>\"\",VLOOKUP('Procedure details'!E156,Lists!$M$2:$O$38,3,FALSE),\"\")","v":""},{"$f":"IF('Procedure details'!N156<>\"\",VLOOKUP('Procedure details'!N156,Lists!$B$2:$C$71,2,FALSE),\"\")","v":""},{"$f":"IF('Procedure details'!H156<>\"\",VLOOKUP('Procedure details'!H156,Lists!$AP$2:$AQ$3,2,FALSE),\"\")","v":""},{"$f":"IF('Procedure details'!N156<>\"\",VLOOKUP('Procedure details'!N156,Lists!$B$2:$D$71,3,FALSE),\"\")","v":""},{"$f":"IF('Procedure details'!P156<>\"\",VLOOKUP('Procedure details'!P156,Lists!$AD$2:$AE$11,2,FALSE),\"\")","v":""},{"$f":"IF(AND(AB156=1,'Procedure details'!G156>99,'Procedure details'!V156=\"\"),1,0)","v":0},{"$f":"IF(AND(AB156=0,'Procedure details'!G156>999,'Procedure details'!V156=\"\"),1,0)","v":0}]
[null,null,null,null,null,null,null,null,null,null,null,null,null,null,null,null,null,null,null,null,null,null,null,157,{"$f":"COUNTA('Procedure details'!E157:'Procedure details'!V157)","v":0},null,{"$f":"IF('Procedure details'!E157<>\"\",VLOOKUP('Procedure details'!E157,Lists!$M$2:$N$38,2,FALSE),\"\")","v":""},{"$f":"IF('Procedure details'!E157<>\"\",VLOOKUP('Procedure details'!E157,Lists!$M$2:$O$38,3,FALSE),\"\")","v":""},{"$f":"IF('Procedure details'!N157<>\"\",VLOOKUP('Procedure details'!N157,Lists!$B$2:$C$71,2,FALSE),\"\")","v":""},{"$f":"IF('Procedure details'!H157<>\"\",VLOOKUP('Procedure details'!H157,Lists!$AP$2:$AQ$3,2,FALSE),\"\")","v":""},{"$f":"IF('Procedure details'!N157<>\"\",VLOOKUP('Procedure details'!N157,Lists!$B$2:$D$71,3,FALSE),\"\")","v":""},{"$f":"IF('Procedure details'!P157<>\"\",VLOOKUP('Procedure details'!P157,Lists!$AD$2:$AE$11,2,FALSE),\"\")","v":""},{"$f":"IF(AND(AB157=1,'Procedure details'!G157>99,'Procedure details'!V157=\"\"),1,0)","v":0},{"$f":"IF(AND(AB157=0,'Procedure details'!G157>999,'Procedure details'!V157=\"\"),1,0)","v":0}]
[null,null,null,null,null,null,null,null,null,null,null,null,null,null,null,null,null,null,null,null,null,null,null,158,{"$f":"COUNTA('Procedure details'!E158:'Procedure details'!V158)","v":0},null,{"$f":"IF('Procedure details'!E158<>\"\",VLOOKUP('Procedure details'!E158,Lists!$M$2:$N$38,2,FALSE),\"\")","v":""},{"$f":"IF('Procedure details'!E158<>\"\",VLOOKUP('Procedure details'!E158,Lists!$M$2:$O$38,3,FALSE),\"\")","v":""},{"$f":"IF('Procedure details'!N158<>\"\",VLOOKUP('Procedure details'!N158,Lists!$B$2:$C$71,2,FALSE),\"\")","v":""},{"$f":"IF('Procedure details'!H158<>\"\",VLOOKUP('Procedure details'!H158,Lists!$AP$2:$AQ$3,2,FALSE),\"\")","v":""},{"$f":"IF('Procedure details'!N158<>\"\",VLOOKUP('Procedure details'!N158,Lists!$B$2:$D$71,3,FALSE),\"\")","v":""},{"$f":"IF('Procedure details'!P158<>\"\",VLOOKUP('Procedure details'!P158,Lists!$AD$2:$AE$11,2,FALSE),\"\")","v":""},{"$f":"IF(AND(AB158=1,'Procedure details'!G158>99,'Procedure details'!V158=\"\"),1,0)","v":0},{"$f":"IF(AND(AB158=0,'Procedure details'!G158>999,'Procedure details'!V158=\"\"),1,0)","v":0}]
[null,null,null,null,null,null,null,null,null,null,null,null,null,null,null,null,null,null,null,null,null,null,null,159,{"$f":"COUNTA('Procedure details'!E159:'Procedure details'!V159)","v":0},null,{"$f":"IF('Procedure details'!E159<>\"\",VLOOKUP('Procedure details'!E159,Lists!$M$2:$N$38,2,FALSE),\"\")","v":""},{"$f":"IF('Procedure details'!E159<>\"\",VLOOKUP('Procedure details'!E159,Lists!$M$2:$O$38,3,FALSE),\"\")","v":""},{"$f":"IF('Procedure details'!N159<>\"\",VLOOKUP('Procedure details'!N159,Lists!$B$2:$C$71,2,FALSE),\"\")","v":""},{"$f":"IF('Procedure details'!H159<>\"\",VLOOKUP('Procedure details'!H159,Lists!$AP$2:$AQ$3,2,FALSE),\"\")","v":""},{"$f":"IF('Procedure details'!N159<>\"\",VLOOKUP('Procedure details'!N159,Lists!$B$2:$D$71,3,FALSE),\"\")","v":""},{"$f":"IF('Procedure details'!P159<>\"\",VLOOKUP('Procedure details'!P159,Lists!$AD$2:$AE$11,2,FALSE),\"\")","v":""},{"$f":"IF(AND(AB159=1,'Procedure details'!G159>99,'Procedure details'!V159=\"\"),1,0)","v":0},{"$f":"IF(AND(AB159=0,'Procedure details'!G159>999,'Procedure details'!V159=\"\"),1,0)","v":0}]
[null,null,null,null,null,null,null,null,null,null,null,null,null,null,null,null,null,null,null,null,null,null,null,160,{"$f":"COUNTA('Procedure details'!E160:'Procedure details'!V160)","v":0},null,{"$f":"IF('Procedure details'!E160<>\"\",VLOOKUP('Procedure details'!E160,Lists!$M$2:$N$38,2,FALSE),\"\")","v":""},{"$f":"IF('Procedure details'!E160<>\"\",VLOOKUP('Procedure details'!E160,Lists!$M$2:$O$38,3,FALSE),\"\")","v":""},{"$f":"IF('Procedure details'!N160<>\"\",VLOOKUP('Procedure details'!N160,Lists!$B$2:$C$71,2,FALSE),\"\")","v":""},{"$f":"IF('Procedure details'!H160<>\"\",VLOOKUP('Procedure details'!H160,Lists!$AP$2:$AQ$3,2,FALSE),\"\")","v":""},{"$f":"IF('Procedure details'!N160<>\"\",VLOOKUP('Procedure details'!N160,Lists!$B$2:$D$71,3,FALSE),\"\")","v":""},{"$f":"IF('Procedure details'!P160<>\"\",VLOOKUP('Procedure details'!P160,Lists!$AD$2:$AE$11,2,FALSE),\"\")","v":""},{"$f":"IF(AND(AB160=1,'Procedure details'!G160>99,'Procedure details'!V160=\"\"),1,0)","v":0},{"$f":"IF(AND(AB160=0,'Procedure details'!G160>999,'Procedure details'!V160=\"\"),1,0)","v":0}]
[null,null,null,null,null,null,null,null,null,null,null,null,null,null,null,null,null,null,null,null,null,null,null,161,{"$f":"COUNTA('Procedure details'!E161:'Procedure details'!V161)","v":0},null,{"$f":"IF('Procedure details'!E161<>\"\",VLOOKUP('Procedure details'!E161,Lists!$M$2:$N$38,2,FALSE),\"\")","v":""},{"$f":"IF('Procedure details'!E161<>\"\",VLOOKUP('Procedure details'!E161,Lists!$M$2:$O$38,3,FALSE),\"\")","v":""},{"$f":"IF('Procedure details'!N161<>\"\",VLOOKUP('Procedure details'!N161,Lists!$B$2:$C$71,2,FALSE),\"\")","v":""},{"$f":"IF('Procedure details'!H161<>\"\",VLOOKUP('Procedure details'!H161,Lists!$AP$2:$AQ$3,2,FALSE),\"\")","v":""},{"$f":"IF('Procedure details'!N161<>\"\",VLOOKUP('Procedure details'!N161,Lists!$B$2:$D$71,3,FALSE),\"\")","v":""},{"$f":"IF('Procedure details'!P161<>\"\",VLOOKUP('Procedure details'!P161,Lists!$AD$2:$AE$11,2,FALSE),\"\")","v":""},{"$f":"IF(AND(AB161=1,'Procedure details'!G161>99,'Procedure details'!V161=\"\"),1,0)","v":0},{"$f":"IF(AND(AB161=0,'Procedure details'!G161>999,'Procedure details'!V161=\"\"),1,0)","v":0}]
[null,null,null,null,null,null,null,null,null,null,null,null,null,null,null,null,null,null,null,null,null,null,null,162,{"$f":"COUNTA('Procedure details'!E162:'Procedure details'!V162)","v":0},null,{"$f":"IF('Procedure details'!E162<>\"\",VLOOKUP('Procedure details'!E162,Lists!$M$2:$N$38,2,FALSE),\"\")","v":""},{"$f":"IF('Procedure details'!E162<>\"\",VLOOKUP('Procedure details'!E162,Lists!$M$2:$O$38,3,FALSE),\"\")","v":""},{"$f":"IF('Procedure details'!N162<>\"\",VLOOKUP('Procedure details'!N162,Lists!$B$2:$C$71,2,FALSE),\"\")","v":""},{"$f":"IF('Procedure details'!H162<>\"\",VLOOKUP('Procedure details'!H162,Lists!$AP$2:$AQ$3,2,FALSE),\"\")","v":""},{"$f":"IF('Procedure details'!N162<>\"\",VLOOKUP('Procedure details'!N162,Lists!$B$2:$D$71,3,FALSE),\"\")","v":""},{"$f":"IF('Procedure details'!P162<>\"\",VLOOKUP('Procedure details'!P162,Lists!$AD$2:$AE$11,2,FALSE),\"\")","v":""},{"$f":"IF(AND(AB162=1,'Procedure details'!G162>99,'Procedure details'!V162=\"\"),1,0)","v":0},{"$f":"IF(AND(AB162=0,'Procedure details'!G162>999,'Procedure details'!V162=\"\"),1,0)","v":0}]
[null,null,null,null,null,null,null,null,null,null,null,null,null,null,null,null,null,null,null,null,null,null,null,163,{"$f":"COUNTA('Procedure details'!E163:'Procedure details'!V163)","v":0},null,{"$f":"IF('Procedure details'!E163<>\"\",VLOOKUP('Procedure details'!E163,Lists!$M$2:$N$38,2,FALSE),\"\")","v":""},{"$f":"IF('Procedure details'!E163<>\"\",VLOOKUP('Procedure details'!E163,Lists!$M$2:$O$38,3,FALSE),\"\")","v":""},{"$f":"IF('Procedure details'!N163<>\"\",VLOOKUP('Procedure details'!N163,Lists!$B$2:$C$71,2,FALSE),\"\")","v":""},{"$f":"IF('Procedure details'!H163<>\"\",VLOOKUP('Procedure details'!H163,Lists!$AP$2:$AQ$3,2,FALSE),\"\")","v":""},{"$f":"IF('Procedure details'!N163<>\"\",VLOOKUP('Procedure details'!N163,Lists!$B$2:$D$71,3,FALSE),\"\")","v":""},{"$f":"IF('Procedure details'!P163<>\"\",VLOOKUP('Procedure details'!P163,Lists!$AD$2:$AE$11,2,FALSE),\"\")","v":""},{"$f":"IF(AND(AB163=1,'Procedure details'!G163>99,'Procedure details'!V163=\"\"),1,0)","v":0},{"$f":"IF(AND(AB163=0,'Procedure details'!G163>999,'Procedure details'!V163=\"\"),1,0)","v":0}]
[null,null,null,null,null,null,null,null,null,null,null,null,null,null,null,null,null,null,null,null,null,null,null,164,{"$f":"COUNTA('Procedure details'!E164:'Procedure details'!V164)","v":0},null,{"$f":"IF('Procedure details'!E164<>\"\",VLOOKUP('Procedure details'!E164,Lists!$M$2:$N$38,2,FALSE),\"\")","v":""},{"$f":"IF('Procedure details'!E164<>\"\",VLOOKUP('Procedure details'!E164,Lists!$M$2:$O$38,3,FALSE),\"\")","v":""},{"$f":"IF('Procedure details'!N164<>\"\",VLOOKUP('Procedure details'!N164,Lists!$B$2:$C$71,2,FALSE),\"\")","v":""},{"$f":"IF('Procedure details'!H164<>\"\",VLOOKUP('Procedure details'!H164,Lists!$AP$2:$AQ$3,2,FALSE),\"\")","v":""},{"$f":"IF('Procedure details'!N164<>\"\",VLOOKUP('Procedure details'!N164,Lists!$B$2:$D$71,3,FALSE),\"\")","v":""},{"$f":"IF('Procedure details'!P164<>\"\",VLOOKUP('Procedure details'!P164,Lists!$AD$2:$AE$11,2,FALSE),\"\")","v":""},{"$f":"IF(AND(AB164=1,'Procedure details'!G164>99,'Procedure details'!V164=\"\"),1,0)","v":0},{"$f":"IF(AND(AB164=0,'Procedure details'!G164>999,'Procedure details'!V164=\"\"),1,0)","v":0}]
[null,null,null,null,null,null,null,null,null,null,null,null,null,null,null,null,null,null,null,null,null,null,null,165,{"$f":"COUNTA('Procedure details'!E165:'Procedure details'!V165)","v":0},null,{"$f":"IF('Procedure details'!E165<>\"\",VLOOKUP('Procedure details'!E165,Lists!$M$2:$N$38,2,FALSE),\"\")","v":""},{"$f":"IF('Procedure details'!E165<>\"\",VLOOKUP('Procedure details'!E165,Lists!$M$2:$O$38,3,FALSE),\"\")","v":""},{"$f":"IF('Procedure details'!N165<>\"\",VLOOKUP('Procedure details'!N165,Lists!$B$2:$C$71,2,FALSE),\"\")","v":""},{"$f":"IF('Procedure details'!H165<>\"\",VLOOKUP('Procedure details'!H165,Lists!$AP$2:$AQ$3,2,FALSE),\"\")","v":""},{"$f":"IF('Procedure details'!N165<>\"\",VLOOKUP('Procedure details'!N165,Lists!$B$2:$D$71,3,FALSE),\"\")","v":""},{"$f":"IF('Procedure details'!P165<>\"\",VLOOKUP('Procedure details'!P165,Lists!$AD$2:$AE$11,2,FALSE),\"\")","v":""},{"$f":"IF(AND(AB165=1,'Procedure details'!G165>99,'Procedure details'!V165=\"\"),1,0)","v":0},{"$f":"IF(AND(AB165=0,'Procedure details'!G165>999,'Procedure details'!V165=\"\"),1,0)","v":0}]
[null,null,null,null,null,null,null,null,null,null,null,null,null,null,null,null,null,null,null,null,null,null,null,166,{"$f":"COUNTA('Procedure details'!E166:'Procedure details'!V166)","v":0},null,{"$f":"IF('Procedure details'!E166<>\"\",VLOOKUP('Procedure details'!E166,Lists!$M$2:$N$38,2,FALSE),\"\")","v":""},{"$f":"IF('Procedure details'!E166<>\"\",VLOOKUP('Procedure details'!E166,Lists!$M$2:$O$38,3,FALSE),\"\")","v":""},{"$f":"IF('Procedure details'!N166<>\"\",VLOOKUP('Procedure details'!N166,Lists!$B$2:$C$71,2,FALSE),\"\")","v":""},{"$f":"IF('Procedure details'!H166<>\"\",VLOOKUP('Procedure details'!H166,Lists!$AP$2:$AQ$3,2,FALSE),\"\")","v":""},{"$f":"IF('Procedure details'!N166<>\"\",VLOOKUP('Procedure details'!N166,Lists!$B$2:$D$71,3,FALSE),\"\")","v":""},{"$f":"IF('Procedure details'!P166<>\"\",VLOOKUP('Procedure details'!P166,Lists!$AD$2:$AE$11,2,FALSE),\"\")","v":""},{"$f":"IF(AND(AB166=1,'Procedure details'!G166>99,'Procedure details'!V166=\"\"),1,0)","v":0},{"$f":"IF(AND(AB166=0,'Procedure details'!G166>999,'Procedure details'!V166=\"\"),1,0)","v":0}]
[null,null,null,null,null,null,null,null,null,null,null,null,null,null,null,null,null,null,null,null,null,null,null,167,{"$f":"COUNTA('Procedure details'!E167:'Procedure details'!V167)","v":0},null,{"$f":"IF('Procedure details'!E167<>\"\",VLOOKUP('Procedure details'!E167,Lists!$M$2:$N$38,2,FALSE),\"\")","v":""},{"$f":"IF('Procedure details'!E167<>\"\",VLOOKUP('Procedure details'!E167,Lists!$M$2:$O$38,3,FALSE),\"\")","v":""},{"$f":"IF('Procedure details'!N167<>\"\",VLOOKUP('Procedure details'!N167,Lists!$B$2:$C$71,2,FALSE),\"\")","v":""},{"$f":"IF('Procedure details'!H167<>\"\",VLOOKUP('Procedure details'!H167,Lists!$AP$2:$AQ$3,2,FALSE),\"\")","v":""},{"$f":"IF('Procedure details'!N167<>\"\",VLOOKUP('Procedure details'!N167,Lists!$B$2:$D$71,3,FALSE),\"\")","v":""},{"$f":"IF('Procedure details'!P167<>\"\",VLOOKUP('Procedure details'!P167,Lists!$AD$2:$AE$11,2,FALSE),\"\")","v":""},{"$f":"IF(AND(AB167=1,'Procedure details'!G167>99,'Procedure details'!V167=\"\"),1,0)","v":0},{"$f":"IF(AND(AB167=0,'Procedure details'!G167>999,'Procedure details'!V167=\"\"),1,0)","v":0}]
[null,null,null,null,null,null,null,null,null,null,null,null,null,null,null,null,null,null,null,null,null,null,null,168,{"$f":"COUNTA('Procedure details'!E168:'Procedure details'!V168)","v":0},null,{"$f":"IF('Procedure details'!E168<>\"\",VLOOKUP('Procedure details'!E168,Lists!$M$2:$N$38,2,FALSE),\"\")","v":""},{"$f":"IF('Procedure details'!E168<>\"\",VLOOKUP('Procedure details'!E168,Lists!$M$2:$O$38,3,FALSE),\"\")","v":""},{"$f":"IF('Procedure details'!N168<>\"\",VLOOKUP('Procedure details'!N168,Lists!$B$2:$C$71,2,FALSE),\"\")","v":""},{"$f":"IF('Procedure details'!H168<>\"\",VLOOKUP('Procedure details'!H168,Lists!$AP$2:$AQ$3,2,FALSE),\"\")","v":""},{"$f":"IF('Procedure details'!N168<>\"\",VLOOKUP('Procedure details'!N168,Lists!$B$2:$D$71,3,FALSE),\"\")","v":""},{"$f":"IF('Procedure details'!P168<>\"\",VLOOKUP('Procedure details'!P168,Lists!$AD$2:$AE$11,2,FALSE),\"\")","v":""},{"$f":"IF(AND(AB168=1,'Procedure details'!G168>99,'Procedure details'!V168=\"\"),1,0)","v":0},{"$f":"IF(AND(AB168=0,'Procedure details'!G168>999,'Procedure details'!V168=\"\"),1,0)","v":0}]
[null,null,null,null,null,null,null,null,null,null,null,null,null,null,null,null,null,null,null,null,null,null,null,169,{"$f":"COUNTA('Procedure details'!E169:'Procedure details'!V169)","v":0},null,{"$f":"IF('Procedure details'!E169<>\"\",VLOOKUP('Procedure details'!E169,Lists!$M$2:$N$38,2,FALSE),\"\")","v":""},{"$f":"IF('Procedure details'!E169<>\"\",VLOOKUP('Procedure details'!E169,Lists!$M$2:$O$38,3,FALSE),\"\")","v":""},{"$f":"IF('Procedure details'!N169<>\"\",VLOOKUP('Procedure details'!N169,Lists!$B$2:$C$71,2,FALSE),\"\")","v":""},{"$f":"IF('Procedure details'!H169<>\"\",VLOOKUP('Procedure details'!H169,Lists!$AP$2:$AQ$3,2,FALSE),\"\")","v":""},{"$f":"IF('Procedure details'!N169<>\"\",VLOOKUP('Procedure details'!N169,Lists!$B$2:$D$71,3,FALSE),\"\")","v":""},{"$f":"IF('Procedure details'!P169<>\"\",VLOOKUP('Procedure details'!P169,Lists!$AD$2:$AE$11,2,FALSE),\"\")","v":""},{"$f":"IF(AND(AB169=1,'Procedure details'!G169>99,'Procedure details'!V169=\"\"),1,0)","v":0},{"$f":"IF(AND(AB169=0,'Procedure details'!G169>999,'Procedure details'!V169=\"\"),1,0)","v":0}]
[null,null,null,null,null,null,null,null,null,null,null,null,null,null,null,null,null,null,null,null,null,null,null,170,{"$f":"COUNTA('Procedure details'!E170:'Procedure details'!V170)","v":0},null,{"$f":"IF('Procedure details'!E170<>\"\",VLOOKUP('Procedure details'!E170,Lists!$M$2:$N$38,2,FALSE),\"\")","v":""},{"$f":"IF('Procedure details'!E170<>\"\",VLOOKUP('Procedure details'!E170,Lists!$M$2:$O$38,3,FALSE),\"\")","v":""},{"$f":"IF('Procedure details'!N170<>\"\",VLOOKUP('Procedure details'!N170,Lists!$B$2:$C$71,2,FALSE),\"\")","v":""},{"$f":"IF('Procedure details'!H170<>\"\",VLOOKUP('Procedure details'!H170,Lists!$AP$2:$AQ$3,2,FALSE),\"\")","v":""},{"$f":"IF('Procedure details'!N170<>\"\",VLOOKUP('Procedure details'!N170,Lists!$B$2:$D$71,3,FALSE),\"\")","v":""},{"$f":"IF('Procedure details'!P170<>\"\",VLOOKUP('Procedure details'!P170,Lists!$AD$2:$AE$11,2,FALSE),\"\")","v":""},{"$f":"IF(AND(AB170=1,'Procedure details'!G170>99,'Procedure details'!V170=\"\"),1,0)","v":0},{"$f":"IF(AND(AB170=0,'Procedure details'!G170>999,'Procedure details'!V170=\"\"),1,0)","v":0}]
[null,null,null,null,null,null,null,null,null,null,null,null,null,null,null,null,null,null,null,null,null,null,null,171,{"$f":"COUNTA('Procedure details'!E171:'Procedure details'!V171)","v":0},null,{"$f":"IF('Procedure details'!E171<>\"\",VLOOKUP('Procedure details'!E171,Lists!$M$2:$N$38,2,FALSE),\"\")","v":""},{"$f":"IF('Procedure details'!E171<>\"\",VLOOKUP('Procedure details'!E171,Lists!$M$2:$O$38,3,FALSE),\"\")","v":""},{"$f":"IF('Procedure details'!N171<>\"\",VLOOKUP('Procedure details'!N171,Lists!$B$2:$C$71,2,FALSE),\"\")","v":""},{"$f":"IF('Procedure details'!H171<>\"\",VLOOKUP('Procedure details'!H171,Lists!$AP$2:$AQ$3,2,FALSE),\"\")","v":""},{"$f":"IF('Procedure details'!N171<>\"\",VLOOKUP('Procedure details'!N171,Lists!$B$2:$D$71,3,FALSE),\"\")","v":""},{"$f":"IF('Procedure details'!P171<>\"\",VLOOKUP('Procedure details'!P171,Lists!$AD$2:$AE$11,2,FALSE),\"\")","v":""},{"$f":"IF(AND(AB171=1,'Procedure details'!G171>99,'Procedure details'!V171=\"\"),1,0)","v":0},{"$f":"IF(AND(AB171=0,'Procedure details'!G171>999,'Procedure details'!V171=\"\"),1,0)","v":0}]
[null,null,null,null,null,null,null,null,null,null,null,null,null,null,null,null,null,null,null,null,null,null,null,172,{"$f":"COUNTA('Procedure details'!E172:'Procedure details'!V172)","v":0},null,{"$f":"IF('Procedure details'!E172<>\"\",VLOOKUP('Procedure details'!E172,Lists!$M$2:$N$38,2,FALSE),\"\")","v":""},{"$f":"IF('Procedure details'!E172<>\"\",VLOOKUP('Procedure details'!E172,Lists!$M$2:$O$38,3,FALSE),\"\")","v":""},{"$f":"IF('Procedure details'!N172<>\"\",VLOOKUP('Procedure details'!N172,Lists!$B$2:$C$71,2,FALSE),\"\")","v":""},{"$f":"IF('Procedure details'!H172<>\"\",VLOOKUP('Procedure details'!H172,Lists!$AP$2:$AQ$3,2,FALSE),\"\")","v":""},{"$f":"IF('Procedure details'!N172<>\"\",VLOOKUP('Procedure details'!N172,Lists!$B$2:$D$71,3,FALSE),\"\")","v":""},{"$f":"IF('Procedure details'!P172<>\"\",VLOOKUP('Procedure details'!P172,Lists!$AD$2:$AE$11,2,FALSE),\"\")","v":""},{"$f":"IF(AND(AB172=1,'Procedure details'!G172>99,'Procedure details'!V172=\"\"),1,0)","v":0},{"$f":"IF(AND(AB172=0,'Procedure details'!G172>999,'Procedure details'!V172=\"\"),1,0)","v":0}]
[null,null,null,null,null,null,null,null,null,null,null,null,null,null,null,null,null,null,null,null,null,null,null,173,{"$f":"COUNTA('Procedure details'!E173:'Procedure details'!V173)","v":0},null,{"$f":"IF('Procedure details'!E173<>\"\",VLOOKUP('Procedure details'!E173,Lists!$M$2:$N$38,2,FALSE),\"\")","v":""},{"$f":"IF('Procedure details'!E173<>\"\",VLOOKUP('Procedure details'!E173,Lists!$M$2:$O$38,3,FALSE),\"\")","v":""},{"$f":"IF('Procedure details'!N173<>\"\",VLOOKUP('Procedure details'!N173,Lists!$B$2:$C$71,2,FALSE),\"\")","v":""},{"$f":"IF('Procedure details'!H173<>\"\",VLOOKUP('Procedure details'!H173,Lists!$AP$2:$AQ$3,2,FALSE),\"\")","v":""},{"$f":"IF('Procedure details'!N173<>\"\",VLOOKUP('Procedure details'!N173,Lists!$B$2:$D$71,3,FALSE),\"\")","v":""},{"$f":"IF('Procedure details'!P173<>\"\",VLOOKUP('Procedure details'!P173,Lists!$AD$2:$AE$11,2,FALSE),\"\")","v":""},{"$f":"IF(AND(AB173=1,'Procedure details'!G173>99,'Procedure details'!V173=\"\"),1,0)","v":0},{"$f":"IF(AND(AB173=0,'Procedure details'!G173>999,'Procedure details'!V173=\"\"),1,0)","v":0}]
[null,null,null,null,null,null,null,null,null,null,null,null,null,null,null,null,null,null,null,null,null,null,null,174,{"$f":"COUNTA('Procedure details'!E174:'Procedure details'!V174)","v":0},null,{"$f":"IF('Procedure details'!E174<>\"\",VLOOKUP('Procedure details'!E174,Lists!$M$2:$N$38,2,FALSE),\"\")","v":""},{"$f":"IF('Procedure details'!E174<>\"\",VLOOKUP('Procedure details'!E174,Lists!$M$2:$O$38,3,FALSE),\"\")","v":""},{"$f":"IF('Procedure details'!N174<>\"\",VLOOKUP('Procedure details'!N174,Lists!$B$2:$C$71,2,FALSE),\"\")","v":""},{"$f":"IF('Procedure details'!H174<>\"\",VLOOKUP('Procedure details'!H174,Lists!$AP$2:$AQ$3,2,FALSE),\"\")","v":""},{"$f":"IF('Procedure details'!N174<>\"\",VLOOKUP('Procedure details'!N174,Lists!$B$2:$D$71,3,FALSE),\"\")","v":""},{"$f":"IF('Procedure details'!P174<>\"\",VLOOKUP('Procedure details'!P174,Lists!$AD$2:$AE$11,2,FALSE),\"\")","v":""},{"$f":"IF(AND(AB174=1,'Procedure details'!G174>99,'Procedure details'!V174=\"\"),1,0)","v":0},{"$f":"IF(AND(AB174=0,'Procedure details'!G174>999,'Procedure details'!V174=\"\"),1,0)","v":0}]
[null,null,null,null,null,null,null,null,null,null,null,null,null,null,null,null,null,null,null,null,null,null,null,175,{"$f":"COUNTA('Procedure details'!E175:'Procedure details'!V175)","v":0},null,{"$f":"IF('Procedure details'!E175<>\"\",VLOOKUP('Procedure details'!E175,Lists!$M$2:$N$38,2,FALSE),\"\")","v":""},{"$f":"IF('Procedure details'!E175<>\"\",VLOOKUP('Procedure details'!E175,Lists!$M$2:$O$38,3,FALSE),\"\")","v":""},{"$f":"IF('Procedure details'!N175<>\"\",VLOOKUP('Procedure details'!N175,Lists!$B$2:$C$71,2,FALSE),\"\")","v":""},{"$f":"IF('Procedure details'!H175<>\"\",VLOOKUP('Procedure details'!H175,Lists!$AP$2:$AQ$3,2,FALSE),\"\")","v":""},{"$f":"IF('Procedure details'!N175<>\"\",VLOOKUP('Procedure details'!N175,Lists!$B$2:$D$71,3,FALSE),\"\")","v":""},{"$f":"IF('Procedure details'!P175<>\"\",VLOOKUP('Procedure details'!P175,Lists!$AD$2:$AE$11,2,FALSE),\"\")","v":""},{"$f":"IF(AND(AB175=1,'Procedure details'!G175>99,'Procedure details'!V175=\"\"),1,0)","v":0},{"$f":"IF(AND(AB175=0,'Procedure details'!G175>999,'Procedure details'!V175=\"\"),1,0)","v":0}]
[null,null,null,null,null,null,null,null,null,null,null,null,null,null,null,null,null,null,null,null,null,null,null,176,{"$f":"COUNTA('Procedure details'!E176:'Procedure details'!V176)","v":0},null,{"$f":"IF('Procedure details'!E176<>\"\",VLOOKUP('Procedure details'!E176,Lists!$M$2:$N$38,2,FALSE),\"\")","v":""},{"$f":"IF('Procedure details'!E176<>\"\",VLOOKUP('Procedure details'!E176,Lists!$M$2:$O$38,3,FALSE),\"\")","v":""},{"$f":"IF('Procedure details'!N176<>\"\",VLOOKUP('Procedure details'!N176,Lists!$B$2:$C$71,2,FALSE),\"\")","v":""},{"$f":"IF('Procedure details'!H176<>\"\",VLOOKUP('Procedure details'!H176,Lists!$AP$2:$AQ$3,2,FALSE),\"\")","v":""},{"$f":"IF('Procedure details'!N176<>\"\",VLOOKUP('Procedure details'!N176,Lists!$B$2:$D$71,3,FALSE),\"\")","v":""},{"$f":"IF('Procedure details'!P176<>\"\",VLOOKUP('Procedure details'!P176,Lists!$AD$2:$AE$11,2,FALSE),\"\")","v":""},{"$f":"IF(AND(AB176=1,'Procedure details'!G176>99,'Procedure details'!V176=\"\"),1,0)","v":0},{"$f":"IF(AND(AB176=0,'Procedure details'!G176>999,'Procedure details'!V176=\"\"),1,0)","v":0}]
[null,null,null,null,null,null,null,null,null,null,null,null,null,null,null,null,null,null,null,null,null,null,null,177,{"$f":"COUNTA('Procedure details'!E177:'Procedure details'!V177)","v":0},null,{"$f":"IF('Procedure details'!E177<>\"\",VLOOKUP('Procedure details'!E177,Lists!$M$2:$N$38,2,FALSE),\"\")","v":""},{"$f":"IF('Procedure details'!E177<>\"\",VLOOKUP('Procedure details'!E177,Lists!$M$2:$O$38,3,FALSE),\"\")","v":""},{"$f":"IF('Procedure details'!N177<>\"\",VLOOKUP('Procedure details'!N177,Lists!$B$2:$C$71,2,FALSE),\"\")","v":""},{"$f":"IF('Procedure details'!H177<>\"\",VLOOKUP('Procedure details'!H177,Lists!$AP$2:$AQ$3,2,FALSE),\"\")","v":""},{"$f":"IF('Procedure details'!N177<>\"\",VLOOKUP('Procedure details'!N177,Lists!$B$2:$D$71,3,FALSE),\"\")","v":""},{"$f":"IF('Procedure details'!P177<>\"\",VLOOKUP('Procedure details'!P177,Lists!$AD$2:$AE$11,2,FALSE),\"\")","v":""},{"$f":"IF(AND(AB177=1,'Procedure details'!G177>99,'Procedure details'!V177=\"\"),1,0)","v":0},{"$f":"IF(AND(AB177=0,'Procedure details'!G177>999,'Procedure details'!V177=\"\"),1,0)","v":0}]
[null,null,null,null,null,null,null,null,null,null,null,null,null,null,null,null,null,null,null,null,null,null,null,178,{"$f":"COUNTA('Procedure details'!E178:'Procedure details'!V178)","v":0},null,{"$f":"IF('Procedure details'!E178<>\"\",VLOOKUP('Procedure details'!E178,Lists!$M$2:$N$38,2,FALSE),\"\")","v":""},{"$f":"IF('Procedure details'!E178<>\"\",VLOOKUP('Procedure details'!E178,Lists!$M$2:$O$38,3,FALSE),\"\")","v":""},{"$f":"IF('Procedure details'!N178<>\"\",VLOOKUP('Procedure details'!N178,Lists!$B$2:$C$71,2,FALSE),\"\")","v":""},{"$f":"IF('Procedure details'!H178<>\"\",VLOOKUP('Procedure details'!H178,Lists!$AP$2:$AQ$3,2,FALSE),\"\")","v":""},{"$f":"IF('Procedure details'!N178<>\"\",VLOOKUP('Procedure details'!N178,Lists!$B$2:$D$71,3,FALSE),\"\")","v":""},{"$f":"IF('Procedure details'!P178<>\"\",VLOOKUP('Procedure details'!P178,Lists!$AD$2:$AE$11,2,FALSE),\"\")","v":""},{"$f":"IF(AND(AB178=1,'Procedure details'!G178>99,'Procedure details'!V178=\"\"),1,0)","v":0},{"$f":"IF(AND(AB178=0,'Procedure details'!G178>999,'Procedure details'!V178=\"\"),1,0)","v":0}]
[null,null,null,null,null,null,null,null,null,null,null,null,null,null,null,null,null,null,null,null,null,null,null,179,{"$f":"COUNTA('Procedure details'!E179:'Procedure details'!V179)","v":0},null,{"$f":"IF('Procedure details'!E179<>\"\",VLOOKUP('Procedure details'!E179,Lists!$M$2:$N$38,2,FALSE),\"\")","v":""},{"$f":"IF('Procedure details'!E179<>\"\",VLOOKUP('Procedure details'!E179,Lists!$M$2:$O$38,3,FALSE),\"\")","v":""},{"$f":"IF('Procedure details'!N179<>\"\",VLOOKUP('Procedure details'!N179,Lists!$B$2:$C$71,2,FALSE),\"\")","v":""},{"$f":"IF('Procedure details'!H179<>\"\",VLOOKUP('Procedure details'!H179,Lists!$AP$2:$AQ$3,2,FALSE),\"\")","v":""},{"$f":"IF('Procedure details'!N179<>\"\",VLOOKUP('Procedure details'!N179,Lists!$B$2:$D$71,3,FALSE),\"\")","v":""},{"$f":"IF('Procedure details'!P179<>\"\",VLOOKUP('Procedure details'!P179,Lists!$AD$2:$AE$11,2,FALSE),\"\")","v":""},{"$f":"IF(AND(AB179=1,'Procedure details'!G179>99,'Procedure details'!V179=\"\"),1,0)","v":0},{"$f":"IF(AND(AB179=0,'Procedure details'!G179>999,'Procedure details'!V179=\"\"),1,0)","v":0}]
[null,null,null,null,null,null,null,null,null,null,null,null,null,null,null,null,null,null,null,null,null,null,null,180,{"$f":"COUNTA('Procedure details'!E180:'Procedure details'!V180)","v":0},null,{"$f":"IF('Procedure details'!E180<>\"\",VLOOKUP('Procedure details'!E180,Lists!$M$2:$N$38,2,FALSE),\"\")","v":""},{"$f":"IF('Procedure details'!E180<>\"\",VLOOKUP('Procedure details'!E180,Lists!$M$2:$O$38,3,FALSE),\"\")","v":""},{"$f":"IF('Procedure details'!N180<>\"\",VLOOKUP('Procedure details'!N180,Lists!$B$2:$C$71,2,FALSE),\"\")","v":""},{"$f":"IF('Procedure details'!H180<>\"\",VLOOKUP('Procedure details'!H180,Lists!$AP$2:$AQ$3,2,FALSE),\"\")","v":""},{"$f":"IF('Procedure details'!N180<>\"\",VLOOKUP('Procedure details'!N180,Lists!$B$2:$D$71,3,FALSE),\"\")","v":""},{"$f":"IF('Procedure details'!P180<>\"\",VLOOKUP('Procedure details'!P180,Lists!$AD$2:$AE$11,2,FALSE),\"\")","v":""},{"$f":"IF(AND(AB180=1,'Procedure details'!G180>99,'Procedure details'!V180=\"\"),1,0)","v":0},{"$f":"IF(AND(AB180=0,'Procedure details'!G180>999,'Procedure details'!V180=\"\"),1,0)","v":0}]
[null,null,null,null,null,null,null,null,null,null,null,null,null,null,null,null,null,null,null,null,null,null,null,181,{"$f":"COUNTA('Procedure details'!E181:'Procedure details'!V181)","v":0},null,{"$f":"IF('Procedure details'!E181<>\"\",VLOOKUP('Procedure details'!E181,Lists!$M$2:$N$38,2,FALSE),\"\")","v":""},{"$f":"IF('Procedure details'!E181<>\"\",VLOOKUP('Procedure details'!E181,Lists!$M$2:$O$38,3,FALSE),\"\")","v":""},{"$f":"IF('Procedure details'!N181<>\"\",VLOOKUP('Procedure details'!N181,Lists!$B$2:$C$71,2,FALSE),\"\")","v":""},{"$f":"IF('Procedure details'!H181<>\"\",VLOOKUP('Procedure details'!H181,Lists!$AP$2:$AQ$3,2,FALSE),\"\")","v":""},{"$f":"IF('Procedure details'!N181<>\"\",VLOOKUP('Procedure details'!N181,Lists!$B$2:$D$71,3,FALSE),\"\")","v":""},{"$f":"IF('Procedure details'!P181<>\"\",VLOOKUP('Procedure details'!P181,Lists!$AD$2:$AE$11,2,FALSE),\"\")","v":""},{"$f":"IF(AND(AB181=1,'Procedure details'!G181>99,'Procedure details'!V181=\"\"),1,0)","v":0},{"$f":"IF(AND(AB181=0,'Procedure details'!G181>999,'Procedure details'!V181=\"\"),1,0)","v":0}]
[null,null,null,null,null,null,null,null,null,null,null,null,null,null,null,null,null,null,null,null,null,null,null,182,{"$f":"COUNTA('Procedure details'!E182:'Procedure details'!V182)","v":0},null,{"$f":"IF('Procedure details'!E182<>\"\",VLOOKUP('Procedure details'!E182,Lists!$M$2:$N$38,2,FALSE),\"\")","v":""},{"$f":"IF('Procedure details'!E182<>\"\",VLOOKUP('Procedure details'!E182,Lists!$M$2:$O$38,3,FALSE),\"\")","v":""},{"$f":"IF('Procedure details'!N182<>\"\",VLOOKUP('Procedure details'!N182,Lists!$B$2:$C$71,2,FALSE),\"\")","v":""},{"$f":"IF('Procedure details'!H182<>\"\",VLOOKUP('Procedure details'!H182,Lists!$AP$2:$AQ$3,2,FALSE),\"\")","v":""},{"$f":"IF('Procedure details'!N182<>\"\",VLOOKUP('Procedure details'!N182,Lists!$B$2:$D$71,3,FALSE),\"\")","v":""},{"$f":"IF('Procedure details'!P182<>\"\",VLOOKUP('Procedure details'!P182,Lists!$AD$2:$AE$11,2,FALSE),\"\")","v":""},{"$f":"IF(AND(AB182=1,'Procedure details'!G182>99,'Procedure details'!V182=\"\"),1,0)","v":0},{"$f":"IF(AND(AB182=0,'Procedure details'!G182>999,'Procedure details'!V182=\"\"),1,0)","v":0}]
[null,null,null,null,null,null,null,null,null,null,null,null,null,null,null,null,null,null,null,null,null,null,null,183,{"$f":"COUNTA('Procedure details'!E183:'Procedure details'!V183)","v":0},null,{"$f":"IF('Procedure details'!E183<>\"\",VLOOKUP('Procedure details'!E183,Lists!$M$2:$N$38,2,FALSE),\"\")","v":""},{"$f":"IF('Procedure details'!E183<>\"\",VLOOKUP('Procedure details'!E183,Lists!$M$2:$O$38,3,FALSE),\"\")","v":""},{"$f":"IF('Procedure details'!N183<>\"\",VLOOKUP('Procedure details'!N183,Lists!$B$2:$C$71,2,FALSE),\"\")","v":""},{"$f":"IF('Procedure details'!H183<>\"\",VLOOKUP('Procedure details'!H183,Lists!$AP$2:$AQ$3,2,FALSE),\"\")","v":""},{"$f":"IF('Procedure details'!N183<>\"\",VLOOKUP('Procedure details'!N183,Lists!$B$2:$D$71,3,FALSE),\"\")","v":""},{"$f":"IF('Procedure details'!P183<>\"\",VLOOKUP('Procedure details'!P183,Lists!$AD$2:$AE$11,2,FALSE),\"\")","v":""},{"$f":"IF(AND(AB183=1,'Procedure details'!G183>99,'Procedure details'!V183=\"\"),1,0)","v":0},{"$f":"IF(AND(AB183=0,'Procedure details'!G183>999,'Procedure details'!V183=\"\"),1,0)","v":0}]
[null,null,null,null,null,null,null,null,null,null,null,null,null,null,null,null,null,null,null,null,null,null,null,184,{"$f":"COUNTA('Procedure details'!E184:'Procedure details'!V184)","v":0},null,{"$f":"IF('Procedure details'!E184<>\"\",VLOOKUP('Procedure details'!E184,Lists!$M$2:$N$38,2,FALSE),\"\")","v":""},{"$f":"IF('Procedure details'!E184<>\"\",VLOOKUP('Procedure details'!E184,Lists!$M$2:$O$38,3,FALSE),\"\")","v":""},{"$f":"IF('Procedure details'!N184<>\"\",VLOOKUP('Procedure details'!N184,Lists!$B$2:$C$71,2,FALSE),\"\")","v":""},{"$f":"IF('Procedure details'!H184<>\"\",VLOOKUP('Procedure details'!H184,Lists!$AP$2:$AQ$3,2,FALSE),\"\")","v":""},{"$f":"IF('Procedure details'!N184<>\"\",VLOOKUP('Procedure details'!N184,Lists!$B$2:$D$71,3,FALSE),\"\")","v":""},{"$f":"IF('Procedure details'!P184<>\"\",VLOOKUP('Procedure details'!P184,Lists!$AD$2:$AE$11,2,FALSE),\"\")","v":""},{"$f":"IF(AND(AB184=1,'Procedure details'!G184>99,'Procedure details'!V184=\"\"),1,0)","v":0},{"$f":"IF(AND(AB184=0,'Procedure details'!G184>999,'Procedure details'!V184=\"\"),1,0)","v":0}]
[null,null,null,null,null,null,null,null,null,null,null,null,null,null,null,null,null,null,null,null,null,null,null,185,{"$f":"COUNTA('Procedure details'!E185:'Procedure details'!V185)","v":0},null,{"$f":"IF('Procedure details'!E185<>\"\",VLOOKUP('Procedure details'!E185,Lists!$M$2:$N$38,2,FALSE),\"\")","v":""},{"$f":"IF('Procedure details'!E185<>\"\",VLOOKUP('Procedure details'!E185,Lists!$M$2:$O$38,3,FALSE),\"\")","v":""},{"$f":"IF('Procedure details'!N185<>\"\",VLOOKUP('Procedure details'!N185,Lists!$B$2:$C$71,2,FALSE),\"\")","v":""},{"$f":"IF('Procedure details'!H185<>\"\",VLOOKUP('Procedure details'!H185,Lists!$AP$2:$AQ$3,2,FALSE),\"\")","v":""},{"$f":"IF('Procedure details'!N185<>\"\",VLOOKUP('Procedure details'!N185,Lists!$B$2:$D$71,3,FALSE),\"\")","v":""},{"$f":"IF('Procedure details'!P185<>\"\",VLOOKUP('Procedure details'!P185,Lists!$AD$2:$AE$11,2,FALSE),\"\")","v":""},{"$f":"IF(AND(AB185=1,'Procedure details'!G185>99,'Procedure details'!V185=\"\"),1,0)","v":0},{"$f":"IF(AND(AB185=0,'Procedure details'!G185>999,'Procedure details'!V185=\"\"),1,0)","v":0}]
[null,null,null,null,null,null,null,null,null,null,null,null,null,null,null,null,null,null,null,null,null,null,null,186,{"$f":"COUNTA('Procedure details'!E186:'Procedure details'!V186)","v":0},null,{"$f":"IF('Procedure details'!E186<>\"\",VLOOKUP('Procedure details'!E186,Lists!$M$2:$N$38,2,FALSE),\"\")","v":""},{"$f":"IF('Procedure details'!E186<>\"\",VLOOKUP('Procedure details'!E186,Lists!$M$2:$O$38,3,FALSE),\"\")","v":""},{"$f":"IF('Procedure details'!N186<>\"\",VLOOKUP('Procedure details'!N186,Lists!$B$2:$C$71,2,FALSE),\"\")","v":""},{"$f":"IF('Procedure details'!H186<>\"\",VLOOKUP('Procedure details'!H186,Lists!$AP$2:$AQ$3,2,FALSE),\"\")","v":""},{"$f":"IF('Procedure details'!N186<>\"\",VLOOKUP('Procedure details'!N186,Lists!$B$2:$D$71,3,FALSE),\"\")","v":""},{"$f":"IF('Procedure details'!P186<>\"\",VLOOKUP('Procedure details'!P186,Lists!$AD$2:$AE$11,2,FALSE),\"\")","v":""},{"$f":"IF(AND(AB186=1,'Procedure details'!G186>99,'Procedure details'!V186=\"\"),1,0)","v":0},{"$f":"IF(AND(AB186=0,'Procedure details'!G186>999,'Procedure details'!V186=\"\"),1,0)","v":0}]
[null,null,null,null,null,null,null,null,null,null,null,null,null,null,null,null,null,null,null,null,null,null,null,187,{"$f":"COUNTA('Procedure details'!E187:'Procedure details'!V187)","v":0},null,{"$f":"IF('Procedure details'!E187<>\"\",VLOOKUP('Procedure details'!E187,Lists!$M$2:$N$38,2,FALSE),\"\")","v":""},{"$f":"IF('Procedure details'!E187<>\"\",VLOOKUP('Procedure details'!E187,Lists!$M$2:$O$38,3,FALSE),\"\")","v":""},{"$f":"IF('Procedure details'!N187<>\"\",VLOOKUP('Procedure details'!N187,Lists!$B$2:$C$71,2,FALSE),\"\")","v":""},{"$f":"IF('Procedure details'!H187<>\"\",VLOOKUP('Procedure details'!H187,Lists!$AP$2:$AQ$3,2,FALSE),\"\")","v":""},{"$f":"IF('Procedure details'!N187<>\"\",VLOOKUP('Procedure details'!N187,Lists!$B$2:$D$71,3,FALSE),\"\")","v":""},{"$f":"IF('Procedure details'!P187<>\"\",VLOOKUP('Procedure details'!P187,Lists!$AD$2:$AE$11,2,FALSE),\"\")","v":""},{"$f":"IF(AND(AB187=1,'Procedure details'!G187>99,'Procedure details'!V187=\"\"),1,0)","v":0},{"$f":"IF(AND(AB187=0,'Procedure details'!G187>999,'Procedure details'!V187=\"\"),1,0)","v":0}]
[null,null,null,null,null,null,null,null,null,null,null,null,null,null,null,null,null,null,null,null,null,null,null,188,{"$f":"COUNTA('Procedure details'!E188:'Procedure details'!V188)","v":0},null,{"$f":"IF('Procedure details'!E188<>\"\",VLOOKUP('Procedure details'!E188,Lists!$M$2:$N$38,2,FALSE),\"\")","v":""},{"$f":"IF('Procedure details'!E188<>\"\",VLOOKUP('Procedure details'!E188,Lists!$M$2:$O$38,3,FALSE),\"\")","v":""},{"$f":"IF('Procedure details'!N188<>\"\",VLOOKUP('Procedure details'!N188,Lists!$B$2:$C$71,2,FALSE),\"\")","v":""},{"$f":"IF('Procedure details'!H188<>\"\",VLOOKUP('Procedure details'!H188,Lists!$AP$2:$AQ$3,2,FALSE),\"\")","v":""},{"$f":"IF('Procedure details'!N188<>\"\",VLOOKUP('Procedure details'!N188,Lists!$B$2:$D$71,3,FALSE),\"\")","v":""},{"$f":"IF('Procedure details'!P188<>\"\",VLOOKUP('Procedure details'!P188,Lists!$AD$2:$AE$11,2,FALSE),\"\")","v":""},{"$f":"IF(AND(AB188=1,'Procedure details'!G188>99,'Procedure details'!V188=\"\"),1,0)","v":0},{"$f":"IF(AND(AB188=0,'Procedure details'!G188>999,'Procedure details'!V188=\"\"),1,0)","v":0}]
[null,null,null,null,null,null,null,null,null,null,null,null,null,null,null,null,null,null,null,null,null,null,null,189,{"$f":"COUNTA('Procedure details'!E189:'Procedure details'!V189)","v":0},null,{"$f":"IF('Procedure details'!E189<>\"\",VLOOKUP('Procedure details'!E189,Lists!$M$2:$N$38,2,FALSE),\"\")","v":""},{"$f":"IF('Procedure details'!E189<>\"\",VLOOKUP('Procedure details'!E189,Lists!$M$2:$O$38,3,FALSE),\"\")","v":""},{"$f":"IF('Procedure details'!N189<>\"\",VLOOKUP('Procedure details'!N189,Lists!$B$2:$C$71,2,FALSE),\"\")","v":""},{"$f":"IF('Procedure details'!H189<>\"\",VLOOKUP('Procedure details'!H189,Lists!$AP$2:$AQ$3,2,FALSE),\"\")","v":""},{"$f":"IF('Procedure details'!N189<>\"\",VLOOKUP('Procedure details'!N189,Lists!$B$2:$D$71,3,FALSE),\"\")","v":""},{"$f":"IF('Procedure details'!P189<>\"\",VLOOKUP('Procedure details'!P189,Lists!$AD$2:$AE$11,2,FALSE),\"\")","v":""},{"$f":"IF(AND(AB189=1,'Procedure details'!G189>99,'Procedure details'!V189=\"\"),1,0)","v":0},{"$f":"IF(AND(AB189=0,'Procedure details'!G189>999,'Procedure details'!V189=\"\"),1,0)","v":0}]
[null,null,null,null,null,null,null,null,null,null,null,null,null,null,null,null,null,null,null,null,null,null,null,190,{"$f":"COUNTA('Procedure details'!E190:'Procedure details'!V190)","v":0},null,{"$f":"IF('Procedure details'!E190<>\"\",VLOOKUP('Procedure details'!E190,Lists!$M$2:$N$38,2,FALSE),\"\")","v":""},{"$f":"IF('Procedure details'!E190<>\"\",VLOOKUP('Procedure details'!E190,Lists!$M$2:$O$38,3,FALSE),\"\")","v":""},{"$f":"IF('Procedure details'!N190<>\"\",VLOOKUP('Procedure details'!N190,Lists!$B$2:$C$71,2,FALSE),\"\")","v":""},{"$f":"IF('Procedure details'!H190<>\"\",VLOOKUP('Procedure details'!H190,Lists!$AP$2:$AQ$3,2,FALSE),\"\")","v":""},{"$f":"IF('Procedure details'!N190<>\"\",VLOOKUP('Procedure details'!N190,Lists!$B$2:$D$71,3,FALSE),\"\")","v":""},{"$f":"IF('Procedure details'!P190<>\"\",VLOOKUP('Procedure details'!P190,Lists!$AD$2:$AE$11,2,FALSE),\"\")","v":""},{"$f":"IF(AND(AB190=1,'Procedure details'!G190>99,'Procedure details'!V190=\"\"),1,0)","v":0},{"$f":"IF(AND(AB190=0,'Procedure details'!G190>999,'Procedure details'!V190=\"\"),1,0)","v":0}]
[null,null,null,null,null,null,null,null,null,null,null,null,null,null,null,null,null,null,null,null,null,null,null,191,{"$f":"COUNTA('Procedure details'!E191:'Procedure details'!V191)","v":0},null,{"$f":"IF('Procedure details'!E191<>\"\",VLOOKUP('Procedure details'!E191,Lists!$M$2:$N$38,2,FALSE),\"\")","v":""},{"$f":"IF('Procedure details'!E191<>\"\",VLOOKUP('Procedure details'!E191,Lists!$M$2:$O$38,3,FALSE),\"\")","v":""},{"$f":"IF('Procedure details'!N191<>\"\",VLOOKUP('Procedure details'!N191,Lists!$B$2:$C$71,2,FALSE),\"\")","v":""},{"$f":"IF('Procedure details'!H191<>\"\",VLOOKUP('Procedure details'!H191,Lists!$AP$2:$AQ$3,2,FALSE),\"\")","v":""},{"$f":"IF('Procedure details'!N191<>\"\",VLOOKUP('Procedure details'!N191,Lists!$B$2:$D$71,3,FALSE),\"\")","v":""},{"$f":"IF('Procedure details'!P191<>\"\",VLOOKUP('Procedure details'!P191,Lists!$AD$2:$AE$11,2,FALSE),\"\")","v":""},{"$f":"IF(AND(AB191=1,'Procedure details'!G191>99,'Procedure details'!V191=\"\"),1,0)","v":0},{"$f":"IF(AND(AB191=0,'Procedure details'!G191>999,'Procedure details'!V191=\"\"),1,0)","v":0}]
[null,null,null,null,null,null,null,null,null,null,null,null,null,null,null,null,null,null,null,null,null,null,null,192,{"$f":"COUNTA('Procedure details'!E192:'Procedure details'!V192)","v":0},null,{"$f":"IF('Procedure details'!E192<>\"\",VLOOKUP('Procedure details'!E192,Lists!$M$2:$N$38,2,FALSE),\"\")","v":""},{"$f":"IF('Procedure details'!E192<>\"\",VLOOKUP('Procedure details'!E192,Lists!$M$2:$O$38,3,FALSE),\"\")","v":""},{"$f":"IF('Procedure details'!N192<>\"\",VLOOKUP('Procedure details'!N192,Lists!$B$2:$C$71,2,FALSE),\"\")","v":""},{"$f":"IF('Procedure details'!H192<>\"\",VLOOKUP('Procedure details'!H192,Lists!$AP$2:$AQ$3,2,FALSE),\"\")","v":""},{"$f":"IF('Procedure details'!N192<>\"\",VLOOKUP('Procedure details'!N192,Lists!$B$2:$D$71,3,FALSE),\"\")","v":""},{"$f":"IF('Procedure details'!P192<>\"\",VLOOKUP('Procedure details'!P192,Lists!$AD$2:$AE$11,2,FALSE),\"\")","v":""},{"$f":"IF(AND(AB192=1,'Procedure details'!G192>99,'Procedure details'!V192=\"\"),1,0)","v":0},{"$f":"IF(AND(AB192=0,'Procedure details'!G192>999,'Procedure details'!V192=\"\"),1,0)","v":0}]
[null,null,null,null,null,null,null,null,null,null,null,null,null,null,null,null,null,null,null,null,null,null,null,193,{"$f":"COUNTA('Procedure details'!E193:'Procedure details'!V193)","v":0},null,{"$f":"IF('Procedure details'!E193<>\"\",VLOOKUP('Procedure details'!E193,Lists!$M$2:$N$38,2,FALSE),\"\")","v":""},{"$f":"IF('Procedure details'!E193<>\"\",VLOOKUP('Procedure details'!E193,Lists!$M$2:$O$38,3,FALSE),\"\")","v":""},{"$f":"IF('Procedure details'!N193<>\"\",VLOOKUP('Procedure details'!N193,Lists!$B$2:$C$71,2,FALSE),\"\")","v":""},{"$f":"IF('Procedure details'!H193<>\"\",VLOOKUP('Procedure details'!H193,Lists!$AP$2:$AQ$3,2,FALSE),\"\")","v":""},{"$f":"IF('Procedure details'!N193<>\"\",VLOOKUP('Procedure details'!N193,Lists!$B$2:$D$71,3,FALSE),\"\")","v":""},{"$f":"IF('Procedure details'!P193<>\"\",VLOOKUP('Procedure details'!P193,Lists!$AD$2:$AE$11,2,FALSE),\"\")","v":""},{"$f":"IF(AND(AB193=1,'Procedure details'!G193>99,'Procedure details'!V193=\"\"),1,0)","v":0},{"$f":"IF(AND(AB193=0,'Procedure details'!G193>999,'Procedure details'!V193=\"\"),1,0)","v":0}]
[null,null,null,null,null,null,null,null,null,null,null,null,null,null,null,null,null,null,null,null,null,null,null,194,{"$f":"COUNTA('Procedure details'!E194:'Procedure details'!V194)","v":0},null,{"$f":"IF('Procedure details'!E194<>\"\",VLOOKUP('Procedure details'!E194,Lists!$M$2:$N$38,2,FALSE),\"\")","v":""},{"$f":"IF('Procedure details'!E194<>\"\",VLOOKUP('Procedure details'!E194,Lists!$M$2:$O$38,3,FALSE),\"\")","v":""},{"$f":"IF('Procedure details'!N194<>\"\",VLOOKUP('Procedure details'!N194,Lists!$B$2:$C$71,2,FALSE),\"\")","v":""},{"$f":"IF('Procedure details'!H194<>\"\",VLOOKUP('Procedure details'!H194,Lists!$AP$2:$AQ$3,2,FALSE),\"\")","v":""},{"$f":"IF('Procedure details'!N194<>\"\",VLOOKUP('Procedure details'!N194,Lists!$B$2:$D$71,3,FALSE),\"\")","v":""},{"$f":"IF('Procedure details'!P194<>\"\",VLOOKUP('Procedure details'!P194,Lists!$AD$2:$AE$11,2,FALSE),\"\")","v":""},{"$f":"IF(AND(AB194=1,'Procedure details'!G194>99,'Procedure details'!V194=\"\"),1,0)","v":0},{"$f":"IF(AND(AB194=0,'Procedure details'!G194>999,'Procedure details'!V194=\"\"),1,0)","v":0}]
[null,null,null,null,null,null,null,null,null,null,null,null,null,null,null,null,null,null,null,null,null,null,null,195,{"$f":"COUNTA('Procedure details'!E195:'Procedure details'!V195)","v":0},null,{"$f":"IF('Procedure details'!E195<>\"\",VLOOKUP('Procedure details'!E195,Lists!$M$2:$N$38,2,FALSE),\"\")","v":""},{"$f":"IF('Procedure details'!E195<>\"\",VLOOKUP('Procedure details'!E195,Lists!$M$2:$O$38,3,FALSE),\"\")","v":""},{"$f":"IF('Procedure details'!N195<>\"\",VLOOKUP('Procedure details'!N195,Lists!$B$2:$C$71,2,FALSE),\"\")","v":""},{"$f":"IF('Procedure details'!H195<>\"\",VLOOKUP('Procedure details'!H195,Lists!$AP$2:$AQ$3,2,FALSE),\"\")","v":""},{"$f":"IF('Procedure details'!N195<>\"\",VLOOKUP('Procedure details'!N195,Lists!$B$2:$D$71,3,FALSE),\"\")","v":""},{"$f":"IF('Procedure details'!P195<>\"\",VLOOKUP('Procedure details'!P195,Lists!$AD$2:$AE$11,2,FALSE),\"\")","v":""},{"$f":"IF(AND(AB195=1,'Procedure details'!G195>99,'Procedure details'!V195=\"\"),1,0)","v":0},{"$f":"IF(AND(AB195=0,'Procedure details'!G195>999,'Procedure details'!V195=\"\"),1,0)","v":0}]
[null,null,null,null,null,null,null,null,null,null,null,null,null,null,null,null,null,null,null,null,null,null,null,196,{"$f":"COUNTA('Procedure details'!E196:'Procedure details'!V196)","v":0},null,{"$f":"IF('Procedure details'!E196<>\"\",VLOOKUP('Procedure details'!E196,Lists!$M$2:$N$38,2,FALSE),\"\")","v":""},{"$f":"IF('Procedure details'!E196<>\"\",VLOOKUP('Procedure details'!E196,Lists!$M$2:$O$38,3,FALSE),\"\")","v":""},{"$f":"IF('Procedure details'!N196<>\"\",VLOOKUP('Procedure details'!N196,Lists!$B$2:$C$71,2,FALSE),\"\")","v":""},{"$f":"IF('Procedure details'!H196<>\"\",VLOOKUP('Procedure details'!H196,Lists!$AP$2:$AQ$3,2,FALSE),\"\")","v":""},{"$f":"IF('Procedure details'!N196<>\"\",VLOOKUP('Procedure details'!N196,Lists!$B$2:$D$71,3,FALSE),\"\")","v":""},{"$f":"IF('Procedure details'!P196<>\"\",VLOOKUP('Procedure details'!P196,Lists!$AD$2:$AE$11,2,FALSE),\"\")","v":""},{"$f":"IF(AND(AB196=1,'Procedure details'!G196>99,'Procedure details'!V196=\"\"),1,0)","v":0},{"$f":"IF(AND(AB196=0,'Procedure details'!G196>999,'Procedure details'!V196=\"\"),1,0)","v":0}]
[null,null,null,null,null,null,null,null,null,null,null,null,null,null,null,null,null,null,null,null,null,null,null,197,{"$f":"COUNTA('Procedure details'!E197:'Procedure details'!V197)","v":0},null,{"$f":"IF('Procedure details'!E197<>\"\",VLOOKUP('Procedure details'!E197,Lists!$M$2:$N$38,2,FALSE),\"\")","v":""},{"$f":"IF('Procedure details'!E197<>\"\",VLOOKUP('Procedure details'!E197,Lists!$M$2:$O$38,3,FALSE),\"\")","v":""},{"$f":"IF('Procedure details'!N197<>\"\",VLOOKUP('Procedure details'!N197,Lists!$B$2:$C$71,2,FALSE),\"\")","v":""},{"$f":"IF('Procedure details'!H197<>\"\",VLOOKUP('Procedure details'!H197,Lists!$AP$2:$AQ$3,2,FALSE),\"\")","v":""},{"$f":"IF('Procedure details'!N197<>\"\",VLOOKUP('Procedure details'!N197,Lists!$B$2:$D$71,3,FALSE),\"\")","v":""},{"$f":"IF('Procedure details'!P197<>\"\",VLOOKUP('Procedure details'!P197,Lists!$AD$2:$AE$11,2,FALSE),\"\")","v":""},{"$f":"IF(AND(AB197=1,'Procedure details'!G197>99,'Procedure details'!V197=\"\"),1,0)","v":0},{"$f":"IF(AND(AB197=0,'Procedure details'!G197>999,'Procedure details'!V197=\"\"),1,0)","v":0}]
[null,null,null,null,null,null,null,null,null,null,null,null,null,null,null,null,null,null,null,null,null,null,null,198,{"$f":"COUNTA('Procedure details'!E198:'Procedure details'!V198)","v":0},null,{"$f":"IF('Procedure details'!E198<>\"\",VLOOKUP('Procedure details'!E198,Lists!$M$2:$N$38,2,FALSE),\"\")","v":""},{"$f":"IF('Procedure details'!E198<>\"\",VLOOKUP('Procedure details'!E198,Lists!$M$2:$O$38,3,FALSE),\"\")","v":""},{"$f":"IF('Procedure details'!N198<>\"\",VLOOKUP('Procedure details'!N198,Lists!$B$2:$C$71,2,FALSE),\"\")","v":""},{"$f":"IF('Procedure details'!H198<>\"\",VLOOKUP('Procedure details'!H198,Lists!$AP$2:$AQ$3,2,FALSE),\"\")","v":""},{"$f":"IF('Procedure details'!N198<>\"\",VLOOKUP('Procedure details'!N198,Lists!$B$2:$D$71,3,FALSE),\"\")","v":""},{"$f":"IF('Procedure details'!P198<>\"\",VLOOKUP('Procedure details'!P198,Lists!$AD$2:$AE$11,2,FALSE),\"\")","v":""},{"$f":"IF(AND(AB198=1,'Procedure details'!G198>99,'Procedure details'!V198=\"\"),1,0)","v":0},{"$f":"IF(AND(AB198=0,'Procedure details'!G198>999,'Procedure details'!V198=\"\"),1,0)","v":0}]
[null,null,null,null,null,null,null,null,null,null,null,null,null,null,null,null,null,null,null,null,null,null,null,199,{"$f":"COUNTA('Procedure details'!E199:'Procedure details'!V199)","v":0},null,{"$f":"IF('Procedure details'!E199<>\"\",VLOOKUP('Procedure details'!E199,Lists!$M$2:$N$38,2,FALSE),\"\")","v":""},{"$f":"IF('Procedure details'!E199<>\"\",VLOOKUP('Procedure details'!E199,Lists!$M$2:$O$38,3,FALSE),\"\")","v":""},{"$f":"IF('Procedure details'!N199<>\"\",VLOOKUP('Procedure details'!N199,Lists!$B$2:$C$71,2,FALSE),\"\")","v":""},{"$f":"IF('Procedure details'!H199<>\"\",VLOOKUP('Procedure details'!H199,Lists!$AP$2:$AQ$3,2,FALSE),\"\")","v":""},{"$f":"IF('Procedure details'!N199<>\"\",VLOOKUP('Procedure details'!N199,Lists!$B$2:$D$71,3,FALSE),\"\")","v":""},{"$f":"IF('Procedure details'!P199<>\"\",VLOOKUP('Procedure details'!P199,Lists!$AD$2:$AE$11,2,FALSE),\"\")","v":""},{"$f":"IF(AND(AB199=1,'Procedure details'!G199>99,'Procedure details'!V199=\"\"),1,0)","v":0},{"$f":"IF(AND(AB199=0,'Procedure details'!G199>999,'Procedure details'!V199=\"\"),1,0)","v":0}]
[null,null,null,null,null,null,null,null,null,null,null,null,null,null,null,null,null,null,null,null,null,null,null,200,{"$f":"COUNTA('Procedure details'!E200:'Procedure details'!V200)","v":0},null,{"$f":"IF('Procedure details'!E200<>\"\",VLOOKUP('Procedure details'!E200,Lists!$M$2:$N$38,2,FALSE),\"\")","v":""},{"$f":"IF('Procedure details'!E200<>\"\",VLOOKUP('Procedure details'!E200,Lists!$M$2:$O$38,3,FALSE),\"\")","v":""},{"$f":"IF('Procedure details'!N200<>\"\",VLOOKUP('Procedure details'!N200,Lists!$B$2:$C$71,2,FALSE),\"\")","v":""},{"$f":"IF('Procedure details'!H200<>\"\",VLOOKUP('Procedure details'!H200,Lists!$AP$2:$AQ$3,2,FALSE),\"\")","v":""},{"$f":"IF('Procedure details'!N200<>\"\",VLOOKUP('Procedure details'!N200,Lists!$B$2:$D$71,3,FALSE),\"\")","v":""},{"$f":"IF('Procedure details'!P200<>\"\",VLOOKUP('Procedure details'!P200,Lists!$AD$2:$AE$11,2,FALSE),\"\")","v":""},{"$f":"IF(AND(AB200=1,'Procedure details'!G200>99,'Procedure details'!V200=\"\"),1,0)","v":0},{"$f":"IF(AND(AB200=0,'Procedure details'!G200>999,'Procedure details'!V200=\"\"),1,0)","v":0}]
[null,null,null,null,null,null,null,null,null,null,null,null,null,null,null,null,null,null,null,null,null,null,null,201,{"$f":"COUNTA('Procedure details'!E201:'Procedure details'!V201)","v":0},null,{"$f":"IF('Procedure details'!E201<>\"\",VLOOKUP('Procedure details'!E201,Lists!$M$2:$N$38,2,FALSE),\"\")","v":""},{"$f":"IF('Procedure details'!E201<>\"\",VLOOKUP('Procedure details'!E201,Lists!$M$2:$O$38,3,FALSE),\"\")","v":""},{"$f":"IF('Procedure details'!N201<>\"\",VLOOKUP('Procedure details'!N201,Lists!$B$2:$C$71,2,FALSE),\"\")","v":""},{"$f":"IF('Procedure details'!H201<>\"\",VLOOKUP('Procedure details'!H201,Lists!$AP$2:$AQ$3,2,FALSE),\"\")","v":""},{"$f":"IF('Procedure details'!N201<>\"\",VLOOKUP('Procedure details'!N201,Lists!$B$2:$D$71,3,FALSE),\"\")","v":""},{"$f":"IF('Procedure details'!P201<>\"\",VLOOKUP('Procedure details'!P201,Lists!$AD$2:$AE$11,2,FALSE),\"\")","v":""},{"$f":"IF(AND(AB201=1,'Procedure details'!G201>99,'Procedure details'!V201=\"\"),1,0)","v":0},{"$f":"IF(AND(AB201=0,'Procedure details'!G201>999,'Procedure details'!V201=\"\"),1,0)","v":0}]
[null,null,null,null,null,null,null,null,null,null,null,null,null,null,null,null,null,null,null,null,null,null,null,202,{"$f":"COUNTA('Procedure details'!E202:'Procedure details'!V202)","v":0},null,{"$f":"IF('Procedure details'!E202<>\"\",VLOOKUP('Procedure details'!E202,Lists!$M$2:$N$38,2,FALSE),\"\")","v":""},{"$f":"IF('Procedure details'!E202<>\"\",VLOOKUP('Procedure details'!E202,Lists!$M$2:$O$38,3,FALSE),\"\")","v":""},{"$f":"IF('Procedure details'!N202<>\"\",VLOOKUP('Procedure details'!N202,Lists!$B$2:$C$71,2,FALSE),\"\")","v":""},{"$f":"IF('Procedure details'!H202<>\"\",VLOOKUP('Procedure details'!H202,Lists!$AP$2:$AQ$3,2,FALSE),\"\")","v":""},{"$f":"IF('Procedure details'!N202<>\"\",VLOOKUP('Procedure details'!N202,Lists!$B$2:$D$71,3,FALSE),\"\")","v":""},{"$f":"IF('Procedure details'!P202<>\"\",VLOOKUP('Procedure details'!P202,Lists!$AD$2:$AE$11,2,FALSE),\"\")","v":""},{"$f":"IF(AND(AB202=1,'Procedure details'!G202>99,'Procedure details'!V202=\"\"),1,0)","v":0},{"$f":"IF(AND(AB202=0,'Procedure details'!G202>999,'Procedure details'!V202=\"\"),1,0)","v":0}]
[null,null,null,null,null,null,null,null,null,null,null,null,null,null,null,null,null,null,null,null,null,null,null,203,{"$f":"COUNTA('Procedure details'!E203:'Procedure details'!V203)","v":0},null,{"$f":"IF('Procedure details'!E203<>\"\",VLOOKUP('Procedure details'!E203,Lists!$M$2:$N$38,2,FALSE),\"\")","v":""},{"$f":"IF('Procedure details'!E203<>\"\",VLOOKUP('Procedure details'!E203,Lists!$M$2:$O$38,3,FALSE),\"\")","v":""},{"$f":"IF('Procedure details'!N203<>\"\",VLOOKUP('Procedure details'!N203,Lists!$B$2:$C$71,2,FALSE),\"\")","v":""},{"$f":"IF('Procedure details'!H203<>\"\",VLOOKUP('Procedure details'!H203,Lists!$AP$2:$AQ$3,2,FALSE),\"\")","v":""},{"$f":"IF('Procedure details'!N203<>\"\",VLOOKUP('Procedure details'!N203,Lists!$B$2:$D$71,3,FALSE),\"\")","v":""},{"$f":"IF('Procedure details'!P203<>\"\",VLOOKUP('Procedure details'!P203,Lists!$AD$2:$AE$11,2,FALSE),\"\")","v":""},{"$f":"IF(AND(AB203=1,'Procedure details'!G203>99,'Procedure details'!V203=\"\"),1,0)","v":0},{"$f":"IF(AND(AB203=0,'Procedure details'!G203>999,'Procedure details'!V203=\"\"),1,0)","v":0}]
[null,null,null,null,null,null,null,null,null,null,null,null,null,null,null,null,null,null,null,null,null,null,null,204,{"$f":"COUNTA('Procedure details'!E204:'Procedure details'!V204)","v":0},null,{"$f":"IF('Procedure details'!E204<>\"\",VLOOKUP('Procedure details'!E204,Lists!$M$2:$N$38,2,FALSE),\"\")","v":""},{"$f":"IF('Procedure details'!E204<>\"\",VLOOKUP('Procedure details'!E204,Lists!$M$2:$O$38,3,FALSE),\"\")","v":""},{"$f":"IF('Procedure details'!N204<>\"\",VLOOKUP('Procedure details'!N204,Lists!$B$2:$C$71,2,FALSE),\"\")","v":""},{"$f":"IF('Procedure details'!H204<>\"\",VLOOKUP('Procedure details'!H204,Lists!$AP$2:$AQ$3,2,FALSE),\"\")","v":""},{"$f":"IF('Procedure details'!N204<>\"\",VLOOKUP('Procedure details'!N204,Lists!$B$2:$D$71,3,FALSE),\"\")","v":""},{"$f":"IF('Procedure details'!P204<>\"\",VLOOKUP('Procedure details'!P204,Lists!$AD$2:$AE$11,2,FALSE),\"\")","v":""},{"$f":"IF(AND(AB204=1,'Procedure details'!G204>99,'Procedure details'!V204=\"\"),1,0)","v":0},{"$f":"IF(AND(AB204=0,'Procedure details'!G204>999,'Procedure details'!V204=\"\"),1,0)","v":0}]
[null,null,null,null,null,null,null,null,null,null,null,null,null,null,null,null,null,null,null,null,null,null,null,205,{"$f":"COUNTA('Procedure details'!E205:'Procedure details'!V205)","v":0},null,{"$f":"IF('Procedure details'!E205<>\"\",VLOOKUP('Procedure details'!E205,Lists!$M$2:$N$38,2,FALSE),\"\")","v":""},{"$f":"IF('Procedure details'!E205<>\"\",VLOOKUP('Procedure details'!E205,Lists!$M$2:$O$38,3,FALSE),\"\")","v":""},{"$f":"IF('Procedure details'!N205<>\"\",VLOOKUP('Procedure details'!N205,Lists!$B$2:$C$71,2,FALSE),\"\")","v":""},{"$f":"IF('Procedure details'!H205<>\"\",VLOOKUP('Procedure details'!H205,Lists!$AP$2:$AQ$3,2,FALSE),\"\")","v":""},{"$f":"IF('Procedure details'!N205<>\"\",VLOOKUP('Procedure details'!N205,Lists!$B$2:$D$71,3,FALSE),\"\")","v":""},{"$f":"IF('Procedure details'!P205<>\"\",VLOOKUP('Procedure details'!P205,Lists!$AD$2:$AE$11,2,FALSE),\"\")","v":""},{"$f":"IF(AND(AB205=1,'Procedure details'!G205>99,'Procedure details'!V205=\"\"),1,0)","v":0},{"$f":"IF(AND(AB205=0,'Procedure details'!G205>999,'Procedure details'!V205=\"\"),1,0)","v":0}]
[null,null,null,null,null,null,null,null,null,null,null,null,null,null,null,null,null,null,null,null,null,null,null,206,{"$f":"COUNTA('Procedure details'!E206:'Procedure details'!V206)","v":0},null,{"$f":"IF('Procedure details'!E206<>\"\",VLOOKUP('Procedure details'!E206,Lists!$M$2:$N$38,2,FALSE),\"\")","v":""},{"$f":"IF('Procedure details'!E206<>\"\",VLOOKUP('Procedure details'!E206,Lists!$M$2:$O$38,3,FALSE),\"\")","v":""},{"$f":"IF('Procedure details'!N206<>\"\",VLOOKUP('Procedure details'!N206,Lists!$B$2:$C$71,2,FALSE),\"\")","v":""},{"$f":"IF('Procedure details'!H206<>\"\",VLOOKUP('Procedure details'!H206,Lists!$AP$2:$AQ$3,2,FALSE),\"\")","v":""},{"$f":"IF('Procedure details'!N206<>\"\",VLOOKUP('Procedure details'!N206,Lists!$B$2:$D$71,3,FALSE),\"\")","v":""},{"$f":"IF('Procedure details'!P206<>\"\",VLOOKUP('Procedure details'!P206,Lists!$AD$2:$AE$11,2,FALSE),\"\")","v":""},{"$f":"IF(AND(AB206=1,'Procedure details'!G206>99,'Procedure details'!V206=\"\"),1,0)","v":0},{"$f":"IF(AND(AB206=0,'Procedure details'!G206>999,'Procedure details'!V206=\"\"),1,0)","v":0}]
[null,null,null,null,null,null,null,null,null,null,null,null,null,null,null,null,null,null,null,null,null,null,null,207,{"$f":"COUNTA('Procedure details'!E207:'Procedure details'!V207)","v":0},null,{"$f":"IF('Procedure details'!E207<>\"\",VLOOKUP('Procedure details'!E207,Lists!$M$2:$N$38,2,FALSE),\"\")","v":""},{"$f":"IF('Procedure details'!E207<>\"\",VLOOKUP('Procedure details'!E207,Lists!$M$2:$O$38,3,FALSE),\"\")","v":""},{"$f":"IF('Procedure details'!N207<>\"\",VLOOKUP('Procedure details'!N207,Lists!$B$2:$C$71,2,FALSE),\"\")","v":""},{"$f":"IF('Procedure details'!H207<>\"\",VLOOKUP('Procedure details'!H207,Lists!$AP$2:$AQ$3,2,FALSE),\"\")","v":""},{"$f":"IF('Procedure details'!N207<>\"\",VLOOKUP('Procedure details'!N207,Lists!$B$2:$D$71,3,FALSE),\"\")","v":""},{"$f":"IF('Procedure details'!P207<>\"\",VLOOKUP('Procedure details'!P207,Lists!$AD$2:$AE$11,2,FALSE),\"\")","v":""},{"$f":"IF(AND(AB207=1,'Procedure details'!G207>99,'Procedure details'!V207=\"\"),1,0)","v":0},{"$f":"IF(AND(AB207=0,'Procedure details'!G207>999,'Procedure details'!V207=\"\"),1,0)","v":0}]
[null,null,null,null,null,null,null,null,null,null,null,null,null,null,null,null,null,null,null,null,null,null,null,208,{"$f":"COUNTA('Procedure details'!E208:'Procedure details'!V208)","v":0},null,{"$f":"IF('Procedure details'!E208<>\"\",VLOOKUP('Procedure details'!E208,Lists!$M$2:$N$38,2,FALSE),\"\")","v":""},{"$f":"IF('Procedure details'!E208<>\"\",VLOOKUP('Procedure details'!E208,Lists!$M$2:$O$38,3,FALSE),\"\")","v":""},{"$f":"IF('Procedure details'!N208<>\"\",VLOOKUP('Procedure details'!N208,Lists!$B$2:$C$71,2,FALSE),\"\")","v":""},{"$f":"IF('Procedure details'!H208<>\"\",VLOOKUP('Procedure details'!H208,Lists!$AP$2:$AQ$3,2,FALSE),\"\")","v":""},{"$f":"IF('Procedure details'!N208<>\"\",VLOOKUP('Procedure details'!N208,Lists!$B$2:$D$71,3,FALSE),\"\")","v":""},{"$f":"IF('Procedure details'!P208<>\"\",VLOOKUP('Procedure details'!P208,Lists!$AD$2:$AE$11,2,FALSE),\"\")","v":""},{"$f":"IF(AND(AB208=1,'Procedure details'!G208>99,'Procedure details'!V208=\"\"),1,0)","v":0},{"$f":"IF(AND(AB208=0,'Procedure details'!G208>999,'Procedure details'!V208=\"\"),1,0)","v":0}]
[null,null,null,null,null,null,null,null,null,null,null,null,null,null,null,null,null,null,null,null,null,null,null,209,{"$f":"COUNTA('Procedure details'!E209:'Procedure details'!V209)","v":0},null,{"$f":"IF('Procedure details'!E209<>\"\",VLOOKUP('Procedure details'!E209,Lists!$M$2:$N$38,2,FALSE),\"\")","v":""},{"$f":"IF('Procedure details'!E209<>\"\",VLOOKUP('Procedure details'!E209,Lists!$M$2:$O$38,3,FALSE),\"\")","v":""},{"$f":"IF('Procedure details'!N209<>\"\",VLOOKUP('Procedure details'!N209,Lists!$B$2:$C$71,2,FALSE),\"\")","v":""},{"$f":"IF('Procedure details'!H209<>\"\",VLOOKUP('Procedure details'!H209,Lists!$AP$2:$AQ$3,2,FALSE),\"\")","v":""},{"$f":"IF('Procedure details'!N209<>\"\",VLOOKUP('Procedure details'!N209,Lists!$B$2:$D$71,3,FALSE),\"\")","v":""},{"$f":"IF('Procedure details'!P209<>\"\",VLOOKUP('Procedure details'!P209,Lists!$AD$2:$AE$11,2,FALSE),\"\")","v":""},{"$f":"IF(AND(AB209=1,'Procedure details'!G209>99,'Procedure details'!V209=\"\"),1,0)","v":0},{"$f":"IF(AND(AB209=0,'Procedure details'!G209>999,'Procedure details'!V209=\"\"),1,0)","v":0}]
[null,null,null,null,null,null,null,null,null,null,null,null,null,null,null,null,null,null,null,null,null,null,null,210,{"$f":"COUNTA('Procedure details'!E210:'Procedure details'!V210)","v":0},null,{"$f":"IF('Procedure details'!E210<>\"\",VLOOKUP('Procedure details'!E210,Lists!$M$2:$N$38,2,FALSE),\"\")","v":""},{"$f":"IF('Procedure details'!E210<>\"\",VLOOKUP('Procedure details'!E210,Lists!$M$2:$O$38,3,FALSE),\"\")","v":""},{"$f":"IF('Procedure details'!N210<>\"\",VLOOKUP('Procedure details'!N210,Lists!$B$2:$C$71,2,FALSE),\"\")","v":""},{"$f":"IF('Procedure details'!H210<>\"\",VLOOKUP('Procedure details'!H210,Lists!$AP$2:$AQ$3,2,FALSE),\"\")","v":""},{"$f":"IF('Procedure details'!N210<>\"\",VLOOKUP('Procedure details'!N210,Lists!$B$2:$D$71,3,FALSE),\"\")","v":""},{"$f":"IF('Procedure details'!P210<>\"\",VLOOKUP('Procedure details'!P210,Lists!$AD$2:$AE$11,2,FALSE),\"\")","v":""},{"$f":"IF(AND(AB210=1,'Procedure details'!G210>99,'Procedure details'!V210=\"\"),1,0)","v":0},{"$f":"IF(AND(AB210=0,'Procedure details'!G210>999,'Procedure details'!V210=\"\"),1,0)","v":0}]
[null,null,null,null,null,null,null,null,null,null,null,null,null,null,null,null,null,null,null,null,null,null,null,211,{"$f":"COUNTA('Procedure details'!E211:'Procedure details'!V211)","v":0},null,{"$f":"IF('Procedure details'!E211<>\"\",VLOOKUP('Procedure details'!E211,Lists!$M$2:$N$38,2,FALSE),\"\")","v":""},{"$f":"IF('Procedure details'!E211<>\"\",VLOOKUP('Procedure details'!E211,Lists!$M$2:$O$38,3,FALSE),\"\")","v":""},{"$f":"IF('Procedure details'!N211<>\"\",VLOOKUP('Procedure details'!N211,Lists!$B$2:$C$71,2,FALSE),\"\")","v":""},{"$f":"IF('Procedure details'!H211<>\"\",VLOOKUP('Procedure details'!H211,Lists!$AP$2:$AQ$3,2,FALSE),\"\")","v":""},{"$f":"IF('Procedure details'!N211<>\"\",VLOOKUP('Procedure details'!N211,Lists!$B$2:$D$71,3,FALSE),\"\")","v":""},{"$f":"IF('Procedure details'!P211<>\"\",VLOOKUP('Procedure details'!P211,Lists!$AD$2:$AE$11,2,FALSE),\"\")","v":""},{"$f":"IF(AND(AB211=1,'Procedure details'!G211>99,'Procedure details'!V211=\"\"),1,0)","v":0},{"$f":"IF(AND(AB211=0,'Procedure details'!G211>999,'Procedure details'!V211=\"\"),1,0)","v":0}]
[null,null,null,null,null,null,null,null,null,null,null,null,null,null,null,null,null,null,null,null,null,null,null,212,{"$f":"COUNTA('Procedure details'!E212:'Procedure details'!V212)","v":0},null,{"$f":"IF('Procedure details'!E212<>\"\",VLOOKUP('Procedure details'!E212,Lists!$M$2:$N$38,2,FALSE),\"\")","v":""},{"$f":"IF('Procedure details'!E212<>\"\",VLOOKUP('Procedure details'!E212,Lists!$M$2:$O$38,3,FALSE),\"\")","v":""},{"$f":"IF('Procedure details'!N212<>\"\",VLOOKUP('Procedure details'!N212,Lists!$B$2:$C$71,2,FALSE),\"\")","v":""},{"$f":"IF('Procedure details'!H212<>\"\",VLOOKUP('Procedure details'!H212,Lists!$AP$2:$AQ$3,2,FALSE),\"\")","v":""},{"$f":"IF('Procedure details'!N212<>\"\",VLOOKUP('Procedure details'!N212,Lists!$B$2:$D$71,3,FALSE),\"\")","v":""},{"$f":"IF('Procedure details'!P212<>\"\",VLOOKUP('Procedure details'!P212,Lists!$AD$2:$AE$11,2,FALSE),\"\")","v":""},{"$f":"IF(AND(AB212=1,'Procedure details'!G212>99,'Procedure details'!V212=\"\"),1,0)","v":0},{"$f":"IF(AND(AB212=0,'Procedure details'!G212>999,'Procedure details'!V212=\"\"),1,0)","v":0}]
[null,null,null,null,null,null,null,null,null,null,null,null,null,null,null,null,null,null,null,null,null,null,null,213,{"$f":"COUNTA('Procedure details'!E213:'Procedure details'!V213)","v":0},null,{"$f":"IF('Procedure details'!E213<>\"\",VLOOKUP('Procedure details'!E213,Lists!$M$2:$N$38,2,FALSE),\"\")","v":""},{"$f":"IF('Procedure details'!E213<>\"\",VLOOKUP('Procedure details'!E213,Lists!$M$2:$O$38,3,FALSE),\"\")","v":""},{"$f":"IF('Procedure details'!N213<>\"\",VLOOKUP('Procedure details'!N213,Lists!$B$2:$C$71,2,FALSE),\"\")","v":""},{"$f":"IF('Procedure details'!H213<>\"\",VLOOKUP('Procedure details'!H213,Lists!$AP$2:$AQ$3,2,FALSE),\"\")","v":""},{"$f":"IF('Procedure details'!N213<>\"\",VLOOKUP('Procedure details'!N213,Lists!$B$2:$D$71,3,FALSE),\"\")","v":""},{"$f":"IF('Procedure details'!P213<>\"\",VLOOKUP('Procedure details'!P213,Lists!$AD$2:$AE$11,2,FALSE),\"\")","v":""},{"$f":"IF(AND(AB213=1,'Procedure details'!G213>99,'Procedure details'!V213=\"\"),1,0)","v":0},{"$f":"IF(AND(AB213=0,'Procedure details'!G213>999,'Procedure details'!V213=\"\"),1,0)","v":0}]
[null,null,null,null,null,null,null,null,null,null,null,null,null,null,null,null,null,null,null,null,null,null,null,214,{"$f":"COUNTA('Procedure details'!E214:'Procedure details'!V214)","v":0},null,{"$f":"IF('Procedure details'!E214<>\"\",VLOOKUP('Procedure details'!E214,Lists!$M$2:$N$38,2,FALSE),\"\")","v":""},{"$f":"IF('Procedure details'!E214<>\"\",VLOOKUP('Procedure details'!E214,Lists!$M$2:$O$38,3,FALSE),\"\")","v":""},{"$f":"IF('Procedure details'!N214<>\"\",VLOOKUP('Procedure details'!N214,Lists!$B$2:$C$71,2,FALSE),\"\")","v":""},{"$f":"IF('Procedure details'!H214<>\"\",VLOOKUP('Procedure details'!H214,Lists!$AP$2:$AQ$3,2,FALSE),\"\")","v":""},{"$f":"IF('Procedure details'!N214<>\"\",VLOOKUP('Procedure details'!N214,Lists!$B$2:$D$71,3,FALSE),\"\")","v":""},{"$f":"IF('Procedure details'!P214<>\"\",VLOOKUP('Procedure details'!P214,Lists!$AD$2:$AE$11,2,FALSE),\"\")","v":""},{"$f":"IF(AND(AB214=1,'Procedure details'!G214>99,'Procedure details'!V214=\"\"),1,0)","v":0},{"$f":"IF(AND(AB214=0,'Procedure details'!G214>999,'Procedure details'!V214=\"\"),1,0)","v":0}]
[null,null,null,null,null,null,null,null,null,null,null,null,null,null,null,null,null,null,null,null,null,null,null,215,{"$f":"COUNTA('Procedure details'!E215:'Procedure details'!V215)","v":0},null,{"$f":"IF('Procedure details'!E215<>\"\",VLOOKUP('Procedure details'!E215,Lists!$M$2:$N$38,2,FALSE),\"\")","v":""},{"$f":"IF('Procedure details'!E215<>\"\",VLOOKUP('Procedure details'!E215,Lists!$M$2:$O$38,3,FALSE),\"\")","v":""},{"$f":"IF('Procedure details'!N215<>\"\",VLOOKUP('Procedure details'!N215,Lists!$B$2:$C$71,2,FALSE),\"\")","v":""},{"$f":"IF('Procedure details'!H215<>\"\",VLOOKUP('Procedure details'!H215,Lists!$AP$2:$AQ$3,2,FALSE),\"\")","v":""},{"$f":"IF('Procedure details'!N215<>\"\",VLOOKUP('Procedure details'!N215,Lists!$B$2:$D$71,3,FALSE),\"\")","v":""},{"$f":"IF('Procedure details'!P215<>\"\",VLOOKUP('Procedure details'!P215,Lists!$AD$2:$AE$11,2,FALSE),\"\")","v":""},{"$f":"IF(AND(AB215=1,'Procedure details'!G215>99,'Procedure details'!V215=\"\"),1,0)","v":0},{"$f":"IF(AND(AB215=0,'Procedure details'!G215>999,'Procedure details'!V215=\"\"),1,0)","v":0}]
[null,null,null,null,null,null,null,null,null,null,null,null,null,null,null,null,null,null,null,null,null,null,null,216,{"$f":"COUNTA('Procedure details'!E216:'Procedure details'!V216)","v":0},null,{"$f":"IF('Procedure details'!E216<>\"\",VLOOKUP('Procedure details'!E216,Lists!$M$2:$N$38,2,FALSE),\"\")","v":""},{"$f":"IF('Procedure details'!E216<>\"\",VLOOKUP('Procedure details'!E216,Lists!$M$2:$O$38,3,FALSE),\"\")","v":""},{"$f":"IF('Procedure details'!N216<>\"\",VLOOKUP('Procedure details'!N216,Lists!$B$2:$C$71,2,FALSE),\"\")","v":""},{"$f":"IF('Procedure details'!H216<>\"\",VLOOKUP('Procedure details'!H216,Lists!$AP$2:$AQ$3,2,FALSE),\"\")","v":""},{"$f":"IF('Procedure details'!N216<>\"\",VLOOKUP('Procedure details'!N216,Lists!$B$2:$D$71,3,FALSE),\"\")","v":""},{"$f":"IF('Procedure details'!P216<>\"\",VLOOKUP('Procedure details'!P216,Lists!$AD$2:$AE$11,2,FALSE),\"\")","v":""},{"$f":"IF(AND(AB216=1,'Procedure details'!G216>99,'Procedure details'!V216=\"\"),1,0)","v":0},{"$f":"IF(AND(AB216=0,'Procedure details'!G216>999,'Procedure details'!V216=\"\"),1,0)","v":0}]
[null,null,null,null,null,null,null,null,null,null,null,null,null,null,null,null,null,null,null,null,null,null,null,217,{"$f":"COUNTA('Procedure details'!E217:'Procedure details'!V217)","v":0},null,{"$f":"IF('Procedure details'!E217<>\"\",VLOOKUP('Procedure details'!E217,Lists!$M$2:$N$38,2,FALSE),\"\")","v":""},{"$f":"IF('Procedure details'!E217<>\"\",VLOOKUP('Procedure details'!E217,Lists!$M$2:$O$38,3,FALSE),\"\")","v":""},{"$f":"IF('Procedure details'!N217<>\"\",VLOOKUP('Procedure details'!N217,Lists!$B$2:$C$71,2,FALSE),\"\")","v":""},{"$f":"IF('Procedure details'!H217<>\"\",VLOOKUP('Procedure details'!H217,Lists!$AP$2:$AQ$3,2,FALSE),\"\")","v":""},{"$f":"IF('Procedure details'!N217<>\"\",VLOOKUP('Procedure details'!N217,Lists!$B$2:$D$71,3,FALSE),\"\")","v":""},{"$f":"IF('Procedure details'!P217<>\"\",VLOOKUP('Procedure details'!P217,Lists!$AD$2:$AE$11,2,FALSE),\"\")","v":""},{"$f":"IF(AND(AB217=1,'Procedure details'!G217>99,'Procedure details'!V217=\"\"),1,0)","v":0},{"$f":"IF(AND(AB217=0,'Procedure details'!G217>999,'Procedure details'!V217=\"\"),1,0)","v":0}]
[null,null,null,null,null,null,null,null,null,null,null,null,null,null,null,null,null,null,null,null,null,null,null,218,{"$f":"COUNTA('Procedure details'!E218:'Procedure details'!V218)","v":0},null,{"$f":"IF('Procedure details'!E218<>\"\",VLOOKUP('Procedure details'!E218,Lists!$M$2:$N$38,2,FALSE),\"\")","v":""},{"$f":"IF('Procedure details'!E218<>\"\",VLOOKUP('Procedure details'!E218,Lists!$M$2:$O$38,3,FALSE),\"\")","v":""},{"$f":"IF('Procedure details'!N218<>\"\",VLOOKUP('Procedure details'!N218,Lists!$B$2:$C$71,2,FALSE),\"\")","v":""},{"$f":"IF('Procedure details'!H218<>\"\",VLOOKUP('Procedure details'!H218,Lists!$AP$2:$AQ$3,2,FALSE),\"\")","v":""},{"$f":"IF('Procedure details'!N218<>\"\",VLOOKUP('Procedure details'!N218,Lists!$B$2:$D$71,3,FALSE),\"\")","v":""},{"$f":"IF('Procedure details'!P218<>\"\",VLOOKUP('Procedure details'!P218,Lists!$AD$2:$AE$11,2,FALSE),\"\")","v":""},{"$f":"IF(AND(AB218=1,'Procedure details'!G218>99,'Procedure details'!V218=\"\"),1,0)","v":0},{"$f":"IF(AND(AB218=0,'Procedure details'!G218>999,'Procedure details'!V218=\"\"),1,0)","v":0}]
[null,null,null,null,null,null,null,null,null,null,null,null,null,null,null,null,null,null,null,null,null,null,null,219,{"$f":"COUNTA('Procedure details'!E219:'Procedure details'!V219)","v":0},null,{"$f":"IF('Procedure details'!E219<>\"\",VLOOKUP('Procedure details'!E219,Lists!$M$2:$N$38,2,FALSE),\"\")","v":""},{"$f":"IF('Procedure details'!E219<>\"\",VLOOKUP('Procedure details'!E219,Lists!$M$2:$O$38,3,FALSE),\"\")","v":""},{"$f":"IF('Procedure details'!N219<>\"\",VLOOKUP('Procedure details'!N219,Lists!$B$2:$C$71,2,FALSE),\"\")","v":""},{"$f":"IF('Procedure details'!H219<>\"\",VLOOKUP('Procedure details'!H219,Lists!$AP$2:$AQ$3,2,FALSE),\"\")","v":""},{"$f":"IF('Procedure details'!N219<>\"\",VLOOKUP('Procedure details'!N219,Lists!$B$2:$D$71,3,FALSE),\"\")","v":""},{"$f":"IF('Procedure details'!P219<>\"\",VLOOKUP('Procedure details'!P219,Lists!$AD$2:$AE$11,2,FALSE),\"\")","v":""},{"$f":"IF(AND(AB219=1,'Procedure details'!G219>99,'Procedure details'!V219=\"\"),1,0)","v":0},{"$f":"IF(AND(AB219=0,'Procedure details'!G219>999,'Procedure details'!V219=\"\"),1,0)","v":0}]
[null,null,null,null,null,null,null,null,null,null,null,null,null,null,null,null,null,null,null,null,null,null,null,220,{"$f":"COUNTA('Procedure details'!E220:'Procedure details'!V220)","v":0},null,{"$f":"IF('Procedure details'!E220<>\"\",VLOOKUP('Procedure details'!E220,Lists!$M$2:$N$38,2,FALSE),\"\")","v":""},{"$f":"IF('Procedure details'!E220<>\"\",VLOOKUP('Procedure details'!E220,Lists!$M$2:$O$38,3,FALSE),\"\")","v":""},{"$f":"IF('Procedure details'!N220<>\"\",VLOOKUP('Procedure details'!N220,Lists!$B$2:$C$71,2,FALSE),\"\")","v":""},{"$f":"IF('Procedure details'!H220<>\"\",VLOOKUP('Procedure details'!H220,Lists!$AP$2:$AQ$3,2,FALSE),\"\")","v":""},{"$f":"IF('Procedure details'!N220<>\"\",VLOOKUP('Procedure details'!N220,Lists!$B$2:$D$71,3,FALSE),\"\")","v":""},{"$f":"IF('Procedure details'!P220<>\"\",VLOOKUP('Procedure details'!P220,Lists!$AD$2:$AE$11,2,FALSE),\"\")","v":""},{"$f":"IF(AND(AB220=1,'Procedure details'!G220>99,'Procedure details'!V220=\"\"),1,0)","v":0},{"$f":"IF(AND(AB220=0,'Procedure details'!G220>999,'Procedure details'!V220=\"\"),1,0)","v":0}]
[null,null,null,null,null,null,null,null,null,null,null,null,null,null,null,null,null,null,null,null,null,null,null,221,{"$f":"COUNTA('Procedure details'!E221:'Procedure details'!V221)","v":0},null,{"$f":"IF('Procedure details'!E221<>\"\",VLOOKUP('Procedure details'!E221,Lists!$M$2:$N$38,2,FALSE),\"\")","v":""},{"$f":"IF('Procedure details'!E221<>\"\",VLOOKUP('Procedure details'!E221,Lists!$M$2:$O$38,3,FALSE),\"\")","v":""},{"$f":"IF('Procedure details'!N221<>\"\",VLOOKUP('Procedure details'!N221,Lists!$B$2:$C$71,2,FALSE),\"\")","v":""},{"$f":"IF('Procedure details'!H221<>\"\",VLOOKUP('Procedure details'!H221,Lists!$AP$2:$AQ$3,2,FALSE),\"\")","v":""},{"$f":"IF('Procedure details'!N221<>\"\",VLOOKUP('Procedure details'!N221,Lists!$B$2:$D$71,3,FALSE),\"\")","v":""},{"$f":"IF('Procedure details'!P221<>\"\",VLOOKUP('Procedure details'!P221,Lists!$AD$2:$AE$11,2,FALSE),\"\")","v":""},{"$f":"IF(AND(AB221=1,'Procedure details'!G221>99,'Procedure details'!V221=\"\"),1,0)","v":0},{"$f":"IF(AND(AB221=0,'Procedure details'!G221>999,'Procedure details'!V221=\"\"),1,0)","v":0}]
[null,null,null,null,null,null,null,null,null,null,null,null,null,null,null,null,null,null,null,null,null,null,null,222,{"$f":"COUNTA('Procedure details'!E222:'Procedure details'!V222)","v":0},null,{"$f":"IF('Procedure details'!E222<>\"\",VLOOKUP('Procedure details'!E222,Lists!$M$2:$N$38,2,FALSE),\"\")","v":""},{"$f":"IF('Procedure details'!E222<>\"\",VLOOKUP('Procedure details'!E222,Lists!$M$2:$O$38,3,FALSE),\"\")","v":""},{"$f":"IF('Procedure details'!N222<>\"\",VLOOKUP('Procedure details'!N222,Lists!$B$2:$C$71,2,FALSE),\"\")","v":""},{"$f":"IF('Procedure details'!H222<>\"\",VLOOKUP('Procedure details'!H222,Lists!$AP$2:$AQ$3,2,FALSE),\"\")","v":""},{"$f":"IF('Procedure details'!N222<>\"\",VLOOKUP('Procedure details'!N222,Lists!$B$2:$D$71,3,FALSE),\"\")","v":""},{"$f":"IF('Procedure details'!P222<>\"\",VLOOKUP('Procedure details'!P222,Lists!$AD$2:$AE$11,2,FALSE),\"\")","v":""},{"$f":"IF(AND(AB222=1,'Procedure details'!G222>99,'Procedure details'!V222=\"\"),1,0)","v":0},{"$f":"IF(AND(AB222=0,'Procedure details'!G222>999,'Procedure details'!V222=\"\"),1,0)","v":0}]
[null,null,null,null,null,null,null,null,null,null,null,null,null,null,null,null,null,null,null,null,null,null,null,223,{"$f":"COUNTA('Procedure details'!E223:'Procedure details'!V223)","v":0},null,{"$f":"IF('Procedure details'!E223<>\"\",VLOOKUP('Procedure details'!E223,Lists!$M$2:$N$38,2,FALSE),\"\")","v":""},{"$f":"IF('Procedure details'!E223<>\"\",VLOOKUP('Procedure details'!E223,Lists!$M$2:$O$38,3,FALSE),\"\")","v":""},{"$f":"IF('Procedure details'!N223<>\"\",VLOOKUP('Procedure details'!N223,Lists!$B$2:$C$71,2,FALSE),\"\")","v":""},{"$f":"IF('Procedure details'!H223<>\"\",VLOOKUP('Procedure details'!H223,Lists!$AP$2:$AQ$3,2,FALSE),\"\")","v":""},{"$f":"IF('Procedure details'!N223<>\"\",VLOOKUP('Procedure details'!N223,Lists!$B$2:$D$71,3,FALSE),\"\")","v":""},{"$f":"IF('Procedure details'!P223<>\"\",VLOOKUP('Procedure details'!P223,Lists!$AD$2:$AE$11,2,FALSE),\"\")","v":""},{"$f":"IF(AND(AB223=1,'Procedure details'!G223>99,'Procedure details'!V223=\"\"),1,0)","v":0},{"$f":"IF(AND(AB223=0,'Procedure details'!G223>999,'Procedure details'!V223=\"\"),1,0)","v":0}]
[null,null,null,null,null,null,null,null,null,null,null,null,null,null,null,null,null,null,null,null,null,null,null,224,{"$f":"COUNTA('Procedure details'!E224:'Procedure details'!V224)","v":0},null,{"$f":"IF('Procedure details'!E224<>\"\",VLOOKUP('Procedure details'!E224,Lists!$M$2:$N$38,2,FALSE),\"\")","v":""},{"$f":"IF('Procedure details'!E224<>\"\",VLOOKUP('Procedure details'!E224,Lists!$M$2:$O$38,3,FALSE),\"\")","v":""},{"$f":"IF('Procedure details'!N224<>\"\",VLOOKUP('Procedure details'!N224,Lists!$B$2:$C$71,2,FALSE),\"\")","v":""},{"$f":"IF('Procedure details'!H224<>\"\",VLOOKUP('Procedure details'!H224,Lists!$AP$2:$AQ$3,2,FALSE),\"\")","v":""},{"$f":"IF('Procedure details'!N224<>\"\",VLOOKUP('Procedure details'!N224,Lists!$B$2:$D$71,3,FALSE),\"\")","v":""},{"$f":"IF('Procedure details'!P224<>\"\",VLOOKUP('Procedure details'!P224,Lists!$AD$2:$AE$11,2,FALSE),\"\")","v":""},{"$f":"IF(AND(AB224=1,'Procedure details'!G224>99,'Procedure details'!V224=\"\"),1,0)","v":0},{"$f":"IF(AND(AB224=0,'Procedure details'!G224>999,'Procedure details'!V224=\"\"),1,0)","v":0}]
[null,null,null,null,null,null,null,null,null,null,null,null,null,null,null,null,null,null,null,null,null,null,null,225,{"$f":"COUNTA('Procedure details'!E225:'Procedure details'!V225)","v":0},null,{"$f":"IF('Procedure details'!E225<>\"\",VLOOKUP('Procedure details'!E225,Lists!$M$2:$N$38,2,FALSE),\"\")","v":""},{"$f":"IF('Procedure details'!E225<>\"\",VLOOKUP('Procedure details'!E225,Lists!$M$2:$O$38,3,FALSE),\"\")","v":""},{"$f":"IF('Procedure details'!N225<>\"\",VLOOKUP('Procedure details'!N225,Lists!$B$2:$C$71,2,FALSE),\"\")","v":""},{"$f":"IF('Procedure details'!H225<>\"\",VLOOKUP('Procedure details'!H225,Lists!$AP$2:$AQ$3,2,FALSE),\"\")","v":""},{"$f":"IF('Procedure details'!N225<>\"\",VLOOKUP('Procedure details'!N225,Lists!$B$2:$D$71,3,FALSE),\"\")","v":""},{"$f":"IF('Procedure details'!P225<>\"\",VLOOKUP('Procedure details'!P225,Lists!$AD$2:$AE$11,2,FALSE),\"\")","v":""},{"$f":"IF(AND(AB225=1,'Procedure details'!G225>99,'Procedure details'!V225=\"\"),1,0)","v":0},{"$f":"IF(AND(AB225=0,'Procedure details'!G225>999,'Procedure details'!V225=\"\"),1,0)","v":0}]
[null,null,null,null,null,null,null,null,null,null,null,null,null,null,null,null,null,null,null,null,null,null,null,226,{"$f":"COUNTA('Procedure details'!E226:'Procedure details'!V226)","v":0},null,{"$f":"IF('Procedure details'!E226<>\"\",VLOOKUP('Procedure details'!E226,Lists!$M$2:$N$38,2,FALSE),\"\")","v":""},{"$f":"IF('Procedure details'!E226<>\"\",VLOOKUP('Procedure details'!E226,Lists!$M$2:$O$38,3,FALSE),\"\")","v":""},{"$f":"IF('Procedure details'!N226<>\"\",VLOOKUP('Procedure details'!N226,Lists!$B$2:$C$71,2,FALSE),\"\")","v":""},{"$f":"IF('Procedure details'!H226<>\"\",VLOOKUP('Procedure details'!H226,Lists!$AP$2:$AQ$3,2,FALSE),\"\")","v":""},{"$f":"IF('Procedure details'!N226<>\"\",VLOOKUP('Procedure details'!N226,Lists!$B$2:$D$71,3,FALSE),\"\")","v":""},{"$f":"IF('Procedure details'!P226<>\"\",VLOOKUP('Procedure details'!P226,Lists!$AD$2:$AE$11,2,FALSE),\"\")","v":""},{"$f":"IF(AND(AB226=1,'Procedure details'!G226>99,'Procedure details'!V226=\"\"),1,0)","v":0},{"$f":"IF(AND(AB226=0,'Procedure details'!G226>999,'Procedure details'!V226=\"\"),1,0)","v":0}]
[null,null,null,null,null,null,null,null,null,null,null,null,null,null,null,null,null,null,null,null,null,null,null,227,{"$f":"COUNTA('Procedure details'!E227:'Procedure details'!V227)","v":0},null,{"$f":"IF('Procedure details'!E227<>\"\",VLOOKUP('Procedure details'!E227,Lists!$M$2:$N$38,2,FALSE),\"\")","v":""},{"$f":"IF('Procedure details'!E227<>\"\",VLOOKUP('Procedure details'!E227,Lists!$M$2:$O$38,3,FALSE),\"\")","v":""},{"$f":"IF('Procedure details'!N227<>\"\",VLOOKUP('Procedure details'!N227,Lists!$B$2:$C$71,2,FALSE),\"\")","v":""},{"$f":"IF('Procedure details'!H227<>\"\",VLOOKUP('Procedure details'!H227,Lists!$AP$2:$AQ$3,2,FALSE),\"\")","v":""},{"$f":"IF('Procedure details'!N227<>\"\",VLOOKUP('Procedure details'!N227,Lists!$B$2:$D$71,3,FALSE),\"\")","v":""},{"$f":"IF('Procedure details'!P227<>\"\",VLOOKUP('Procedure details'!P227,Lists!$AD$2:$AE$11,2,FALSE),\"\")","v":""},{"$f":"IF(AND(AB227=1,'Procedure details'!G227>99,'Procedure details'!V227=\"\"),1,0)","v":0},{"$f":"IF(AND(AB227=0,'Procedure details'!G227>999,'Procedure details'!V227=\"\"),1,0)","v":0}]
[null,null,null,null,null,null,null,null,null,null,null,null,null,null,null,null,null,null,null,null,null,null,null,228,{"$f":"COUNTA('Procedure details'!E228:'Procedure details'!V228)","v":0},null,{"$f":"IF('Procedure details'!E228<>\"\",VLOOKUP('Procedure details'!E228,Lists!$M$2:$N$38,2,FALSE),\"\")","v":""},{"$f":"IF('Procedure details'!E228<>\"\",VLOOKUP('Procedure details'!E228,Lists!$M$2:$O$38,3,FALSE),\"\")","v":""},{"$f":"IF('Procedure details'!N228<>\"\",VLOOKUP('Procedure details'!N228,Lists!$B$2:$C$71,2,FALSE),\"\")","v":""},{"$f":"IF('Procedure details'!H228<>\"\",VLOOKUP('Procedure details'!H228,Lists!$AP$2:$AQ$3,2,FALSE),\"\")","v":""},{"$f":"IF('Procedure details'!N228<>\"\",VLOOKUP('Procedure details'!N228,Lists!$B$2:$D$71,3,FALSE),\"\")","v":""},{"$f":"IF('Procedure details'!P228<>\"\",VLOOKUP('Procedure details'!P228,Lists!$AD$2:$AE$11,2,FALSE),\"\")","v":""},{"$f":"IF(AND(AB228=1,'Procedure details'!G228>99,'Procedure details'!V228=\"\"),1,0)","v":0},{"$f":"IF(AND(AB228=0,'Procedure details'!G228>999,'Procedure details'!V228=\"\"),1,0)","v":0}]
[null,null,null,null,null,null,null,null,null,null,null,null,null,null,null,null,null,null,null,null,null,null,null,229,{"$f":"COUNTA('Procedure details'!E229:'Procedure details'!V229)","v":0},null,{"$f":"IF('Procedure details'!E229<>\"\",VLOOKUP('Procedure details'!E229,Lists!$M$2:$N$38,2,FALSE),\"\")","v":""},{"$f":"IF('Procedure details'!E229<>\"\",VLOOKUP('Procedure details'!E229,Lists!$M$2:$O$38,3,FALSE),\"\")","v":""},{"$f":"IF('Procedure details'!N229<>\"\",VLOOKUP('Procedure details'!N229,Lists!$B$2:$C$71,2,FALSE),\"\")","v":""},{"$f":"IF('Procedure details'!H229<>\"\",VLOOKUP('Procedure details'!H229,Lists!$AP$2:$AQ$3,2,FALSE),\"\")","v":""},{"$f":"IF('Procedure details'!N229<>\"\",VLOOKUP('Procedure details'!N229,Lists!$B$2:$D$71,3,FALSE),\"\")","v":""},{"$f":"IF('Procedure details'!P229<>\"\",VLOOKUP('Procedure details'!P229,Lists!$AD$2:$AE$11,2,FALSE),\"\")","v":""},{"$f":"IF(AND(AB229=1,'Procedure details'!G229>99,'Procedure details'!V229=\"\"),1,0)","v":0},{"$f":"IF(AND(AB229=0,'Procedure details'!G229>999,'Procedure details'!V229=\"\"),1,0)","v":0}]
[null,null,null,null,null,null,null,null,null,null,null,null,null,null,null,null,null,null,null,null,null,null,null,230,{"$f":"COUNTA('Procedure details'!E230:'Procedure details'!V230)","v":0},null,{"$f":"IF('Procedure details'!E230<>\"\",VLOOKUP('Procedure details'!E230,Lists!$M$2:$N$38,2,FALSE),\"\")","v":""},{"$f":"IF('Procedure details'!E230<>\"\",VLOOKUP('Procedure details'!E230,Lists!$M$2:$O$38,3,FALSE),\"\")","v":""},{"$f":"IF('Procedure details'!N230<>\"\",VLOOKUP('Procedure details'!N230,Lists!$B$2:$C$71,2,FALSE),\"\")","v":""},{"$f":"IF('Procedure details'!H230<>\"\",VLOOKUP('Procedure details'!H230,Lists!$AP$2:$AQ$3,2,FALSE),\"\")","v":""},{"$f":"IF('Procedure details'!N230<>\"\",VLOOKUP('Procedure details'!N230,Lists!$B$2:$D$71,3,FALSE),\"\")","v":""},{"$f":"IF('Procedure details'!P230<>\"\",VLOOKUP('Procedure details'!P230,Lists!$AD$2:$AE$11,2,FALSE),\"\")","v":""},{"$f":"IF(AND(AB230=1,'Procedure details'!G230>99,'Procedure details'!V230=\"\"),1,0)","v":0},{"$f":"IF(AND(AB230=0,'Procedure details'!G230>999,'Procedure details'!V230=\"\"),1,0)","v":0}]
[null,null,null,null,null,null,null,null,null,null,null,null,null,null,null,null,null,null,null,null,null,null,null,231,{"$f":"COUNTA('Procedure details'!E231:'Procedure details'!V231)","v":0},null,{"$f":"IF('Procedure details'!E231<>\"\",VLOOKUP('Procedure details'!E231,Lists!$M$2:$N$38,2,FALSE),\"\")","v":""},{"$f":"IF('Procedure details'!E231<>\"\",VLOOKUP('Procedure details'!E231,Lists!$M$2:$O$38,3,FALSE),\"\")","v":""},{"$f":"IF('Procedure details'!N231<>\"\",VLOOKUP('Procedure details'!N231,Lists!$B$2:$C$71,2,FALSE),\"\")","v":""},{"$f":"IF('Procedure details'!H231<>\"\",VLOOKUP('Procedure details'!H231,Lists!$AP$2:$AQ$3,2,FALSE),\"\")","v":""},{"$f":"IF('Procedure details'!N231<>\"\",VLOOKUP('Procedure details'!N231,Lists!$B$2:$D$71,3,FALSE),\"\")","v":""},{"$f":"IF('Procedure details'!P231<>\"\",VLOOKUP('Procedure details'!P231,Lists!$AD$2:$AE$11,2,FALSE),\"\")","v":""},{"$f":"IF(AND(AB231=1,'Procedure details'!G231>99,'Procedure details'!V231=\"\"),1,0)","v":0},{"$f":"IF(AND(AB231=0,'Procedure details'!G231>999,'Procedure details'!V231=\"\"),1,0)","v":0}]
[null,null,null,null,null,null,null,null,null,null,null,null,null,null,null,null,null,null,null,null,null,null,null,232,{"$f":"COUNTA('Procedure details'!E232:'Procedure details'!V232)","v":0},null,{"$f":"IF('Procedure details'!E232<>\"\",VLOOKUP('Procedure details'!E232,Lists!$M$2:$N$38,2,FALSE),\"\")","v":""},{"$f":"IF('Procedure details'!E232<>\"\",VLOOKUP('Procedure details'!E232,Lists!$M$2:$O$38,3,FALSE),\"\")","v":""},{"$f":"IF('Procedure details'!N232<>\"\",VLOOKUP('Procedure details'!N232,Lists!$B$2:$C$71,2,FALSE),\"\")","v":""},{"$f":"IF('Procedure details'!H232<>\"\",VLOOKUP('Procedure details'!H232,Lists!$AP$2:$AQ$3,2,FALSE),\"\")","v":""},{"$f":"IF('Procedure details'!N232<>\"\",VLOOKUP('Procedure details'!N232,Lists!$B$2:$D$71,3,FALSE),\"\")","v":""},{"$f":"IF('Procedure details'!P232<>\"\",VLOOKUP('Procedure details'!P232,Lists!$AD$2:$AE$11,2,FALSE),\"\")","v":""},{"$f":"IF(AND(AB232=1,'Procedure details'!G232>99,'Procedure details'!V232=\"\"),1,0)","v":0},{"$f":"IF(AND(AB232=0,'Procedure details'!G232>999,'Procedure details'!V232=\"\"),1,0)","v":0}]
[null,null,null,null,null,null,null,null,null,null,null,null,null,null,null,null,null,null,null,null,null,null,null,233,{"$f":"COUNTA('Procedure details'!E233:'Procedure details'!V233)","v":0},null,{"$f":"IF('Procedure details'!E233<>\"\",VLOOKUP('Procedure details'!E233,Lists!$M$2:$N$38,2,FALSE),\"\")","v":""},{"$f":"IF('Procedure details'!E233<>\"\",VLOOKUP('Procedure details'!E233,Lists!$M$2:$O$38,3,FALSE),\"\")","v":""},{"$f":"IF('Procedure details'!N233<>\"\",VLOOKUP('Procedure details'!N233,Lists!$B$2:$C$71,2,FALSE),\"\")","v":""},{"$f":"IF('Procedure details'!H233<>\"\",VLOOKUP('Procedure details'!H233,Lists!$AP$2:$AQ$3,2,FALSE),\"\")","v":""},{"$f":"IF('Procedure details'!N233<>\"\",VLOOKUP('Procedure details'!N233,Lists!$B$2:$D$71,3,FALSE),\"\")","v":""},{"$f":"IF('Procedure details'!P233<>\"\",VLOOKUP('Procedure details'!P233,Lists!$AD$2:$AE$11,2,FALSE),\"\")","v":""},{"$f":"IF(AND(AB233=1,'Procedure details'!G233>99,'Procedure details'!V233=\"\"),1,0)","v":0},{"$f":"IF(AND(AB233=0,'Procedure details'!G233>999,'Procedure details'!V233=\"\"),1,0)","v":0}]
[null,null,null,null,null,null,null,null,null,null,null,null,null,null,null,null,null,null,null,null,null,null,null,234,{"$f":"COUNTA('Procedure details'!E234:'Procedure details'!V234)","v":0},null,{"$f":"IF('Procedure details'!E234<>\"\",VLOOKUP('Procedure details'!E234,Lists!$M$2:$N$38,2,FALSE),\"\")","v":""},{"$f":"IF('Procedure details'!E234<>\"\",VLOOKUP('Procedure details'!E234,Lists!$M$2:$O$38,3,FALSE),\"\")","v":""},{"$f":"IF('Procedure details'!N234<>\"\",VLOOKUP('Procedure details'!N234,Lists!$B$2:$C$71,2,FALSE),\"\")","v":""},{"$f":"IF('Procedure details'!H234<>\"\",VLOOKUP('Procedure details'!H234,Lists!$AP$2:$AQ$3,2,FALSE),\"\")","v":""},{"$f":"IF('Procedure details'!N234<>\"\",VLOOKUP('Procedure details'!N234,Lists!$B$2:$D$71,3,FALSE),\"\")","v":""},{"$f":"IF('Procedure details'!P234<>\"\",VLOOKUP('Procedure details'!P234,Lists!$AD$2:$AE$11,2,FALSE),\"\")","v":""},{"$f":"IF(AND(AB234=1,'Procedure details'!G234>99,'Procedure details'!V234=\"\"),1,0)","v":0},{"$f":"IF(AND(AB234=0,'Procedure details'!G234>999,'Procedure details'!V234=\"\"),1,0)","v":0}]
[null,null,null,null,null,null,null,null,null,null,null,null,null,null,null,null,null,null,null,null,null,null,null,235,{"$f":"COUNTA('Procedure details'!E235:'Procedure details'!V235)","v":0},null,{"$f":"IF('Procedure details'!E235<>\"\",VLOOKUP('Procedure details'!E235,Lists!$M$2:$N$38,2,FALSE),\"\")","v":""},{"$f":"IF('Procedure details'!E235<>\"\",VLOOKUP('Procedure details'!E235,Lists!$M$2:$O$38,3,FALSE),\"\")","v":""},{"$f":"IF('Procedure details'!N235<>\"\",VLOOKUP('Procedure details'!N235,Lists!$B$2:$C$71,2,FALSE),\"\")","v":""},{"$f":"IF('Procedure details'!H235<>\"\",VLOOKUP('Procedure details'!H235,Lists!$AP$2:$AQ$3,2,FALSE),\"\")","v":""},{"$f":"IF('Procedure details'!N235<>\"\",VLOOKUP('Procedure details'!N235,Lists!$B$2:$D$71,3,FALSE),\"\")","v":""},{"$f":"IF('Procedure details'!P235<>\"\",VLOOKUP('Procedure details'!P235,Lists!$AD$2:$AE$11,2,FALSE),\"\")","v":""},{"$f":"IF(AND(AB235=1,'Procedure details'!G235>99,'Procedure details'!V235=\"\"),1,0)","v":0},{"$f":"IF(AND(AB235=0,'Procedure details'!G235>999,'Procedure details'!V235=\"\"),1,0)","v":0}]
[null,null,null,null,null,null,null,null,null,null,null,null,null,null,null,null,null,null,null,null,null,null,null,236,{"$f":"COUNTA('Procedure details'!E236:'Procedure details'!V236)","v":0},null,{"$f":"IF('Procedure details'!E236<>\"\",VLOOKUP('Procedure details'!E236,Lists!$M$2:$N$38,2,FALSE),\"\")","v":""},{"$f":"IF('Procedure details'!E236<>\"\",VLOOKUP('Procedure details'!E236,Lists!$M$2:$O$38,3,FALSE),\"\")","v":""},{"$f":"IF('Procedure details'!N236<>\"\",VLOOKUP('Procedure details'!N236,Lists!$B$2:$C$71,2,FALSE),\"\")","v":""},{"$f":"IF('Procedure details'!H236<>\"\",VLOOKUP('Procedure details'!H236,Lists!$AP$2:$AQ$3,2,FALSE),\"\")","v":""},{"$f":"IF('Procedure details'!N236<>\"\",VLOOKUP('Procedure details'!N236,Lists!$B$2:$D$71,3,FALSE),\"\")","v":""},{"$f":"IF('Procedure details'!P236<>\"\",VLOOKUP('Procedure details'!P236,Lists!$AD$2:$AE$11,2,FALSE),\"\")","v":""},{"$f":"IF(AND(AB236=1,'Procedure details'!G236>99,'Procedure details'!V236=\"\"),1,0)","v":0},{"$f":"IF(AND(AB236=0,'Procedure details'!G236>999,'Procedure details'!V236=\"\"),1,0)","v":0}]
[null,null,null,null,null,null,null,null,null,null,null,null,null,null,null,null,null,null,null,null,null,null,null,237,{"$f":"COUNTA('Procedure details'!E237:'Procedure details'!V237)","v":0},null,{"$f":"IF('Procedure details'!E237<>\"\",VLOOKUP('Procedure details'!E237,Lists!$M$2:$N$38,2,FALSE),\"\")","v":""},{"$f":"IF('Procedure details'!E237<>\"\",VLOOKUP('Procedure details'!E237,Lists!$M$2:$O$38,3,FALSE),\"\")","v":""},{"$f":"IF('Procedure details'!N237<>\"\",VLOOKUP('Procedure details'!N237,Lists!$B$2:$C$71,2,FALSE),\"\")","v":""},{"$f":"IF('Procedure details'!H237<>\"\",VLOOKUP('Procedure details'!H237,Lists!$AP$2:$AQ$3,2,FALSE),\"\")","v":""},{"$f":"IF('Procedure details'!N237<>\"\",VLOOKUP('Procedure details'!N237,Lists!$B$2:$D$71,3,FALSE),\"\")","v":""},{"$f":"IF('Procedure details'!P237<>\"\",VLOOKUP('Procedure details'!P237,Lists!$AD$2:$AE$11,2,FALSE),\"\")","v":""},{"$f":"IF(AND(AB237=1,'Procedure details'!G237>99,'Procedure details'!V237=\"\"),1,0)","v":0},{"$f":"IF(AND(AB237=0,'Procedure details'!G237>999,'Procedure details'!V237=\"\"),1,0)","v":0}]
[null,null,null,null,null,null,null,null,null,null,null,null,null,null,null,null,null,null,null,null,null,null,null,238,{"$f":"COUNTA('Procedure details'!E238:'Procedure details'!V238)","v":0},null,{"$f":"IF('Procedure details'!E238<>\"\",VLOOKUP('Procedure details'!E238,Lists!$M$2:$N$38,2,FALSE),\"\")","v":""},{"$f":"IF('Procedure details'!E238<>\"\",VLOOKUP('Procedure details'!E238,Lists!$M$2:$O$38,3,FALSE),\"\")","v":""},{"$f":"IF('Procedure details'!N238<>\"\",VLOOKUP('Procedure details'!N238,Lists!$B$2:$C$71,2,FALSE),\"\")","v":""},{"$f":"IF('Procedure details'!H238<>\"\",VLOOKUP('Procedure details'!H238,Lists!$AP$2:$AQ$3,2,FALSE),\"\")","v":""},{"$f":"IF('Procedure details'!N238<>\"\",VLOOKUP('Procedure details'!N238,Lists!$B$2:$D$71,3,FALSE),\"\")","v":""},{"$f":"IF('Procedure details'!P238<>\"\",VLOOKUP('Procedure details'!P238,Lists!$AD$2:$AE$11,2,FALSE),\"\")","v":""},{"$f":"IF(AND(AB238=1,'Procedure details'!G238>99,'Procedure details'!V238=\"\"),1,0)","v":0},{"$f":"IF(AND(AB238=0,'Procedure details'!G238>999,'Procedure details'!V238=\"\"),1,0)","v":0}]
[null,null,null,null,null,null,null,null,null,null,null,null,null,null,null,null,null,null,null,null,null,null,null,239,{"$f":"COUNTA('Procedure details'!E239:'Procedure details'!V239)","v":0},null,{"$f":"IF('Procedure details'!E239<>\"\",VLOOKUP('Procedure details'!E239,Lists!$M$2:$N$38,2,FALSE),\"\")","v":""},{"$f":"IF('Procedure details'!E239<>\"\",VLOOKUP('Procedure details'!E239,Lists!$M$2:$O$38,3,FALSE),\"\")","v":""},{"$f":"IF('Procedure details'!N239<>\"\",VLOOKUP('Procedure details'!N239,Lists!$B$2:$C$71,2,FALSE),\"\")","v":""},{"$f":"IF('Procedure details'!H239<>\"\",VLOOKUP('Procedure details'!H239,Lists!$AP$2:$AQ$3,2,FALSE),\"\")","v":""},{"$f":"IF('Procedure details'!N239<>\"\",VLOOKUP('Procedure details'!N239,Lists!$B$2:$D$71,3,FALSE),\"\")","v":""},{"$f":"IF('Procedure details'!P239<>\"\",VLOOKUP('Procedure details'!P239,Lists!$AD$2:$AE$11,2,FALSE),\"\")","v":""},{"$f":"IF(AND(AB239=1,'Procedure details'!G239>99,'Procedure details'!V239=\"\"),1,0)","v":0},{"$f":"IF(AND(AB239=0,'Procedure details'!G239>999,'Procedure details'!V239=\"\"),1,0)","v":0}]
[null,null,null,null,null,null,null,null,null,null,null,null,null,null,null,null,null,null,null,null,null,null,null,240,{"$f":"COUNTA('Procedure details'!E240:'Procedure details'!V240)","v":0},null,{"$f":"IF('Procedure details'!E240<>\"\",VLOOKUP('Procedure details'!E240,Lists!$M$2:$N$38,2,FALSE),\"\")","v":""},{"$f":"IF('Procedure details'!E240<>\"\",VLOOKUP('Procedure details'!E240,Lists!$M$2:$O$38,3,FALSE),\"\")","v":""},{"$f":"IF('Procedure details'!N240<>\"\",VLOOKUP('Procedure details'!N240,Lists!$B$2:$C$71,2,FALSE),\"\")","v":""},{"$f":"IF('Procedure details'!H240<>\"\",VLOOKUP('Procedure details'!H240,Lists!$AP$2:$AQ$3,2,FALSE),\"\")","v":""},{"$f":"IF('Procedure details'!N240<>\"\",VLOOKUP('Procedure details'!N240,Lists!$B$2:$D$71,3,FALSE),\"\")","v":""},{"$f":"IF('Procedure details'!P240<>\"\",VLOOKUP('Procedure details'!P240,Lists!$AD$2:$AE$11,2,FALSE),\"\")","v":""},{"$f":"IF(AND(AB240=1,'Procedure details'!G240>99,'Procedure details'!V240=\"\"),1,0)","v":0},{"$f":"IF(AND(AB240=0,'Procedure details'!G240>999,'Procedure details'!V240=\"\"),1,0)","v":0}]
[null,null,null,null,null,null,null,null,null,null,null,null,null,null,null,null,null,null,null,null,null,null,null,241,{"$f":"COUNTA('Procedure details'!E241:'Procedure details'!V241)","v":0},null,{"$f":"IF('Procedure details'!E241<>\"\",VLOOKUP('Procedure details'!E241,Lists!$M$2:$N$38,2,FALSE),\"\")","v":""},{"$f":"IF('Procedure details'!E241<>\"\",VLOOKUP('Procedure details'!E241,Lists!$M$2:$O$38,3,FALSE),\"\")","v":""},{"$f":"IF('Procedure details'!N241<>\"\",VLOOKUP('Procedure details'!N241,Lists!$B$2:$C$71,2,FALSE),\"\")","v":""},{"$f":"IF('Procedure details'!H241<>\"\",VLOOKUP('Procedure details'!H241,Lists!$AP$2:$AQ$3,2,FALSE),\"\")","v":""},{"$f":"IF('Procedure details'!N241<>\"\",VLOOKUP('Procedure details'!N241,Lists!$B$2:$D$71,3,FALSE),\"\")","v":""},{"$f":"IF('Procedure details'!P241<>\"\",VLOOKUP('Procedure details'!P241,Lists!$AD$2:$AE$11,2,FALSE),\"\")","v":""},{"$f":"IF(AND(AB241=1,'Procedure details'!G241>99,'Procedure details'!V241=\"\"),1,0)","v":0},{"$f":"IF(AND(AB241=0,'Procedure details'!G241>999,'Procedure details'!V241=\"\"),1,0)","v":0}]
[null,null,null,null,null,null,null,null,null,null,null,null,null,null,null,null,null,null,null,null,null,null,null,242,{"$f":"COUNTA('Procedure details'!E242:'Procedure details'!V242)","v":0},null,{"$f":"IF('Procedure details'!E242<>\"\",VLOOKUP('Procedure details'!E242,Lists!$M$2:$N$38,2,FALSE),\"\")","v":""},{"$f":"IF('Procedure details'!E242<>\"\",VLOOKUP('Procedure details'!E242,Lists!$M$2:$O$38,3,FALSE),\"\")","v":""},{"$f":"IF('Procedure details'!N242<>\"\",VLOOKUP('Procedure details'!N242,Lists!$B$2:$C$71,2,FALSE),\"\")","v":""},{"$f":"IF('Procedure details'!H242<>\"\",VLOOKUP('Procedure details'!H242,Lists!$AP$2:$AQ$3,2,FALSE),\"\")","v":""},{"$f":"IF('Procedure details'!N242<>\"\",VLOOKUP('Procedure details'!N242,Lists!$B$2:$D$71,3,FALSE),\"\")","v":""},{"$f":"IF('Procedure details'!P242<>\"\",VLOOKUP('Procedure details'!P242,Lists!$AD$2:$AE$11,2,FALSE),\"\")","v":""},{"$f":"IF(AND(AB242=1,'Procedure details'!G242>99,'Procedure details'!V242=\"\"),1,0)","v":0},{"$f":"IF(AND(AB242=0,'Procedure details'!G242>999,'Procedure details'!V242=\"\"),1,0)","v":0}]
[null,null,null,null,null,null,null,null,null,null,null,null,null,null,null,null,null,null,null,null,null,null,null,243,{"$f":"COUNTA('Procedure details'!E243:'Procedure details'!V243)","v":0},null,{"$f":"IF('Procedure details'!E243<>\"\",VLOOKUP('Procedure details'!E243,Lists!$M$2:$N$38,2,FALSE),\"\")","v":""},{"$f":"IF('Procedure details'!E243<>\"\",VLOOKUP('Procedure details'!E243,Lists!$M$2:$O$38,3,FALSE),\"\")","v":""},{"$f":"IF('Procedure details'!N243<>\"\",VLOOKUP('Procedure details'!N243,Lists!$B$2:$C$71,2,FALSE),\"\")","v":""},{"$f":"IF('Procedure details'!H243<>\"\",VLOOKUP('Procedure details'!H243,Lists!$AP$2:$AQ$3,2,FALSE),\"\")","v":""},{"$f":"IF('Procedure details'!N243<>\"\",VLOOKUP('Procedure details'!N243,Lists!$B$2:$D$71,3,FALSE),\"\")","v":""},{"$f":"IF('Procedure details'!P243<>\"\",VLOOKUP('Procedure details'!P243,Lists!$AD$2:$AE$11,2,FALSE),\"\")","v":""},{"$f":"IF(AND(AB243=1,'Procedure details'!G243>99,'Procedure details'!V243=\"\"),1,0)","v":0},{"$f":"IF(AND(AB243=0,'Procedure details'!G243>999,'Procedure details'!V243=\"\"),1,0)","v":0}]
[null,null,null,null,null,null,null,null,null,null,null,null,null,null,null,null,null,null,null,null,null,null,null,244,{"$f":"COUNTA('Procedure details'!E244:'Procedure details'!V244)","v":0},null,{"$f":"IF('Procedure details'!E244<>\"\",VLOOKUP('Procedure details'!E244,Lists!$M$2:$N$38,2,FALSE),\"\")","v":""},{"$f":"IF('Procedure details'!E244<>\"\",VLOOKUP('Procedure details'!E244,Lists!$M$2:$O$38,3,FALSE),\"\")","v":""},{"$f":"IF('Procedure details'!N244<>\"\",VLOOKUP('Procedure details'!N244,Lists!$B$2:$C$71,2,FALSE),\"\")","v":""},{"$f":"IF('Procedure details'!H244<>\"\",VLOOKUP('Procedure details'!H244,Lists!$AP$2:$AQ$3,2,FALSE),\"\")","v":""},{"$f":"IF('Procedure details'!N244<>\"\",VLOOKUP('Procedure details'!N244,Lists!$B$2:$D$71,3,FALSE),\"\")","v":""},{"$f":"IF('Procedure details'!P244<>\"\",VLOOKUP('Procedure details'!P244,Lists!$AD$2:$AE$11,2,FALSE),\"\")","v":""},{"$f":"IF(AND(AB244=1,'Procedure details'!G244>99,'Procedure details'!V244=\"\"),1,0)","v":0},{"$f":"IF(AND(AB244=0,'Procedure details'!G244>999,'Procedure details'!V244=\"\"),1,0)","v":0}]
[null,null,null,null,null,null,null,null,null,null,null,null,null,null,null,null,null,null,null,null,null,null,null,245,{"$f":"COUNTA('Procedure details'!E245:'Procedure details'!V245)","v":0},null,{"$f":"IF('Procedure details'!E245<>\"\",VLOOKUP('Procedure details'!E245,Lists!$M$2:$N$38,2,FALSE),\"\")","v":""},{"$f":"IF('Procedure details'!E245<>\"\",VLOOKUP('Procedure details'!E245,Lists!$M$2:$O$38,3,FALSE),\"\")","v":""},{"$f":"IF('Procedure details'!N245<>\"\",VLOOKUP('Procedure details'!N245,Lists!$B$2:$C$71,2,FALSE),\"\")","v":""},{"$f":"IF('Procedure details'!H245<>\"\",VLOOKUP('Procedure details'!H245,Lists!$AP$2:$AQ$3,2,FALSE),\"\")","v":""},{"$f":"IF('Procedure details'!N245<>\"\",VLOOKUP('Procedure details'!N245,Lists!$B$2:$D$71,3,FALSE),\"\")","v":""},{"$f":"IF('Procedure details'!P245<>\"\",VLOOKUP('Procedure details'!P245,Lists!$AD$2:$AE$11,2,FALSE),\"\")","v":""},{"$f":"IF(AND(AB245=1,'Procedure details'!G245>99,'Procedure details'!V245=\"\"),1,0)","v":0},{"$f":"IF(AND(AB245=0,'Procedure details'!G245>999,'Procedure details'!V245=\"\"),1,0)","v":0}]
[null,null,null,null,null,null,null,null,null,null,null,null,null,null,null,null,null,null,null,null,null,null,null,246,{"$f":"COUNTA('Procedure details'!E246:'Procedure details'!V246)","v":0},null,{"$f":"IF('Procedure details'!E246<>\"\",VLOOKUP('Procedure details'!E246,Lists!$M$2:$N$38,2,FALSE),\"\")","v":""},{"$f":"IF('Procedure details'!E246<>\"\",VLOOKUP('Procedure details'!E246,Lists!$M$2:$O$38,3,FALSE),\"\")","v":""},{"$f":"IF('Procedure details'!N246<>\"\",VLOOKUP('Procedure details'!N246,Lists!$B$2:$C$71,2,FALSE),\"\")","v":""},{"$f":"IF('Procedure details'!H246<>\"\",VLOOKUP('Procedure details'!H246,Lists!$AP$2:$AQ$3,2,FALSE),\"\")","v":""},{"$f":"IF('Procedure details'!N246<>\"\",VLOOKUP('Procedure details'!N246,Lists!$B$2:$D$71,3,FALSE),\"\")","v":""},{"$f":"IF('Procedure details'!P246<>\"\",VLOOKUP('Procedure details'!P246,Lists!$AD$2:$AE$11,2,FALSE),\"\")","v":""},{"$f":"IF(AND(AB246=1,'Procedure details'!G246>99,'Procedure details'!V246=\"\"),1,0)","v":0},{"$f":"IF(AND(AB246=0,'Procedure details'!G246>999,'Procedure details'!V246=\"\"),1,0)","v":0}]
[null,null,null,null,null,null,null,null,null,null,null,null,null,null,null,null,null,null,null,null,null,null,null,247,{"$f":"COUNTA('Procedure details'!E247:'Procedure details'!V247)","v":0},null,{"$f":"IF('Procedure details'!E247<>\"\",VLOOKUP('Procedure details'!E247,Lists!$M$2:$N$38,2,FALSE),\"\")","v":""},{"$f":"IF('Procedure details'!E247<>\"\",VLOOKUP('Procedure details'!E247,Lists!$M$2:$O$38,3,FALSE),\"\")","v":""},{"$f":"IF('Procedure details'!N247<>\"\",VLOOKUP('Procedure details'!N247,Lists!$B$2:$C$71,2,FALSE),\"\")","v":""},{"$f":"IF('Procedure details'!H247<>\"\",VLOOKUP('Procedure details'!H247,Lists!$AP$2:$AQ$3,2,FALSE),\"\")","v":""},{"$f":"IF('Procedure details'!N247<>\"\",VLOOKUP('Procedure details'!N247,Lists!$B$2:$D$71,3,FALSE),\"\")","v":""},{"$f":"IF('Procedure details'!P247<>\"\",VLOOKUP('Procedure details'!P247,Lists!$AD$2:$AE$11,2,FALSE),\"\")","v":""},{"$f":"IF(AND(AB247=1,'Procedure details'!G247>99,'Procedure details'!V247=\"\"),1,0)","v":0},{"$f":"IF(AND(AB247=0,'Procedure details'!G247>999,'Procedure details'!V247=\"\"),1,0)","v":0}]
[null,null,null,null,null,null,null,null,null,null,null,null,null,null,null,null,null,null,null,null,null,null,null,248,{"$f":"COUNTA('Procedure details'!E248:'Procedure details'!V248)","v":0},null,{"$f":"IF('Procedure details'!E248<>\"\",VLOOKUP('Procedure details'!E248,Lists!$M$2:$N$38,2,FALSE),\"\")","v":""},{"$f":"IF('Procedure details'!E248<>\"\",VLOOKUP('Procedure details'!E248,Lists!$M$2:$O$38,3,FALSE),\"\")","v":""},{"$f":"IF('Procedure details'!N248<>\"\",VLOOKUP('Procedure details'!N248,Lists!$B$2:$C$71,2,FALSE),\"\")","v":""},{"$f":"IF('Procedure details'!H248<>\"\",VLOOKUP('Procedure details'!H248,Lists!$AP$2:$AQ$3,2,FALSE),\"\")","v":""},{"$f":"IF('Procedure details'!N248<>\"\",VLOOKUP('Procedure details'!N248,Lists!$B$2:$D$71,3,FALSE),\"\")","v":""},{"$f":"IF('Procedure details'!P248<>\"\",VLOOKUP('Procedure details'!P248,Lists!$AD$2:$AE$11,2,FALSE),\"\")","v":""},{"$f":"IF(AND(AB248=1,'Procedure details'!G248>99,'Procedure details'!V248=\"\"),1,0)","v":0},{"$f":"IF(AND(AB248=0,'Procedure details'!G248>999,'Procedure details'!V248=\"\"),1,0)","v":0}]
[null,null,null,null,null,null,null,null,null,null,null,null,null,null,null,null,null,null,null,null,null,null,null,249,{"$f":"COUNTA('Procedure details'!E249:'Procedure details'!V249)","v":0},null,{"$f":"IF('Procedure details'!E249<>\"\",VLOOKUP('Procedure details'!E249,Lists!$M$2:$N$38,2,FALSE),\"\")","v":""},{"$f":"IF('Procedure details'!E249<>\"\",VLOOKUP('Procedure details'!E249,Lists!$M$2:$O$38,3,FALSE),\"\")","v":""},{"$f":"IF('Procedure details'!N249<>\"\",VLOOKUP('Procedure details'!N249,Lists!$B$2:$C$71,2,FALSE),\"\")","v":""},{"$f":"IF('Procedure details'!H249<>\"\",VLOOKUP('Procedure details'!H249,Lists!$AP$2:$AQ$3,2,FALSE),\"\")","v":""},{"$f":"IF('Procedure details'!N249<>\"\",VLOOKUP('Procedure details'!N249,Lists!$B$2:$D$71,3,FALSE),\"\")","v":""},{"$f":"IF('Procedure details'!P249<>\"\",VLOOKUP('Procedure details'!P249,Lists!$AD$2:$AE$11,2,FALSE),\"\")","v":""},{"$f":"IF(AND(AB249=1,'Procedure details'!G249>99,'Procedure details'!V249=\"\"),1,0)","v":0},{"$f":"IF(AND(AB249=0,'Procedure details'!G249>999,'Procedure details'!V249=\"\"),1,0)","v":0}]
[null,null,null,null,null,null,null,null,null,null,null,null,null,null,null,null,null,null,null,null,null,null,null,250,{"$f":"COUNTA('Procedure details'!E250:'Procedure details'!V250)","v":0},null,{"$f":"IF('Procedure details'!E250<>\"\",VLOOKUP('Procedure details'!E250,Lists!$M$2:$N$38,2,FALSE),\"\")","v":""},{"$f":"IF('Procedure details'!E250<>\"\",VLOOKUP('Procedure details'!E250,Lists!$M$2:$O$38,3,FALSE),\"\")","v":""},{"$f":"IF('Procedure details'!N250<>\"\",VLOOKUP('Procedure details'!N250,Lists!$B$2:$C$71,2,FALSE),\"\")","v":""},{"$f":"IF('Procedure details'!H250<>\"\",VLOOKUP('Procedure details'!H250,Lists!$AP$2:$AQ$3,2,FALSE),\"\")","v":""},{"$f":"IF('Procedure details'!N250<>\"\",VLOOKUP('Procedure details'!N250,Lists!$B$2:$D$71,3,FALSE),\"\")","v":""},{"$f":"IF('Procedure details'!P250<>\"\",VLOOKUP('Procedure details'!P250,Lists!$AD$2:$AE$11,2,FALSE),\"\")","v":""},{"$f":"IF(AND(AB250=1,'Procedure details'!G250>99,'Procedure details'!V250=\"\"),1,0)","v":0},{"$f":"IF(AND(AB250=0,'Procedure details'!G250>999,'Procedure details'!V250=\"\"),1,0)","v":0}]
[null,null,null,null,null,null,null,null,null,null,null,null,null,null,null,null,null,null,null,null,null,null,null,251,{"$f":"COUNTA('Procedure details'!E251:'Procedure details'!V251)","v":0},null,{"$f":"IF('Procedure details'!E251<>\"\",VLOOKUP('Procedure details'!E251,Lists!$M$2:$N$38,2,FALSE),\"\")","v":""},{"$f":"IF('Procedure details'!E251<>\"\",VLOOKUP('Procedure details'!E251,Lists!$M$2:$O$38,3,FALSE),\"\")","v":""},{"$f":"IF('Procedure details'!N251<>\"\",VLOOKUP('Procedure details'!N251,Lists!$B$2:$C$71,2,FALSE),\"\")","v":""},{"$f":"IF('Procedure details'!H251<>\"\",VLOOKUP('Procedure details'!H251,Lists!$AP$2:$AQ$3,2,FALSE),\"\")","v":""},{"$f":"IF('Procedure details'!N251<>\"\",VLOOKUP('Procedure details'!N251,Lists!$B$2:$D$71,3,FALSE),\"\")","v":""},{"$f":"IF('Procedure details'!P251<>\"\",VLOOKUP('Procedure details'!P251,Lists!$AD$2:$AE$11,2,FALSE),\"\")","v":""},{"$f":"IF(AND(AB251=1,'Procedure details'!G251>99,'Procedure details'!V251=\"\"),1,0)","v":0},{"$f":"IF(AND(AB251=0,'Procedure details'!G251>999,'Procedure details'!V251=\"\"),1,0)","v":0}]
[null,null,null,null,null,null,null,null,null,null,null,null,null,null,null,null,null,null,null,null,null,null,null,252,{"$f":"COUNTA('Procedure details'!E252:'Procedure details'!V252)","v":0},null,{"$f":"IF('Procedure details'!E252<>\"\",VLOOKUP('Procedure details'!E252,Lists!$M$2:$N$38,2,FALSE),\"\")","v":""},{"$f":"IF('Procedure details'!E252<>\"\",VLOOKUP('Procedure details'!E252,Lists!$M$2:$O$38,3,FALSE),\"\")","v":""},{"$f":"IF('Procedure details'!N252<>\"\",VLOOKUP('Procedure details'!N252,Lists!$B$2:$C$71,2,FALSE),\"\")","v":""},{"$f":"IF('Procedure details'!H252<>\"\",VLOOKUP('Procedure details'!H252,Lists!$AP$2:$AQ$3,2,FALSE),\"\")","v":""},{"$f":"IF('Procedure details'!N252<>\"\",VLOOKUP('Procedure details'!N252,Lists!$B$2:$D$71,3,FALSE),\"\")","v":""},{"$f":"IF('Procedure details'!P252<>\"\",VLOOKUP('Procedure details'!P252,Lists!$AD$2:$AE$11,2,FALSE),\"\")","v":""},{"$f":"IF(AND(AB252=1,'Procedure details'!G252>99,'Procedure details'!V252=\"\"),1,0)","v":0},{"$f":"IF(AND(AB252=0,'Procedure details'!G252>999,'Procedure details'!V252=\"\"),1,0)","v":0}]
[null,null,null,null,null,null,null,null,null,null,null,null,null,null,null,null,null,null,null,null,null,null,null,253,{"$f":"COUNTA('Procedure details'!E253:'Procedure details'!V253)","v":0},null,{"$f":"IF('Procedure details'!E253<>\"\",VLOOKUP('Procedure details'!E253,Lists!$M$2:$N$38,2,FALSE),\"\")","v":""},{"$f":"IF('Procedure details'!E253<>\"\",VLOOKUP('Procedure details'!E253,Lists!$M$2:$O$38,3,FALSE),\"\")","v":""},{"$f":"IF('Procedure details'!N253<>\"\",VLOOKUP('Procedure details'!N253,Lists!$B$2:$C$71,2,FALSE),\"\")","v":""},{"$f":"IF('Procedure details'!H253<>\"\",VLOOKUP('Procedure details'!H253,Lists!$AP$2:$AQ$3,2,FALSE),\"\")","v":""},{"$f":"IF('Procedure details'!N253<>\"\",VLOOKUP('Procedure details'!N253,Lists!$B$2:$D$71,3,FALSE),\"\")","v":""},{"$f":"IF('Procedure details'!P253<>\"\",VLOOKUP('Procedure details'!P253,Lists!$AD$2:$AE$11,2,FALSE),\"\")","v":""},{"$f":"IF(AND(AB253=1,'Procedure details'!G253>99,'Procedure details'!V253=\"\"),1,0)","v":0},{"$f":"IF(AND(AB253=0,'Procedure details'!G253>999,'Procedure details'!V253=\"\"),1,0)","v":0}]
[null,null,null,null,null,null,null,null,null,null,null,null,null,null,null,null,null,null,null,null,null,null,null,254,{"$f":"COUNTA('Procedure details'!E254:'Procedure details'!V254)","v":0},null,{"$f":"IF('Procedure details'!E254<>\"\",VLOOKUP('Procedure details'!E254,Lists!$M$2:$N$38,2,FALSE),\"\")","v":""},{"$f":"IF('Procedure details'!E254<>\"\",VLOOKUP('Procedure details'!E254,Lists!$M$2:$O$38,3,FALSE),\"\")","v":""},{"$f":"IF('Procedure details'!N254<>\"\",VLOOKUP('Procedure details'!N254,Lists!$B$2:$C$71,2,FALSE),\"\")","v":""},{"$f":"IF('Procedure details'!H254<>\"\",VLOOKUP('Procedure details'!H254,Lists!$AP$2:$AQ$3,2,FALSE),\"\")","v":""},{"$f":"IF('Procedure details'!N254<>\"\",VLOOKUP('Procedure details'!N254,Lists!$B$2:$D$71,3,FALSE),\"\")","v":""},{"$f":"IF('Procedure details'!P254<>\"\",VLOOKUP('Procedure details'!P254,Lists!$AD$2:$AE$11,2,FALSE),\"\")","v":""},{"$f":"IF(AND(AB254=1,'Procedure details'!G254>99,'Procedure details'!V254=\"\"),1,0)","v":0},{"$f":"IF(AND(AB254=0,'Procedure details'!G254>999,'Procedure details'!V254=\"\"),1,0)","v":0}]
[null,null,null,null,null,null,null,null,null,null,null,null,null,null,null,null,null,null,null,null,null,null,null,255,{"$f":"COUNTA('Procedure details'!E255:'Procedure details'!V255)","v":0},null,{"$f":"IF('Procedure details'!E255<>\"\",VLOOKUP('Procedure details'!E255,Lists!$M$2:$N$38,2,FALSE),\"\")","v":""},{"$f":"IF('Procedure details'!E255<>\"\",VLOOKUP('Procedure details'!E255,Lists!$M$2:$O$38,3,FALSE),\"\")","v":""},{"$f":"IF('Procedure details'!N255<>\"\",VLOOKUP('Procedure details'!N255,Lists!$B$2:$C$71,2,FALSE),\"\")","v":""},{"$f":"IF('Procedure details'!H255<>\"\",VLOOKUP('Procedure details'!H255,Lists!$AP$2:$AQ$3,2,FALSE),\"\")","v":""},{"$f":"IF('Procedure details'!N255<>\"\",VLOOKUP('Procedure details'!N255,Lists!$B$2:$D$71,3,FALSE),\"\")","v":""},{"$f":"IF('Procedure details'!P255<>\"\",VLOOKUP('Procedure details'!P255,Lists!$AD$2:$AE$11,2,FALSE),\"\")","v":""},{"$f":"IF(AND(AB255=1,'Procedure details'!G255>99,'Procedure details'!V255=\"\"),1,0)","v":0},{"$f":"IF(AND(AB255=0,'Procedure details'!G255>999,'Procedure details'!V255=\"\"),1,0)","v":0}]
[null,null,null,null,null,null,null,null,null,null,null,null,null,null,null,null,null,null,null,null,null,null,null,256,{"$f":"COUNTA('Procedure details'!E256:'Procedure details'!V256)","v":0},null,{"$f":"IF('Procedure details'!E256<>\"\",VLOOKUP('Procedure details'!E256,Lists!$M$2:$N$38,2,FALSE),\"\")","v":""},{"$f":"IF('Procedure details'!E256<>\"\",VLOOKUP('Procedure details'!E256,Lists!$M$2:$O$38,3,FALSE),\"\")","v":""},{"$f":"IF('Procedure details'!N256<>\"\",VLOOKUP('Procedure details'!N256,Lists!$B$2:$C$71,2,FALSE),\"\")","v":""},{"$f":"IF('Procedure details'!H256<>\"\",VLOOKUP('Procedure details'!H256,Lists!$AP$2:$AQ$3,2,FALSE),\"\")","v":""},{"$f":"IF('Procedure details'!N256<>\"\",VLOOKUP('Procedure details'!N256,Lists!$B$2:$D$71,3,FALSE),\"\")","v":""},{"$f":"IF('Procedure details'!P256<>\"\",VLOOKUP('Procedure details'!P256,Lists!$AD$2:$AE$11,2,FALSE),\"\")","v":""},{"$f":"IF(AND(AB256=1,'Procedure details'!G256>99,'Procedure details'!V256=\"\"),1,0)","v":0},{"$f":"IF(AND(AB256=0,'Procedure details'!G256>999,'Procedure details'!V256=\"\"),1,0)","v":0}]
[null,null,null,null,null,null,null,null,null,null,null,null,null,null,null,null,null,null,null,null,null,null,null,257,{"$f":"COUNTA('Procedure details'!E257:'Procedure details'!V257)","v":0},null,{"$f":"IF('Procedure details'!E257<>\"\",VLOOKUP('Procedure details'!E257,Lists!$M$2:$N$38,2,FALSE),\"\")","v":""},{"$f":"IF('Procedure details'!E257<>\"\",VLOOKUP('Procedure details'!E257,Lists!$M$2:$O$38,3,FALSE),\"\")","v":""},{"$f":"IF('Procedure details'!N257<>\"\",VLOOKUP('Procedure details'!N257,Lists!$B$2:$C$71,2,FALSE),\"\")","v":""},{"$f":"IF('Procedure details'!H257<>\"\",VLOOKUP('Procedure details'!H257,Lists!$AP$2:$AQ$3,2,FALSE),\"\")","v":""},{"$f":"IF('Procedure details'!N257<>\"\",VLOOKUP('Procedure details'!N257,Lists!$B$2:$D$71,3,FALSE),\"\")","v":""},{"$f":"IF('Procedure details'!P257<>\"\",VLOOKUP('Procedure details'!P257,Lists!$AD$2:$AE$11,2,FALSE),\"\")","v":""},{"$f":"IF(AND(AB257=1,'Procedure details'!G257>99,'Procedure details'!V257=\"\"),1,0)","v":0},{"$f":"IF(AND(AB257=0,'Procedure details'!G257>999,'Procedure details'!V257=\"\"),1,0)","v":0}]
[null,null,null,null,null,null,null,null,null,null,null,null,null,null,null,null,null,null,null,null,null,null,null,258,{"$f":"COUNTA('Procedure details'!E258:'Procedure details'!V258)","v":0},null,{"$f":"IF('Procedure details'!E258<>\"\",VLOOKUP('Procedure details'!E258,Lists!$M$2:$N$38,2,FALSE),\"\")","v":""},{"$f":"IF('Procedure details'!E258<>\"\",VLOOKUP('Procedure details'!E258,Lists!$M$2:$O$38,3,FALSE),\"\")","v":""},{"$f":"IF('Procedure details'!N258<>\"\",VLOOKUP('Procedure details'!N258,Lists!$B$2:$C$71,2,FALSE),\"\")","v":""},{"$f":"IF('Procedure details'!H258<>\"\",VLOOKUP('Procedure details'!H258,Lists!$AP$2:$AQ$3,2,FALSE),\"\")","v":""},{"$f":"IF('Procedure details'!N258<>\"\",VLOOKUP('Procedure details'!N258,Lists!$B$2:$D$71,3,FALSE),\"\")","v":""},{"$f":"IF('Procedure details'!P258<>\"\",VLOOKUP('Procedure details'!P258,Lists!$AD$2:$AE$11,2,FALSE),\"\")","v":""},{"$f":"IF(AND(AB258=1,'Procedure details'!G258>99,'Procedure details'!V258=\"\"),1,0)","v":0},{"$f":"IF(AND(AB258=0,'Procedure details'!G258>999,'Procedure details'!V258=\"\"),1,0)","v":0}]
[null,null,null,null,null,null,null,null,null,null,null,null,null,null,null,null,null,null,null,null,null,null,null,259,{"$f":"COUNTA('Procedure details'!E259:'Procedure details'!V259)","v":0},null,{"$f":"IF('Procedure details'!E259<>\"\",VLOOKUP('Procedure details'!E259,Lists!$M$2:$N$38,2,FALSE),\"\")","v":""},{"$f":"IF('Procedure details'!E259<>\"\",VLOOKUP('Procedure details'!E259,Lists!$M$2:$O$38,3,FALSE),\"\")","v":""},{"$f":"IF('Procedure details'!N259<>\"\",VLOOKUP('Procedure details'!N259,Lists!$B$2:$C$71,2,FALSE),\"\")","v":""},{"$f":"IF('Procedure details'!H259<>\"\",VLOOKUP('Procedure details'!H259,Lists!$AP$2:$AQ$3,2,FALSE),\"\")","v":""},{"$f":"IF('Procedure details'!N259<>\"\",VLOOKUP('Procedure details'!N259,Lists!$B$2:$D$71,3,FALSE),\"\")","v":""},{"$f":"IF('Procedure details'!P259<>\"\",VLOOKUP('Procedure details'!P259,Lists!$AD$2:$AE$11,2,FALSE),\"\")","v":""},{"$f":"IF(AND(AB259=1,'Procedure details'!G259>99,'Procedure details'!V259=\"\"),1,0)","v":0},{"$f":"IF(AND(AB259=0,'Procedure details'!G259>999,'Procedure details'!V259=\"\"),1,0)","v":0}]
[null,null,null,null,null,null,null,null,null,null,null,null,null,null,null,null,null,null,null,null,null,null,null,260,{"$f":"COUNTA('Procedure details'!E260:'Procedure details'!V260)","v":0},null,{"$f":"IF('Procedure details'!E260<>\"\",VLOOKUP('Procedure details'!E260,Lists!$M$2:$N$38,2,FALSE),\"\")","v":""},{"$f":"IF('Procedure details'!E260<>\"\",VLOOKUP('Procedure details'!E260,Lists!$M$2:$O$38,3,FALSE),\"\")","v":""},{"$f":"IF('Procedure details'!N260<>\"\",VLOOKUP('Procedure details'!N260,Lists!$B$2:$C$71,2,FALSE),\"\")","v":""},{"$f":"IF('Procedure details'!H260<>\"\",VLOOKUP('Procedure details'!H260,Lists!$AP$2:$AQ$3,2,FALSE),\"\")","v":""},{"$f":"IF('Procedure details'!N260<>\"\",VLOOKUP('Procedure details'!N260,Lists!$B$2:$D$71,3,FALSE),\"\")","v":""},{"$f":"IF('Procedure details'!P260<>\"\",VLOOKUP('Procedure details'!P260,Lists!$AD$2:$AE$11,2,FALSE),\"\")","v":""},{"$f":"IF(AND(AB260=1,'Procedure details'!G260>99,'Procedure details'!V260=\"\"),1,0)","v":0},{"$f":"IF(AND(AB260=0,'Procedure details'!G260>999,'Procedure details'!V260=\"\"),1,0)","v":0}]
[null,null,null,null,null,null,null,null,null,null,null,null,null,null,null,null,null,null,null,null,null,null,null,261,{"$f":"COUNTA('Procedure details'!E261:'Procedure details'!V261)","v":0},null,{"$f":"IF('Procedure details'!E261<>\"\",VLOOKUP('Procedure details'!E261,Lists!$M$2:$N$38,2,FALSE),\"\")","v":""},{"$f":"IF('Procedure details'!E261<>\"\",VLOOKUP('Procedure details'!E261,Lists!$M$2:$O$38,3,FALSE),\"\")","v":""},{"$f":"IF('Procedure details'!N261<>\"\",VLOOKUP('Procedure details'!N261,Lists!$B$2:$C$71,2,FALSE),\"\")","v":""},{"$f":"IF('Procedure details'!H261<>\"\",VLOOKUP('Procedure details'!H261,Lists!$AP$2:$AQ$3,2,FALSE),\"\")","v":""},{"$f":"IF('Procedure details'!N261<>\"\",VLOOKUP('Procedure details'!N261,Lists!$B$2:$D$71,3,FALSE),\"\")","v":""},{"$f":"IF('Procedure details'!P261<>\"\",VLOOKUP('Procedure details'!P261,Lists!$AD$2:$AE$11,2,FALSE),\"\")","v":""},{"$f":"IF(AND(AB261=1,'Procedure details'!G261>99,'Procedure details'!V261=\"\"),1,0)","v":0},{"$f":"IF(AND(AB261=0,'Procedure details'!G261>999,'Procedure details'!V261=\"\"),1,0)","v":0}]
[null,null,null,null,null,null,null,null,null,null,null,null,null,null,null,null,null,null,null,null,null,null,null,262,{"$f":"COUNTA('Procedure details'!E262:'Procedure details'!V262)","v":0},null,{"$f":"IF('Procedure details'!E262<>\"\",VLOOKUP('Procedure details'!E262,Lists!$M$2:$N$38,2,FALSE),\"\")","v":""},{"$f":"IF('Procedure details'!E262<>\"\",VLOOKUP('Procedure details'!E262,Lists!$M$2:$O$38,3,FALSE),\"\")","v":""},{"$f":"IF('Procedure details'!N262<>\"\",VLOOKUP('Procedure details'!N262,Lists!$B$2:$C$71,2,FALSE),\"\")","v":""},{"$f":"IF('Procedure details'!H262<>\"\",VLOOKUP('Procedure details'!H262,Lists!$AP$2:$AQ$3,2,FALSE),\"\")","v":""},{"$f":"IF('Procedure details'!N262<>\"\",VLOOKUP('Procedure details'!N262,Lists!$B$2:$D$71,3,FALSE),\"\")","v":""},{"$f":"IF('Procedure details'!P262<>\"\",VLOOKUP('Procedure details'!P262,Lists!$AD$2:$AE$11,2,FALSE),\"\")","v":""},{"$f":"IF(AND(AB262=1,'Procedure details'!G262>99,'Procedure details'!V262=\"\"),1,0)","v":0},{"$f":"IF(AND(AB262=0,'Procedure details'!G262>999,'Procedure details'!V262=\"\"),1,0)","v":0}]
[null,null,null,null,null,null,null,null,null,null,null,null,null,null,null,null,null,null,null,null,null,null,null,263,{"$f":"COUNTA('Procedure details'!E263:'Procedure details'!V263)","v":0},null,{"$f":"IF('Procedure details'!E263<>\"\",VLOOKUP('Procedure details'!E263,Lists!$M$2:$N$38,2,FALSE),\"\")","v":""},{"$f":"IF('Procedure details'!E263<>\"\",VLOOKUP('Procedure details'!E263,Lists!$M$2:$O$38,3,FALSE),\"\")","v":""},{"$f":"IF('Procedure details'!N263<>\"\",VLOOKUP('Procedure details'!N263,Lists!$B$2:$C$71,2,FALSE),\"\")","v":""},{"$f":"IF('Procedure details'!H263<>\"\",VLOOKUP('Procedure details'!H263,Lists!$AP$2:$AQ$3,2,FALSE),\"\")","v":""},{"$f":"IF('Procedure details'!N263<>\"\",VLOOKUP('Procedure details'!N263,Lists!$B$2:$D$71,3,FALSE),\"\")","v":""},{"$f":"IF('Procedure details'!P263<>\"\",VLOOKUP('Procedure details'!P263,Lists!$AD$2:$AE$11,2,FALSE),\"\")","v":""},{"$f":"IF(AND(AB263=1,'Procedure details'!G263>99,'Procedure details'!V263=\"\"),1,0)","v":0},{"$f":"IF(AND(AB263=0,'Procedure details'!G263>999,'Procedure details'!V263=\"\"),1,0)","v":0}]
[null,null,null,null,null,null,null,null,null,null,null,null,null,null,null,null,null,null,null,null,null,null,null,264,{"$f":"COUNTA('Procedure details'!E264:'Procedure details'!V264)","v":0},null,{"$f":"IF('Procedure details'!E264<>\"\",VLOOKUP('Procedure details'!E264,Lists!$M$2:$N$38,2,FALSE),\"\")","v":""},{"$f":"IF('Procedure details'!E264<>\"\",VLOOKUP('Procedure details'!E264,Lists!$M$2:$O$38,3,FALSE),\"\")","v":""},{"$f":"IF('Procedure details'!N264<>\"\",VLOOKUP('Procedure details'!N264,Lists!$B$2:$C$71,2,FALSE),\"\")","v":""},{"$f":"IF('Procedure details'!H264<>\"\",VLOOKUP('Procedure details'!H264,Lists!$AP$2:$AQ$3,2,FALSE),\"\")","v":""},{"$f":"IF('Procedure details'!N264<>\"\",VLOOKUP('Procedure details'!N264,Lists!$B$2:$D$71,3,FALSE),\"\")","v":""},{"$f":"IF('Procedure details'!P264<>\"\",VLOOKUP('Procedure details'!P264,Lists!$AD$2:$AE$11,2,FALSE),\"\")","v":""},{"$f":"IF(AND(AB264=1,'Procedure details'!G264>99,'Procedure details'!V264=\"\"),1,0)","v":0},{"$f":"IF(AND(AB264=0,'Procedure details'!G264>999,'Procedure details'!V264=\"\"),1,0)","v":0}]
[null,null,null,null,null,null,null,null,null,null,null,null,null,null,null,null,null,null,null,null,null,null,null,265,{"$f":"COUNTA('Procedure details'!E265:'Procedure details'!V265)","v":0},null,{"$f":"IF('Procedure details'!E265<>\"\",VLOOKUP('Procedure details'!E265,Lists!$M$2:$N$38,2,FALSE),\"\")","v":""},{"$f":"IF('Procedure details'!E265<>\"\",VLOOKUP('Procedure details'!E265,Lists!$M$2:$O$38,3,FALSE),\"\")","v":""},{"$f":"IF('Procedure details'!N265<>\"\",VLOOKUP('Procedure details'!N265,Lists!$B$2:$C$71,2,FALSE),\"\")","v":""},{"$f":"IF('Procedure details'!H265<>\"\",VLOOKUP('Procedure details'!H265,Lists!$AP$2:$AQ$3,2,FALSE),\"\")","v":""},{"$f":"IF('Procedure details'!N265<>\"\",VLOOKUP('Procedure details'!N265,Lists!$B$2:$D$71,3,FALSE),\"\")","v":""},{"$f":"IF('Procedure details'!P265<>\"\",VLOOKUP('Procedure details'!P265,Lists!$AD$2:$AE$11,2,FALSE),\"\")","v":""},{"$f":"IF(AND(AB265=1,'Procedure details'!G265>99,'Procedure details'!V265=\"\"),1,0)","v":0},{"$f":"IF(AND(AB265=0,'Procedure details'!G265>999,'Procedure details'!V265=\"\"),1,0)","v":0}]
[null,null,null,null,null,null,null,null,null,null,null,null,null,null,null,null,null,null,null,null,null,null,null,266,{"$f":"COUNTA('Procedure details'!E266:'Procedure details'!V266)","v":0},null,{"$f":"IF('Procedure details'!E266<>\"\",VLOOKUP('Procedure details'!E266,Lists!$M$2:$N$38,2,FALSE),\"\")","v":""},{"$f":"IF('Procedure details'!E266<>\"\",VLOOKUP('Procedure details'!E266,Lists!$M$2:$O$38,3,FALSE),\"\")","v":""},{"$f":"IF('Procedure details'!N266<>\"\",VLOOKUP('Procedure details'!N266,Lists!$B$2:$C$71,2,FALSE),\"\")","v":""},{"$f":"IF('Procedure details'!H266<>\"\",VLOOKUP('Procedure details'!H266,Lists!$AP$2:$AQ$3,2,FALSE),\"\")","v":""},{"$f":"IF('Procedure details'!N266<>\"\",VLOOKUP('Procedure details'!N266,Lists!$B$2:$D$71,3,FALSE),\"\")","v":""},{"$f":"IF('Procedure details'!P266<>\"\",VLOOKUP('Procedure details'!P266,Lists!$AD$2:$AE$11,2,FALSE),\"\")","v":""},{"$f":"IF(AND(AB266=1,'Procedure details'!G266>99,'Procedure details'!V266=\"\"),1,0)","v":0},{"$f":"IF(AND(AB266=0,'Procedure details'!G266>999,'Procedure details'!V266=\"\"),1,0)","v":0}]
[null,null,null,null,null,null,null,null,null,null,null,null,null,null,null,null,null,null,null,null,null,null,null,267,{"$f":"COUNTA('Procedure details'!E267:'Procedure details'!V267)","v":0},null,{"$f":"IF('Procedure details'!E267<>\"\",VLOOKUP('Procedure details'!E267,Lists!$M$2:$N$38,2,FALSE),\"\")","v":""},{"$f":"IF('Procedure details'!E267<>\"\",VLOOKUP('Procedure details'!E267,Lists!$M$2:$O$38,3,FALSE),\"\")","v":""},{"$f":"IF('Procedure details'!N267<>\"\",VLOOKUP('Procedure details'!N267,Lists!$B$2:$C$71,2,FALSE),\"\")","v":""},{"$f":"IF('Procedure details'!H267<>\"\",VLOOKUP('Procedure details'!H267,Lists!$AP$2:$AQ$3,2,FALSE),\"\")","v":""},{"$f":"IF('Procedure details'!N267<>\"\",VLOOKUP('Procedure details'!N267,Lists!$B$2:$D$71,3,FALSE),\"\")","v":""},{"$f":"IF('Procedure details'!P267<>\"\",VLOOKUP('Procedure details'!P267,Lists!$AD$2:$AE$11,2,FALSE),\"\")","v":""},{"$f":"IF(AND(AB267=1,'Procedure details'!G267>99,'Procedure details'!V267=\"\"),1,0)","v":0},{"$f":"IF(AND(AB267=0,'Procedure details'!G267>999,'Procedure details'!V267=\"\"),1,0)","v":0}]
[null,null,null,null,null,null,null,null,null,null,null,null,null,null,null,null,null,null,null,null,null,null,null,268,{"$f":"COUNTA('Procedure details'!E268:'Procedure details'!V268)","v":0},null,{"$f":"IF('Procedure details'!E268<>\"\",VLOOKUP('Procedure details'!E268,Lists!$M$2:$N$38,2,FALSE),\"\")","v":""},{"$f":"IF('Procedure details'!E268<>\"\",VLOOKUP('Procedure details'!E268,Lists!$M$2:$O$38,3,FALSE),\"\")","v":""},{"$f":"IF('Procedure details'!N268<>\"\",VLOOKUP('Procedure details'!N268,Lists!$B$2:$C$71,2,FALSE),\"\")","v":""},{"$f":"IF('Procedure details'!H268<>\"\",VLOOKUP('Procedure details'!H268,Lists!$AP$2:$AQ$3,2,FALSE),\"\")","v":""},{"$f":"IF('Procedure details'!N268<>\"\",VLOOKUP('Procedure details'!N268,Lists!$B$2:$D$71,3,FALSE),\"\")","v":""},{"$f":"IF('Procedure details'!P268<>\"\",VLOOKUP('Procedure details'!P268,Lists!$AD$2:$AE$11,2,FALSE),\"\")","v":""},{"$f":"IF(AND(AB268=1,'Procedure details'!G268>99,'Procedure details'!V268=\"\"),1,0)","v":0},{"$f":"IF(AND(AB268=0,'Procedure details'!G268>999,'Procedure details'!V268=\"\"),1,0)","v":0}]
[null,null,null,null,null,null,null,null,null,null,null,null,null,null,null,null,null,null,null,null,null,null,null,269,{"$f":"COUNTA('Procedure details'!E269:'Procedure details'!V269)","v":0},null,{"$f":"IF('Procedure details'!E269<>\"\",VLOOKUP('Procedure details'!E269,Lists!$M$2:$N$38,2,FALSE),\"\")","v":""},{"$f":"IF('Procedure details'!E269<>\"\",VLOOKUP('Procedure details'!E269,Lists!$M$2:$O$38,3,FALSE),\"\")","v":""},{"$f":"IF('Procedure details'!N269<>\"\",VLOOKUP('Procedure details'!N269,Lists!$B$2:$C$71,2,FALSE),\"\")","v":""},{"$f":"IF('Procedure details'!H269<>\"\",VLOOKUP('Procedure details'!H269,Lists!$AP$2:$AQ$3,2,FALSE),\"\")","v":""},{"$f":"IF('Procedure details'!N269<>\"\",VLOOKUP('Procedure details'!N269,Lists!$B$2:$D$71,3,FALSE),\"\")","v":""},{"$f":"IF('Procedure details'!P269<>\"\",VLOOKUP('Procedure details'!P269,Lists!$AD$2:$AE$11,2,FALSE),\"\")","v":""},{"$f":"IF(AND(AB269=1,'Procedure details'!G269>99,'Procedure details'!V269=\"\"),1,0)","v":0},{"$f":"IF(AND(AB269=0,'Procedure details'!G269>999,'Procedure details'!V269=\"\"),1,0)","v":0}]
[null,null,null,null,null,null,null,null,null,null,null,null,null,null,null,null,null,null,null,null,null,null,null,270,{"$f":"COUNTA('Procedure details'!E270:'Procedure details'!V270)","v":0},null,{"$f":"IF('Procedure details'!E270<>\"\",VLOOKUP('Procedure details'!E270,Lists!$M$2:$N$38,2,FALSE),\"\")","v":""},{"$f":"IF('Procedure details'!E270<>\"\",VLOOKUP('Procedure details'!E270,Lists!$M$2:$O$38,3,FALSE),\"\")","v":""},{"$f":"IF('Procedure details'!N270<>\"\",VLOOKUP('Procedure details'!N270,Lists!$B$2:$C$71,2,FALSE),\"\")","v":""},{"$f":"IF('Procedure details'!H270<>\"\",VLOOKUP('Procedure details'!H270,Lists!$AP$2:$AQ$3,2,FALSE),\"\")","v":""},{"$f":"IF('Procedure details'!N270<>\"\",VLOOKUP('Procedure details'!N270,Lists!$B$2:$D$71,3,FALSE),\"\")","v":""},{"$f":"IF('Procedure details'!P270<>\"\",VLOOKUP('Procedure details'!P270,Lists!$AD$2:$AE$11,2,FALSE),\"\")","v":""},{"$f":"IF(AND(AB270=1,'Procedure details'!G270>99,'Procedure details'!V270=\"\"),1,0)","v":0},{"$f":"IF(AND(AB270=0,'Procedure details'!G270>999,'Procedure details'!V270=\"\"),1,0)","v":0}]
[null,null,null,null,null,null,null,null,null,null,null,null,null,null,null,null,null,null,null,null,null,null,null,271,{"$f":"COUNTA('Procedure details'!E271:'Procedure details'!V271)","v":0},null,{"$f":"IF('Procedure details'!E271<>\"\",VLOOKUP('Procedure details'!E271,Lists!$M$2:$N$38,2,FALSE),\"\")","v":""},{"$f":"IF('Procedure details'!E271<>\"\",VLOOKUP('Procedure details'!E271,Lists!$M$2:$O$38,3,FALSE),\"\")","v":""},{"$f":"IF('Procedure details'!N271<>\"\",VLOOKUP('Procedure details'!N271,Lists!$B$2:$C$71,2,FALSE),\"\")","v":""},{"$f":"IF('Procedure details'!H271<>\"\",VLOOKUP('Procedure details'!H271,Lists!$AP$2:$AQ$3,2,FALSE),\"\")","v":""},{"$f":"IF('Procedure details'!N271<>\"\",VLOOKUP('Procedure details'!N271,Lists!$B$2:$D$71,3,FALSE),\"\")","v":""},{"$f":"IF('Procedure details'!P271<>\"\",VLOOKUP('Procedure details'!P271,Lists!$AD$2:$AE$11,2,FALSE),\"\")","v":""},{"$f":"IF(AND(AB271=1,'Procedure details'!G271>99,'Procedure details'!V271=\"\"),1,0)","v":0},{"$f":"IF(AND(AB271=0,'Procedure details'!G271>999,'Procedure details'!V271=\"\"),1,0)","v":0}]
[null,null,null,null,null,null,null,null,null,null,null,null,null,null,null,null,null,null,null,null,null,null,null,272,{"$f":"COUNTA('Procedure details'!E272:'Procedure details'!V272)","v":0},null,{"$f":"IF('Procedure details'!E272<>\"\",VLOOKUP('Procedure details'!E272,Lists!$M$2:$N$38,2,FALSE),\"\")","v":""},{"$f":"IF('Procedure details'!E272<>\"\",VLOOKUP('Procedure details'!E272,Lists!$M$2:$O$38,3,FALSE),\"\")","v":""},{"$f":"IF('Procedure details'!N272<>\"\",VLOOKUP('Procedure details'!N272,Lists!$B$2:$C$71,2,FALSE),\"\")","v":""},{"$f":"IF('Procedure details'!H272<>\"\",VLOOKUP('Procedure details'!H272,Lists!$AP$2:$AQ$3,2,FALSE),\"\")","v":""},{"$f":"IF('Procedure details'!N272<>\"\",VLOOKUP('Procedure details'!N272,Lists!$B$2:$D$71,3,FALSE),\"\")","v":""},{"$f":"IF('Procedure details'!P272<>\"\",VLOOKUP('Procedure details'!P272,Lists!$AD$2:$AE$11,2,FALSE),\"\")","v":""},{"$f":"IF(AND(AB272=1,'Procedure details'!G272>99,'Procedure details'!V272=\"\"),1,0)","v":0},{"$f":"IF(AND(AB272=0,'Procedure details'!G272>999,'Procedure details'!V272=\"\"),1,0)","v":0}]
[null,null,null,null,null,null,null,null,null,null,null,null,null,null,null,null,null,null,null,null,null,null,null,273,{"$f":"COUNTA('Procedure details'!E273:'Procedure details'!V273)","v":0},null,{"$f":"IF('Procedure details'!E273<>\"\",VLOOKUP('Procedure details'!E273,Lists!$M$2:$N$38,2,FALSE),\"\")","v":""},{"$f":"IF('Procedure details'!E273<>\"\",VLOOKUP('Procedure details'!E273,Lists!$M$2:$O$38,3,FALSE),\"\")","v":""},{"$f":"IF('Procedure details'!N273<>\"\",VLOOKUP('Procedure details'!N273,Lists!$B$2:$C$71,2,FALSE),\"\")","v":""},{"$f":"IF('Procedure details'!H273<>\"\",VLOOKUP('Procedure details'!H273,Lists!$AP$2:$AQ$3,2,FALSE),\"\")","v":""},{"$f":"IF('Procedure details'!N273<>\"\",VLOOKUP('Procedure details'!N273,Lists!$B$2:$D$71,3,FALSE),\"\")","v":""},{"$f":"IF('Procedure details'!P273<>\"\",VLOOKUP('Procedure details'!P273,Lists!$AD$2:$AE$11,2,FALSE),\"\")","v":""},{"$f":"IF(AND(AB273=1,'Procedure details'!G273>99,'Procedure details'!V273=\"\"),1,0)","v":0},{"$f":"IF(AND(AB273=0,'Procedure details'!G273>999,'Procedure details'!V273=\"\"),1,0)","v":0}]
[null,null,null,null,null,null,null,null,null,null,null,null,null,null,null,null,null,null,null,null,null,null,null,274,{"$f":"COUNTA('Procedure details'!E274:'Procedure details'!V274)","v":0},null,{"$f":"IF('Procedure details'!E274<>\"\",VLOOKUP('Procedure details'!E274,Lists!$M$2:$N$38,2,FALSE),\"\")","v":""},{"$f":"IF('Procedure details'!E274<>\"\",VLOOKUP('Procedure details'!E274,Lists!$M$2:$O$38,3,FALSE),\"\")","v":""},{"$f":"IF('Procedure details'!N274<>\"\",VLOOKUP('Procedure details'!N274,Lists!$B$2:$C$71,2,FALSE),\"\")","v":""},{"$f":"IF('Procedure details'!H274<>\"\",VLOOKUP('Procedure details'!H274,Lists!$AP$2:$AQ$3,2,FALSE),\"\")","v":""},{"$f":"IF('Procedure details'!N274<>\"\",VLOOKUP('Procedure details'!N274,Lists!$B$2:$D$71,3,FALSE),\"\")","v":""},{"$f":"IF('Procedure details'!P274<>\"\",VLOOKUP('Procedure details'!P274,Lists!$AD$2:$AE$11,2,FALSE),\"\")","v":""},{"$f":"IF(AND(AB274=1,'Procedure details'!G274>99,'Procedure details'!V274=\"\"),1,0)","v":0},{"$f":"IF(AND(AB274=0,'Procedure details'!G274>999,'Procedure details'!V274=\"\"),1,0)","v":0}]
[null,null,null,null,null,null,null,null,null,null,null,null,null,null,null,null,null,null,null,null,null,null,null,275,{"$f":"COUNTA('Procedure details'!E275:'Procedure details'!V275)","v":0},null,{"$f":"IF('Procedure details'!E275<>\"\",VLOOKUP('Procedure details'!E275,Lists!$M$2:$N$38,2,FALSE),\"\")","v":""},{"$f":"IF('Procedure details'!E275<>\"\",VLOOKUP('Procedure details'!E275,Lists!$M$2:$O$38,3,FALSE),\"\")","v":""},{"$f":"IF('Procedure details'!N275<>\"\",VLOOKUP('Procedure details'!N275,Lists!$B$2:$C$71,2,FALSE),\"\")","v":""},{"$f":"IF('Procedure details'!H275<>\"\",VLOOKUP('Procedure details'!H275,Lists!$AP$2:$AQ$3,2,FALSE),\"\")","v":""},{"$f":"IF('Procedure details'!N275<>\"\",VLOOKUP('Procedure details'!N275,Lists!$B$2:$D$71,3,FALSE),\"\")","v":""},{"$f":"IF('Procedure details'!P275<>\"\",VLOOKUP('Procedure details'!P275,Lists!$AD$2:$AE$11,2,FALSE),\"\")","v":""},{"$f":"IF(AND(AB275=1,'Procedure details'!G275>99,'Procedure details'!V275=\"\"),1,0)","v":0},{"$f":"IF(AND(AB275=0,'Procedure details'!G275>999,'Procedure details'!V275=\"\"),1,0)","v":0}]
[null,null,null,null,null,null,null,null,null,null,null,null,null,null,null,null,null,null,null,null,null,null,null,276,{"$f":"COUNTA('Procedure details'!E276:'Procedure details'!V276)","v":0},null,{"$f":"IF('Procedure details'!E276<>\"\",VLOOKUP('Procedure details'!E276,Lists!$M$2:$N$38,2,FALSE),\"\")","v":""},{"$f":"IF('Procedure details'!E276<>\"\",VLOOKUP('Procedure details'!E276,Lists!$M$2:$O$38,3,FALSE),\"\")","v":""},{"$f":"IF('Procedure details'!N276<>\"\",VLOOKUP('Procedure details'!N276,Lists!$B$2:$C$71,2,FALSE),\"\")","v":""},{"$f":"IF('Procedure details'!H276<>\"\",VLOOKUP('Procedure details'!H276,Lists!$AP$2:$AQ$3,2,FALSE),\"\")","v":""},{"$f":"IF('Procedure details'!N276<>\"\",VLOOKUP('Procedure details'!N276,Lists!$B$2:$D$71,3,FALSE),\"\")","v":""},{"$f":"IF('Procedure details'!P276<>\"\",VLOOKUP('Procedure details'!P276,Lists!$AD$2:$AE$11,2,FALSE),\"\")","v":""},{"$f":"IF(AND(AB276=1,'Procedure details'!G276>99,'Procedure details'!V276=\"\"),1,0)","v":0},{"$f":"IF(AND(AB276=0,'Procedure details'!G276>999,'Procedure details'!V276=\"\"),1,0)","v":0}]
[null,null,null,null,null,null,null,null,null,null,null,null,null,null,null,null,null,null,null,null,null,null,null,277,{"$f":"COUNTA('Procedure details'!E277:'Procedure details'!V277)","v":0},null,{"$f":"IF('Procedure details'!E277<>\"\",VLOOKUP('Procedure details'!E277,Lists!$M$2:$N$38,2,FALSE),\"\")","v":""},{"$f":"IF('Procedure details'!E277<>\"\",VLOOKUP('Procedure details'!E277,Lists!$M$2:$O$38,3,FALSE),\"\")","v":""},{"$f":"IF('Procedure details'!N277<>\"\",VLOOKUP('Procedure details'!N277,Lists!$B$2:$C$71,2,FALSE),\"\")","v":""},{"$f":"IF('Procedure details'!H277<>\"\",VLOOKUP('Procedure details'!H277,Lists!$AP$2:$AQ$3,2,FALSE),\"\")","v":""},{"$f":"IF('Procedure details'!N277<>\"\",VLOOKUP('Procedure details'!N277,Lists!$B$2:$D$71,3,FALSE),\"\")","v":""},{"$f":"IF('Procedure details'!P277<>\"\",VLOOKUP('Procedure details'!P277,Lists!$AD$2:$AE$11,2,FALSE),\"\")","v":""},{"$f":"IF(AND(AB277=1,'Procedure details'!G277>99,'Procedure details'!V277=\"\"),1,0)","v":0},{"$f":"IF(AND(AB277=0,'Procedure details'!G277>999,'Procedure details'!V277=\"\"),1,0)","v":0}]
[null,null,null,null,null,null,null,null,null,null,null,null,null,null,null,null,null,null,null,null,null,null,null,278,{"$f":"COUNTA('Procedure details'!E278:'Procedure details'!V278)","v":0},null,{"$f":"IF('Procedure details'!E278<>\"\",VLOOKUP('Procedure details'!E278,Lists!$M$2:$N$38,2,FALSE),\"\")","v":""},{"$f":"IF('Procedure details'!E278<>\"\",VLOOKUP('Procedure details'!E278,Lists!$M$2:$O$38,3,FALSE),\"\")","v":""},{"$f":"IF('Procedure details'!N278<>\"\",VLOOKUP('Procedure details'!N278,Lists!$B$2:$C$71,2,FALSE),\"\")","v":""},{"$f":"IF('Procedure details'!H278<>\"\",VLOOKUP('Procedure details'!H278,Lists!$AP$2:$AQ$3,2,FALSE),\"\")","v":""},{"$f":"IF('Procedure details'!N278<>\"\",VLOOKUP('Procedure details'!N278,Lists!$B$2:$D$71,3,FALSE),\"\")","v":""},{"$f":"IF('Procedure details'!P278<>\"\",VLOOKUP('Procedure details'!P278,Lists!$AD$2:$AE$11,2,FALSE),\"\")","v":""},{"$f":"IF(AND(AB278=1,'Procedure details'!G278>99,'Procedure details'!V278=\"\"),1,0)","v":0},{"$f":"IF(AND(AB278=0,'Procedure details'!G278>999,'Procedure details'!V278=\"\"),1,0)","v":0}]
[null,null,null,null,null,null,null,null,null,null,null,null,null,null,null,null,null,null,null,null,null,null,null,279,{"$f":"COUNTA('Procedure details'!E279:'Procedure details'!V279)","v":0},null,{"$f":"IF('Procedure details'!E279<>\"\",VLOOKUP('Procedure details'!E279,Lists!$M$2:$N$38,2,FALSE),\"\")","v":""},{"$f":"IF('Procedure details'!E279<>\"\",VLOOKUP('Procedure details'!E279,Lists!$M$2:$O$38,3,FALSE),\"\")","v":""},{"$f":"IF('Procedure details'!N279<>\"\",VLOOKUP('Procedure details'!N279,Lists!$B$2:$C$71,2,FALSE),\"\")","v":""},{"$f":"IF('Procedure details'!H279<>\"\",VLOOKUP('Procedure details'!H279,Lists!$AP$2:$AQ$3,2,FALSE),\"\")","v":""},{"$f":"IF('Procedure details'!N279<>\"\",VLOOKUP('Procedure details'!N279,Lists!$B$2:$D$71,3,FALSE),\"\")","v":""},{"$f":"IF('Procedure details'!P279<>\"\",VLOOKUP('Procedure details'!P279,Lists!$AD$2:$AE$11,2,FALSE),\"\")","v":""},{"$f":"IF(AND(AB279=1,'Procedure details'!G279>99,'Procedure details'!V279=\"\"),1,0)","v":0},{"$f":"IF(AND(AB279=0,'Procedure details'!G279>999,'Procedure details'!V279=\"\"),1,0)","v":0}]
[null,null,null,null,null,null,null,null,null,null,null,null,null,null,null,null,null,null,null,null,null,null,null,280,{"$f":"COUNTA('Procedure details'!E280:'Procedure details'!V280)","v":0},null,{"$f":"IF('Procedure details'!E280<>\"\",VLOOKUP('Procedure details'!E280,Lists!$M$2:$N$38,2,FALSE),\"\")","v":""},{"$f":"IF('Procedure details'!E280<>\"\",VLOOKUP('Procedure details'!E280,Lists!$M$2:$O$38,3,FALSE),\"\")","v":""},{"$f":"IF('Procedure details'!N280<>\"\",VLOOKUP('Procedure details'!N280,Lists!$B$2:$C$71,2,FALSE),\"\")","v":""},{"$f":"IF('Procedure details'!H280<>\"\",VLOOKUP('Procedure details'!H280,Lists!$AP$2:$AQ$3,2,FALSE),\"\")","v":""},{"$f":"IF('Procedure details'!N280<>\"\",VLOOKUP('Procedure details'!N280,Lists!$B$2:$D$71,3,FALSE),\"\")","v":""},{"$f":"IF('Procedure details'!P280<>\"\",VLOOKUP('Procedure details'!P280,Lists!$AD$2:$AE$11,2,FALSE),\"\")","v":""},{"$f":"IF(AND(AB280=1,'Procedure details'!G280>99,'Procedure details'!V280=\"\"),1,0)","v":0},{"$f":"IF(AND(AB280=0,'Procedure details'!G280>999,'Procedure details'!V280=\"\"),1,0)","v":0}]
[null,null,null,null,null,null,null,null,null,null,null,null,null,null,null,null,null,null,null,null,null,null,null,281,{"$f":"COUNTA('Procedure details'!E281:'Procedure details'!V281)","v":0},null,{"$f":"IF('Procedure details'!E281<>\"\",VLOOKUP('Procedure details'!E281,Lists!$M$2:$N$38,2,FALSE),\"\")","v":""},{"$f":"IF('Procedure details'!E281<>\"\",VLOOKUP('Procedure details'!E281,Lists!$M$2:$O$38,3,FALSE),\"\")","v":""},{"$f":"IF('Procedure details'!N281<>\"\",VLOOKUP('Procedure details'!N281,Lists!$B$2:$C$71,2,FALSE),\"\")","v":""},{"$f":"IF('Procedure details'!H281<>\"\",VLOOKUP('Procedure details'!H281,Lists!$AP$2:$AQ$3,2,FALSE),\"\")","v":""},{"$f":"IF('Procedure details'!N281<>\"\",VLOOKUP('Procedure details'!N281,Lists!$B$2:$D$71,3,FALSE),\"\")","v":""},{"$f":"IF('Procedure details'!P281<>\"\",VLOOKUP('Procedure details'!P281,Lists!$AD$2:$AE$11,2,FALSE),\"\")","v":""},{"$f":"IF(AND(AB281=1,'Procedure details'!G281>99,'Procedure details'!V281=\"\"),1,0)","v":0},{"$f":"IF(AND(AB281=0,'Procedure details'!G281>999,'Procedure details'!V281=\"\"),1,0)","v":0}]
[null,null,null,null,null,null,null,null,null,null,null,null,null,null,null,null,null,null,null,null,null,null,null,282,{"$f":"COUNTA('Procedure details'!E282:'Procedure details'!V282)","v":0},null,{"$f":"IF('Procedure details'!E282<>\"\",VLOOKUP('Procedure details'!E282,Lists!$M$2:$N$38,2,FALSE),\"\")","v":""},{"$f":"IF('Procedure details'!E282<>\"\",VLOOKUP('Procedure details'!E282,Lists!$M$2:$O$38,3,FALSE),\"\")","v":""},{"$f":"IF('Procedure details'!N282<>\"\",VLOOKUP('Procedure details'!N282,Lists!$B$2:$C$71,2,FALSE),\"\")","v":""},{"$f":"IF('Procedure details'!H282<>\"\",VLOOKUP('Procedure details'!H282,Lists!$AP$2:$AQ$3,2,FALSE),\"\")","v":""},{"$f":"IF('Procedure details'!N282<>\"\",VLOOKUP('Procedure details'!N282,Lists!$B$2:$D$71,3,FALSE),\"\")","v":""},{"$f":"IF('Procedure details'!P282<>\"\",VLOOKUP('Procedure details'!P282,Lists!$AD$2:$AE$11,2,FALSE),\"\")","v":""},{"$f":"IF(AND(AB282=1,'Procedure details'!G282>99,'Procedure details'!V282=\"\"),1,0)","v":0},{"$f":"IF(AND(AB282=0,'Procedure details'!G282>999,'Procedure details'!V282=\"\"),1,0)","v":0}]
[null,null,null,null,null,null,null,null,null,null,null,null,null,null,null,null,null,null,null,null,null,null,null,283,{"$f":"COUNTA('Procedure details'!E283:'Procedure details'!V283)","v":0},null,{"$f":"IF('Procedure details'!E283<>\"\",VLOOKUP('Procedure details'!E283,Lists!$M$2:$N$38,2,FALSE),\"\")","v":""},{"$f":"IF('Procedure details'!E283<>\"\",VLOOKUP('Procedure details'!E283,Lists!$M$2:$O$38,3,FALSE),\"\")","v":""},{"$f":"IF('Procedure details'!N283<>\"\",VLOOKUP('Procedure details'!N283,Lists!$B$2:$C$71,2,FALSE),\"\")","v":""},{"$f":"IF('Procedure details'!H283<>\"\",VLOOKUP('Procedure details'!H283,Lists!$AP$2:$AQ$3,2,FALSE),\"\")","v":""},{"$f":"IF('Procedure details'!N283<>\"\",VLOOKUP('Procedure details'!N283,Lists!$B$2:$D$71,3,FALSE),\"\")","v":""},{"$f":"IF('Procedure details'!P283<>\"\",VLOOKUP('Procedure details'!P283,Lists!$AD$2:$AE$11,2,FALSE),\"\")","v":""},{"$f":"IF(AND(AB283=1,'Procedure details'!G283>99,'Procedure details'!V283=\"\"),1,0)","v":0},{"$f":"IF(AND(AB283=0,'Procedure details'!G283>999,'Procedure details'!V283=\"\"),1,0)","v":0}]
[null,null,null,null,null,null,null,null,null,null,null,null,null,null,null,null,null,null,null,null,null,null,null,284,{"$f":"COUNTA('Procedure details'!E284:'Procedure details'!V284)","v":0},null,{"$f":"IF('Procedure details'!E284<>\"\",VLOOKUP('Procedure details'!E284,Lists!$M$2:$N$38,2,FALSE),\"\")","v":""},{"$f":"IF('Procedure details'!E284<>\"\",VLOOKUP('Procedure details'!E284,Lists!$M$2:$O$38,3,FALSE),\"\")","v":""},{"$f":"IF('Procedure details'!N284<>\"\",VLOOKUP('Procedure details'!N284,Lists!$B$2:$C$71,2,FALSE),\"\")","v":""},{"$f":"IF('Procedure details'!H284<>\"\",VLOOKUP('Procedure details'!H284,Lists!$AP$2:$AQ$3,2,FALSE),\"\")","v":""},{"$f":"IF('Procedure details'!N284<>\"\",VLOOKUP('Procedure details'!N284,Lists!$B$2:$D$71,3,FALSE),\"\")","v":""},{"$f":"IF('Procedure details'!P284<>\"\",VLOOKUP('Procedure details'!P284,Lists!$AD$2:$AE$11,2,FALSE),\"\")","v":""},{"$f":"IF(AND(AB284=1,'Procedure details'!G284>99,'Procedure details'!V284=\"\"),1,0)","v":0},{"$f":"IF(AND(AB284=0,'Procedure details'!G284>999,'Procedure details'!V284=\"\"),1,0)","v":0}]
[null,null,null,null,null,null,null,null,null,null,null,null,null,null,null,null,null,null,null,null,null,null,null,285,{"$f":"COUNTA('Procedure details'!E285:'Procedure details'!V285)","v":0},null,{"$f":"IF('Procedure details'!E285<>\"\",VLOOKUP('Procedure details'!E285,Lists!$M$2:$N$38,2,FALSE),\"\")","v":""},{"$f":"IF('Procedure details'!E285<>\"\",VLOOKUP('Procedure details'!E285,Lists!$M$2:$O$38,3,FALSE),\"\")","v":""},{"$f":"IF('Procedure details'!N285<>\"\",VLOOKUP('Procedure details'!N285,Lists!$B$2:$C$71,2,FALSE),\"\")","v":""},{"$f":"IF('Procedure details'!H285<>\"\",VLOOKUP('Procedure details'!H285,Lists!$AP$2:$AQ$3,2,FALSE),\"\")","v":""},{"$f":"IF('Procedure details'!N285<>\"\",VLOOKUP('Procedure details'!N285,Lists!$B$2:$D$71,3,FALSE),\"\")","v":""},{"$f":"IF('Procedure details'!P285<>\"\",VLOOKUP('Procedure details'!P285,Lists!$AD$2:$AE$11,2,FALSE),\"\")","v":""},{"$f":"IF(AND(AB285=1,'Procedure details'!G285>99,'Procedure details'!V285=\"\"),1,0)","v":0},{"$f":"IF(AND(AB285=0,'Procedure details'!G285>999,'Procedure details'!V285=\"\"),1,0)","v":0}]
[null,null,null,null,null,null,null,null,null,null,null,null,null,null,null,null,null,null,null,null,null,null,null,286,{"$f":"COUNTA('Procedure details'!E286:'Procedure details'!V286)","v":0},null,{"$f":"IF('Procedure details'!E286<>\"\",VLOOKUP('Procedure details'!E286,Lists!$M$2:$N$38,2,FALSE),\"\")","v":""},{"$f":"IF('Procedure details'!E286<>\"\",VLOOKUP('Procedure details'!E286,Lists!$M$2:$O$38,3,FALSE),\"\")","v":""},{"$f":"IF('Procedure details'!N286<>\"\",VLOOKUP('Procedure details'!N286,Lists!$B$2:$C$71,2,FALSE),\"\")","v":""},{"$f":"IF('Procedure details'!H286<>\"\",VLOOKUP('Procedure details'!H286,Lists!$AP$2:$AQ$3,2,FALSE),\"\")","v":""},{"$f":"IF('Procedure details'!N286<>\"\",VLOOKUP('Procedure details'!N286,Lists!$B$2:$D$71,3,FALSE),\"\")","v":""},{"$f":"IF('Procedure details'!P286<>\"\",VLOOKUP('Procedure details'!P286,Lists!$AD$2:$AE$11,2,FALSE),\"\")","v":""},{"$f":"IF(AND(AB286=1,'Procedure details'!G286>99,'Procedure details'!V286=\"\"),1,0)","v":0},{"$f":"IF(AND(AB286=0,'Procedure details'!G286>999,'Procedure details'!V286=\"\"),1,0)","v":0}]
[null,null,null,null,null,null,null,null,null,null,null,null,null,null,null,null,null,null,null,null,null,null,null,287,{"$f":"COUNTA('Procedure details'!E287:'Procedure details'!V287)","v":0},null,{"$f":"IF('Procedure details'!E287<>\"\",VLOOKUP('Procedure details'!E287,Lists!$M$2:$N$38,2,FALSE),\"\")","v":""},{"$f":"IF('Procedure details'!E287<>\"\",VLOOKUP('Procedure details'!E287,Lists!$M$2:$O$38,3,FALSE),\"\")","v":""},{"$f":"IF('Procedure details'!N287<>\"\",VLOOKUP('Procedure details'!N287,Lists!$B$2:$C$71,2,FALSE),\"\")","v":""},{"$f":"IF('Procedure details'!H287<>\"\",VLOOKUP('Procedure details'!H287,Lists!$AP$2:$AQ$3,2,FALSE),\"\")","v":""},{"$f":"IF('Procedure details'!N287<>\"\",VLOOKUP('Procedure details'!N287,Lists!$B$2:$D$71,3,FALSE),\"\")","v":""},{"$f":"IF('Procedure details'!P287<>\"\",VLOOKUP('Procedure details'!P287,Lists!$AD$2:$AE$11,2,FALSE),\"\")","v":""},{"$f":"IF(AND(AB287=1,'Procedure details'!G287>99,'Procedure details'!V287=\"\"),1,0)","v":0},{"$f":"IF(AND(AB287=0,'Procedure details'!G287>999,'Procedure details'!V287=\"\"),1,0)","v":0}]
[null,null,null,null,null,null,null,null,null,null,null,null,null,null,null,null,null,null,null,null,null,null,null,288,{"$f":"COUNTA('Procedure details'!E288:'Procedure details'!V288)","v":0},null,{"$f":"IF('Procedure details'!E288<>\"\",VLOOKUP('Procedure details'!E288,Lists!$M$2:$N$38,2,FALSE),\"\")","v":""},{"$f":"IF('Procedure details'!E288<>\"\",VLOOKUP('Procedure details'!E288,Lists!$M$2:$O$38,3,FALSE),\"\")","v":""},{"$f":"IF('Procedure details'!N288<>\"\",VLOOKUP('Procedure details'!N288,Lists!$B$2:$C$71,2,FALSE),\"\")","v":""},{"$f":"IF('Procedure details'!H288<>\"\",VLOOKUP('Procedure details'!H288,Lists!$AP$2:$AQ$3,2,FALSE),\"\")","v":""},{"$f":"IF('Procedure details'!N288<>\"\",VLOOKUP('Procedure details'!N288,Lists!$B$2:$D$71,3,FALSE),\"\")","v":""},{"$f":"IF('Procedure details'!P288<>\"\",VLOOKUP('Procedure details'!P288,Lists!$AD$2:$AE$11,2,FALSE),\"\")","v":""},{"$f":"IF(AND(AB288=1,'Procedure details'!G288>99,'Procedure details'!V288=\"\"),1,0)","v":0},{"$f":"IF(AND(AB288=0,'Procedure details'!G288>999,'Procedure details'!V288=\"\"),1,0)","v":0}]
[null,null,null,null,null,null,null,null,null,null,null,null,null,null,null,null,null,null,null,null,null,null,null,289,{"$f":"COUNTA('Procedure details'!E289:'Procedure details'!V289)","v":0},null,{"$f":"IF('Procedure details'!E289<>\"\",VLOOKUP('Procedure details'!E289,Lists!$M$2:$N$38,2,FALSE),\"\")","v":""},{"$f":"IF('Procedure details'!E289<>\"\",VLOOKUP('Procedure details'!E289,Lists!$M$2:$O$38,3,FALSE),\"\")","v":""},{"$f":"IF('Procedure details'!N289<>\"\",VLOOKUP('Procedure details'!N289,Lists!$B$2:$C$71,2,FALSE),\"\")","v":""},{"$f":"IF('Procedure details'!H289<>\"\",VLOOKUP('Procedure details'!H289,Lists!$AP$2:$AQ$3,2,FALSE),\"\")","v":""},{"$f":"IF('Procedure details'!N289<>\"\",VLOOKUP('Procedure details'!N289,Lists!$B$2:$D$71,3,FALSE),\"\")","v":""},{"$f":"IF('Procedure details'!P289<>\"\",VLOOKUP('Procedure details'!P289,Lists!$AD$2:$AE$11,2,FALSE),\"\")","v":""},{"$f":"IF(AND(AB289=1,'Procedure details'!G289>99,'Procedure details'!V289=\"\"),1,0)","v":0},{"$f":"IF(AND(AB289=0,'Procedure details'!G289>999,'Procedure details'!V289=\"\"),1,0)","v":0}]
[null,null,null,null,null,null,null,null,null,null,null,null,null,null,null,null,null,null,null,null,null,null,null,290,{"$f":"COUNTA('Procedure details'!E290:'Procedure details'!V290)","v":0},null,{"$f":"IF('Procedure details'!E290<>\"\",VLOOKUP('Procedure details'!E290,Lists!$M$2:$N$38,2,FALSE),\"\")","v":""},{"$f":"IF('Procedure details'!E290<>\"\",VLOOKUP('Procedure details'!E290,Lists!$M$2:$O$38,3,FALSE),\"\")","v":""},{"$f":"IF('Procedure details'!N290<>\"\",VLOOKUP('Procedure details'!N290,Lists!$B$2:$C$71,2,FALSE),\"\")","v":""},{"$f":"IF('Procedure details'!H290<>\"\",VLOOKUP('Procedure details'!H290,Lists!$AP$2:$AQ$3,2,FALSE),\"\")","v":""},{"$f":"IF('Procedure details'!N290<>\"\",VLOOKUP('Procedure details'!N290,Lists!$B$2:$D$71,3,FALSE),\"\")","v":""},{"$f":"IF('Procedure details'!P290<>\"\",VLOOKUP('Procedure details'!P290,Lists!$AD$2:$AE$11,2,FALSE),\"\")","v":""},{"$f":"IF(AND(AB290=1,'Procedure details'!G290>99,'Procedure details'!V290=\"\"),1,0)","v":0},{"$f":"IF(AND(AB290=0,'Procedure details'!G290>999,'Procedure details'!V290=\"\"),1,0)","v":0}]
[null,null,null,null,null,null,null,null,null,null,null,null,null,null,null,null,null,null,null,null,null,null,null,291,{"$f":"COUNTA('Procedure details'!E291:'Procedure details'!V291)","v":0},null,{"$f":"IF('Procedure details'!E291<>\"\",VLOOKUP('Procedure details'!E291,Lists!$M$2:$N$38,2,FALSE),\"\")","v":""},{"$f":"IF('Procedure details'!E291<>\"\",VLOOKUP('Procedure details'!E291,Lists!$M$2:$O$38,3,FALSE),\"\")","v":""},{"$f":"IF('Procedure details'!N291<>\"\",VLOOKUP('Procedure details'!N291,Lists!$B$2:$C$71,2,FALSE),\"\")","v":""},{"$f":"IF('Procedure details'!H291<>\"\",VLOOKUP('Procedure details'!H291,Lists!$AP$2:$AQ$3,2,FALSE),\"\")","v":""},{"$f":"IF('Procedure details'!N291<>\"\",VLOOKUP('Procedure details'!N291,Lists!$B$2:$D$71,3,FALSE),\"\")","v":""},{"$f":"IF('Procedure details'!P291<>\"\",VLOOKUP('Procedure details'!P291,Lists!$AD$2:$AE$11,2,FALSE),\"\")","v":""},{"$f":"IF(AND(AB291=1,'Procedure details'!G291>99,'Procedure details'!V291=\"\"),1,0)","v":0},{"$f":"IF(AND(AB291=0,'Procedure details'!G291>999,'Procedure details'!V291=\"\"),1,0)","v":0}]
[null,null,null,null,null,null,null,null,null,null,null,null,null,null,null,null,null,null,null,null,null,null,null,292,{"$f":"COUNTA('Procedure details'!E292:'Procedure details'!V292)","v":0},null,{"$f":"IF('Procedure details'!E292<>\"\",VLOOKUP('Procedure details'!E292,Lists!$M$2:$N$38,2,FALSE),\"\")","v":""},{"$f":"IF('Procedure details'!E292<>\"\",VLOOKUP('Procedure details'!E292,Lists!$M$2:$O$38,3,FALSE),\"\")","v":""},{"$f":"IF('Procedure details'!N292<>\"\",VLOOKUP('Procedure details'!N292,Lists!$B$2:$C$71,2,FALSE),\"\")","v":""},{"$f":"IF('Procedure details'!H292<>\"\",VLOOKUP('Procedure details'!H292,Lists!$AP$2:$AQ$3,2,FALSE),\"\")","v":""},{"$f":"IF('Procedure details'!N292<>\"\",VLOOKUP('Procedure details'!N292,Lists!$B$2:$D$71,3,FALSE),\"\")","v":""},{"$f":"IF('Procedure details'!P292<>\"\",VLOOKUP('Procedure details'!P292,Lists!$AD$2:$AE$11,2,FALSE),\"\")","v":""},{"$f":"IF(AND(AB292=1,'Procedure details'!G292>99,'Procedure details'!V292=\"\"),1,0)","v":0},{"$f":"IF(AND(AB292=0,'Procedure details'!G292>999,'Procedure details'!V292=\"\"),1,0)","v":0}]
[null,null,null,null,null,null,null,null,null,null,null,null,null,null,null,null,null,null,null,null,null,null,null,293,{"$f":"COUNTA('Procedure details'!E293:'Procedure details'!V293)","v":0},null,{"$f":"IF('Procedure details'!E293<>\"\",VLOOKUP('Procedure details'!E293,Lists!$M$2:$N$38,2,FALSE),\"\")","v":""},{"$f":"IF('Procedure details'!E293<>\"\",VLOOKUP('Procedure details'!E293,Lists!$M$2:$O$38,3,FALSE),\"\")","v":""},{"$f":"IF('Procedure details'!N293<>\"\",VLOOKUP('Procedure details'!N293,Lists!$B$2:$C$71,2,FALSE),\"\")","v":""},{"$f":"IF('Procedure details'!H293<>\"\",VLOOKUP('Procedure details'!H293,Lists!$AP$2:$AQ$3,2,FALSE),\"\")","v":""},{"$f":"IF('Procedure details'!N293<>\"\",VLOOKUP('Procedure details'!N293,Lists!$B$2:$D$71,3,FALSE),\"\")","v":""},{"$f":"IF('Procedure details'!P293<>\"\",VLOOKUP('Procedure details'!P293,Lists!$AD$2:$AE$11,2,FALSE),\"\")","v":""},{"$f":"IF(AND(AB293=1,'Procedure details'!G293>99,'Procedure details'!V293=\"\"),1,0)","v":0},{"$f":"IF(AND(AB293=0,'Procedure details'!G293>999,'Procedure details'!V293=\"\"),1,0)","v":0}]
[null,null,null,null,null,null,null,null,null,null,null,null,null,null,null,null,null,null,null,null,null,null,null,294,{"$f":"COUNTA('Procedure details'!E294:'Procedure details'!V294)","v":0},null,{"$f":"IF('Procedure details'!E294<>\"\",VLOOKUP('Procedure details'!E294,Lists!$M$2:$N$38,2,FALSE),\"\")","v":""},{"$f":"IF('Procedure details'!E294<>\"\",VLOOKUP('Procedure details'!E294,Lists!$M$2:$O$38,3,FALSE),\"\")","v":""},{"$f":"IF('Procedure details'!N294<>\"\",VLOOKUP('Procedure details'!N294,Lists!$B$2:$C$71,2,FALSE),\"\")","v":""},{"$f":"IF('Procedure details'!H294<>\"\",VLOOKUP('Procedure details'!H294,Lists!$AP$2:$AQ$3,2,FALSE),\"\")","v":""},{"$f":"IF('Procedure details'!N294<>\"\",VLOOKUP('Procedure details'!N294,Lists!$B$2:$D$71,3,FALSE),\"\")","v":""},{"$f":"IF('Procedure details'!P294<>\"\",VLOOKUP('Procedure details'!P294,Lists!$AD$2:$AE$11,2,FALSE),\"\")","v":""},{"$f":"IF(AND(AB294=1,'Procedure details'!G294>99,'Procedure details'!V294=\"\"),1,0)","v":0},{"$f":"IF(AND(AB294=0,'Procedure details'!G294>999,'Procedure details'!V294=\"\"),1,0)","v":0}]
[null,null,null,null,null,null,null,null,null,null,null,null,null,null,null,null,null,null,null,null,null,null,null,295,{"$f":"COUNTA('Procedure details'!E295:'Procedure details'!V295)","v":0},null,{"$f":"IF('Procedure details'!E295<>\"\",VLOOKUP('Procedure details'!E295,Lists!$M$2:$N$38,2,FALSE),\"\")","v":""},{"$f":"IF('Procedure details'!E295<>\"\",VLOOKUP('Procedure details'!E295,Lists!$M$2:$O$38,3,FALSE),\"\")","v":""},{"$f":"IF('Procedure details'!N295<>\"\",VLOOKUP('Procedure details'!N295,Lists!$B$2:$C$71,2,FALSE),\"\")","v":""},{"$f":"IF('Procedure details'!H295<>\"\",VLOOKUP('Procedure details'!H295,Lists!$AP$2:$AQ$3,2,FALSE),\"\")","v":""},{"$f":"IF('Procedure details'!N295<>\"\",VLOOKUP('Procedure details'!N295,Lists!$B$2:$D$71,3,FALSE),\"\")","v":""},{"$f":"IF('Procedure details'!P295<>\"\",VLOOKUP('Procedure details'!P295,Lists!$AD$2:$AE$11,2,FALSE),\"\")","v":""},{"$f":"IF(AND(AB295=1,'Procedure details'!G295>99,'Procedure details'!V295=\"\"),1,0)","v":0},{"$f":"IF(AND(AB295=0,'Procedure details'!G295>999,'Procedure details'!V295=\"\"),1,0)","v":0}]
[null,null,null,null,null,null,null,null,null,null,null,null,null,null,null,null,null,null,null,null,null,null,null,296,{"$f":"COUNTA('Procedure details'!E296:'Procedure details'!V296)","v":0},null,{"$f":"IF('Procedure details'!E296<>\"\",VLOOKUP('Procedure details'!E296,Lists!$M$2:$N$38,2,FALSE),\"\")","v":""},{"$f":"IF('Procedure details'!E296<>\"\",VLOOKUP('Procedure details'!E296,Lists!$M$2:$O$38,3,FALSE),\"\")","v":""},{"$f":"IF('Procedure details'!N296<>\"\",VLOOKUP('Procedure details'!N296,Lists!$B$2:$C$71,2,FALSE),\"\")","v":""},{"$f":"IF('Procedure details'!H296<>\"\",VLOOKUP('Procedure details'!H296,Lists!$AP$2:$AQ$3,2,FALSE),\"\")","v":""},{"$f":"IF('Procedure details'!N296<>\"\",VLOOKUP('Procedure details'!N296,Lists!$B$2:$D$71,3,FALSE),\"\")","v":""},{"$f":"IF('Procedure details'!P296<>\"\",VLOOKUP('Procedure details'!P296,Lists!$AD$2:$AE$11,2,FALSE),\"\")","v":""},{"$f":"IF(AND(AB296=1,'Procedure details'!G296>99,'Procedure details'!V296=\"\"),1,0)","v":0},{"$f":"IF(AND(AB296=0,'Procedure details'!G296>999,'Procedure details'!V296=\"\"),1,0)","v":0}]
[null,null,null,null,null,null,null,null,null,null,null,null,null,null,null,null,null,null,null,null,null,null,null,297,{"$f":"COUNTA('Procedure details'!E297:'Procedure details'!V297)","v":0},null,{"$f":"IF('Procedure details'!E297<>\"\",VLOOKUP('Procedure details'!E297,Lists!$M$2:$N$38,2,FALSE),\"\")","v":""},{"$f":"IF('Procedure details'!E297<>\"\",VLOOKUP('Procedure details'!E297,Lists!$M$2:$O$38,3,FALSE),\"\")","v":""},{"$f":"IF('Procedure details'!N297<>\"\",VLOOKUP('Procedure details'!N297,Lists!$B$2:$C$71,2,FALSE),\"\")","v":""},{"$f":"IF('Procedure details'!H297<>\"\",VLOOKUP('Procedure details'!H297,Lists!$AP$2:$AQ$3,2,FALSE),\"\")","v":""},{"$f":"IF('Procedure details'!N297<>\"\",VLOOKUP('Procedure details'!N297,Lists!$B$2:$D$71,3,FALSE),\"\")","v":""},{"$f":"IF('Procedure details'!P297<>\"\",VLOOKUP('Procedure details'!P297,Lists!$AD$2:$AE$11,2,FALSE),\"\")","v":""},{"$f":"IF(AND(AB297=1,'Procedure details'!G297>99,'Procedure details'!V297=\"\"),1,0)","v":0},{"$f":"IF(AND(AB297=0,'Procedure details'!G297>999,'Procedure details'!V297=\"\"),1,0)","v":0}]
[null,null,null,null,null,null,null,null,null,null,null,null,null,null,null,null,null,null,null,null,null,null,null,298,{"$f":"COUNTA('Procedure details'!E298:'Procedure details'!V298)","v":0},null,{"$f":"IF('Procedure details'!E298<>\"\",VLOOKUP('Procedure details'!E298,Lists!$M$2:$N$38,2,FALSE),\"\")","v":""},{"$f":"IF('Procedure details'!E298<>\"\",VLOOKUP('Procedure details'!E298,Lists!$M$2:$O$38,3,FALSE),\"\")","v":""},{"$f":"IF('Procedure details'!N298<>\"\",VLOOKUP('Procedure details'!N298,Lists!$B$2:$C$71,2,FALSE),\"\")","v":""},{"$f":"IF('Procedure details'!H298<>\"\",VLOOKUP('Procedure details'!H298,Lists!$AP$2:$AQ$3,2,FALSE),\"\")","v":""},{"$f":"IF('Procedure details'!N298<>\"\",VLOOKUP('Procedure details'!N298,Lists!$B$2:$D$71,3,FALSE),\"\")","v":""},{"$f":"IF('Procedure details'!P298<>\"\",VLOOKUP('Procedure details'!P298,Lists!$AD$2:$AE$11,2,FALSE),\"\")","v":""},{"$f":"IF(AND(AB298=1,'Procedure details'!G298>99,'Procedure details'!V298=\"\"),1,0)","v":0},{"$f":"IF(AND(AB298=0,'Procedure details'!G298>999,'Procedure details'!V298=\"\"),1,0)","v":0}]
[null,null,null,null,null,null,null,null,null,null,null,null,null,null,null,null,null,null,null,null,null,null,null,299,{"$f":"COUNTA('Procedure details'!E299:'Procedure details'!V299)","v":0},null,{"$f":"IF('Procedure details'!E299<>\"\",VLOOKUP('Procedure details'!E299,Lists!$M$2:$N$38,2,FALSE),\"\")","v":""},{"$f":"IF('Procedure details'!E299<>\"\",VLOOKUP('Procedure details'!E299,Lists!$M$2:$O$38,3,FALSE),\"\")","v":""},{"$f":"IF('Procedure details'!N299<>\"\",VLOOKUP('Procedure details'!N299,Lists!$B$2:$C$71,2,FALSE),\"\")","v":""},{"$f":"IF('Procedure details'!H299<>\"\",VLOOKUP('Procedure details'!H299,Lists!$AP$2:$AQ$3,2,FALSE),\"\")","v":""},{"$f":"IF('Procedure details'!N299<>\"\",VLOOKUP('Procedure details'!N299,Lists!$B$2:$D$71,3,FALSE),\"\")","v":""},{"$f":"IF('Procedure details'!P299<>\"\",VLOOKUP('Procedure details'!P299,Lists!$AD$2:$AE$11,2,FALSE),\"\")","v":""},{"$f":"IF(AND(AB299=1,'Procedure details'!G299>99,'Procedure details'!V299=\"\"),1,0)","v":0},{"$f":"IF(AND(AB299=0,'Procedure details'!G299>999,'Procedure details'!V299=\"\"),1,0)","v":0}]
[null,null,null,null,null,null,null,null,null,null,null,null,null,null,null,null,null,null,null,null,null,null,null,300,{"$f":"COUNTA('Procedure details'!E300:'Procedure details'!V300)","v":0},null,{"$f":"IF('Procedure details'!E300<>\"\",VLOOKUP('Procedure details'!E300,Lists!$M$2:$N$38,2,FALSE),\"\")","v":""},{"$f":"IF('Procedure details'!E300<>\"\",VLOOKUP('Procedure details'!E300,Lists!$M$2:$O$38,3,FALSE),\"\")","v":""},{"$f":"IF('Procedure details'!N300<>\"\",VLOOKUP('Procedure details'!N300,Lists!$B$2:$C$71,2,FALSE),\"\")","v":""},{"$f":"IF('Procedure details'!H300<>\"\",VLOOKUP('Procedure details'!H300,Lists!$AP$2:$AQ$3,2,FALSE),\"\")","v":""},{"$f":"IF('Procedure details'!N300<>\"\",VLOOKUP('Procedure details'!N300,Lists!$B$2:$D$71,3,FALSE),\"\")","v":""},{"$f":"IF('Procedure details'!P300<>\"\",VLOOKUP('Procedure details'!P300,Lists!$AD$2:$AE$11,2,FALSE),\"\")","v":""},{"$f":"IF(AND(AB300=1,'Procedure details'!G300>99,'Procedure details'!V300=\"\"),1,0)","v":0},{"$f":"IF(AND(AB300=0,'Procedure details'!G300>999,'Procedure details'!V300=\"\"),1,0)","v":0}]
[null,null,null,null,null,null,null,null,null,null,null,null,null,null,null,null,null,null,null,null,null,null,null,301,{"$f":"COUNTA('Procedure details'!E301:'Procedure details'!V301)","v":0},null,{"$f":"IF('Procedure details'!E301<>\"\",VLOOKUP('Procedure details'!E301,Lists!$M$2:$N$38,2,FALSE),\"\")","v":""},{"$f":"IF('Procedure details'!E301<>\"\",VLOOKUP('Procedure details'!E301,Lists!$M$2:$O$38,3,FALSE),\"\")","v":""},{"$f":"IF('Procedure details'!N301<>\"\",VLOOKUP('Procedure details'!N301,Lists!$B$2:$C$71,2,FALSE),\"\")","v":""},{"$f":"IF('Procedure details'!H301<>\"\",VLOOKUP('Procedure details'!H301,Lists!$AP$2:$AQ$3,2,FALSE),\"\")","v":""},{"$f":"IF('Procedure details'!N301<>\"\",VLOOKUP('Procedure details'!N301,Lists!$B$2:$D$71,3,FALSE),\"\")","v":""},{"$f":"IF('Procedure details'!P301<>\"\",VLOOKUP('Procedure details'!P301,Lists!$AD$2:$AE$11,2,FALSE),\"\")","v":""},{"$f":"IF(AND(AB301=1,'Procedure details'!G301>99,'Procedure details'!V301=\"\"),1,0)","v":0},{"$f":"IF(AND(AB301=0,'Procedure details'!G301>999,'Procedure details'!V301=\"\"),1,0)","v":0}]
[null,null,null,null,null,null,null,null,null,null,null,null,null,null,null,null,null,null,null,null,null,null,null,302,{"$f":"COUNTA('Procedure details'!E302:'Procedure details'!V302)","v":0},null,{"$f":"IF('Procedure details'!E302<>\"\",VLOOKUP('Procedure details'!E302,Lists!$M$2:$N$38,2,FALSE),\"\")","v":""},{"$f":"IF('Procedure details'!E302<>\"\",VLOOKUP('Procedure details'!E302,Lists!$M$2:$O$38,3,FALSE),\"\")","v":""},{"$f":"IF('Procedure details'!N302<>\"\",VLOOKUP('Procedure details'!N302,Lists!$B$2:$C$71,2,FALSE),\"\")","v":""},{"$f":"IF('Procedure details'!H302<>\"\",VLOOKUP('Procedure details'!H302,Lists!$AP$2:$AQ$3,2,FALSE),\"\")","v":""},{"$f":"IF('Procedure details'!N302<>\"\",VLOOKUP('Procedure details'!N302,Lists!$B$2:$D$71,3,FALSE),\"\")","v":""},{"$f":"IF('Procedure details'!P302<>\"\",VLOOKUP('Procedure details'!P302,Lists!$AD$2:$AE$11,2,FALSE),\"\")","v":""},{"$f":"IF(AND(AB302=1,'Procedure details'!G302>99,'Procedure details'!V302=\"\"),1,0)","v":0},{"$f":"IF(AND(AB302=0,'Procedure details'!G302>999,'Procedure details'!V302=\"\"),1,0)","v":0}]
[null,null,null,null,null,null,null,null,null,null,null,null,null,null,null,null,null,null,null,null,null,null,null,303,{"$f":"COUNTA('Procedure details'!E303:'Procedure details'!V303)","v":0},null,{"$f":"IF('Procedure details'!E303<>\"\",VLOOKUP('Procedure details'!E303,Lists!$M$2:$N$38,2,FALSE),\"\")","v":""},{"$f":"IF('Procedure details'!E303<>\"\",VLOOKUP('Procedure details'!E303,Lists!$M$2:$O$38,3,FALSE),\"\")","v":""},{"$f":"IF('Procedure details'!N303<>\"\",VLOOKUP('Procedure details'!N303,Lists!$B$2:$C$71,2,FALSE),\"\")","v":""},{"$f":"IF('Procedure details'!H303<>\"\",VLOOKUP('Procedure details'!H303,Lists!$AP$2:$AQ$3,2,FALSE),\"\")","v":""},{"$f":"IF('Procedure details'!N303<>\"\",VLOOKUP('Procedure details'!N303,Lists!$B$2:$D$71,3,FALSE),\"\")","v":""},{"$f":"IF('Procedure details'!P303<>\"\",VLOOKUP('Procedure details'!P303,Lists!$AD$2:$AE$11,2,FALSE),\"\")","v":""},{"$f":"IF(AND(AB303=1,'Procedure details'!G303>99,'Procedure details'!V303=\"\"),1,0)","v":0},{"$f":"IF(AND(AB303=0,'Procedure details'!G303>999,'Procedure details'!V303=\"\"),1,0)","v":0}]
[null,null,null,null,null,null,null,null,null,null,null,null,null,null,null,null,null,null,null,null,null,null,null,304,{"$f":"COUNTA('Procedure details'!E304:'Procedure details'!V304)","v":0},null,{"$f":"IF('Procedure details'!E304<>\"\",VLOOKUP('Procedure details'!E304,Lists!$M$2:$N$38,2,FALSE),\"\")","v":""},{"$f":"IF('Procedure details'!E304<>\"\",VLOOKUP('Procedure details'!E304,Lists!$M$2:$O$38,3,FALSE),\"\")","v":""},{"$f":"IF('Procedure details'!N304<>\"\",VLOOKUP('Procedure details'!N304,Lists!$B$2:$C$71,2,FALSE),\"\")","v":""},{"$f":"IF('Procedure details'!H304<>\"\",VLOOKUP('Procedure details'!H304,Lists!$AP$2:$AQ$3,2,FALSE),\"\")","v":""},{"$f":"IF('Procedure details'!N304<>\"\",VLOOKUP('Procedure details'!N304,Lists!$B$2:$D$71,3,FALSE),\"\")","v":""},{"$f":"IF('Procedure details'!P304<>\"\",VLOOKUP('Procedure details'!P304,Lists!$AD$2:$AE$11,2,FALSE),\"\")","v":""},{"$f":"IF(AND(AB304=1,'Procedure details'!G304>99,'Procedure details'!V304=\"\"),1,0)","v":0},{"$f":"IF(AND(AB304=0,'Procedure details'!G304>999,'Procedure details'!V304=\"\"),1,0)","v":0}]
[null,null,null,null,null,null,null,null,null,null,null,null,null,null,null,null,null,null,null,null,null,null,null,null,{"$f":"SUM(Y4:Y304)","v":0}]

{"sheet":"Lists","index":4,"n_rows":76,"n_cols":83,"rows_kept":76,"cut":false,"hidden":true,"merged":[]}
[null,"Combined Purposes",null,null,null,null,null,null,null,"Code","Type of animal",null,"Code + Type","other","primates",null,null,null,null,"Countries",null,null,"Legislative requirements ",null,null,null,null,null,null,"Toxicity and other safety testing required by legislation",null,null,null,null,null,null,null,"Severity",null,null,null,"Y/N",null,"Place of birth",null,null,null,null,null,null,"Non-human primate - source",null,null,null,null,null,null,"Non-human primate - generation",null,null,null,"Genetic status",null,null,null,null,null,null,"Reporting Years",null,null,"Basic Research",null,null,null,null,null,null,null," "]
[{"$f":"MID(B2,1,6)","v":"[PB1] "},"[PB1] (Basic Research) Oncology",null,null,null,null,null,null,null,"A1","Mice (Mus musculus)",null,{"$f":"CONCATENATE(\"[\",J2,\"] \",K2)","v":"[A1] Mice (Mus musculus)"},null,null,null,null,null,null,"Austria",null,null,"[LO1] Legislation satisfying EU requirements",null,null,null,null,null,null,"[LT1] Legislation on medicinal products for human use",null,null,null,null,null,null,null,"Sub-threshold",null,null,null,"[N] No",0,"[O1_1] Animals born in the UK at a registered breeder",null,null,null,null,null,null,"[NHPO1_1] Animals born at a registered breeder in the UK",null,null,null,null,null,null,"[NHPG1] F0",null,null,null,"[GS1] Not genetically altered",null,null,null,null,null,null,2013,null,null,"Translational and Applied Research",null,null,null,null,null,null,null," "]
[{"$f":"MID(B3,1,6)","v":"[PB2] "},"[PB2] (Basic Research) Cardiovascular Blood and Lymphatic System",null,null,null,null,null,null,null,"A2","Rats (Rattus norvegicus)",null,"[A2] Rats (Rattus norvegicus)",null,null,null,null,null,null,"Belgium",null,null,"[LO2] Legislation satisfying national requirements only [within EU]",null,null,null,null,null,null,"[LT2] Legislation on medicinal products for veterinary use and their residues",null,null,null,null,null,null,null,"[SV1] Non-recovery",null,null,null,"[Y] Yes",1,"[O1_2] Animals born in the EU (non UK) at a registered breeder",null,null,null,null,null,null,"[NHPO1_2] Animals born at a registered breeder within EU (non UK)",null,null,null,null,null,null,"[NHPG2] F1",null,null,null,"[GS2] Genetically altered without a harmful phenotype",null,null,null,null,null,null,2014,null,null,"Regulatory use and Routine production",null,null,null,null,null,null,null," "]
["[PB3] ","[PB3] (Basic Research) Nervous System",null,null,null,null,null,null,null,"A3","Guinea-Pigs (Cavia porcellus)",null,"[A3] Guinea-Pigs (Cavia porcellus)",null,null,null,null,null,null,"Bulgaria",null,null,"[LO3] Legislation satisfying Non-EU requirements only",null,null,null,null,null,null,"[LT3] Medical devices legislation",null,null,null,null,null,null,null,"[SV2] Mild",null,null,null,null,null,"[O2_1] Animals born in the UK but not at a registered breeder",null,null,null,null,null,null,"[NHPO2] Animals born in rest of Europe",null,null,null,null,null,null,"[NHPG3] F2 or greater",null,null,null,"[GS3] Genetically altered with a harmful phenotype",null,null,null,null,null,null,2015,null,null,"[PE40] Protection of the natural environment in the interests of the health or welfare of human beings or animals",null,null,null,null,null,null,null," "]
["[PB4] ","[PB4] (Basic Research) Respiratory System",null,null,null,null,null,null,null,"A4","Hamsters (Syrian) (Mesocricetus auratus)",null,"[A4] Hamsters (Syrian) (Mesocricetus auratus)",null,null,null,null,null,null,"Croatia",null,null,null,null,null,null,null,null,null,"[LT4] Industrial chemicals legislation",null,null,null,null,null,null,null,"[SV3] Moderate",null,null,null,null,null,"[O2_2] Animals born in the EU (non UK) but not at a registered breeder",null,null,null,null,null,null,"[NHPO3] Animals born in Asia",null,null,null,null,null,null,"[NHPG4] Self-sustaining colony",null,null,null,null,null,null,null,null,null,null,null,null,null,"[PS41] Preservation of species",null,null,null,null,null,null,null," "]
["[PB5] ","[PB5] (Basic Research) Gastrointestinal System including Liver",null,null,null,null,null,null,null,"A5","Hamsters (chinese) (Cricetulus griseus)",null,"[A5] Hamsters (chinese) (Cricetulus griseus)",null,null,null,null,null,null,"Cyprus",null,null,null,null,null,null,null,null,null,"[LT5] Plant protection product legislation",null,null,null,null,null,null,null,"[SV4] Severe",null,null,null,null,null,"[O3] Animals born in rest of Europe",null,null,null,null,null,null,"[NHPO4] Animals born in America",null,null,null,null,null,null,null,null,null,null,null,null,null,null,null,null,null,null,null,null,"[PE42] Higher education or training for the acquisition, maintenance or improvement of vocational skills",null,null,null,null,null,null,null," "]
["[PB6] ","[PB6] (Basic Research) Musculoskeletal System",null,null,null,null,null,null,null,"A6","Mongolian gerbil (Meriones unguiculatus)",null,"[A6] Mongolian gerbil (Meriones unguiculatus)",null,null,null,null,null,null,"Czech Republic",null,null,null,null,null,null,null,null,null,"[LT6] Biocides legislation",null,null,null,null,null,null,null,null,null,null,null,null,null,"[O4] Animals born in rest of world",null,null,null,null,null,null,"[NHPO5] Animals born in Africa",null,null,null,null,null,null,null,null,null,null,null,null,null,null,null,null,null,null,null,null,"[PF43] Forensic enquiries",null,null,null,null,null,null,null," "]
["[PB7] ","[PB7] (Basic Research) Immune System",null,null,null,null,null,null,null,"A7","Other Rodents (other Rodentia)",null,"[A7] Other Rodents (other Rodentia)",1,null,null,null,null,null,"Denmark",null,null,null,null,null,null,null,null,null,"[LT7] Food legislation including food contact material",null,null,null,null,null,null,null,null,null,null,null,null,null,null,null,null,null,null,null,null,"[NHPO6] Animals born elsewhere",null,null,null,null,null,null,null,null,null,null,null,null,null,null,null,null,null,null,null,null,"[PG43] Maintenance of colonies of established genetically altered animals, not used in other procedures",null,null,null,null,null,null,null," "]
["[PB8] ","[PB8] (Basic Research) Urogenital/Reproductive System",null,null,null,null,null,null,null,"A8","Rabbits (Oryctolagus cuniculus)",null,"[A8] Rabbits (Oryctolagus cuniculus)",null,null,null,null,null,null,"Estonia",null,null,null,null,null,null,null,null,null,"[LT8] Feed legislation including legislation for the safety of target animals, workers and environment"]
["[PB9] ","[PB9] (Basic Research) Sensory Organs (skin, eyes and ears)",null,null,null,null,null,null,null,"A9","Cats (Felis catus)",null,"[A9] Cats (Felis catus)",null,null,null,null,null,null,"Finland",null,null,null,null,null,null,null,null,null,"[LT9] Cosmetics legislation",null,null,null,null,null,null,null,null,null,null,null,null,null,null,null,null,null,null,null,null,null,null,null,null,null,null,null,null,null,null,null,null,null,null,null,null,null,null,null,null,null,"[PB1] Oncology",null,null,null,null,"Quality control (incl batch safety and potency testing)"]
["[PB10]","[PB10] (Basic Research) Endocrine System/Metabolism",null,null,null,null,null,null,null,"A10_1","Beagles (Canis lupus familiaris)",null,"[A10_1] Beagles (Canis lupus familiaris)",null,null,null,null,null,null,"France",null,null,null,null,null,null,null,null,null,"[LT10] Other",1,null,null,null,null,null,null,null,null,null,null,null,null,null,null,null,null,null,null,null,null,null,null,null,null,null,null,null,null,null,null,null,null,null,null,null,null,null,null,null,null,"[PB2] Cardiovascular Blood and Lymphatic System",null,null,null,null,"[PR71] Other efficacy and tolerance testing"]
["[PB11]","[PB11] (Basic Research) Multisystemic",null,null,null,null,null,null,null,"A10_2","Other dogs (Other Canis)",null,"[A10_2] Other dogs (Other Canis)",1,null,null,null,null,null,"Germany",null,null,null,null,null,null,null,null,null,null,null,null,null,null,null,null,null,"customsev",null,null,null,null,null,null,null,null,null,null,null,null,null,null,null,null,null,null,null,null,null,null,null,null,null,null,null,null,null,null,null,null,null,"[PB3] Nervous System",null,null,null,null,"Toxicity and other safety testing including  pharmacology"]
["[PB12]","[PB12] (Basic Research) Ethology / Animal Behaviour /Animal Biology",null,null,null,null,null,null,null,"A11","Ferrets (Mustela putorius furo)",null,"[A11] Ferrets (Mustela putorius furo)",null,null,null,null,null,null,"Greece",null,null,null,null,null,null,null,null,null,null,null,null,null,null,null,null,null,"Sub-threshold",null,null,null,null,null,null,null,null,null,null,null,null,null,null,null,null,null,null,null,null,null,null,null,null,null,null,null,null,null,null,null,null,null,"[PB4] Respiratory System",null,null,null,null,"Routine production"]
["[PB13]","[PB13] (Basic Research) Other",null,1,null,null,null,null,null,"A12","Other carnivores (other Carnivora)",null,"[A12] Other carnivores (other Carnivora)",1,null,null,null,null,null,"Hungary",null,null,null,null,null,null,null,null,null,null,null,null,null,null,null,null,null,"Threshold",null,null,null,null,null,null,null,null,null,null,null,null,null,null,null,null,null,null,null,null,null,null,null,null,null,null,null,null,null,null,null,null,null,"[PB5] Gastrointestinal System including Liver",null,null,null,null,null,null,null,null,"[PB13] Other",null,"PB13"]
["[PT21]","[PT21] (Trans/Appl Research) Human Cancer",null,null,null,null,null,null,null,"A13","Horses, donkeys & cross-breeds (Equidae)",null,"[A13] Horses, donkeys & cross-breeds (Equidae)",null,null,null,null,null,null,"Ireland",null,null,null,null,null,null,null,null,null,null,null,null,null,null,null,null,null,null,null,null,null,null,null,null,null,null,null,null,null,null,null,null,null,null,null,null,null,null,null,null,null,null,null,null,null,null,null,null,null,null,null,"[PB6] Musculoskeletal System",null,null,null,null,"[PR61] Batch safety testing",null,null,null,"[PR53] Other",null,"PR53"]
["[PT22]","[PT22] (Trans/Appl Research) Human Infectious Disorders",null,null,null,null,null,null,null,"A14","Pigs (Sus scrofa domesticus)",null,"[A14] Pigs (Sus scrofa domesticus)",null,null,null,null,null,null,"Italy",null,null,null,null,null,null,null,null,null,null,null,null,null,null,null,null,null,"proc",null,null,null,null,null,null,null,null,null,null,null,null,null,null,null,null,null,null,null,null,null,null,null,null,null,null,null,null,null,null,null,null,null,"[PB7] Immune System",null,null,null,null,"[PR62] Pyrogenicity testing",null,null,null,"[PR64] Other quality controls",null,"PR64"]
["[PT23]","[PT23] (Trans/Appl Research) Human Cardiovascular Disorders",null,null,null,null,null,null,null,"A15","Goats (Capra aegagrus hircus)",null,"[A15] Goats (Capra aegagrus hircus)",null,null,null,null,null,null,"Latvia",null,null,null,null,null,null,null,null,null,null,null,null,null,null,null,null,null,"Yes",null,null,null,null,null,null,null,null,null,null,null,null,null,null,null,null,null,null,null,null,null,null,null,null,null,null,null,null,null,null,null,null,null,"[PB8] Urogenital/Reproductive System",null,null,null,null,"[PR63] Batch potency testing",null,null,null,"[PR71] Other efficacy and tolerance testing",null,"PR71"]
["[PT24]","[PT24] (Trans/Appl Research) Human Nervous and Mental Disorders",null,null,null,null,null,null,null,"A16","Sheep (Ovis aries)",null,"[A16] Sheep (Ovis aries)",null,null,null,null,null,null,"Lithuania",null,null,null,null,null,null,null,null,null,null,null,null,null,null,null,null,null,"No",null,null,null,null,null,null,null,null,null,null,null,null,null,null,null,null,null,null,null,null,null,null,null,null,null,null,null,null,null,null,null,null,null,"[PB9] Sensory Organs (skin, eyes and ears)",null,null,null,null,"[PR64] Other quality controls",null,null,null,"[PR82] Other lethal methods",null,"PR82"]
["[PT25]","[PT25] (Trans/Appl Research) Human Respiratory Disorders",null,null,null,null,null,null,null,"A17","Cattle (Bos primigenius)",null,"[A17] Cattle (Bos primigenius)",null,null,null,null,null,null,"Luxembourg",null,null,null,null,null,null,null,null,null,null,null,null,null,null,null,null,null,null,null,null,null,null,null,null,null,null,null,null,null,null,null,null,null,null,null,null,null,null,null,null,null,null,null,null,null,null,null,null,null,null,null,"[PB10] Endocrine System/Metabolism",null,null,null,null,null,null,null,null,"[PR103] Other",null,"PR103"]
["[PT26]","[PT26] (Trans/Appl Research) Human Gastrointestinal Disorders including Liver",null,null,null,null,null,null,null,"A18","Prosimians (Prosimia)",null,"[A18] Prosimians (Prosimia)",null,1,null,null,null,null,"Malta",null,null,null,null,null,null,null,null,null,null,null,null,null,null,null,null,null,"NMBA",null,null,null,null,null,null,null,null,null,null,null,null,null,null,null,null,null,null,null,null,null,null,null,null,null,null,null,null,null,null,null,null,null,"[PB11] Multisystemic",null,null,null,null,"[PR51] Blood based products",null,null,null,"[PR106] Other",null,"PR106"]
["[PT27]","[PT27] (Trans/Appl Research) Human Musculoskeletal Disorders",null,null,null,null,null,null,null,"A19","Marmoset and tamarins (eg. Callithrix jacchus)",null,"[A19] Marmoset and tamarins (eg. Callithrix jacchus)",null,1,null,null,null,null,"Netherlands",null,null,null,null,null,null,null,null,null,null,null,null,null,null,null,null,null,"No",null,null,null,null,null,null,null,null,null,null,null,null,null,null,null,null,null,null,null,null,null,null,null,null,null,null,null,null,null,null,null,null,null,"[PB12] Ethology / Animal Behaviour /Animal Biology",null,null,null,null,"[PR52] Monoclonal antibodies",null,null,null,"[PT32] Other Human Disorders",null,"PT32"]
["[PT28]","[PT28] (Trans/Appl Research) Human Immune Disorders",null,null,null,null,null,null,null,"A20","Cynomolgus monkey (Macaca fascicularis)",null,"[A20] Cynomolgus monkey (Macaca fascicularis)",null,1,null,null,null,null,"Poland",null,null,null,null,null,null,null,null,null,null,null,null,null,null,null,null,null,"Yes",null,null,null,null,null,null,null,null,null,null,null,null,null,null,null,null,null,null,null,null,null,null,null,null,null,null,null,null,null,null,null,null,null,"[PB13] Other",null,null,null,null,"[PR53] Other"]
["[PT29]","[PT29] (Trans/Appl Research) Human Urogenital/Reproductive Disorders",null,null,null,null,null,null,null,"A21","Rhesus monkey (Macaca mulatta)",null,"[A21] Rhesus monkey (Macaca mulatta)",null,1,null,null,null,null,"Portugal"]
["[PT30]","[PT30] (Trans/Appl Research) Human Sensory Organ Disorders (skin, eyes and ears)",null,null,null,null,null,null,null,"A22","Vervets Chlorocebus spp. (usually either pygerythrus or sabaeus)",null,"[A22] Vervets Chlorocebus spp. (usually either pygerythrus or sabaeus)",null,1,null,null,null,null,"Romania",null,null,null,null,null,null,null,null,null,null,null,null,null,null,null,null,null,"TOSI",null,null,null,null,null,null,null,null,null,null,null,null,null,null,null,null,null,null,null,null,null,null,null,null,null,null,null,null,null,null,null,null,null,"[PT21] Human Cancer",null,null,null,null,null,"Acute and sub-acute",null,null,null,"[PR81] LD50, LC50"]
["[PT31]","[PT31] (Trans/Appl Research) Human Endocrine/Metabolism Disorders",null,null,null,null,null,null,null,"A23","Baboons (Papio spp.)",null,"[A23] Baboons (Papio spp.)",null,1,null,null,null,null,"Slovakia",null,null,null,null,null,null,null,null,null,null,null,null,null,null,null,null,null,"None",null,null,null,null,null,null,null,null,null,null,null,null,null,null,null,null,null,null,null,null,null,null,null,null,null,null,null,null,null,null,null,null,null,"[PT22] Human Infectious Disorders",null,null,null,null,null,"[PR84] Skin irritation/corrosion",null,null,null,"[PR82] Other lethal methods"]
["[PT32]","[PT32] (Trans/Appl Research) Other Human Disorders",null,1,null,null,null,null,null,"A24","Squirrel monkey (eg. Saimiri sciureus)",null,"[A24] Squirrel monkey (eg. Saimiri sciureus)",null,1,null,null,null,null,"Slovenia",null,null,null,null,null,null,null,null,null,null,null,null,null,null,null,null,null,"Household product testing",null,null,null,null,null,null,null,null,null,null,null,null,null,null,null,null,null,null,null,null,null,null,null,null,null,null,null,null,null,null,null,null,null,"[PT23] Human Cardiovascular Disorders",null,null,null,null,null,"[PR85] Skin sensitisation",null,null,null,"[PR83] Non lethal methods"]
["[PT33]","[PT33] (Trans/Appl Research) Animal Diseases and Disorders",null,null,null,null,null,null,null,"A25-1","Other species of Old World Monkeys (Cercopithecoidea)",null,"[A25-1] Other species of Old World Monkeys (Cercopithecoidea)",1,1,null,null,null,null,"Spain",null,null,null,null,null,null,null,null,null,null,null,null,null,null,null,null,null,"Use of ascites models for monoclonal antibody production",null,null,null,null,null,null,null,null,null,null,null,null,null,null,null,null,null,null,null,null,null,null,null,null,null,null,null,null,null,null,null,null,null,"[PT24] Human Nervous and Mental Disorders",null,null,null,null,null,"[PR86] Eye irritation/corrosion"]
["[PT34]","[PT34] (Trans/Appl Research) Animal Welfare",null,null,null,null,null,null,null,"A25-2","Other species of New World Monkeys (Ceboidea)",null,"[A25-2] Other species of New World Monkeys (Ceboidea)",1,1,null,null,null,null,"Sweden",null,null,null,null,null,null,null,null,null,null,null,null,null,null,null,null,null,"Tobacco",null,null,null,null,null,null,null,null,null,null,null,null,null,null,null,null,null,null,null,null,null,null,null,null,null,null,null,null,null,null,null,null,null,"[PT25] Human Respiratory Disorders",null,null,null,null,null,"Repeated dose toxicity",null,null,null,"[PR87] up to 28 days"]
["[PT35]","[PT35] (Trans/Appl Research) Diagnosis of diseases",null,null,null,null,null,null,null,"A26","Apes (Hominoidea)",null,"[A26] Apes (Hominoidea)",null,1,null,null,null,null,"United Kingdom",null,null,null,null,null,null,null,null,null,null,null,null,null,null,null,null,null,"Alcohol",null,null,null,null,null,null,null,null,null,null,null,null,null,null,null,null,null,null,null,null,null,null,null,null,null,null,null,null,null,null,null,null,null,"[PT26] Human Gastrointestinal Disorders including Liver",null,null,null,null,null,"[PR90] Carcinogenicity",null,null,null,"[PR88] 29 - 90 days"]
["[PT36]","[PT36] (Trans/Appl Research) Plant diseases",null,null,null,null,null,null,null,"A27","Other Mammals (other Mammalia)",null,"[A27] Other Mammals (other Mammalia)",1,null,null,null,null,null," ",null,null,null,null,null,null,null,null,null,null,null,null,null,null,null,null,null,null,null,null,null,null,null,null,null,null,null,null,null,null,null,null,null,null,null,null,null,null,null,null,null,null,null,null,null,null,null,null,null,null,null,"[PT27] Human Musculoskeletal Disorders",null,null,null,null,null,"[PR91] Genotoxicity",null,null,null,"[PR89] > 90 days"]
["[PT37]","[PT37] (Trans/Appl Research) Non-regulatory toxicology and ecotoxicology",null,null,null,null,null,null,null,"A28","Domestic fowl (Gallus gallus domesticus)",null,"[A28] Domestic fowl (Gallus gallus domesticus)",null,null,null,null,null,null," ",null,null,null,null,null,null,null,null,null,null,null,null,null,null,null,null,null,null,null,null,null,null,null,null,null,null,null,null,null,null,null,null,null,null,null,null,null,null,null,null,null,null,null,null,null,null,null,null,null,null,null,"[PT28] Human Immune Disorders",null,null,null,null,null,"[PR92] Reproductive toxicity"]
["[PE40]","[PE40] Protection of the natural environment in the interests of the health or welfare of human beings or animals",null,null,null,null,null,null,null,"A29_1","Quail (Coturnix coturnix)",null,"[A29_1] Quail (Coturnix coturnix)",null,null,null,null,null,null," ",null,null,null,null,null,null,null,null,null,null,null,null,null,null,null,null,null,null,null,null,null,null,null,null,null,null,null,null,null,null,null,null,null,null,null,null,null,null,null,null,null,null,null,null,null,null,null,null,null,null,null,"[PT29] Human Urogenital/Reproductive Disorders",null,null,null,null,null,"[PR93] Developmental toxicity"]
["[PS41]","[PS41] Preservation of species",null,null,null,null,null,null,null,"A29_2","Other birds (other Aves)",null,{"$f":"CONCATENATE(\"[\",J33,\"] \",K33)","v":"[A29_2] Other birds (other Aves)"},1,null,null,null,null,null," ",null,null,null,null,null,null,null,null,null,null,null,null,null,null,null,null,null,null,null,null,null,null,null,null,null,null,null,null,null,null,null,null,null,null,null,null,null,null,null,null,null,null,null,null,null,null,null,null,null,null,null,"[PT30] Human Sensory Organ Disorders (skin, eyes and ears)",null,null,null,null,null,"[PR94] Neurotoxicity"]
["[PE42]","[PE42] Higher education or training for the acquisition, maintenance or improvement of vocational skills",null,null,null,null,null,null,null,"A30","Reptiles (Reptilia)",null,"[A30] Reptiles (Reptilia)",null,null,null,null,null,null," ",null,null,null,null,null,null,null,null,null,null,null,null,null,null,null,null,null,null,null,null,null,null,null,null,null,null,null,null,null,null,null,null,null,null,null,null,null,null,null,null,null,null,null,null,null,null,null,null,null,null,null,"[PT31] Human Endocrine/Metabolism Disorders",null,null,null,null,null,"[PR95] Kinetics"]
["[PF43]","[PF43] Forensic enquiries",null,null,null,null,null,null,null,"A31","Rana (Rana temporaria and Rana pipiens)",null,"[A31] Rana (Rana temporaria and Rana pipiens)",null,null,null,null,null,null," ",null,null,null,null,null,null,null,null,null,null,null,null,null,null,null,null,null,null,null,null,null,null,null,null,null,null,null,null,null,null,null,null,null,null,null,null,null,null,null,null,null,null,null,null,null,null,null,null,null,null,null,"[PT32] Other Human Disorders",null,null,null,null,null,"[PR96] Pharmaco-dynamics (incl safety pharmacology)"]
["[PG43]","[PG43] Maintenance of colonies of established genetically altered animals, not used in other procedures",null,null,null,null,null,null,null,"A32","Xenopus (Xenopus laevis and Xenopus tropicalis)",null,"[A32] Xenopus (Xenopus laevis and Xenopus tropicalis)",null,null,null,null,null,null," ",null,null,null,null,null,null,null,null,null,null,null,null,null,null,null,null,null,null,null,null,null,null,null,null,null,null,null,null,null,null,null,null,null,null,null,null,null,null,null,null,null,null,null,null,null,null,null,null,null,null,null,"[PT33] Animal Diseases and Disorders",null,null,null,null,null,"[PR97] Phototoxicity"]
["[PR51]","[PR51] (Regulatory use/ Routine production) Blood based products",1,null,null,null,null,null,null,"A33","Other Amphibians (other Amphibia)",null,"[A33] Other Amphibians (other Amphibia)",1,null,null,null,null,null," ",null,null,null,null,null,null,null,null,null,null,null,null,null,null,null,null,null,null,null,null,null,null,null,null,null,null,null,null,null,null,null,null,null,null,null,null,null,null,null,null,null,null,null,null,null,null,null,null,null,null,null,"[PT34] Animal Welfare",null,null,null,null,null,"Ecotoxicity",null,null,null,"[PR98] Acute toxicity"]
["[PR52]","[PR52] (Regulatory use/ Routine production) Monoclonal antibodies",1,null,null,null,null,null,null,"A34","Zebra fish (Danio rerio)",null,"[A34] Zebra fish (Danio rerio)",null,null,null,null,null,null," ",null,null,null,null,null,null,null,null,null,null,null,null,null,null,null,null,null,null,null,null,null,null,null,null,null,null,null,null,null,null,null,null,null,null,null,null,null,null,null,null,null,null,null,null,null,null,null,null,null,null,null,"[PT35] Diagnosis of diseases",null,null,null,null,null,"[PR104] Safety testing in food and feed area",null,null,null,"[PR99] Chronic toxicity"]
["[PR53]","[PR53] (Regulatory use/ Routine production) Other",1,1,null,null,null,null,null,"A35","Other Fish (other Pisces)",null,"[A35] Other Fish (other Pisces)",1,null,null,null,null,null," ",null,null,null,null,null,null,null,null,null,null,null,null,null,null,null,null,null,null,null,null,null,null,null,null,null,null,null,null,null,null,null,null,null,null,null,null,null,null,null,null,null,null,null,null,null,null,null,null,null,null,null,"[PT36] Plant diseases",null,null,null,null,null,"[PR105] Target animal safety",null,null,null,"[PR100] Reproductive toxicity"]
["[PR61]","[PR61] (Regulatory use/ Quality control) Batch safety testing",1,null,null,null,null,null,null,"A36","Cephalopods (Cephalopoda)",null,"[A36] Cephalopods (Cephalopoda)",null,null,null,null,null,null," ",null,null,null,null,null,null,null,null,null,null,null,null,null,null,null,null,null,null,null,null,null,null,null,null,null,null,null,null,null,null,null,null,null,null,null,null,null,null,null,null,null,null,null,null,null,null,null,null,null,null,null,"[PT37] Non-regulatory toxicology and ecotoxicology",null,null,null,null,null,"[PR106] Other",null,null,null,"[PR101] Endocrine activity"]
["[PR62]","[PR62] (Regulatory use/ Quality control) Pyrogenicity testing",1,null,null,null,null,null,null," ",null,null,null,null,null,null,null,null,null," ",null,null,null,null,null,null,null,null,null,null,null,null,null,null,null,null,null,null,null,null,null,null,null,null,null,null,null,null,null,null,null,null,null,null,null,null,null,null,null,null,null,null,null,null,null,null,null,null,null,null,null,null,null,null,null,null,null,null,null,null,null,"[PR102] Bioaccumulation"]
["[PR63]","[PR63] (Regulatory use/ Quality control) Batch potency testing",1,null,null,null,null,null,null," ",null,null,null,null,null,null,null,null,null," ",null,null,null,null,null,null,null,null,null,null,null,null,null,null,null,null,null,null,null,null,null,null,null,null,null,null,null,null,null,null,null,null,null,null,null,null,null,null,null,null,null,null,null,null,null,null,null,null,null,null,null,null,null,null,null,null,null,null,null,null,null,"[PR103] Other"]
["[PR64]","[PR64] (Regulatory use/ Quality control) Other quality controls",1,1,null,null,null,null,null," ",null,null,null,null,null,null,null,null,null," "]
["[PR71]","[PR71] (Regulatory use) Other efficacy and tolerance testing",1,1,null,null,null,null,null," ",null,null,null,null,null,null,null,null,null," "]
["[PR81]","[PR81] (Regulatory use/Toxicity and../Acute and sub-acute) LD50, LC50",1,null,null,null,null,null,null," ",null,null,null,null,null,null,null,null,null," "]
["[PR82]","[PR82] (Regulatory use/Toxicity and../Acute and sub-acute) Other lethal methods",1,1,null,null,null,null,null,null,null,null,null,null,null,null,null,null,null," "]
["[PR83]","[PR83] (Regulatory use/Toxicity and../Acute and sub-acute) Non lethal methods",1,null,null,null,null,null,null,null,null,null,null,null,null,null,null,null,null," "]
["[PR84]","[PR84] (Regulatory use/Toxicity and..) Skin irritation/corrosion",1,null,null,null,null,null,null,null,null,null,null,null,null,null,null,null,null," "]
["[PR85]","[PR85] (Regulatory use/Toxicity and..) Skin sensitisation",1,null,null,null,null,null,null,null,null,null,null,null,null,null,null,null,null," "]
["[PR86]","[PR86] (Regulatory use/Toxicity and..) Eye irritation/corrosion",1,null,null,null,null,null,null,null,null,null,null,null,null,null,null,null,null," "]
["[PR87]","[PR87] (Regulatory use/Toxicity and../Repeated dose toxicity) up to 28 days",1,null,null,null,null,null,null,null,null,null,null,null,null,null,null,null,null," "]
["[PR88]","[PR88] (Regulatory use/Toxicity and../Repeated dose toxicity) 29 - 90 days",1,null,null,null,null,null,null,null,null,null,null,null,null,null,null,null,null," "]
["[PR89]","[PR89] (Regulatory use/Toxicity and../Repeated dose toxicity) > 90 days",1,null,null,null,null,null,null,null,null,null,null,null,null,null,null,null,null," "]
["[PR90]","[PR90] (Regulatory use/Toxicity and..) Carcinogenicity",1,null,null,null,null,null,null,null,null,null,null,null,null,null,null,null,null," "]
["[PR91]","[PR91] (Regulatory use/Toxicity and..) Genotoxicity",1,null,null,null,null,null,null,null,null,null,null,null,null,null,null,null,null," "]
["[PR92]","[PR92] (Regulatory use/Toxicity and..) Reproductive toxicity",1,null,null,null,null,null,null,null,null,null,null,null,null,null,null,null,null," "]
["[PR93]","[PR93] (Regulatory use/Toxicity and..) Developmental toxicity",1,null,null,null,null,null,null,null,null,null,null,null,null,null,null,null,null," "]
["[PR94]","[PR94] (Regulatory use/Toxicity and..) Neurotoxicity",1,null,null,null,null,null,null,null,null,null,null,null,null,null,null,null,null," "]
["[PR95]","[PR95] (Regulatory use/Toxicity and..) Kinetics",1,null,null,null,null,null,null,null,null,null,null,null,null,null,null,null,null," "]
["[PR96]","[PR96] (Regulatory use/Toxicity and..) Pharmaco-dynamics (incl safety pharmacology)",1,null,null,null,null,null,null,null,null,null,null,null,null,null,null,null,null," "]
["[PR97]","[PR97] (Regulatory use/Toxicity and..) Phototoxicity",1,null,null,null,null,null,null,null,null,null,null,null,null,null,null,null,null," "]
["[PR98]","[PR98] (Regulatory use/Toxicity and../Ecotoxicity) Acute toxicity",1,null,null,null,null,null,null,null,null,null,null,null,null,null,null,null,null," "]
["[PR99]","[PR99] (Regulatory use/Toxicity and../Ecotoxicity) Chronic toxicity",1,null,null,null,null,null,null,null,null,null,null,null,null,null,null,null,null," "]
["[PR100","[PR100] (Regulatory use/Toxicity and../Ecotoxicity) Reproductive toxicity",1,null,null,null,null,null,null,null,null,null,null,null,null,null,null,null,null," "]
["[PR101","[PR101] (Regulatory use/Toxicity and../Ecotoxicity) Endocrine activity",1,null,null,null,null,null,null,null,null,null,null,null,null,null,null,null,null," "]
["[PR102","[PR102] (Regulatory use/Toxicity and../Ecotoxicity) Bioaccumulation",1,null,null,null,null,null,null,null,null,null,null,null,null,null,null,null,null," "]
[{"$f":"MID(B67,1,6)","v":"[PR103"},"[PR103] (Regulatory use/Toxicity and../Ecotoxicity) Other",1,1,null,null,null,null,null,null,null,null,null,null,null,null,null,null,null," "]
[{"$f":"MID(B68,1,6)","v":"[PR104"},"[PR104] (Regulatory use/Toxicity and..) Safety testing in food and feed area",1,null,null,null,null,null,null,null,null,null,null,null,null,null,null,null,null," "]
[{"$f":"MID(B69,1,6)","v":"[PR105"},"[PR105] (Regulatory use/Toxicity and..) Target animal safety",1,null,null,null,null,null,null,null,null,null,null,null,null,null,null,null,null," "]
[{"$f":"MID(B70,1,6)","v":"[PR106"},"[PR106] (Regulatory use/Toxicity and..) Other",1,1,null,null,null,null,null,null,null,null,null,null,null,null,null,null,null," "]
[null,"[PN107] Non-EU Purpose",null,null,null,null,null,null,null,null,null,null,null,null,null,null,null,null,null," "]
[null,null,null,null,null,null,null,null,null,null,null,null,null,null,null,null,null,null,null," "]
[null,null,null,null,null,null,null,null,null,null,null,null,null,null,null,null,null,null,null," "]
[null,null,null,null,null,null,null,null,null,null,null,null,null,null,null,null,null,null,null," "]
[null,null,null,null,null,null,null,null,null,null,null,null,null,null,null,null,null,null,null," "]
[null,null,null,null,null,null,null,null,null,null,null,null,null,null,null,null,null,null,null," "]